Workbook

Sheet Menu
A4: 3Q24 Operating Data

Sheet Market Data
B3: I. Market Data of Eletrobras Companies
B5: I.1 Installed Capacity and Physical Guarantee – MW
B6: Company | C6: Comprehensive Responsibility (a) | E6: Comprehensive Liability under Law 13.182/15 (b) | G6: Comprehensive Liability under O&M (c) Regime | I6: SPE (d) | K6: SPE under O&M (e) Regime | M6: Net aggregation 2024 | O6: Total (a+b+c+d+e)
C7: Installed Capacity | D7: Physical Guarantee | E7: Installed Capacity | F7: Physical Guarantee | G7: Installed Capacity | H7: Physical Guarantee | I7: Installed Capacity | J7: Physical Guarantee | K7: Installed Capacity | L7: Physical Guarantee | M7: Installed Capacity | N7: Physical Guarantee | O7: Installed Capacity | P7: Physical Guarantee
B8: Eletrobras Holding | C8: 2127.065 | D8: 1282.57222 | E8: 2082 | F8: 948.9 | G8: 4644.6 | H8: 2350.9 | I8: 5256.989631 | J8: 3228.307032 | K8: 402.9425 | L8: 103.1433 | M8: -209.975 | N8: -120.37 | O8: 14513.59713 | P8: 7913.822552
B9: Eletronorte | C9: 9814.53 | D9: 4897.1 | E9: 0 | F9: 0 | G9: 78 | H9: 62.2 | I9: 4947.88986 | J9: 2145.92132 | K9: 0 | L9: 0 | M9: 0 | N9: 0 | O9: 14840.41986 | P9: 7105.22132
B10: Chesf | C10: 1015.401 | D10: 1839.303 | E10: 1050.3 | F10: 457.5 | G10: 8394.729 | H10: 2498.537 | I10: 2578.9956 | J10: 1188.025 | K10: 0 | L10: 0 | M10: 0 | N10: 0 | O10: 13039.4256 | P10: 5983.365
B11: CGT Eletrosul | C11: 572.6186 | D11: 242.005 | E11: 0 | F11: 0 | G11: 0 | H11: 0 | I11: 1225.05456 | J11: 667.91024 | K11: 0 | L11: 0 | M11: -253.4 | N11: -262.4 | O11: 1797.67316 | P11: 909.91524
B12: Total | C12: 13529.6146 | D12: 8260.98022 | E12: 3132.3 | F12: 1406.4 | G12: 13117.329 | H12: 4911.637 | I12: 14008.92965 | J12: 7230.163592 | K12: 402.9425 | L12: 103.1433 | M12: -463.375 | N12: -382.77 | O12: 44191.11575 | P12: 21912.32411
B14: Company | C14: Full Responsibility | H14: Consolidated SPEs | M14: SPE recognized by equity method | R14: Net aggregation 2024 | T14: Total (a+b+c+d+e)
C15: Installed Capacity | D15: Physical Guarantee Law 13,182/15 | E15: Physical Guarantee Decoupled | F15: Physical Guarantee Share | G15: Total Physical Guarantee | H15: Installed Capacity | I15: Physical Guarantee Law 13,182/15 | J15: Physical Guarantee Decoupled | K15: Physical Guarantee Share | L15: Total Physical Guarantee | M15: Installed Capacity | N15: Physical Guarantee Law 13,182/15 | O15: Physical Guarantee Decoupled | P15: Physical Guarantee Share | Q15: Total Physical Guarantee | R15: Installed Capacity | S15: Physical Guarantee | T15: Installed Capacity | U15: Physical Guarantee
B16: Eletrobras Holding | C16: =SUMIFS($P$32:$P$139,$B$32:$B$139,$B16,$Q$32:$Q$139,"Full Responsibility") -> 8853.665 | D16: =SUMIFS($N$32:$N$139,$B$32:$B$139,$B16,$Q$32:$Q$139,"Full Responsibility") -> 759.12 | E16: =SUMIFS($M$32:$M$139,$B$32:$B$139,$B16,$Q$32:$Q$139,"Full Responsibility") -> 2420.33222 | F16: =SUMIFS($L$32:$L$139,$B$32:$B$139,$B16,$Q$32:$Q$139,"Full Responsibility") -> 1402.92 | G16: =SUM(D16:F16) -> 4582.37222 | H16: =SUMIFS($P$32:$P$139,$B$32:$B$139,$B16,$Q$32:$Q$139,"Consolidated SPE") -> 4355.397671 | I16: =SUMIFS($N$32:$N$139,$B$32:$B$139,$B16,$Q$32:$Q$139,"Consolidated SPE") -> 0 | J16: =SUMIFS($M$32:$M$139,$B$32:$B$139,$B16,$Q$32:$Q$139,"Consolidated SPE") -> 2720.447292 | K16: =SUMIFS($L$32:$L$139,$B$32:$B$139,$B16,$Q$32:$Q$139,"Consolidated SPE") -> 0 | L16: =SUM(I16:K16) -> 2720.447292 | M16: =SUMIFS($P$32:$P$139,$B$32:$B$139,$B16,$Q$32:$Q$139,"SPE by equity method") -> 1304.540883 | N16: =SUMIFS($N$32:$N$139,$B$32:$B$139,$B16,$Q$32:$Q$139,"SPE by equity method") -> 0 | O16: =SUMIFS($M$32:$M$139,$B$32:$B$139,$B16,$Q$32:$Q$139,"SPE by equity method") -> 611.007204 | P16: =SUMIFS($L$32:$L$139,$B$32:$B$139,$B16,$Q$32:$Q$139,"SPE by equity method") -> 0 | Q16: =SUM(N16:P16) -> 611.007204 | R16: =SUMIFS($P$32:$P$139,$B$32:$B$139,$B16,$Q$32:$Q$139,"Agregação Líquida 2024") -> 0 | S16: =SUMIFS($K$32:$K$139,$B$32:$B$139,$B16,$Q$32:$Q$139,"Agregação Líquida 2024") -> 0 | T16: =+M16+H16+C16 -> 14513.60355 | U16: =+Q16+L16+G16 -> 7913.826716
B17: Eletronorte | C17: =SUMIFS($P$32:$P$139,$B$32:$B$139,$B17,$Q$32:$Q$139,"Full Responsibility") -> 9892.52 | D17: =SUMIFS($N$32:$N$139,$B$32:$B$139,$B17,$Q$32:$Q$139,"Full Responsibility") -> 0 | E17: =SUMIFS($M$32:$M$139,$B$32:$B$139,$B17,$Q$32:$Q$139,"Full Responsibility") -> 4921.98 | F17: =SUMIFS($L$32:$L$139,$B$32:$B$139,$B17,$Q$32:$Q$139,"Full Responsibility") -> 37.32 | G17: =SUM(D17:F17) -> 4959.3 | H17: =SUMIFS($P$32:$P$139,$B$32:$B$139,$B17,$Q$32:$Q$139,"Consolidated SPE") -> 920.09088 | I17: =SUMIFS($N$32:$N$139,$B$32:$B$139,$B17,$Q$32:$Q$139,"Consolidated SPE") -> 0 | J17: =SUMIFS($M$32:$M$139,$B$32:$B$139,$B17,$Q$32:$Q$139,"Consolidated SPE") -> 487.49952 | K17: =SUMIFS($L$32:$L$139,$B$32:$B$139,$B17,$Q$32:$Q$139,"Consolidated SPE") -> 0 | L17: =SUM(I17:K17) -> 487.49952 | M17: =SUMIFS($P$32:$P$139,$B$32:$B$139,$B17,$Q$32:$Q$139,"SPE by equity method") -> 4027.79898 | N17: =SUMIFS($N$32:$N$139,$B$32:$B$139,$B17,$Q$32:$Q$139,"SPE by equity method") -> 0 | O17: =SUMIFS($M$32:$M$139,$B$32:$B$139,$B17,$Q$32:$Q$139,"SPE by equity method") -> 1658.4218 | P17: =SUMIFS($L$32:$L$139,$B$32:$B$139,$B17,$Q$32:$Q$139,"SPE by equity method") -> 0 | Q17: =SUM(N17:P17) -> 1658.4218 | R17: =SUMIFS($P$32:$P$139,$B$32:$B$139,$B17,$Q$32:$Q$139,"Agregação Líquida 2024") -> 0 | S17: =SUMIFS($K$32:$K$139,$B$32:$B$139,$B17,$Q$32:$Q$139,"Agregação Líquida 2024") -> 0 | T17: =+M17+H17+C17 -> 14840.40986 | U17: =+Q17+L17+G17 -> 7105.22132
B18: Chesf | C18: 10460.43 | D18: 505.859314 | E18: 1885.053 | F18: =SUMIFS($L$32:$L$139,$B$32:$B$139,$B18,$Q$32:$Q$139,"Full Responsibility") -> 2404.427686 | G18: =SUM(D18:F18) -> 4795.34 | H18: 0 | I18: =SUMIFS($N$32:$N$139,$B$32:$B$139,$B18,$Q$32:$Q$139,"Consolidated SPE") -> 0 | J18: =SUMIFS($M$32:$M$139,$B$32:$B$139,$B18,$Q$32:$Q$139,"Consolidated SPE") -> 0 | K18: =SUMIFS($L$32:$L$139,$B$32:$B$139,$B18,$Q$32:$Q$139,"Consolidated SPE") -> 0 | L18: =SUM(I18:K18) -> 0 | M18: 2578.9956 | N18: =SUMIFS($N$32:$N$139,$B$32:$B$139,$B18,$Q$32:$Q$139,"SPE by equity method") -> 0 | O18: =SUMIFS($M$32:$M$139,$B$32:$B$139,$B18,$Q$32:$Q$139,"SPE by equity method") -> 1190.475 | P18: 0 | Q18: =SUM(N18:P18) -> 1190.475 | R18: 0 | S18: 0 | T18: =+M18+H18+C18 -> 13039.4256 | U18: =+Q18+L18+G18 -> 5985.815
B19: CGT Eletrosul | C19: 572.62 | D19: 0 | E19: 242.005 | F19: =SUMIFS($L$32:$L$139,$B$32:$B$139,$B19,$Q$32:$Q$139,"Full Responsibility") -> 0 | G19: =SUM(D19:F19) -> 242.005 | H19: 475.05456 | I19: =SUMIFS($N$32:$N$139,$B$32:$B$139,$B19,$Q$32:$Q$139,"Consolidated SPE") -> 0 | J19: =SUMIFS($M$32:$M$139,$B$32:$B$139,$B19,$Q$32:$Q$139,"Consolidated SPE") -> 247.61024 | K19: =SUMIFS($L$32:$L$139,$B$32:$B$139,$B19,$Q$32:$Q$139,"Consolidated SPE") -> 0 | L19: =SUM(I19:K19) -> 247.61024 | M19: 750 | N19: =SUMIFS($N$32:$N$139,$B$32:$B$139,$B19,$Q$32:$Q$139,"SPE by equity method") -> 0 | O19: =SUMIFS($M$32:$M$139,$B$32:$B$139,$B19,$Q$32:$Q$139,"SPE by equity method") -> 420.3 | P19: 0 | Q19: =SUM(N19:P19) -> 420.3 | R19: -253.4 | S19: -262.4 | T19: =+M19+H19+C19 -> 1797.67456 | U19: =+Q19+L19+G19 -> 909.91524
B20: Total | C20: =SUM(C16:C19) -> 29779.235 | D20: =SUM(D16:D19) -> 1264.979314 | E20: 9469.37022 | F20: 3844.667686 | G20: 14579.01722 | H20: 5750.543111 | I20: 0 | J20: 3455.557052 | K20: 0 | L20: 3455.557052 | M20: 8661.335463 | N20: 0 | O20: 3880.204004 | P20: 0 | Q20: 3880.204004 | R20: -463.375 | S20: -382.77 | T20: 44191.11357 | U20: 21914.77828
B22: Check | C22: Full Responsibility | E22: SPE | G22: Total
C23: Installed Capacity | D23: Physical Guarantee | E23: Installed Capacity | F23: Physical Guarantee | G23: Installed Capacity | H23: Physical Guarantee
B24: Eletrobras Holding | C24: =C16-C8-E8-G8 -> 0 | D24: =G16-D8-F8-H8 -> 0 | E24: =H16+M16-I8-K8 -> 0.006422940001 | F24: =L16+Q16-J8-L8 -> 0.00416394 | G24: =T16-O8 -> 0.00642294 | H24: =U16-P8 -> 0.004163940001
B25: Eletronorte | C25: =C17-C9-E9-G9 -> -0.009999999998 | D25: =G17-D9-F9-H9 -> -1.847411113e-13 | E25: =H17+M17-I9-K9 -> 0 | F25: =L17+Q17-J9-L9 -> 0 | G25: =T17-O9 -> -0.009999999998 | H25: =U17-P9 -> 0
B26: Chesf | C26: =C18-C10-E10-G10 -> 0 | D26: =G18-D10-F10-H10 -> 0 | E26: 0 | F26: 2.45 | G26: 0 | H26: 2.45
B27: CGT Eletrosul | C27: =C19-C11-E11-G11 -> 0.0014 | D27: =G19-D11-F11-H11 -> 2.842170943e-14 | E27: 0 | F27: 0 | G27: 0.0014 | H27: 0
B28: Total | C28: =C20-C12-E12-G12 -> -0.008599999996 | D28: =G20-D12-F12-H12 -> 0 | E28: =H20+M20-I12-K12 -> 0.006422939999 | F28: =L20+Q20-J12-L12 -> 2.45416394 | G28: -0.00217706 | H28: 2.45416394
B30: Company | C30: Plant | D30: Total Physical Guarantee (Mwm) (100% of Assets) | I30: Installed Capacity (MW) (100%) | J30: % Stake | K30: Total Physical Guarantee (Mwm) (Proportional) | P30: Installed Capacity (MW) (Proportional) | Q30: Classification
D31: Total (Mwm) (100% of Assets) | E31: Quoted (MWm) (1) | F31: Decoupled (MWm) (1) | G31: Law 13,182 (MWm) (2) | H31: % Decoupled Physical Guarantee | K31: Total (Mwm) (100% of Assets) | L31: Quoted (MWm) (1) | M31: Decoupled (MWm) (1) | N31: Law 13,182 (MWm) (2) | O31: % Decoupled Physical Guarantee
B32: Chesf | C32: Funil | D32: ='G Assets and Generated Energy O'!J7 -> 4.8 | E32: =D32-F32-G32 -> 2.70892 | F32: ='G Assets and Generated Energy O'!K7 -> 1.985 | G32: ='G Assets and Generated Energy O'!K25 -> 0.10608 | H32: =IF(E32=0,"na",(F32-G32)/(D32-G32)) -> 0.4002880322 | I32: ='G Assets and Generated Energy O'!I7 -> 30 | J32: 1 | K32: =$J32*D32 -> 4.8 | L32: 2.70892 | M32: 1.985 | N32: 0.10608 | O32: =IF(L32=0,"na",(M32-N32)/(K32-N32)) -> 0.4002880322 | P32: =J32*I32 -> 30 | Q32: Full Responsibility
B33: Chesf | C33: Pedra | D33: ='G Assets and Generated Energy O'!J8 -> 1.74 | E33: =D33-F33-G33 -> 0.982546 | F33: ='G Assets and Generated Energy O'!K8 -> 0.719 | G33: ='G Assets and Generated Energy O'!K26 -> 0.038454 | H33: 0.3999574505 | I33: ='G Assets and Generated Energy O'!I8 -> 20.01 | J33: 1 | K33: 1.74 | L33: 0.982546 | M33: 0.719 | N33: 0.038454 | O33: 0.3999574505 | P33: 20.01 | Q33: Full Responsibility
B34: Chesf | C34: Paulo Afonso Complex | D34: ='G Assets and Generated Energy O'!J9 -> 1658.8 | E34: =D34-F34-G34 -> 936.62452 | F34: ='G Assets and Generated Energy O'!K9 -> 685.516 | G34: ='G Assets and Generated Energy O'!K27 -> 36.65948 | H34: 0.4000001923 | I34: ='G Assets and Generated Energy O'!I9 -> 4279.6 | J34: 1 | K34: 1658.8 | L34: 936.62452 | M34: 685.516 | N34: 36.65948 | O34: 0.4000001923 | P34: 4279.6 | Q34: Full Responsibility
B35: Chesf | C35: Sobradinho | D35: ='G Assets and Generated Energy O'!J24 -> 457.5 | E35: 0 | F35: =+D35-E35-G35 -> 45.75 | G35: ='G Assets and Generated Energy O'!K24 -> 411.75 | H35: na | I35: ='G Assets and Generated Energy O'!I24 -> 1050.3 | J35: 1 | K35: 457.5 | L35: 0 | M35: 45.75 | N35: 411.75 | O35: na | P35: 1050.3 | Q35: Full Responsibility
B36: Chesf | C36: Luiz Gonzaga (Itaparica) | D36: ='G Assets and Generated Energy O'!J10 -> 727 | E36: =D36-F36-G36 -> 410.4933 | F36: ='G Assets and Generated Energy O'!K10 -> 300.44 | G36: ='G Assets and Generated Energy O'!K28 -> 16.0667 | H36: 0.3999999719 | I36: ='G Assets and Generated Energy O'!I28 -> 1479.6 | J36: 1 | K36: 727 | L36: 410.4933 | M36: 300.44 | N36: 16.0667 | O36: 0.3999999719 | P36: 1479.6 | Q36: Full Responsibility
B37: Chesf | C37: Boa Esperança (Castelo Branco) | D37: ='G Assets and Generated Energy O'!J11 -> 136.2 | E37: =D37-F37-G37 -> 76.90398 | F37: ='G Assets and Generated Energy O'!K11 -> 56.286 | G37: ='G Assets and Generated Energy O'!K29 -> 3.01002 | H37: 0.3999999099 | I37: ='G Assets and Generated Energy O'!I11 -> 237.3 | J37: 1 | K37: 136.2 | L37: 76.90398 | M37: 56.286 | N37: 3.01002 | O37: 0.3999999099 | P37: 237.3 | Q37: Full Responsibility
B38: Chesf | C38: Xingó | D38: ='G Assets and Generated Energy O'!J12 -> 1729.8 | E38: =D38-F38-G38 -> 976.71442 | F38: ='G Assets and Generated Energy O'!K12 -> 714.857 | G38: ='G Assets and Generated Energy O'!K30 -> 38.22858 | H38: 0.3999999125 | I38: ='G Assets and Generated Energy O'!I30 -> 3162 | J38: 1 | K38: 1729.8 | L38: 976.71442 | M38: 714.857 | N38: 38.22858 | O38: 0.3999999125 | P38: 3162 | Q38: Full Responsibility
B39: Chesf | C39: Curemas | D39: ='G Assets and Generated Energy'!I19 -> 1 | E39: 0 | F39: =+D39-E39-G39 -> 1 | G39: 0 | H39: na | I39: ='G Assets and Generated Energy'!H19 -> 3.52 | J39: 1 | K39: 1 | L39: 0 | M39: 1 | N39: 0 | O39: na | P39: 3.52 | Q39: Full Responsibility
B40: Chesf | C40: Casa Nova I A | D40: ='G Assets and Generated Energy'!I68 -> 6.8 | E40: 0 | F40: =+D40-E40-G40 -> 6.8 | G40: 0 | H40: na | I40: ='G Assets and Generated Energy'!H68 -> 27 | J40: 1 | K40: =$J40*D40 -> 6.8 | L40: =$J40*E40 -> 0 | M40: =$J40*F40 -> 6.8 | N40: =$J40*G40 -> 0 | O40: =IF(L40=0,"na",(M40-N40)/(K40-N40)) -> na | P40: =J40*I40 -> 27 | Q40: Full Responsibility
B41: Chesf | C41: Casa Nova II | D41: ='G Assets and Generated Energy'!I69 -> 9.4 | E41: 0 | F41: =+D41-E41-G41 -> 9.4 | G41: 0 | H41: =IF(E41=0,"na",(F41-G41)/(D41-G41)) -> na | I41: ='G Assets and Generated Energy'!H69 -> 32.9 | J41: 1 | K41: 9.4 | L41: 0 | M41: 9.4 | N41: 0 | O41: na | P41: 32.9 | Q41: Full Responsibility
B42: Chesf | C42: Casa Nova III | D42: ='G Assets and Generated Energy'!I70 -> 9.4 | E42: 0 | F42: 9.4 | G42: 0 | H42: na | I42: ='G Assets and Generated Energy'!H70 -> 28.2 | J42: 1 | K42: 9.4 | L42: 0 | M42: 9.4 | N42: 0 | O42: na | P42: 28.2 | Q42: Full Responsibility
B43: Chesf | C43: Acauã | D43: ='G Assets and Generated Energy'!I71 -> 3.1 | E43: 0 | F43: 3.1 | G43: 0 | H43: na | I43: ='G Assets and Generated Energy'!H71 -> 6 | J43: 1 | K43: 3.1 | L43: 0 | M43: 3.1 | N43: 0 | O43: na | P43: 6 | Q43: Full Responsibility
B44: Chesf | C44: Angical 2 | D44: ='G Assets and Generated Energy'!I72 -> 5.1 | E44: 0 | F44: 5.1 | G44: 0 | H44: na | I44: ='G Assets and Generated Energy'!H72 -> 10 | J44: 1 | K44: 5.1 | L44: 0 | M44: 5.1 | N44: 0 | O44: na | P44: 10 | Q44: Full Responsibility
B45: Chesf | C45: Arapapá | D45: ='G Assets and Generated Energy'!I73 -> 2.2 | E45: 0 | F45: 2.2 | G45: 0 | H45: na | I45: ='G Assets and Generated Energy'!H73 -> 4 | J45: 1 | K45: 2.2 | L45: 0 | M45: 2.2 | N45: 0 | O45: na | P45: 4 | Q45: Full Responsibility
B46: Chesf | C46: Caititu 2 | D46: ='G Assets and Generated Energy'!I74 -> 5.1 | E46: 0 | F46: 5.1 | G46: 0 | H46: na | I46: ='G Assets and Generated Energy'!H74 -> 10 | J46: 1 | K46: 5.1 | L46: 0 | M46: 5.1 | N46: 0 | O46: na | P46: 10 | Q46: Full Responsibility
B47: Chesf | C47: Caititu 3 | D47: ='G Assets and Generated Energy'!I75 -> 4.7 | E47: 0 | F47: 4.7 | G47: 0 | H47: na | I47: ='G Assets and Generated Energy'!H75 -> 10 | J47: 1 | K47: 4.7 | L47: 0 | M47: 4.7 | N47: 0 | O47: na | P47: 10 | Q47: Full Responsibility
B48: Chesf | C48: Carcará | D48: ='G Assets and Generated Energy'!I76 -> 4.6 | E48: 0 | F48: 4.6 | G48: 0 | H48: na | I48: ='G Assets and Generated Energy'!H76 -> 10 | J48: 1 | K48: 4.6 | L48: 0 | M48: 4.6 | N48: 0 | O48: na | P48: 10 | Q48: Full Responsibility
B49: Chesf | C49: Coqueirinho 2 | D49: ='G Assets and Generated Energy'!I77 -> 7.4 | E49: 0 | F49: 7.4 | G49: 0 | H49: na | I49: ='G Assets and Generated Energy'!H77 -> 16 | J49: 1 | K49: 7.4 | L49: 0 | M49: 7.4 | N49: 0 | O49: na | P49: 16 | Q49: Full Responsibility
B50: Chesf | C50: Corrupião 3 | D50: ='G Assets and Generated Energy'!I78 -> 4.2 | E50: 0 | F50: 4.2 | G50: 0 | H50: na | I50: ='G Assets and Generated Energy'!H78 -> 10 | J50: 1 | K50: 4.2 | L50: 0 | M50: 4.2 | N50: 0 | O50: na | P50: 10 | Q50: Full Responsibility
B51: Chesf | C51: Papagaio | D51: ='G Assets and Generated Energy'!I79 -> 4.9 | E51: 0 | F51: 4.9 | G51: 0 | H51: na | I51: ='G Assets and Generated Energy'!H79 -> 10 | J51: 1 | K51: 4.9 | L51: 0 | M51: 4.9 | N51: 0 | O51: na | P51: 10 | Q51: Full Responsibility
B52: Chesf | C52: Tamanduá Mirim 2 | D52: ='G Assets and Generated Energy'!I80 -> 7.4 | E52: 0 | F52: 7.4 | G52: 0 | H52: na | I52: ='G Assets and Generated Energy'!H80 -> 16 | J52: 1 | K52: 7.4 | L52: 0 | M52: 7.4 | N52: 0 | O52: na | P52: 16 | Q52: Full Responsibility
B53: Chesf | C53: Teiú 2 | D53: ='G Assets and Generated Energy'!I81 -> 4.2 | E53: 0 | F53: 4.2 | G53: 0 | H53: na | I53: ='G Assets and Generated Energy'!H81 -> 8 | J53: 1 | K53: 4.2 | L53: 0 | M53: 4.2 | N53: 0 | O53: na | P53: 8 | Q53: Full Responsibility
B54: CGT Eletrosul | C54: HPP Governador Jayme Canet Júnior | D54: ='G Assets and Generated Energy'!I27 -> 92.365 | E54: 0 | F54: =+D54-E54-G54 -> 92.365 | G54: 0 | H54: na | I54: ='G Assets and Generated Energy'!H27 -> 177.94 | J54: 1 | K54: 92.365 | L54: 0 | M54: 92.365 | N54: 0 | O54: na | P54: 177.94 | Q54: Full Responsibility
B55: CGT Eletrosul | C55: HPP Passo São João | D55: ='G Assets and Generated Energy'!I28 -> 39.1 | E55: 0 | F55: =+D55-E55-G55 -> 39.1 | G55: 0 | H55: =IF(E55=0,"na",(F55-G55)/(D55-G55)) -> na | I55: ='G Assets and Generated Energy'!H28 -> 77 | J55: 1 | K55: =$J55*D55 -> 39.1 | L55: 0 | M55: 39.1 | N55: 0 | O55: =IF(L55=0,"na",(M55-N55)/(K55-N55)) -> na | P55: =J55*I55 -> 77 | Q55: Full Responsibility
B56: CGT Eletrosul | C56: HPP São Domingos | D56: ='G Assets and Generated Energy'!I29 -> 36.4 | E56: 0 | F56: =+D56-E56-G56 -> 36.4 | G56: 0 | H56: =IF(E56=0,"na",(F56-G56)/(D56-G56)) -> na | I56: ='G Assets and Generated Energy'!H29 -> 48 | J56: 1 | K56: 36.4 | L56: 0 | M56: 36.4 | N56: 0 | O56: =IF(L56=0,"na",(M56-N56)/(K56-N56)) -> na | P56: =J56*I56 -> 48 | Q56: Full Responsibility
B57: CGT Eletrosul | C57: PCH Barra do Rio Chapéu | D57: ='G Assets and Generated Energy'!I30 -> 8.61 | E57: 0 | F57: =+D57-E57-G57 -> 8.61 | G57: 0 | H57: =IF(E57=0,"na",(F57-G57)/(D57-G57)) -> na | I57: ='G Assets and Generated Energy'!H30 -> 15.15 | J57: 1 | K57: 8.61 | L57: 0 | M57: 8.61 | N57: 0 | O57: =IF(L57=0,"na",(M57-N57)/(K57-N57)) -> na | P57: =J57*I57 -> 15.15 | Q57: Full Responsibility
B58: CGT Eletrosul | C58: PCH João Borges | D58: ='G Assets and Generated Energy'!I31 -> 10.14 | E58: 0 | F58: =+D58-E58-G58 -> 10.14 | G58: 0 | H58: =IF(E58=0,"na",(F58-G58)/(D58-G58)) -> na | I58: ='G Assets and Generated Energy'!H31 -> 19 | J58: 1 | K58: 10.14 | L58: 0 | M58: 10.14 | N58: 0 | O58: =IF(L58=0,"na",(M58-N58)/(K58-N58)) -> na | P58: =J58*I58 -> 19 | Q58: Full Responsibility
B59: CGT Eletrosul | C59: Cerro Chato I Wind Farm | D59: ='G Assets and Generated Energy'!I82 -> 11.33 | E59: 0 | F59: =+D59-E59-G59 -> 11.33 | G59: 0 | H59: =IF(E59=0,"na",(F59-G59)/(D59-G59)) -> na | I59: ='G Assets and Generated Energy'!H82 -> 30 | J59: 1 | K59: =$J59*D59 -> 11.33 | L59: =$J59*E59 -> 0 | M59: =$J59*F59 -> 11.33 | N59: =$J59*G59 -> 0 | O59: =IF(L59=0,"na",(M59-N59)/(K59-N59)) -> na | P59: =J59*I59 -> 30 | Q59: Full Responsibility
B60: CGT Eletrosul | C60: Cerro Chato II Wind Farm | D60: ='G Assets and Generated Energy'!I83 -> 11.33 | E60: 0 | F60: 11.33 | G60: 0 | H60: na | I60: ='G Assets and Generated Energy'!H83 -> 30 | J60: 1 | K60: 11.33 | L60: 0 | M60: 11.33 | N60: 0 | O60: na | P60: 30 | Q60: Full Responsibility
B61: CGT Eletrosul | C61: Cerro Chato III Wind Farm | D61: ='G Assets and Generated Energy'!I84 -> 11.33 | E61: 0 | F61: 11.33 | G61: 0 | H61: na | I61: ='G Assets and Generated Energy'!H84 -> 30 | J61: 1 | K61: 11.33 | L61: 0 | M61: 11.33 | N61: 0 | O61: na | P61: 30 | Q61: Full Responsibility
B62: CGT Eletrosul | C62: WPP Coxilha Negra 2 (18) | D62: 0 | E62: 0 | F62: 0 | G62: 0 | H62: na | I62: ='G Assets and Generated Energy'!H85 -> 96.6 | J62: 1 | K62: 0 | L62: 0 | M62: 0 | N62: 0 | O62: na | P62: 96.6 | Q62: Full Responsibility
B63: CGT Eletrosul | C63: WPP Coxilha Seca | D63: ='G Assets and Generated Energy'!I86 -> 13.2 | E63: 0 | F63: 13.2 | G63: 0 | H63: na | I63: ='G Assets and Generated Energy'!H86 -> 30 | J63: 1 | K63: 13.2 | L63: 0 | M63: 13.2 | N63: 0 | O63: na | P63: 30 | Q63: Full Responsibility
B64: CGT Eletrosul | C64: WPP Capão do Inglês | D64: ='G Assets and Generated Energy'!I87 -> 4.5 | E64: 0 | F64: 4.5 | G64: 0 | H64: na | I64: ='G Assets and Generated Energy'!H87 -> 10 | J64: 1 | K64: 4.5 | L64: 0 | M64: 4.5 | N64: 0 | O64: na | P64: 10 | Q64: Full Responsibility
B65: CGT Eletrosul | C65: WPP Galpões | D65: ='G Assets and Generated Energy'!I88 -> 3.7 | E65: 0 | F65: 3.7 | G65: 0 | H65: na | I65: ='G Assets and Generated Energy'!H88 -> 8 | J65: 1 | K65: 3.7 | L65: 0 | M65: 3.7 | N65: 0 | O65: na | P65: 8 | Q65: Full Responsibility
B66: CGT Eletrosul | C66: Solar Megawatt | D66: 0 | E66: 0 | F66: =+D66-E66-G66 -> 0 | G66: 0 | H66: =IF(E66=0,"na",(F66-G66)/(D66-G66)) -> na | I66: ='G Assets and Generated Energy'!H96 -> 0.93 | J66: 1 | K66: =$J66*D66 -> 0 | L66: =$J66*E66 -> 0 | M66: =$J66*F66 -> 0 | N66: =$J66*G66 -> 0 | O66: =IF(L66=0,"na",(M66-N66)/(K66-N66)) -> na | P66: =J66*I66 -> 0.93 | Q66: Full Responsibility
B67: Eletrobras Holding | C67: Jaguari | D67: ='G Assets and Generated Energy'!I20 -> 12.7 | E67: 0 | F67: 12.7 | G67: 0 | H67: na | I67: ='G Assets and Generated Energy'!H20 -> 27.6 | J67: 1 | K67: 12.7 | L67: 0 | M67: 12.7 | N67: 0 | O67: na | P67: 27.6 | Q67: Full Responsibility
B68: Eletrobras Holding | C68: Mascarenhas de Moraes | D68: ='G Assets and Generated Energy'!I21 -> 299.8 | E68: 0 | F68: 299.8 | G68: 0 | H68: na | I68: ='G Assets and Generated Energy'!H21 -> 476 | J68: 1 | K68: 299.8 | L68: 0 | M68: 299.8 | N68: 0 | O68: na | P68: 476 | Q68: Full Responsibility
B69: Eletrobras Holding | C69: Simplício | D69: ='G Assets and Generated Energy'!I22 -> 166.7 | E69: 0 | F69: 166.7 | G69: 0 | H69: na | I69: ='G Assets and Generated Energy'!H22 -> 305.7 | J69: 1 | K69: 166.7 | L69: 0 | M69: 166.7 | N69: 0 | O69: na | P69: 305.7 | Q69: Full Responsibility
B70: Eletrobras Holding | C70: Anta | D70: ='G Assets and Generated Energy'!I23 -> 15.9 | E70: 0 | F70: 15.9 | G70: 0 | H70: na | I70: ='G Assets and Generated Energy'!H23 -> 28 | J70: 1 | K70: 15.9 | L70: 0 | M70: 15.9 | N70: 0 | O70: na | P70: 28 | Q70: Full Responsibility
B71: Eletrobras Holding | C71: Batalha | D71: ='G Assets and Generated Energy'!I24 -> 47 | E71: 0 | F71: 47 | G71: 0 | H71: na | I71: ='G Assets and Generated Energy'!H24 -> 52.5 | J71: 1 | K71: 47 | L71: 0 | M71: 47 | N71: 0 | O71: na | P71: 52.5 | Q71: Full Responsibility
B72: Eletrobras Holding | C72: Serra da Mesa | D72: ='G Assets and Generated Energy'!I25 -> 605.7 | E72: 0 | F72: 605.7 | G72: 0 | H72: na | I72: ='G Assets and Generated Energy'!H25 -> 1275 | J72: 0.4846 | K72: 293.52222 | L72: 0 | M72: 293.52222 | N72: 0 | O72: na | P72: 617.865 | Q72: Full Responsibility
B73: Eletrobras Holding | C73: Manso | D73: ='G Assets and Generated Energy'!I26 -> 83.5 | E73: 0 | F73: 83.5 | G73: 0 | H73: na | I73: ='G Assets and Generated Energy'!H26 -> 210 | J73: 0.7 | K73: 58.45 | L73: 0 | M73: 58.45 | N73: 0 | O73: na | P73: 147 | Q73: Full Responsibility
B74: Eletrobras Holding | C74: Santa Cruz | D74: ='G Assets and Generated Energy'!I48 -> 401.2 | E74: 0 | F74: =+D74-E74-G74 -> 401.2 | G74: 0 | H74: =IF(E74=0,"na",(F74-G74)/(D74-G74)) -> na | I74: ='G Assets and Generated Energy'!H48 -> 500 | J74: 1 | K74: 401.2 | L74: 0 | M74: 401.2 | N74: 0 | O74: na | P74: 500 | Q74: Full Responsibility
B75: Eletrobras Holding | C75: Roberto Silveira (Campos) | D75: 0 | E75: 0 | F75: =+D75-E75-G75 -> 0 | G75: 0 | H75: =IF(E75=0,"na",(F75-G75)/(D75-G75)) -> na | I75: 0 | J75: 1 | K75: =$J75*D75 -> 0 | L75: =$J75*E75 -> 0 | M75: =$J75*F75 -> 0 | N75: =$J75*G75 -> 0 | O75: =IF(L75=0,"na",(M75-N75)/(K75-N75)) -> na | P75: =J75*I75 -> 0 | Q75: Full Responsibility
B76: Eletrobras Holding | C76: Furnas | D76: ='G Assets and Generated Energy O'!J13 -> 625 | E76: =D76-F76-G76 -> 375 | F76: ='G Assets and Generated Energy O'!K13 -> 250 | G76: 0 | H76: =IF(E76=0,"na",(F76-G76)/(D76-G76)) -> 0.4 | I76: ='G Assets and Generated Energy O'!I13 -> 1216 | J76: 1 | K76: =$J76*D76 -> 625 | L76: =$J76*E76 -> 375 | M76: =$J76*F76 -> 250 | N76: =$J76*G76 -> 0 | O76: =IF(L76=0,"na",(M76-N76)/(K76-N76)) -> 0.4 | P76: =J76*I76 -> 1216 | Q76: Full Responsibility
B77: Eletrobras Holding | C77: Luis Carlos Barreto (Estreito) | D77: ='G Assets and Generated Energy O'!J14 -> 497.2 | E77: 298.32 | F77: ='G Assets and Generated Energy O'!K14 -> 198.88 | G77: 0 | H77: 0.4 | I77: ='G Assets and Generated Energy O'!I14 -> 1050 | J77: 1 | K77: 497.2 | L77: 298.32 | M77: 198.88 | N77: 0 | O77: 0.4 | P77: 1050 | Q77: Full Responsibility
B78: Eletrobras Holding | C78: Porto Colômbia | D78: ='G Assets and Generated Energy O'!J15 -> 205.4 | E78: 123.24 | F78: ='G Assets and Generated Energy O'!K15 -> 82.16 | G78: 0 | H78: 0.4 | I78: ='G Assets and Generated Energy O'!I15 -> 320 | J78: 1 | K78: 205.4 | L78: 123.24 | M78: 82.16 | N78: 0 | O78: 0.4 | P78: 320 | Q78: Full Responsibility
B79: Eletrobras Holding | C79: Marimbondo | D79: ='G Assets and Generated Energy O'!J16 -> 688.7 | E79: 413.22 | F79: ='G Assets and Generated Energy O'!K16 -> 275.48 | G79: 0 | H79: 0.4 | I79: ='G Assets and Generated Energy O'!I16 -> 1440 | J79: 1 | K79: 688.7 | L79: 413.22 | M79: 275.48 | N79: 0 | O79: 0.4 | P79: 1440 | Q79: Full Responsibility
B80: Eletrobras Holding | C80: Funil | D80: ='G Assets and Generated Energy O'!J17 -> 102.4 | E80: 61.44 | F80: ='G Assets and Generated Energy O'!K17 -> 40.96 | G80: 0 | H80: 0.4 | I80: ='G Assets and Generated Energy O'!I17 -> 216 | J80: 1 | K80: 102.4 | L80: 61.44 | M80: 40.96 | N80: 0 | O80: 0.4 | P80: 216 | Q80: Full Responsibility
B81: Eletrobras Holding | C81: Corumbá I | D81: ='G Assets and Generated Energy O'!J18 -> 219.5 | E81: 131.7 | F81: ='G Assets and Generated Energy O'!K18 -> 87.8 | G81: 0 | H81: 0.4 | I81: ='G Assets and Generated Energy O'!I18 -> 375 | J81: 1 | K81: 219.5 | L81: 131.7 | M81: 87.8 | N81: 0 | O81: 0.4 | P81: 375 | Q81: Full Responsibility
B82: Eletrobras Holding | C82: Itumbiara | D82: ='G Assets and Generated Energy O'!J31 -> 948.9 | E82: 0 | F82: =+D82-E82-G82 -> 189.78 | G82: ='G Assets and Generated Energy O'!K31 -> 759.12 | H82: =IF(E82=0,"na",(F82-G82)/(D82-G82)) -> na | I82: ='G Assets and Generated Energy O'!I31 -> 2082 | J82: 1 | K82: =$J82*D82 -> 948.9 | L82: 0 | M82: 189.78 | N82: 759.12 | O82: =IF(L82=0,"na",(M82-N82)/(K82-N82)) -> na | P82: =J82*I82 -> 2082 | Q82: Full Responsibility
B83: Eletronorte | C83: Coaracy Nunes HPP | D83: ='G Assets and Generated Energy O'!J6 -> 62.2 | E83: =D83-F83-G83 -> 37.32 | F83: ='G Assets and Generated Energy O'!K6 -> 24.88 | G83: 0 | H83: 0.4 | I83: ='G Assets and Generated Energy O'!I6 -> 78 | J83: 1 | K83: 62.2 | L83: 37.32 | M83: 24.88 | N83: 0 | O83: 0.4 | P83: 78 | Q83: Full Responsibility
B84: Eletronorte | C84: Tucuruí Complex | D84: ='G Assets and Generated Energy'!I15 -> 3995.5 | E84: 0 | F84: =+D84-E84-G84 -> 3995.5 | G84: 0 | H84: na | I84: ='G Assets and Generated Energy'!H15 -> 8535 | J84: 1 | K84: 3995.5 | L84: 0 | M84: 3995.5 | N84: 0 | O84: na | P84: 8535 | Q84: Full Responsibility
B85: Eletronorte | C85: HPP Samuel | D85: ='G Assets and Generated Energy'!I16 -> 88.1 | E85: 0 | F85: 88.1 | G85: 0 | H85: na | I85: ='G Assets and Generated Energy'!H16 -> 216.75 | J85: 1 | K85: 88.1 | L85: 0 | M85: 88.1 | N85: 0 | O85: na | P85: 216.75 | Q85: Full Responsibility
B86: Eletronorte | C86: HPP Curuá-Una | D86: ='G Assets and Generated Energy'!I17 -> 30.4 | E86: 0 | F86: 30.4 | G86: 0 | H86: na | I86: ='G Assets and Generated Energy'!H17 -> 42.8 | J86: 1 | K86: 30.4 | L86: 0 | M86: 30.4 | N86: 0 | O86: na | P86: 42.8 | Q86: Full Responsibility
B87: Eletronorte | C87: HPP Balbina | D87: ='G Assets and Generated Energy'!I18 -> 125.7 | E87: 0 | F87: 125.7 | G87: 0 | H87: na | I87: ='G Assets and Generated Energy'!H18 -> 249.75 | J87: 1 | K87: 125.7 | L87: 0 | M87: 125.7 | N87: 0 | O87: na | P87: 249.75 | Q87: Full Responsibility
B88: Eletronorte | C88: TPP Araguaia | D88: 0 | E88: 0 | F88: 0 | G88: 0 | H88: na | I88: 0 | J88: 1 | K88: 0 | L88: 0 | M88: 0 | N88: 0 | O88: na | P88: 0 | Q88: Full Responsibility
B89: Eletronorte | C89: TPP Senador Arnon Afonso Farias de Mello | D89: 0 | E89: 0 | F89: 0 | G89: 0 | H89: na | I89: 0 | J89: 1 | K89: 0 | L89: 0 | M89: 0 | N89: 0 | O89: na | P89: 0 | Q89: Full Responsibility
B90: Eletronorte | C90: TPP Aparecida | D90: ='G Assets and Generated Energy'!I41 -> 150 | E90: 0 | F90: =+D90-E90-G90 -> 150 | G90: 0 | H90: =IF(E90=0,"na",(F90-G90)/(D90-G90)) -> na | I90: ='G Assets and Generated Energy'!H41 -> 166 | J90: 1 | K90: =$J90*D90 -> 150 | L90: =$J90*E90 -> 0 | M90: =$J90*F90 -> 150 | N90: =$J90*G90 -> 0 | O90: =IF(L90=0,"na",(M90-N90)/(K90-N90)) -> na | P90: =J90*I90 -> 166 | Q90: Full Responsibility
B91: Eletronorte | C91: TPP MAUÁ 3 | D91: ='G Assets and Generated Energy'!I42 -> 507.4 | E91: 0 | F91: 507.4 | G91: 0 | H91: na | I91: ='G Assets and Generated Energy'!H42 -> 590.75 | J91: 1 | K91: 507.4 | L91: 0 | M91: 507.4 | N91: 0 | O91: na | P91: 590.75 | Q91: Full Responsibility
B92: Eletronorte | C92: TPP ANAMÃ | D92: 0 | E92: 0 | F92: 0 | G92: 0 | H92: na | I92: ='G Assets and Generated Energy'!H44 -> 2.165 | J92: 1 | K92: 0 | L92: 0 | M92: 0 | N92: 0 | O92: na | P92: 2.165 | Q92: Full Responsibility
B93: Eletronorte | C93: TPP ANORI | D93: 0 | E93: 0 | F93: 0 | G93: 0 | H93: na | I93: ='G Assets and Generated Energy'!H45 -> 4.57 | J93: 1 | K93: 0 | L93: 0 | M93: 0 | N93: 0 | O93: na | P93: 4.57 | Q93: Full Responsibility
B94: Eletronorte | C94: TPP CAAPIRANGA | D94: 0 | E94: 0 | F94: 0 | G94: 0 | H94: na | I94: ='G Assets and Generated Energy'!H46 -> 2.165 | J94: 1 | K94: 0 | L94: 0 | M94: 0 | N94: 0 | O94: na | P94: 2.165 | Q94: Full Responsibility
B95: Eletronorte | C95: TPP CODAJÁS | D95: 0 | E95: 0 | F95: 0 | G95: 0 | H95: na | I95: ='G Assets and Generated Energy'!H47 -> 4.57 | J95: 1 | K95: 0 | L95: 0 | M95: 0 | N95: 0 | O95: na | P95: 4.57 | Q95: Full Responsibility
B96: CGT Eletrosul | C96: Ibirapuitã I | D96: =SUM('Operational Data'!I11:I14) -> 9.26 | E96: 0 | F96: =+D96-E96-G96 -> 9.26 | G96: 0 | H96: na | I96: =SUM('Operational Data'!H11:H14) -> 25.2 | J96: =SUM('Operational Data'!F11:F14) -> 1 | K96: =$J96*D96 -> 9.26 | L96: 0 | M96: 9.26 | N96: 0 | O96: =IF(L96=0,"na",(M96-N96)/(K96-N96)) -> na | P96: =J96*I96 -> 25.2 | Q96: Consolidated SPE
B97: Eletrobras Holding | C97: Três Irmãos | D97: =SUM('Operational Data'!I76:I79) -> 206.7 | E97: 0 | F97: =+D97-E97-G97 -> 206.7 | G97: 0 | H97: =IF(E97=0,"na",(F97-G97)/(D97-G97)) -> na | I97: =SUM('Operational Data'!H76:H79) -> 807.5 | J97: =SUM('Operational Data'!F76:F79) -> 0.499 | K97: 103.1433 | L97: 0 | M97: 103.1433 | N97: 0 | O97: na | P97: 402.9425 | Q97: SPE by equity method
B98: Eletronorte | C98: Teles Pires | D98: =SUM('Operational Data'!I72:I75) -> 964.2 | E98: 0 | F98: =+D98-E98-G98 -> 964.2 | G98: 0 | H98: =IF(E98=0,"na",(F98-G98)/(D98-G98)) -> na | I98: =SUM('Operational Data'!H72:H75) -> 1819.8 | J98: 0.5056 | K98: =$J98*D98 -> 487.49952 | L98: =$J98*E98 -> 0 | M98: =$J98*F98 -> 487.49952 | N98: =$J98*G98 -> 0 | O98: na | P98: 920.09088 | Q98: Consolidated SPE
B99: Eletrobras Holding | C99: Teles Pires | D99: =SUM('Operational Data'!I72:I75) -> 964.2 | E99: 0 | F99: =+D99-E99-G99 -> 964.2 | G99: 0 | H99: =IF(E99=0,"na",(F99-G99)/(D99-G99)) -> na | I99: =SUM('Operational Data'!H72:H75) -> 1819.8 | J99: 0.2472 | K99: =$J99*D99 -> 238.35024 | L99: =$J99*E99 -> 0 | M99: =$J99*F99 -> 238.35024 | N99: =$J99*G99 -> 0 | O99: na | P99: 449.85456 | Q99: Consolidated SPE
B100: CGT Eletrosul | C100: Teles Pires | D100: =SUM('Operational Data'!I72:I75) -> 964.2 | E100: 0 | F100: =+D100-E100-G100 -> 964.2 | G100: 0 | H100: =IF(E100=0,"na",(F100-G100)/(D100-G100)) -> na | I100: =SUM('Operational Data'!H72:H75) -> 1819.8 | J100: 0.2472 | K100: =$J100*D100 -> 238.35024 | L100: =$J100*E100 -> 0 | M100: =$J100*F100 -> 238.35024 | N100: =$J100*G100 -> 0 | O100: na | P100: 449.85456 | Q100: Consolidated SPE
B101: Eletrobras Holding | C101: São Januário | D101: ='Operational Data'!I80 -> 9.7 | E101: 0 | F101: =+D101-E101-G101 -> 9.7 | G101: 0 | H101: na | I101: ='Operational Data'!H80 -> 21 | J101: ='Operational Data'!F80 -> 1 | K101: 9.7 | L101: 0 | M101: 9.7 | N101: 0 | O101: na | P101: 21 | Q101: Consolidated SPE
B102: Eletrobras Holding | C102: Nossa Senhora de Fátima | D102: ='Operational Data'!I81 -> 13.6 | E102: 0 | F102: 13.6 | G102: 0 | H102: na | I102: ='Operational Data'!H81 -> 30 | J102: ='Operational Data'!F81 -> 1 | K102: =$J102*D102 -> 13.6 | L102: =$J102*E102 -> 0 | M102: =$J102*F102 -> 13.6 | N102: =$J102*G102 -> 0 | O102: =IF(L102=0,"na",(M102-N102)/(K102-N102)) -> na | P102: =J102*I102 -> 30 | Q102: Consolidated SPE
B103: Eletrobras Holding | C103: Jandaia | D103: ='Operational Data'!I82 -> 14.1 | E103: 0 | F103: 14.1 | G103: 0 | H103: na | I103: ='Operational Data'!H82 -> 27 | J103: ='Operational Data'!F82 -> 1 | K103: 14.1 | L103: 0 | M103: 14.1 | N103: 0 | O103: na | P103: 27 | Q103: Consolidated SPE
B104: Eletrobras Holding | C104: São Clemente | D104: ='Operational Data'!I83 -> 10.2 | E104: 0 | F104: 10.2 | G104: 0 | H104: na | I104: ='Operational Data'!H83 -> 21 | J104: ='Operational Data'!F83 -> 1 | K104: 10.2 | L104: 0 | M104: 10.2 | N104: 0 | O104: na | P104: 21 | Q104: Consolidated SPE
B105: Eletrobras Holding | C105: Jandaia I | D105: ='Operational Data'!I84 -> 10.6 | E105: 0 | F105: 10.6 | G105: 0 | H105: na | I105: ='Operational Data'!H84 -> 24 | J105: ='Operational Data'!F84 -> 1 | K105: 10.6 | L105: 0 | M105: 10.6 | N105: 0 | O105: na | P105: 24 | Q105: Consolidated SPE
B106: Eletrobras Holding | C106: Serra do Facão | D106: =SUM('Operational Data'!I68:I71) -> 174.4 | E106: 0 | F106: =+D106-E106-G106 -> 174.4 | G106: 0 | H106: =IF(E106=0,"na",(F106-G106)/(D106-G106)) -> na | I106: =SUM('Operational Data'!H68:H71) -> 212.58 | J106: =SUM('Operational Data'!F68:F71) -> 0.54013 | K106: =$J106*D106 -> 94.198672 | L106: =$J106*E106 -> 0 | M106: =$J106*F106 -> 94.198672 | N106: =$J106*G106 -> 0 | O106: =IF(L106=0,"na",(M106-N106)/(K106-N106)) -> na | P106: =J106*I106 -> 114.8208354 | Q106: SPE by equity method
B107: Eletrobras Holding | C107: Retiro Baixo | D107: =SUM('Operational Data'!I64:I67) -> 34.8 | E107: 0 | F107: 34.8 | G107: 0 | H107: na | I107: =SUM('Operational Data'!H64:H67) -> 83.657 | J107: =SUM('Operational Data'!F64:F67) -> 1 | K107: 34.8 | L107: 0 | M107: 34.8 | N107: 0 | O107: na | P107: 83.657 | Q107: Consolidated SPE
B108: Eletronorte | C108: Belo Monte | D108: =SUM('Operational Data'!I60:I63) -> 4571 | E108: 0 | F108: =+D108-E108-G108 -> 4571 | G108: 0 | H108: na | I108: =SUM('Operational Data'!H60:H63) -> 11233.1 | J108: 0.3498 | K108: =$J108*D108 -> 1598.9358 | L108: =$J108*E108 -> 0 | M108: =$J108*F108 -> 1598.9358 | N108: =$J108*G108 -> 0 | O108: =IF(L108=0,"na",(M108-N108)/(K108-N108)) -> na | P108: =J108*I108 -> 3929.33838 | Q108: SPE by equity method
B109: Chesf | C109: Belo Monte | D109: =SUM('Operational Data'!I60:I63) -> 4571 | E109: 0 | F109: 4571 | G109: 0 | H109: na | I109: =SUM('Operational Data'!H60:H63) -> 11233.1 | J109: 0.15 | K109: 685.65 | L109: 0 | M109: 685.65 | N109: 0 | O109: na | P109: 1684.965 | Q109: SPE by equity method
B110: Eletrobras Holding | C110: Santo Antônio | D110: =SUM('Operational Data'!I56:I59) -> 2313.3 | E110: 0 | F110: =+D110-E110-G110 -> 2313.3 | G110: 0 | H110: =IF(E110=0,"na",(F110-G110)/(D110-G110)) -> na | I110: =SUM('Operational Data'!H56:H59) -> 3568.3 | J110: =SUM('Operational Data'!F56:F59) -> 0.9973618 | K110: =$J110*D110 -> 2307.197052 | L110: =$J110*E110 -> 0 | M110: =$J110*F110 -> 2307.197052 | N110: =$J110*G110 -> 0 | O110: =IF(L110=0,"na",(M110-N110)/(K110-N110)) -> na | P110: =J110*I110 -> 3558.886111 | Q110: Consolidated SPE
B111: Eletrobras Holding | C111: Peixe Angical | D111: =SUM('Operational Data'!I52:I55) -> 266.6 | E111: 0 | F111: 266.6 | G111: 0 | H111: na | I111: =SUM('Operational Data'!H52:H55) -> 498.75 | J111: =SUM('Operational Data'!F52:F55) -> 0.4 | K111: 106.64 | L111: 0 | M111: 106.64 | N111: 0 | O111: na | P111: 199.5 | Q111: SPE by equity method
B112: Chesf | C112: Jirau | D112: =SUM('Operational Data'!I48:I51) -> 2101.5 | E112: 0 | F112: =+D112-E112-G112 -> 2101.5 | G112: 0 | H112: na | I112: =SUM('Operational Data'!H48:H51) -> 3750 | J112: 0.2 | K112: =$J112*D112 -> 420.3 | L112: =$J112*E112 -> 0 | M112: =$J112*F112 -> 420.3 | N112: =$J112*G112 -> 0 | O112: =IF(L112=0,"na",(M112-N112)/(K112-N112)) -> na | P112: =J112*I112 -> 750 | Q112: SPE by equity method
B113: CGT Eletrosul | C113: Jirau | D113: =SUM('Operational Data'!I48:I51) -> 2101.5 | E113: 0 | F113: 2101.5 | G113: 0 | H113: =IF(E113=0,"na",(F113-G113)/(D113-G113)) -> na | I113: =SUM('Operational Data'!H48:H51) -> 3750 | J113: 0.2 | K113: 420.3 | L113: 0 | M113: 420.3 | N113: 0 | O113: na | P113: 750 | Q113: SPE by equity method
B114: Eletrobras Holding | C114: São Manoel | D114: =SUM('Operational Data'!I44:I47) -> 430.4 | E114: 0 | F114: =+D114-E114-G114 -> 430.4 | G114: 0 | H114: na | I114: =SUM('Operational Data'!H44:H47) -> 735.84 | J114: =SUM('Operational Data'!F44:F47) -> 0.33333 | K114: =$J114*D114 -> 143.465232 | L114: =$J114*E114 -> 0 | M114: =$J114*F114 -> 143.465232 | N114: =$J114*G114 -> 0 | O114: =IF(L114=0,"na",(M114-N114)/(K114-N114)) -> na | P114: =J114*I114 -> 245.2775472 | Q114: SPE by equity method
B115: Chesf | C115: Sinop | D115: =SUM('Operational Data'!I40:I43) -> 242.8 | E115: 0 | F115: 242.8 | G115: 0 | H115: na | I115: =SUM('Operational Data'!H40:H43) -> 401.88 | J115: 0.245 | K115: 59.486 | L115: 0 | M115: 59.486 | N115: 0 | O115: na | P115: 98.4606 | Q115: SPE by equity method
B116: Eletronorte | C116: Sinop | D116: =SUM('Operational Data'!I40:I43) -> 242.8 | E116: 0 | F116: =+D116-E116-G116 -> 242.8 | G116: 0 | H116: =IF(E116=0,"na",(F116-G116)/(D116-G116)) -> na | I116: =SUM('Operational Data'!H40:H43) -> 401.88 | J116: 0.245 | K116: =$J116*D116 -> 59.486 | L116: =$J116*E116 -> 0 | M116: =$J116*F116 -> 59.486 | N116: =$J116*G116 -> 0 | O116: =IF(L116=0,"na",(M116-N116)/(K116-N116)) -> na | P116: =J116*I116 -> 98.4606 | Q116: SPE by equity method
B117: Eletrobras Holding | C117: Foz do Chapecó | D117: =SUM('Operational Data'!I36:I39) -> 408.9 | E117: 0 | F117: 408.9 | G117: 0 | H117: na | I117: =SUM('Operational Data'!H36:H39) -> 855 | J117: =SUM('Operational Data'!F36:F39) -> 0.4 | K117: 163.56 | L117: 0 | M117: 163.56 | N117: 0 | O117: na | P117: 342 | Q117: SPE by equity method
B118: Eletrobras Holding | C118: Baguari | D118: =SUM('Operational Data'!I32:I35) -> 81.9 | E118: 0 | F118: =+D118-E118-G118 -> 81.9 | G118: 0 | H118: =IF(E118=0,"na",(F118-G118)/(D118-G118)) -> na | I118: =SUM('Operational Data'!H32:H35) -> 140 | J118: =SUM('Operational Data'!F32:F35) -> 1 | K118: 81.9 | L118: 0 | M118: 81.9 | N118: 0 | O118: na | P118: 140 | Q118: Consolidated SPE
B119: Chesf | C119: Caiçara I | D119: =SUM('Operational Data'!I16:I19) -> 15.1 | E119: 0 | F119: =+D119-E119-G119 -> 15.1 | G119: 0 | H119: =IF(E119=0,"na",(F119-G119)/(D119-G119)) -> na | I119: =SUM('Operational Data'!H16:H19) -> 27 | J119: =SUM('Operational Data'!F16:F19) -> 0.49 | K119: =$J119*D119 -> 7.399 | L119: =$J119*E119 -> 0 | M119: =$J119*F119 -> 7.399 | N119: =$J119*G119 -> 0 | O119: =IF(L119=0,"na",(M119-N119)/(K119-N119)) -> na | P119: =J119*I119 -> 13.23 | Q119: SPE by equity method
B120: Chesf | C120: Caiçara II | D120: =SUM('Operational Data'!I20:I23) -> 9.6 | E120: 0 | F120: 9.6 | G120: 0 | H120: na | I120: =SUM('Operational Data'!H20:H23) -> 18 | J120: =SUM('Operational Data'!F20:F23) -> 0.49 | K120: 4.704 | L120: 0 | M120: 4.704 | N120: 0 | O120: na | P120: 8.82 | Q120: SPE by equity method
B121: Chesf | C121: Junco I | D121: =SUM('Operational Data'!I24:I27) -> 13.1 | E121: 0 | F121: =+D121-E121-G121 -> 13.1 | G121: 0 | H121: =IF(E121=0,"na",(F121-G121)/(D121-G121)) -> na | I121: =SUM('Operational Data'!H24:H27) -> 24 | J121: =SUM('Operational Data'!F24:F27) -> 0.49 | K121: 6.419 | L121: 0 | M121: 6.419 | N121: 0 | O121: na | P121: 11.76 | Q121: SPE by equity method
B122: Chesf | C122: Junco II | D122: =SUM('Operational Data'!I28:I31) -> 13.3 | E122: 0 | F122: 13.3 | G122: 0 | H122: na | I122: =SUM('Operational Data'!H28:H31) -> 24 | J122: =SUM('Operational Data'!F28:F31) -> 0.49 | K122: 6.517 | L122: 0 | M122: 6.517 | N122: 0 | O122: na | P122: 11.76 | Q122: SPE by equity method
B124: Company | C124: Plant | D124: Total Physical Guarantee (Mwm) (100% of Assets) | I124: Installed Capacity (MW) (100%) | J124: % Stake | K124: Total Physical Guarantee (Mwm) (Proportional) | P124: Installed Capacity (MW) (Proportional) | Q124: Classification
D125: Total (Mwm) (100% of Assets) | E125: Quoted (MWm) (1) | F125: Decoupled (MWm) (1) | G125: Law 13,182 (MWm) (2) | H125: % Decoupled Physical Guarantee | K125: Total (Mwm) (100% of Assets) | L125: Quoted (MWm) (1) | M125: Decoupled (MWm) (1) | N125: Law 13,182 (MWm) (2) | O125: % Decoupled Physical Guarantee
B126: CGT Eletrosul | C126: TPP Candiota III | D126: -262.4 | E126: 0 | F126: =+D126-E126-G126 -> -262.4 | G126: 0 | H126: =IF(E126=0,"na",(F126-G126)/(D126-G126)) -> na | I126: -350 | J126: 1 | K126: =$J126*D126 -> -262.4 | L126: =$J126*E126 -> 0 | M126: =$J126*F126 -> -262.4 | N126: =$J126*G126 -> 0 | O126: =IF(L126=0,"na",(M126-N126)/(K126-N126)) -> na | P126: =J126*I126 -> -350 | Q126: Net aggregation 2024
B127: Eletrobras Holding | C127: TPP Roberto Silveira (Campos) | D127: -20.9 | E127: 0 | F127: -20.9 | G127: 0 | H127: na | I127: -25 | J127: 1 | K127: -20.9 | L127: 0 | M127: -20.9 | N127: 0 | O127: na | P127: -25 | Q127: Net aggregation 2024
B128: CGT Eletrosul | C128: WPP Coxilha Negra 2 | D128: 0 | E128: 0 | F128: 0 | G128: 0 | H128: na | I128: 96.6 | J128: 1 | K128: 0 | L128: 0 | M128: 0 | N128: 0 | O128: na | P128: 96.6 | Q128: Net aggregation 2024
B129: Eletrobras Holding | C129: EOL Chapada do Piauí I | D129: -114.3 | E129: 0 | F129: -114.3 | G129: 0 | H129: na | I129: -205.1 | J129: 0.49 | K129: -56.007 | L129: 0 | M129: -56.007 | N129: 0 | O129: na | P129: -100.499 | Q129: Net aggregation 2024
B130: Eletrobras Holding | C130: EOL Chapada do Piauí II | D130: -88.7 | E130: 0 | F130: =+D130-E130-G130 -> -88.7 | G130: 0 | H130: =IF(E130=0,"na",(F130-G130)/(D130-G130)) -> na | I130: -172.4 | J130: 0.49 | K130: =$J130*D130 -> -43.463 | L130: =$J130*E130 -> 0 | M130: =$J130*F130 -> -43.463 | N130: =$J130*G130 -> 0 | O130: =IF(L130=0,"na",(M130-N130)/(K130-N130)) -> na | P130: =J130*I130 -> -84.476 | Q130: Net aggregation 2024
B132: (1) Decoupling is equivalent to 40% of the total value of the physical guarantee for the year 2024. Projects under the O&M regime, whose concession has been renewed by law 14,182/21.
B133: (2) Projects renewed by law 13,182/15.

Sheet G Assets and Generated Energy
A4: II. Generation Data
A6: II.1 Installed Capacity - MW
A8: II.1.2 Generation Assets and Generated Energy
A10: II.1.2.1 Hydraulic Generation Assets and Generated Energy – Projects under Full Responsibility
A12: Eletrobras Company | B12: Project | C12: Location | D12: Source | E12: Start of Concession | F12: Start of Operation | G12: End of Operation | H12: Installed Capacity | I12: Physical Guarantee | J12: Generated Energy (MWh)
C14: (State) | H14: (MW) | I14: (Average MW) | J14: 1Q24 | K14: 2Q24 | L14: 3Q24 | M14: 4Q24
A15: Eletronorte | B15: Tucuruí Complex (12) | C15: PA | D15: Hydraulics | E15: 2022-06-17 | F15: 1984-12-01 | G15: 2052-06-17 | H15: 8535 | I15: 3995.5 | J15: 8444660.848 | K15: 9396110.863 | L15: 4342483.639
B16: HPP Samuel | C16: RO | D16: Hydraulics | E16: 1979-09-14 | F16: 1989-07-17 | G16: 2032-07-22 | H16: 216.75 | I16: 88.1 | J16: 161986.2721 | K16: 242646.3014 | L16: 124116.9949
B17: HPP Curuá-Una (12) | C17: PA | D17: Hydraulics | E17: 2022-06-17 | F17: 1977-01-01 | G17: 2052-06-17 | H17: 42.8 | I17: 30.4 | J17: 63065.11835 | K17: 82595.00681 | L17: 68817.88863
B18: HPP Balbina | C18: AM | D18: Hydraulics | E18: 1977-03-01 | F18: 1989-01-01 | G18: 2027-03-02 | H18: 249.75 | I18: 125.7 | J18: 172248.2448 | K18: 174122.4337 | L18: 220976.0506
A19: Chesf | B19: Curemas | C19: PB | D19: Hydraulics | E19: (1) | F19: 1957-01-01 | G19: 2026-02-01 | H19: 3.52 | I19: 1 | J19: 0 | K19: 0 | L19: 0
A20: Eletrobras Holding | B20: Jaguari (15) (16) | C20: SP | D20: Hydraulics | E20: 2021-01-01 | F20: 1972-01-01 | G20: (5) | H20: 27.6 | I20: 12.7 | J20: 25552.86493 | K20: 22906.87172 | L20: 22369.802
B21: Mascarenhas de Moraes (13) | C21: MG | D21: Hydraulics | E21: 2022-06-17 | F21: 1957-04-01 | G21: 2052-06-17 | H21: 476 | I21: 299.8 | J21: 701707.4069 | K21: 507338.4833 | L21: 690401.637
B22: Simplício (16) | C22: RJ | D22: Hydraulics | E22: 2006-08-15 | F22: 2013-06-05 | G22: 2043-12-30 | H22: 305.7 | I22: 166.7 | J22: 420150.4348 | K22: 251282.811 | L22: 103460.9033
B23: Anta | C23: RJ | D23: Hydraulics | E23: 2006-08-15 | F23: 2018-08-10 | G23: 2043-12-30 | H23: 28 | I23: 15.9 | J23: 40074.33661 | K23: 23967.58665 | L23: 25583.87267
B24: Batalha (16) | C24: MG | D24: Hydraulics | E24: 2006-08-15 | F24: 2014-05-17 | G24: 2043-04-10 | H24: 52.5 | I24: 47 | J24: 22441.79532 | K24: 46272.78528 | L24: 54622.694
B25: Serra da Mesa (48.46%) (2) (3) (15) | C25: GO | D25: Hydraulics | E25: May/81 and Nov/04 | F25: 1998-04-17 | G25: 2046-05-10 | H25: 1275 | I25: 605.7 | J25: 1434404.47 | K25: 1173034.303 | L25: 1754654.155
B26: Manso (70%) (3) (15) | C26: MT | D26: Hydraulics | E26: 2000-02-10 | F26: 2000-11-29 | G26: 2037-09-10 | H26: 210 | I26: 83.5 | J26: 109421.5349 | K26: 73715.17014 | L26: 84141.324
A27: CGT Eletrosul | B27: HPP Governador Jayme Canet Júnior (4) (17) | C27: PR | D27: Hydraulics | E27: 2007-07-03 | F27: 2012-11-01 | G27: 2049-06-28 | H27: 177.94 | I27: 92.365 | J27: 217293.5139 | K27: 106873.9066 | L27: 108051.0897
B28: HPP Passo São João (18) | C28: RS | D28: Hydraulics | E28: 2006-08-15 | F28: 2012-03-01 | G28: 2046-05-01 | H28: 77 | I28: 39.1 | J28: 126607.8968 | K28: 138164.6223 | L28: 98903.50134
B29: HPP São Domingos | C29: MS | D29: Hydraulics | E29: 2002-12-11 | F29: 2013-06-01 | G29: 2039-08-01 | H29: 48 | I29: 36.4 | J29: 62578.66078 | K29: 68606.34911 | L29: 47849.36408
B30: PCH Barra do Rio Chapéu | C30: SC | D30: Hydraulics | E30: 2004-05-05 | F30: 2013-02-01 | G30: 2038-05-05 | H30: 15.15 | I30: 8.61 | J30: 27772.01295 | K30: 24219.00302 | L30: 20409.19698
B31: PCH João Borges | C31: SC | D31: Hydraulics | E31: 2005-12-21 | F31: 2013-07-01 | G31: 2039-09-01 | H31: 19 | I31: 10.14 | J31: 25186.64183 | K31: 29024.0051 | L31: 18071.22889
A34: II.1.2.2 Thermal Generation Assets and Generated Energy – Projects under Full Responsibility
A36: Eletrobras Company | B36: Project | C36: Location | D36: Source | E36: Start of Concession | F36: Start of Operation | G36: End of Operation | H36: Installed Capacity | I36: Physical Guarantee | J36: Generated Energy (MWh) | N36: Fuel Type | O36: Metric Unit | P36: Fuel used for electric power production
P37: 1Q24 | R37: 2Q24 | T37: 3Q24 | V37: 4Q24
C38: (State) | H38: (MW) | I38: (Average MW) | J38: 1Q24 | K38: 2Q24 | L38: 3Q24 | M38: 4Q24 | P38: Qty. | Q38: BRL Million | R38: Qty. | S38: BRL Million | T38: Qty. | U38: BRL Million | V38: Qty. | W38: BRL Million
A39: Eletronorte | B39: TPP Araguaia (5) | C39: MT | D39: Thermal | E39: 2015-07-21 | F39: 2016-04-01 | G39: 2020-06-01 | H39: (6) | I39: NA | J39: 0 | K39: 0 | L39: 0 | N39: NA | O39: NA | P39: NA | Q39: NA | R39: NA | S39: NA | T39: NA | U39: NA
B40: TPP Senador Arnon Afonso Farias de Mello (6) | C40: RR | D40: Thermal | E40: 2000-11-01 | F40: 1990-12-01 | G40: (7) | H40: NA | I40: NA | J40: 0 | K40: 0 | L40: 0 | N40: NA | O40: NA | P40: NA | Q40: NA | R40: NA | S40: NA | T40: NA | U40: NA
B41: TPP Aparecida | C41: AM | D41: Thermal | E41: N/D | F41: 1984-02-01 | G41: 2030-07-01 | H41: 166 | I41: 150 | J41: 188551.0318 | K41: 192684.0169 | L41: 154933.0347 | N41: Natural Gas | O41: m3 | P41: 56795397 | Q41: 105.6624429 | R41: 58201647 | S41: 108.439817 | T41: 45014155 | U41: 83.93731926
B42: TPP MAUÁ 3 | C42: AM | D42: Thermal | E42: 2014-11-01 | F42: 2017-09-01 | G42: 2044-11-01 | H42: 590.75 | I42: 507.4 | J42: 885762.3866 | K42: 816640.9093 | L42: 948670.9626 | N42: Natural Gas | O42: m3 | P42: 178766597 | Q42: 332.647373 | R42: 171554521 | S42: 319.6122291 | T42: 193476790 | U42: 360.8506216
B43: Isolated System
B44: TPP ANAMÃ | C44: AM | D44: Thermal | E44: N/D | F44: 2018-12-05 | G44: 2030-11-30 | H44: 2.165 | I44: NA | J44: 2771.484521 | K44: 2862.835 | L44: 3332.36 | N44: Natural Gas | O44: m3 | P44: 984271 | Q44: 1.94074751 | R44: 1041060 | S44: 2.055406419 | T44: 1184327 | U44: 2.340389148
B45: TPP ANORI | C45: AM | D45: Thermal | E45: N/D | F45: 2018-12-05 | G45: 2030-11-30 | H45: 4.57 | I45: NA | J45: 5151.690048 | K45: 5245.605 | L45: 5636.292 | N45: Natural Gas | O45: m3 | P45: 1707495 | Q45: 3.36673692 | R45: 1730341 | S45: 3.416269578 | T45: 1870071 | U45: 3.695511611
B46: TPP CAAPIRANGA | C46: AM | D46: Thermal | E46: N/D | F46: 2018-12-05 | G46: 2030-11-30 | H46: 2.165 | I46: NA | J46: 2662.670856 | K46: 2792.184 | L46: 3079.848 | N46: Natural Gas | O46: m3 | P46: 923685 | Q46: 1.82122617 | R46: 906833 | S46: 1.790389105 | T46: 1000635 | U46: 1.977380065
B47: TPP CODAJÁS | C47: AM | D47: Thermal | E47: N/D | F47: 2018-12-05 | G47: 2030-11-30 | H47: 4.57 | I47: NA | J47: 7573.853586 | K47: 7849.927 | L47: 8258.643 | N47: Natural Gas | O47: m3 | P47: 1959223 | Q47: 3.86430855 | R47: 2792028 | S47: 5.512385596 | T47: 2735501 | U47: 5.405530208
A48: Eletrobras Holding | B48: Santa Cruz (7) (8) (14) | C48: RJ | D48: Thermal | E48: Aug/63 and Mar/67 | F48: 1967-07-01 | G48: 2015-07-07 | H48: 500 | I48: 401.2 | J48: 0 | K48: 0 | L48: 0 | N48: Natural Gas | O48: m3 | P48: 0 | Q48: 0 | R48: 0 | S48: 0 | T48: 0 | U48: 0
B49: Roberto Silveira (Campos) (9) | C49: RJ | D49: Thermal | E49: 2007-07-27 | F49: 1968-12-20 | G49: 2027-07-27 | H49: - | I49: - | J49: 0 | K49: 0 | L49: 0 | N49: ND | O49: ND | P49: ND | Q49: ND | R49: ND | S49: ND | T49: ND | U49: ND | V49: ND | W49: ND
A52: II.1.2.3 Thermal Generation Assets of PIEs and Generated Energy – Projects under Full Responsibility
A54: Eletrobras Company | B54: Project | C54: Location | D54: Source | E54: Start of Concession | F54: Start of Operation | G54: End of Operation | H54: Installed Capacity | I54: Physical Guarantee | J54: Generated Energy (MWh) | N54: Fuel Type | O54: Metric Unit | P54: Fuel used for electric power production
P55: 1Q24 | R55: 2Q24 | T55: 3Q24 | V55: 4Q24
C56: (State) | H56: (MW) | I56: (Average MW) | J56: 1Q24 | K56: 2Q24 | L56: 3Q24 | M56: 4Q24 | P56: Qty. | Q56: BRL Million | R56: Qty. | S56: BRL Million | T56: Qty. | U56: BRL Million | V56: Qty. | W56: BRL Million
A57: Eletronorte | B57: TPP Ponta Negra (PIE Gera) (10) | C57: AM | D57: Thermal | E57: NA | F57: NA | G57: NA | H57: NA | I57: NA | J57: NA | K57: NA | L57: NA | N57: NA | O57: NA | P57: NA | Q57: NA | R57: NA | S57: NA | T57: NA | U57: NA
B58: TPP Manauara (PIE Manauara) (10) | C58: AM | D58: Thermal | E58: NA | F58: NA | G58: NA | H58: NA | I58: NA | J58: NA | K58: NA | L58: NA | N58: NA | O58: NA | P58: NA | Q58: NA | R58: NA | S58: NA | T58: NA | U58: NA
B59: TPP Jaraqui (PIE Breitener Jaraqui) (10) | C59: AM | D59: Thermal | E59: NA | F59: NA | G59: NA | H59: NA | I59: NA | J59: NA | K59: NA | L59: NA | N59: NA | O59: NA | P59: NA | Q59: NA | R59: NA | S59: NA | T59: NA | U59: NA
B60: TPP Tambaqui (PIE Breitner Tambaqui) (10) | C60: AM | D60: Thermal | E60: NA | F60: NA | G60: NA | H60: NA | I60: NA | J60: NA | K60: NA | L60: NA | N60: NA | O60: NA | P60: NA | Q60: NA | R60: NA | S60: NA | T60: NA | U60: NA
B61: TPP Cristiano Rocha (PIE RAESA) (10) | C61: AM | D61: Thermal | E61: NA | F61: NA | G61: NA | H61: NA | I61: NA | J61: NA | K61: NA | L61: NA | N61: NA | O61: NA | P61: NA | Q61: NA | R61: NA | S61: NA | T61: NA | U61: NA
A63: II.1.2.4 Wind Generation Assets and Generated Energy – Projects under Full Responsibility
A65: Eletrobras Company | B65: Project | C65: Location | D65: Source | E65: Start of Concession | F65: Start of Operation | G65: End of Operation | H65: Installed Capacity | I65: Physical Guarantee | J65: Generated Energy (MWh)
C67: (State) | H67: (MW) | I67: (Average MW) | J67: 1Q24 | K67: 2Q24 | L67: 3Q24 | M67: 4Q24
A68: Chesf | B68: Casa Nova I A (11) | C68: BA | D68: Wind | E68: 2019-06-01 | F68: 2020-12-01 | G68: 2054-06-01 | H68: 27 | I68: 6.8 | J68: 7646.449787 | K68: 20166.47186 | L68: 28873.59787
B69: Casa Nova II | C69: BA | D69: Wind | E69: 2014-05-01 | F69: 2017-12-01 | G69: 2049-05-01 | H69: 32.9 | I69: 9.4 | J69: 9256.616592 | K69: 18483.81853 | L69: 28232.36096
B70: Casa Nova III | C70: BA | D70: Wind | E70: 2014-05-01 | F70: 2018-02-01 | G70: 2049-05-01 | H70: 28.2 | I70: 9.4 | J70: 9338.706459 | K70: 17284.68456 | L70: 28172.39552
B71: Acauã | C71: BA | D71: Wind | E71: 2014-04-11 | F71: 2019-11-01 | G71: 2049-04-01 | H71: 6 | I71: 3.1 | J71: 2719.921243 | K71: 4231.500934 | L71: 2067.171422
B72: Angical 2 | C72: BA | D72: Wind | E72: 2014-04-11 | F72: 2019-09-01 | G72: 2049-04-01 | H72: 10 | I72: 5.1 | J72: 2506.261893 | K72: 3204.967408 | L72: 2502.007928
B73: Arapapá | C73: BA | D73: Wind | E73: 2014-04-11 | F73: 2019-11-01 | G73: 2049-04-01 | H73: 4 | I73: 2.2 | J73: 1058.06681 | K73: 2317.240037 | L73: 2476.607537
B74: Caititu 2 | C74: BA | D74: Wind | E74: 2014-04-11 | F74: 2020-01-01 | G74: 2049-04-01 | H74: 10 | I74: 5.1 | J74: 3071.398043 | K74: 4729.924654 | L74: 4602.322268
B75: Caititu 3 | C75: BA | D75: Wind | E75: 2014-04-29 | F75: 2020-01-01 | G75: 2049-04-01 | H75: 10 | I75: 4.7 | J75: 1792.735336 | K75: 3624.17304 | L75: 3656.561866
B76: Carcará | C76: BA | D76: Wind | E76: 2014-04-22 | F76: 2020-02-01 | G76: 2049-04-01 | H76: 10 | I76: 4.6 | J76: 2136.000833 | K76: 4088.498802 | L76: 3866.565249
B77: Coqueirinho 2 | C77: BA | D77: Wind | E77: 2014-05-27 | F77: 2019-09-01 | G77: 2049-05-01 | H77: 16 | I77: 7.4 | J77: 3176.702623 | K77: 6543.582685 | L77: 7566.057107
B78: Corrupião 3 | C78: BA | D78: Wind | E78: 2014-04-29 | F78: 2020-02-01 | G78: 2049-04-01 | H78: 10 | I78: 4.2 | J78: 1833.335618 | K78: 3518.798646 | L78: 5126.255035
B79: Papagaio | C79: BA | D79: Wind | E79: 2014-05-26 | F79: 2019-10-01 | G79: 2049-05-01 | H79: 10 | I79: 4.9 | J79: 3003.216643 | K79: 4948.404794 | L79: 5774.995619
B80: Tamanduá Mirim 2 | C80: BA | D80: Wind | E80: 2014-06-25 | F80: 2019-11-01 | G80: 2049-06-01 | H80: 16 | I80: 7.4 | J80: 3531.704603 | K80: 7328.318869 | L80: 8239.476402
B81: Teiú 2 | C81: BA | D81: Wind | E81: 2014-04-11 | F81: 2019-11-01 | G81: 2049-04-01 | H81: 8 | I81: 4.2 | J81: 954.047945 | K81: 2689.132392 | L81: 1931.549477
A82: CGT Eletrosul | B82: Cerro Chato I Wind Farm | C82: RS | D82: Wind | E82: 2010-08-25 | F82: 2012-01-06 | G82: 2045-08-01 | H82: 30 | I82: 11.33 | J82: 18683.3786 | K82: 29050.27718 | L82: 28764.15615
B83: Cerro Chato II Wind Farm | C83: RS | D83: Wind | E83: 2010-08-25 | F83: 2011-08-20 | G83: 2045-08-01 | H83: 30 | I83: 11.33 | J83: 18960.2581 | K83: 28415.32595 | L83: 28970.22959
B84: Cerro Chato III Wind Farm | C84: RS | D84: Wind | E84: 2010-08-25 | F84: 2011-06-07 | G84: 2045-08-01 | H84: 30 | I84: 11.33 | J84: 20623.83923 | K84: 29890.60526 | L84: 29376.46523
B85: WPP Coxilha Negra 2 (18) | C85: RS | D85: Wind | E85: 2022-08-01 | F85: 2024-07-01 | G85: 2057-08-01 | H85: 96.6 | I85: NA | J85: 0 | K85: 0 | L85: 53175.57521
B86: WPP Coxilha Seca | C86: RS | D86: Wind | E86: 2014-05-19 | F86: 2015-12-16 | G86: 2049-05-18 | H86: 30 | I86: 13.2 | J86: 23745.93714 | K86: 35212.65452 | L86: 32507.44496
B87: WPP Capão do Inglês | C87: RS | D87: Wind | E87: 2014-05-22 | F87: 2015-12-22 | G87: 2049-05-18 | H87: 10 | I87: 4.5 | J87: 7495.015342 | K87: 11908.5792 | L87: 11134.55353
B88: WPP Galpões | C88: RS | D88: Wind | E88: 2014-05-08 | F88: 2015-12-16 | G88: 2049-05-18 | H88: 8 | I88: 3.7 | J88: 5742.819495 | K88: 9480.666321 | L88: 8946.165836
A91: II.1.2.4 Solar Generation Assets and Generated Energy – Projects under Full Responsibility
A93: Eletrobras Company | B93: Project | C93: Location | D93: Source | E93: Start of Concession | F93: Start of Operation | G93: End of Operation | H93: Installed Capacity | I93: Physical Guarantee | J93: Generated Energy (MWh)
C95: (State) | H95: (MW) | I95: (Average MW) | J95: 1Q24 | K95: 2Q24 | L95: 3Q24 | M95: 4Q24
A96: CGT Eletrosul | B96: Solar Megawatt | C96: SC | D96: Solar | E96: 2014-06-24 | F96: 2014-09-01 | G96: - | H96: 0.93 | I96: NA | J96: 306.103826 | K96: 178.489382 | L96: 192.762939
A98: (1) The concession for the exploration of the PCH Coremas was initially granted to the National Department of Works Against Droughts - DNOCS through Decree No. 53,417, of 1/20/1964 and later transferred to Companhia Hidro Elétrica do São Francisco - CHESF through Decree No. 74,971, of 11/26/1974.
A99: (2) Decree No. 85,983, of May 6, 1981. Grant to FURNAS - Centrais Elétricas S.A. concession for a set of use of hydraulic energy of the stretch of the main course of the Tocantins River and its tributaries on the right and left banks, in the State of Goiás. 11.12.2004 - CA 05/2004 - HPP Serra da Mesa
A100: (3) Shared HPPs, but FURNAS acquires the partner fraction through energy purchase contracts - considered GF and total generation of each HPP.
A101: (4) The reported amounts refer to the Company's participation in the enterprise (Consórcio Governador Jayme Canet Júnior 49% Eletrosul).
A102: (5) Ordinance MME 331 of 08.14.2018 - Dou 08.15.2018, Authorize the decontracting, in its entirety, of the Thermoelectric Generating Power Plant called TPP Araguaia. Eletronorte, through CE-CRR-0118, of 06.20.2018, requested ANEEL to revoke the authorization grant of TPP Araguaia. However, the Association of Municipalities of Araguaia - AMA filed Public Civil Action No. 2803-97.2018.811.008 against Eletronorte in the Court and Justice of Mato Grosso, having been granted urgent relief. Eletronorte, through CE-CRR-0144, dated 08.07.2018, requested ANEEL to suspend the process. On 10.11.2018 Eletronorte filed a lawsuit before the Federal Court (Case No. 1021506-05.2018.4.01.3400) to discuss the matter but still pending judgment. By determination of RD-0249/2019 of 08.08.2019, Eletronorte through CE-CRR-0157/2019 of 08.30.2019 requested SCG/ANEEL to resume the process aiming at the revocation of the authorization grant of TPP Araguaia, pursuant to MME Ordinance No. 331 of 08.14.2018. On 11.06.2019, SCG/ANEEL requested Eletronorte to demonstrate that said Public Civil Action has no more effects. Through correspondence s/n of 11.11.2019, Eletronorte's Legal Counsel presented the requested clarifications. SCG/ANEEL sent Memorandum No. 281/2019-SCG/ANEEL to the Federal Attorney's Office with ANEEL. Considering that there was no manifestation, Eletronorte reiterated the claim of CE-CRR-0157/2019, through CE-CRR-0079/2020, of 05.26.2020. Eletronorte, through letter CE-PR-0077/2021, of 06/17/2021, informed that it carried out the administrative closure of the Contract and completed the demobilization of the plant in June/2020.
A103: (6) TPP Senador Arnon Afonso Farias de Mello is assigned to Roraima Energia S.A., successor of Boa Vista Energia S.A., through a loan agreement. This project is not being considered in the installed capacity of Eletronorte.
A104: (7) Aneel was requested to extend the concession in accordance with the legal terms and deadline through the request REQ.GCO.P.027.2013, dated 07.05.2013. The conditions of said concession remain in force.
A105: (8) Decree No. 52,394 of 08/22/1963 - authorizes Companhia Hidreletrica do Vale do Paraiba to assemble a thermoelectric plant. Decree No. 60,350 of 03/10/1967 - grants to Central Elétrica de Furnas S.A. a concession for the use of hydraulic energy, authorization for the establishment of a thermoelectric plant and other measures.
A106: (9) TPP Roberto Silveira (Campos) is out of commercial operation, as stated in ANEEL Order 708/2019. Installed power of 25.00 MW according to ANEEL Order 484/2016.
A107: (10) TPP Cristiano Rocha, Manauara, Ponta Negra, Tambaqui and Jaraqui are not part of Amazonas GT's own generation assets, they belong to the Independent Energy Producers – PIE, of which Amazonas GT buys its energy and resells them to Amazonas D through Power Purchase and Sale Agreements – CCVE. These energy purchase agreements of the PIE by Amazonas GT when it ends in May/2025, by contractual force, the PIE plants will be reverted to the equity of Amazonas GT (05/05/2025 reversal of the assets of the TPPs Tambaqui and Jaraqui and 05/21/2025 reversal of the assets of the TPPs Manauara, Ponta Negra and Cristiano Rocha), and it is up to them to operate them until November 30, 2030.
A108: (11) Authorizing Resolution 7,907, of 06/18/2019, makes reference to the installed power of the Casa Nova A plant, but makes no reference to the physical guarantee of such plant. This is due to the fact that the Casa Nova A Plant does not have a Physical Guarantee defined by the MME. The amount presented of 6.8 MW comes from the plant's certification study, being only one reference.
A109: (12) CONCESSION AGREEMENT No. 002/2022 – ANEEL - ELETRONORTE - New concession agreement for HPPs Tucuruí, Curuá-una and Coaracy Nunes, moving to 30 years.
A110: (13) The Masc. de Moraes, Corumbá I, Estreito, Funil, Furnas, Marimbondo and P. Colômbia plants were granted the concession determined by Clause Two of Concession Agreement No. 003/2022 signed between Furnas and ANEEL on 06/17/2022 as the date of signature of the contract: 06/17/2022; the final term of the concession on 06/17/2052 was determined in Annex II of Concession Agreement No. 003/2022 signed between Furnas and ANEEL on 06/17/2022.
A111: (14) By means of Order No. 481, of February 23, 2023, ANEEL released the generating unit and UG31, of 150,000.00 kW of TPP Santa Cruz to start commercial operation as of February 24, 2023. Through Order No. 1991, of June 23, 2023, ANEEL extended, for an indefinite period, the commercial operation of the generating unit and UG31, of 150,000.00 kW of TPP Santa Cruz.
A112: (15) Alteration of Physical Guarantee through Ordinance No. 709/GM/MME, of November 30, 2022.
A113: (16) According to Ordinance No. 409, of November 13, 2020, of the Ministry of Mines and Energy (MME), as of January 1, 2021, Furnas was designated as responsible for the Provision of the Electric Power Generation Service through the Jaguari Hydroelectric Power Plant, until the assumption of the winning concessionaire of the Plant bidding.
A114: (17) According to concession and REH 2,932/2021. It is noteworthy that Authorizing Resolution No. 14.435/2023 added 469 days to the concession term. Therefore, the additional time granted by REH 2.932/2021, of 1,789 days, which would result in maturity on 09/07/2048, will need to be recalculated and approved by Aneel.
A115: (18) 23 generating units released for commercial operation totaling 96.6 MW.
A117: II.1.2.1.2 Generation Losses - %
A118: Eletrobras Companies | B118: 1Q24 | D118: 2Q24 | F118: 3Q24 | H118: 4Q24
B119: In the quarter | C119: Accumulated | D119: In the quarter | E119: Accumulated | F119: In the quarter | G119: Accumulated | H119: In the quarter | I119: Accumulated
A120: Eletronorte | B120: 2.298568024 | C120: 2.298568024 | D120: 2.371502995 | E120: 2.336748106 | F120: 2.173463244 | G120: 2.300635031
A121: Chesf | B121: 2.269898853 | C121: 2.269898853 | D121: 2.404929133 | E121: 2.338151329 | F121: 2.091279231 | G121: 2.259465677
A122: Eletrobras Holding | B122: 1.864317236 | C122: 1.864317236 | D122: 1.997713826 | E122: 1.931015531 | F122: 2.046347443 | G122: 1.969459502
A123: CGT Eletrosul | B123: 1.21 | C123: 1.21 | D123: 1.358380132 | E123: 1.281390108 | F123: 1.438772668 | G123: 1.336424189

Sheet G Assets and Generated Energy O
B2: II.1.2.2 Hydraulic Generation Assets and Generated Energy – Projects under Full Responsibility under O&M Regime - renewed by law 14.182/21
B3: Eletrobras Company | C3: Project | D3: Location | E3: Source | F3: Start of Concession | G3: Start of Operation | H3: End of Operation | I3: Installed Capacity | J3: Total Physical Guarantee | K3: Decoupled Physical Guarantee (6) | L3: Total Generated Energy (MWh)
D5: (State) | I5: (MW) | J5: (Average MW) | K5: (Average MW) | L5: 1Q24 | M5: 2Q24 | N5: 3Q24 | O5: 4Q24
B6: Eletronorte | C6: HPP Coaracy Nunes (2) | D6: AP | E6: Hydraulics | F6: 2022-06-17 | G6: 1975-12-01 | H6: 2052-06-17 | I6: 78 | J6: 62.2 | K6: 24.88 | L6: 149175.1507 | M6: 152627.6665 | N6: 138281.4887
B7: Chesf | C7: Funil (1) | D7: BA | E7: Hydraulics | F7: 2022-06-17 | G7: 1962-08-01 | H7: 2052-06-17 | I7: 30 | J7: 4.8 | K7: 1.985 | L7: 3201.845489 | M7: 0 | N7: 4726.26909
C8: Pedra (1) | D8: BA | E8: Hydraulics | F8: 2022-06-17 | G8: 1978-11-01 | H8: 2052-06-17 | I8: 20.01 | J8: 1.74 | K8: 0.719 | L8: 16132.0979 | M8: 5714.099311 | N8: 5484.645003
C9: Complexo de Paulo Afonso (1) | D9: BA | E9: Hydraulics | F9: 2022-06-17 | G9: 1955-01-01 | H9: 2052-06-17 | I9: 4279.6 | J9: 1658.8 | K9: 685.516 | L9: 2569972.734 | M9: 2584538.8 | N9: 2419307.21
C10: Luiz Gonzaga (Itaparica) (1) | D10: PE | E10: Hydraulics | F10: 2022-06-17 | G10: 1988-06-01 | H10: 2052-06-17 | I10: 1479.6 | J10: 727 | K10: 300.44 | L10: 1150898.449 | M10: 1200170.734 | N10: 1143165.453
C11: Boa Esperança (Castelo Branco) (1) | D11: PI | E11: Hydraulics | F11: 2022-06-17 | G11: 1970-04-01 | H11: 2052-06-17 | I11: 237.3 | J11: 136.2 | K11: 56.286 | L11: 317152.1581 | M11: 295232.8847 | N11: 258336.8889
C12: Xingó (1) | D12: SS | E12: Hydraulics | F12: 2022-06-17 | G12: 1994-12-01 | H12: 2052-06-17 | I12: 3162 | J12: 1729.8 | K12: 714.857 | L12: 2927338.668 | M12: 2931674.348 | N12: 2742720.148
B13: Eletrobras Holding | C13: Furnas (3) | D13: MG | E13: Hydraulics | F13: 2022-06-17 | G13: 1963-09-04 | H13: 2052-06-17 | I13: 1216 | J13: 625 | K13: 250 | L13: 1335822.342 | M13: 958237.1731 | N13: 1453344.314
C14: Luis Carlos Barreto (Estreito) (3) | D14: SP/MG | E14: Hydraulics | F14: 2022-06-17 | G14: 1969-03-16 | H14: 2052-06-17 | I14: 1050 | J14: 497.2 | K14: 198.88 | L14: 856038.0475 | M14: 606710.6694 | N14: 825211.809
C15: Porto Colômbia (3) | D15: MG/SP | E15: Hydraulics | F15: 2022-06-17 | G15: 1973-06-29 | H15: 2052-06-17 | I15: 320 | J15: 205.4 | K15: 82.16 | L15: 467312.6457 | M15: 343604.4856 | N15: 393273.552
C16: Marimbondo (3) | D16: SP/MG | E16: Hydraulics | F16: 2022-06-17 | G16: 1975-10-25 | H16: 2052-06-17 | I16: 1440 | J16: 688.7 | K16: 275.48 | L16: 1396315.72 | M16: 1013941.176 | N16: 961926.954
C17: Funil (3) | D17: RJ | E17: Hydraulics | F17: 2022-06-17 | G17: 1970-03-01 | H17: 2052-06-17 | I17: 216 | J17: 102.4 | K17: 40.96 | L17: 287243.7834 | M17: 269663.7129 | N17: 207771.195
C18: Corumbá I (3) | D18: GO | E18: Hydraulics | F18: 2022-06-17 | G18: 1996-10-01 | H18: 2052-06-17 | I18: 375 | J18: 219.5 | K18: 87.8 | L18: 423027.5106 | M18: 426614.3399 | N18: 290076.126
B21: II.1.2.3 Hydraulic Generation Assets and Generated Energy – Projects under Full Responsibility renewed by law 13.182/15
B22: Eletrobras Company | C22: Project | D22: Location | E22: Source | F22: Start of Concession | G22: Start of Operation | H22: End of Operation | I22: Installed Capacity | J22: Total Physical Guarantee | K22: Physical Guarantee (Law 13,182) | L22: Total Generated Energy (MWh)
D23: (State) | I23: (MW) | J23: (Average MW) | K23: (Average MW) | L23: 1Q24 | M23: 2Q24 | N23: 3Q24 | O23: 4Q24
B24: Chesf | C24: Sobradinho (1) (4) | D24: BA | E24: Hydraulics | F24: 2022-06-17 | G24: 1979-11-01 | H24: 2052-06-17 | I24: 1050.3 | J24: 457.5 | K24: 411.75 | L24: 646743.8951 | M24: 768589.3764 | N24: 637729.0221
C25: Funil (4) | D25: BA | E25: Hydraulics | F25: 2022-06-17 | G25: 1962-08-01 | H25: 2052-06-17 | I25: 30 | J25: 4.8 | K25: 0.10608 | L25: 3201.845489 | M25: 0 | N25: 4726.26909
C26: Pedra (4) | D26: BA | E26: Hydraulics | F26: 2022-06-17 | G26: 1978-11-01 | H26: 2052-06-17 | I26: 20.01 | J26: 1.74 | K26: 0.038454 | L26: 16132.0979 | M26: 5714.099311 | N26: 5484.645003
C27: Complexo de Paulo Afonso (4) | D27: BA | E27: Hydraulics | F27: 2022-06-17 | G27: 1955-01-01 | H27: 2052-06-17 | I27: 4279.6 | J27: 1658.8 | K27: 36.65948 | L27: 2569972.734 | M27: 2584538.8 | N27: 2419307.21
C28: Luiz Gonzaga (Itaparica) (4) | D28: PE | E28: Hydraulics | F28: 2022-06-17 | G28: 1988-06-01 | H28: 2052-06-17 | I28: 1479.6 | J28: 727 | K28: 16.0667 | L28: 1150898.449 | M28: 1200170.734 | N28: 1143165.453
C29: Boa Esperança (Castelo Branco) (4) | D29: PI | E29: Hydraulics | F29: 2022-06-17 | G29: 1970-04-01 | H29: 2052-06-17 | I29: 237.3 | J29: 136.2 | K29: 3.01002 | L29: 317152.1581 | M29: 295232.8847 | N29: 258336.8889
C30: Xingó (4) | D30: SS | E30: Hydraulics | F30: 2022-06-17 | G30: 1994-12-01 | H30: 2052-06-17 | I30: 3162 | J30: 1729.8 | K30: 38.22858 | L30: 2927338.668 | M30: 2931674.348 | N30: 2742720.148
B31: Eletrobras Holding | C31: Itumbiara (3) (5) | D31: GO/MG | E31: Hydraulics | F31: 2022-06-17 | G31: 1980-04-28 | H31: 2052-06-17 | I31: 2082 | J31: 948.9 | K31: 759.12 | L31: 1642240.266 | M31: 1238882.585 | N31: 2347473.208
B34: (1) The hydraulic plants had their old concession contract 006/2004 replaced by the new concession contract 001/2022. The new concessions were granted through the privatization of Eletrobras, under the terms of Law 14,182, of July 12, 2021.
B35: (2) CONCESSION AGREEMENT No. 002/2022 – ANEEL - ELETRONORTE - New concession agreement for HPPs Tucuruí, Curuá-una and Coaracy Nunes, moving to 30 years.
B36: (3) The plants of Corumbá I, Estreito, Funil, Furnas, Marimbondo, P. Colombia and Itumbiara were granted the concession determined by Clause Two of the Concession Agreement No. 003/2022 signed between Furnas and ANEEL on 06/17/2022 as the date of signature of the agreement: 06/17/2022; the final term of the concession on 06/17/2052 was determined in Annex II of Concession Agreement No. 003/2022 signed between Furnas and ANEEL on 06/17/2022.
B37: (4) To comply with Law 13.182/2015, Sobradinho plant provides 90% of its Physical Guarantee and the other CHESF shareholder plants provide 2.21% of their physical guarantees to serve industrial consumers served by this law.
B38: (5) In order to comply with Law 13.182/2015, the Itumbiara plant provides 80% of its Physical Guarantee to serve industrial consumers located in the Southeast/Midwest submarket.
B39: (6) decoupling is equivalent to 40% of the total value of the physical guarantee for the year 2024.

Sheet Commercial Exploration
B3: ACR Contracts - Quantity
B5: Eletrobras Company | C5: Auction (if Bilateral Contract Regulated inform client) | D5: Compromised Plants | E5: Source | F5: Start Date | G5: End Date | H5: Submarket | I5: Current Volume (MWaverage) | J5: Price Updated (BRL/MWh) | K5: Accounting Position (Procurement /Supply) | L5: Indexed
B6: Eletronorte | C6: CBR - OC 87495/2013 (Amazonas D) | D6: Balbina (Own) | E6: HYDRO | F6: 2021-07-01 | G6: 2027-03-01 | H6: N | I6: 125.917 | J6: 400.0100001 | K6: Procurement | L6: IPCA
C7: CCVE 004/2018 (Amazonas D) | D7: Tambaqui (Resale)(1) | E7: TERM | F7: 2021-07-01 | G7: 2025-05-18 | H7: N | I7: 60 | J7: 1049.7 | K7: Procurement | L7: IGP-M
C8: CCVE 003/2018 (Amazonas D) | D8: Jaraqui (Resale)(1) | E8: TERM | F8: 2021-07-01 | G8: 2025-05-18 | H8: N | I8: 60 | J8: 1051.29 | K8: Procurement | L8: IGP-M
C9: CCVE 002/2018 (Amazonas D) | D9: Manauara (Resale)(1) | E9: TERM | F9: 2021-07-01 | G9: 2025-05-18 | H9: N | I9: 60 | J9: 945.6 | K9: Procurement | L9: IGP-M
C10: CCVE 001/2018 (Amazonas D) | D10: Ponta Negra (Resale)(1) | E10: TERM | F10: 2021-07-01 | G10: 2025-05-18 | H10: N | I10: 60 | J10: 964.2 | K10: Procurement | L10: IGP-M
C11: CCVE 005/2018 (Amazonas D) | D11: Cristiano Rocha (Resale)(1) | E11: TERM | F11: 2021-07-01 | G11: 2025-05-18 | H11: N | I11: 65 | J11: 981.88 | K11: Procurement | L11: IGP-M
C12: CCVE 008/2018 (Amazonas D - Sist. Isolated) | D12: Caapiranga (Own) | E12: TERM | F12: 2021-07-01 | G12: 2030-11-30 | H12: N | I12: 1.187 | J12: 1275.94 | K12: Procurement | L12: IPCA
C13: CCVE 006/2018 (Amazonas D - Sist. Isolated) | D13: Anamã (Own) | E13: TERM | F13: 2021-07-01 | G13: 2030-11-30 | H13: N | I13: 1.273 | J13: 1342.33 | K13: Procurement | L13: IPCA
C14: CCVE 009/2018 (Amazonas D - Sist. Isolated) | D14: Codajás (Own) | E14: TERM | F14: 2021-07-01 | G14: 2030-11-30 | H14: N | I14: 3.008 | J14: 1216.4 | K14: Procurement | L14: IPCA
C15: CCVE 007/2018 (Amazonas D - Sist. Isolated) | D15: Anori (Own) | E15: TERM | F15: 2021-07-01 | G15: 2030-11-30 | H15: N | I15: 2.507 | J15: 1313.43 | K15: Procurement | L15: IPCA
C16: CCESI 001/2019 (Amazonas D - Sist. Isolated) | D16: Coari (Resale)(1) | E16: TERM | F16: 2021-07-01 | G16: 2030-11-30 | H16: N | I16: 12 | J16: 1029.12 | K16: Procurement | L16: IPCA
C17: 27th Existing Energy Auction | D17: Tucuruí | E17: HYDRO | F17: 2023-01-01 | G17: 2024-12-31 | H17: N | I17: 51 | J17: 200 | K17: Procurement | L17: IPCA
C18: 12th Existing Energy Auction (2) | D18: Tucuruí | E18: HYDRO | F18: 2024-07-12 | G18: 2024-08-30 | H18: N | I18: 2545.2825 | J18: 266.29 | K18: Procurement | L18: IPCA
C19: 13th Existing Energy Auction (2) | D19: Tucuruí | E19: HYDRO | F19: 2024-07-12 | G19: 2024-08-30 | H19: N | I19: 899.6941667 | J19: 476.14 | K19: Procurement | L19: IPCA
C20: 11th New Energy Auction | D20: Teles Pires | E20: HYDRO | F20: 2015-01-01 | G20: 2044-12-31 | H20: SS | I20: 576 | J20: 127.6748284 | K20: Procurement | L20: IPCA
B21: CGT Eletrosul | C21: 1st New Energy Auction | D21: Passo São João | E21: HYDRO | F21: 2010-01-01 | G21: 2039-12-31 | H21: S | I21: 37 | J21: 308.0400485 | K21: Procurement | L21: IPCA
C22: 3rd New Energy Auction | D22: Governador Jayme Canet Júnior | E22: HYDRO | F22: 2011-01-01 | G22: 2040-12-31 | H22: S | I22: 94.08 | J22: 300.1857257 | K22: Procurement | L22: IPCA
C23: 5th New Energy Auction | D23: São Domingos | E23: HYDRO | F23: 2012-01-01 | G23: 2041-12-31 | H23: SE/CO | I23: 36 | J23: 322.5019114 | K23: Procurement | L23: IPCA
C24: 2nd Reserve Energy Auction | D24: CERRO CHATO I | E24: EOL | F24: 2012-07-01 | G24: 2032-06-30 | H24: S | I24: 10.72693525 | J24: 301.35 | K24: Procurement | L24: IPCA
C25: 2nd Reserve Energy Auction | D25: CERRO CHATO II | E25: EOL | F25: 2012-07-01 | G25: 2032-06-30 | H25: S | I25: 11.08665991 | J25: 301.35 | K25: Procurement | L25: IPCA
C26: 2nd Reserve Energy Auction | D26: CERRO CHATO III | E26: EOL | F26: 2012-07-01 | G26: 2032-06-30 | H26: S | I26: 11.10922006 | J26: 301.35 | K26: Procurement | L26: IPCA
B27: Chesf | C27: 5th Reserve Energy Auction | D27: Acauã | E27: EOL | F27: 2015-09-01 | G27: 2035-08-31 | H27: NE | I27: 2.6 | J27: 198.1 | K27: Procurement | L27: IPCA
C28: 5th Reserve Energy Auction | D28: Angical 2 | E28: EOL | F28: 2015-09-01 | G28: 2035-08-31 | H28: NE | I28: 4.9 | J28: 198.1 | K28: Procurement | L28: IPCA
C29: 5th Reserve Energy Auction | D29: Arapapá | E29: EOL | F29: 2015-09-01 | G29: 2035-08-31 | H29: NE | I29: 1.9 | J29: 198.1 | K29: Procurement | L29: IPCA
C30: 5th Reserve Energy Auction | D30: Caititu 2 | E30: EOL | F30: 2015-09-01 | G30: 2035-08-31 | H30: NE | I30: 5.1 | J30: 198.1 | K30: Procurement | L30: IPCA
C31: 5th Reserve Energy Auction | D31: Caititu 3 | E31: EOL | F31: 2015-09-01 | G31: 2035-08-31 | H31: NE | I31: 4.7 | J31: 198.1 | K31: Procurement | L31: IPCA
C32: 5th Reserve Energy Auction | D32: Carcará | E32: EOL | F32: 2015-09-01 | G32: 2035-08-31 | H32: NE | I32: 4.6 | J32: 198.1 | K32: Procurement | L32: IPCA
C33: 5th Reserve Energy Auction | D33: Corrupião 3 | E33: EOL | F33: 2015-09-01 | G33: 2035-08-31 | H33: NE | I33: 4.2 | J33: 198.1 | K33: Procurement | L33: IPCA
C34: 5th Reserve Energy Auction | D34: Teiú 2 | E34: EOL | F34: 2015-09-01 | G34: 2035-08-31 | H34: NE | I34: 3.7 | J34: 198.1 | K34: Procurement | L34: IPCA
B35: Eletrobras Holding | C35: 1st New Energy Auction | D35: Manso | E35: HYDRO | F35: 2008-01-01 | G35: 2037-12-31 | H35: SE/CO | I35: 34.999 | J35: 266.4803834 | K35: Procurement | L35: IPCA
C36: 1st New Energy Auction | D36: Manso | E36: HYDRO | F36: 2010-01-01 | G36: 2039-12-31 | H36: SE/CO | I36: 55 | J36: 307.1165059 | K36: Procurement | L36: IPCA
C37: 1st New Energy Auction | D37: Batalha | E37: HYDRO | F37: 2010-01-01 | G37: 2039-12-31 | H37: SE/CO | I37: 47.1 | J37: 312.0342849 | K37: Procurement | L37: IPCA
C38: 1st New Energy Auction | D38: Simplício | E38: HYDRO | F38: 2010-01-01 | G38: 2039-12-31 | H38: SE/CO | I38: 185.2 | J38: 315.24048 | K38: Procurement | L38: IPCA
C39: 13th Existing Energy Auction (2) | D39: HPP Mascarenhas de Moraes | E39: HYDRO | F39: 2023-11-01 | G39: 2024-01-29 | H39: SE/CO | I39: 158.05 | J39: 459.577 | K39: Procurement | L39: IPCA
C40: 4th Existing Energy Auction (2) | D40: HPP Mascarenhas de Moraes | E40: HYDRO | F40: 2023-11-01 | G40: 2024-01-29 | H40: SE/CO | I40: 127.35 | J40: 254.3719613 | K40: Procurement | L40: IPCA
C41: Saesa - Structuring auction | D41: HPP Santo Antonio | E41: HYDRO | F41: 2012-12-01 | G41: 2041-12-31 | H41: SE/CO | I41: 1551.242502 | J41: 198.0257378 | K41: Procurement | L41: IPCA
C42: Saesa - 19th New Energy Auction | D42: HPP Santo Antonio Expansion | E42: HYDRO | F42: 2017-01-01 | G42: 2046-12-31 | H42: SE/CO | I42: 129.6 | J42: 207.43 | K42: Procurement | L42: IPCA
C43: 1st New Energy Auction | D43: HPP Baguari | E43: HYDRO | F43: 2010-01-01 | G43: 2039-12-31 | H43: SE/CO | I43: 77 | J43: 302.4062349 | K43: Procurement | L43: IPCA
C44: 1st New Energy Auction | D44: HPP Retiro Baixo | E44: HYDRO | F44: 2009-01-01 | G44: 2038-12-31 | H44: SE/CO | I44: 36 | J44: 302.92 | K44: Procurement | L44: IPCA
B46: (1) Energy sales contracts resulting from the process of unbundling of Amazonas Distribuidora -> Process: 48500.004245/2012-43 -ANEEL. The amounts of energy traded come from the purchase of PIEs.
B47: (2) Extension of the grant period for signing an energy contract in the Regulated Contracting Environment, due to the renegotiation of the hydrological risk of electricity generation, according to ANEEL Order No. 1,395, of May 20, 2019.
B49: ACR Contracts - Availability
B51: Eletrobras Company | C51: Auction (if Bilateral Contract Regulated inform client) | D51: Compromised Plants | E51: Source | F51: Start Date | G51: End Date | H51: Submarket | I51: Current Volume (MWaverage) | J51: Updated Fixed Revenue (BRL thousand/year) | K51: Accounting Position (Procurement /Supply) | L51: Indexed
B52: Eletronorte | C52: 20th New Energy Auction | D52: Mauá 3 | E52: TERM | F52: 2021-07-01 | G52: 2030-11-30 | H52: N | I52: 484.4 | J52: 1445433.23 | K52: Procurement | L52: IPCA
C53: 20th New Energy Auction | D53: Aparecida | E53: TERM | F53: 2021-07-01 | G53: 2030-11-30 | H53: N | I53: 145 | J53: 430217.38 | K53: Procurement | L53: IPCA
B54: CGT Eletrosul | C54: 17th New Energy Auction | D54: WPP Coxilha Seca | E54: EOL | F54: 2016-01-01 | G54: 2035-12-31 | H54: S | I54: 8.3 | J54: 16651.27401 | K54: Procurement | L54: IPCA
C55: 17th New Energy Auction | D55: WPP Capão do Inglês | E55: EOL | F55: 2016-01-01 | G55: 2035-12-31 | H55: S | I55: 2.8 | J55: 5631.809161 | K55: Procurement | L55: IPCA
C56: 17th New Energy Auction | D56: WPP Galpões | E56: EOL | F56: 2016-01-01 | G56: 2035-12-31 | H56: S | I56: 2.1 | J56: 4254.660483 | K56: Procurement | L56: IPCA
B57: Chesf | C57: 18th New Energy Auction | D57: Casa Nova II | E57: EOL | F57: 2018-01-01 | G57: 2037-12-31 | H57: NE | I57: 7.1 | J57: 14251.34389 | K57: Procurement | L57: IPCA
C58: 18th New Energy Auction | D58: Casa Nova III | E58: EOL | F58: 2018-03-01 | G58: 2037-12-31 | H58: NE | I58: 5.5 | J58: 11037.35057 | K58: Procurement | L58: IPCA
C59: 17th New Energy Auction | D59: Coqueirinho 2 | E59: EOL | F59: 2019-09-19 | G59: 2035-12-31 | H59: NE | I59: 7.299999999 | J59: 14332.56288 | K59: Procurement | L59: IPCA
C60: 17th New Energy Auction | D60: Papagaio | E60: EOL | F60: 2019-10-04 | G60: 2035-12-31 | H60: NE | I60: 4.7 | J60: 9191.744635 | K60: Procurement | L60: IPCA
C61: 18th New Energy Auction | D61: Tamanduá Mirim 2 | E61: EOL | F61: 2019-11-14 | G61: 2037-12-31 | H61: NE | I61: 7.2 | J61: 13785.84207 | K61: Procurement | L61: IPCA
B62: Eletrobras Holding | C62: 5th New Energy Auction | D62: Santa Cruz Nova | E62: TERM | F62: 2012-01-01 | G62: 2026-12-31 | H62: SE/CO | I62: 245.7 | J62: 323284.7424 | K62: Procurement | L62: IPCA

Sheet ACR-D PIEs and Thermals
B3: PIEs resulting from the process of deverticalization of Amazonas Distribuidora
B5: The Power Purchase and Sale Agreements from the PIEs (quantity contracts) are due to the process of unbundling of Amazonas Distribuidora -> Process: 48500.004245/2012-43 -ANEEL.
B6: Eletronorte buys energy from the PIEs, the price of which does not include the cost of fuel (gas). Eletronorte sells the same amount purchased from the PIEs to the distributor Amazonas Energia, including the fuel cost in the fee, so that the energy purchase and sale operations do not reflect the economic impact for Eletronorte ("pass-through"). The gas supply contact that serves the Amazon thermal plants was made between Eletronorte and Petrobras.
B7: Eletronorte's energy purchase contracts for the PIEs expire in May 2025, as well as the current sales contracts for Amazonas Energia. From that date, the assets will be converted to Eletronorte. As a result of MP 855/2018, new energy sales contracts will be entered into with Amazonas Energia for supply after that date, of the CCEAR type, with a term until November 2030 (date linked to the Gas supply contract).
B10: Power Purchase Agreements from PIEs (contracts by quantity)
M11: 1Q24 | N11: 2Q24 | O11: 3Q24 | P11: 4Q24
B12: Eletrobras Company | C12: Counterparty | D12: Compromised Plants | E12: Source | F12: Start Date | G12: End Date | H12: Submarket | I12: Current Volume (MWaverage) | J12: Price Updated (BRL/MWh) | K12: Accounting Position (Procurement /Supply) | L12: Indexed | M12: BRL Million | N12: BRL Million | O12: BRL Million | P12: BRL Million
B13: Eletronorte | C13: PIE TAMBAQUI | D13: Tambaqui | E13: TERM | F13: 2021-07-01 | G13: 2025-05-18 | H13: N | I13: 60 | J13: 443.9076358 | K13: Procurement | L13: IGP-M | M13: 58871.71801 | N13: 58937.16862 | O13: 58820.34875
C14: PIE JARAQUI | D14: Jaraqui | E14: TERM | F14: 2021-07-01 | G14: 2025-05-18 | H14: N | I14: 60 | J14: 445.4363332 | K14: Procurement | L14: IGP-M | M14: 58936.95145 | N14: 58959.29792 | O14: 58836.70524
C15: PIE MANAUARA | D15: Manauara | E15: TERM | F15: 2021-07-01 | G15: 2025-05-18 | H15: N | I15: 60 | J15: 385.5957851 | K15: Procurement | L15: IGP-M | M15: 52957.22292 | N15: 52957.22292 | O15: 53072.31153
C16: PIE Gera | D16: Ponta Negra | E16: TERM | F16: 2021-07-01 | G16: 2025-05-18 | H16: N | I16: 60 | J16: 412.1686458 | K16: Procurement | L16: IGP-M | M16: 54799.36659 | N16: 54832.92225 | O16: 54991.05132
C17: PIE Cristiano Rocha | D17: Cristiano Rocha | E17: TERM | F17: 2021-07-01 | G17: 2025-05-18 | H17: N | I17: 65 | J17: 417.3217166 | K17: Procurement | L17: IGP-M | M17: 61962.72168 | N17: 62055.89078 | O17: 62168.57914
C18: PIE Coari | D18: Coari | E18: TERM | F18: 2021-07-01 | G18: 2030-11-30 | H18: N | I18: 12 | J18: 382.48 | K18: Procurement | L18: IGP-M | M18: 12732.24536 | N18: 12743.48894 | O18: 12846.1827
B21: Energy Sale Contracts, from the Energy Purchases of the PIEs, for the distributor (quantity contracts)
M22: 1Q24 | N22: 2Q24 | O22: 3Q24 | P22: 4Q24
B23: Eletrobras Company | C23: Auction (if Bilateral Contract Regulated inform client) | D23: Compromised Plants | E23: Source | F23: Start Date | G23: End Date | H23: Submarket | I23: Current Volume (MWaverage) | J23: Price Updated (BRL/MWh) | K23: Accounting Position (Procurement /Supply) | L23: Indexed | M23: BRL Million | N23: BRL Million | O23: BRL Million | P23: BRL Million
B24: Eletronorte | C24: CCVE 004/2018 (Amazonas D) | D24: Tambaqui | E24: TERM | F24: 2021-07-01 | G24: 2025-05-18 | H24: N | I24: 60 | J24: 1049.7 | K24: Procurement | L24: IGP-M | M24: 140894.6553 | N24: 142119.1983 | O24: 138875.1867
C25: CCVE 003/2018 (Amazonas D) | D25: Jaraqui | E25: TERM | F25: 2021-07-01 | G25: 2025-05-18 | H25: N | I25: 60 | J25: 1051.29 | K25: Procurement | L25: IGP-M | M25: 140393.1149 | N25: 140904.6333 | O25: 138548.3911
C26: CCVE 002/2018 (Amazonas D) | D26: Manauara | E26: TERM | F26: 2021-07-01 | G26: 2025-05-18 | H26: N | I26: 60 | J26: 945.6 | K26: Procurement | L26: IGP-M | M26: 128313.8962 | N26: 127918.8588 | O26: 127833.712
C27: CCVE 001/2018 (Amazonas D) | D27: Ponta Negra | E27: TERM | F27: 2021-07-01 | G27: 2025-05-18 | H27: N | I27: 60 | J27: 964.2 | K27: Procurement | L27: IGP-M | M27: 128197.8305 | N27: 128357.2943 | O27: 128789.0641
C28: CCVE 005/2018 (Amazonas D) | D28: Cristiano Rocha | E28: TERM | F28: 2021-07-01 | G28: 2025-05-18 | H28: N | I28: 65 | J28: 981.88 | K28: Procurement | L28: IGP-M | M28: 142627.1728 | N28: 143887.5388 | O28: 143713.3636
C29: CCESI 001/2019 (Amazonas D - Sist. Isolated) | D29: Coari | E29: TERM | F29: 2021-07-01 | G29: 2030-11-30 | H29: N | I29: 12 | J29: 1029.12 | K29: Procurement | L29: IPCA | M29: 29004.61199 | N29: 29318.94039 | O29: 35068.46629
B32: ACR Contracts - Availability - Thermal
M33: 1Q24 | N33: 2Q24 | O33: 3Q24 | P33: 4Q24
B34: Eletrobras Company | C34: Auction (if Bilateral Contract Regulated inform client) | D34: Compromised Plants | E34: Source | F34: Start Date | G34: End Date | H34: Submarket | I34: Current Volume (MWaverage) | J34: Updated Fixed Revenue (BRL thousand/year) | K34: Accounting Position (Procurement /Supply) | L34: Indexed | M34: BRL Million | N34: BRL Million | O34: BRL Million | P34: BRL Million
B35: Eletronorte | C35: 20th New Energy Auction | D35: Mauá 3 | E35: TERM | F35: 2021-07-01 | G35: 2030-11-30 | H35: N | I35: 484.4 | J35: 1445433.23 | K35: Procurement | L35: IPCA | M35: 317710.2062 | N35: 311009.0551 | O35: 347617.6009
C36: 20th New Energy Auction | D36: Aparecida | E36: TERM | F36: 2021-07-01 | G36: 2030-11-30 | H36: N | I36: 145 | J36: 430217.38 | K36: Procurement | L36: IPCA | M36: 91654.27457 | N36: 96490.5915 | O36: 101618.0064
B37: Eletrobras Holding | C37: 5th New Energy Auction | D37: Santa Cruz Nova | E37: TERM | F37: 2012-01-01 | G37: 2026-12-31 | H37: SE/CO | I37: 245.7 | J37: 323284.7424 | K37: Procurement | L37: IPCA | M37: 82254.66492 | N37: 82405.08261 | O37: 81151.27568
B41: CVU and Thermal Inflexibility with Availability Contracts
B43: Eletrobras Company | C43: Plant | D43: Installed Capacity | E43: 1Q24 | G43: 2Q24 | I43: 3Q24 | K43: 4Q24
D44: (MW) | E44: Average inflexibility (MWavg) | F44: Average CVU (BRL/MWh) | G44: Average inflexibility (MWavg) | H44: Average CVU (BRL/MWh) | I44: Average inflexibility (MWavg) | J44: Average CVU (BRL/MWh) | K44: Average inflexibility (MWavg) | L44: Average CVU (BRL/MWh)
B45: Eletronorte | C45: TPP Mauá 3 | D45: 590.75 | E45: 252.12 | F45: 80.48 | G45: 252.1 | H45: 74.22 | I45: 252.1 | J45: 84.04
C46: TPP Aparecida | D46: 166 | E46: 72.5 | F46: 80.48 | G46: 72.5 | H46: 74.22 | I46: 72.5 | J46: 84.04
B47: Eletrobras Holding | C47: TPP Santa Cruz | D47: 500 | E47: 0 | F47: 145.39 | G47: 0 | H47: 128.9 | I47: 0 | J47: 154.7133333

Sheet ACR Commercialization O&M
B4: Eletrobras | C4: Total Eletrobras | D4: Unit | E4: 1Q24 | F4: 2Q24 | G4: 3Q24 | H4: 4Q24
C5: Physical Guarantee | D5: MWaverage | E5: 1416.1 | F5: 1416.1 | G5: 1416.1
C6: GAGO&M | D6: BRL million | E6: 61.44891814 | F6: 61.44891814 | G6: 61.47055531
C7: GAGImprovements | D7: BRL million | E7: 67.46750474 | F7: 67.4675047 | G7: 67.48406519
C8: CAIMI | D8: BRL million | E8: 7.6531002 | F8: 7.65310019 | G8: 7.65436532
C9: Adjustment by Unavailability | D9: BRL million | E9: 7.89293526 | F9: 7.89293526 | G9: 7.89293526
C10: R&D | D10: BRL million | E10: 2.24703423 | F10: 2.24703423 | G10: 2.24703423
C11: Other (Uses, Connections, Charges, TFSEE, Other Adjustments, etc.) | D11: BRL million | E11: 80.61494229 | F11: 80.61494229 | G11: 80.61494229
C12: CFURH | D12: BRL million | E12: 32.04879457 | F12: 28.25922411 | G12: 16.47407167
D13: BRL million | E13: 26.43749557 | F13: 25.75845868 | G13: 16.43121186
C14: TOTAL | D14: BRL million | E14: 285.810725 | F14: 281.3421176 | G14: 260.2691811
C16: Furnas | D16: Unit | E16: 1Q24 | F16: 2Q24 | G16: 3Q24 | H16: 4Q24
C17: Physical Guarantee | D17: MWaverage | E17: 375 | F17: 375 | G17: 375
C18: GAGO&M | D18: BRL million | E18: 15.3854359 | F18: 15.38543589 | G18: 15.38543589
C19: GAGImprovements | D19: BRL million | E19: 13.91512994 | F19: 13.91512993 | G19: 13.91512993
C20: CAIMI | D20: BRL million | E20: 1.99141444 | F20: 1.99141443 | G20: 1.99141443
C21: Adjustment by Unavailability | D21: BRL million | E21: 2.25302259 | F21: 2.25302259 | G21: 2.25302259
C22: R&D | D22: BRL million | E22: 0.53665683 | F22: 0.53665683 | G22: 0.53665683
C23: Other (Uses, Connections, Charges, TFSEE, Other Adjustments, etc.) | D23: BRL million | E23: 20.27544411 | F23: 20.27544411 | G23: 20.27544411
C24: CFURH | D24: BRL million | E24: 8.65183119 | F24: 7.01536045 | G24: 5.01320432
C25: PIS/COFINS | D25: BRL million | E25: 6.4223984 | F25: 6.18789862 | G25: 4.01565461
C26: TOTAL | D26: BRL million | E26: 69.4313334 | F26: 67.56036285 | G26: 63.38596271
C28: Luis Carlos Barreto (Estreito) | D28: Unit | E28: 1Q24 | F28: 2Q24 | G28: 3Q24 | H28: 4Q24
C29: Physical Guarantee | D29: MWaverage | E29: 298.32 | F29: 298.32 | G29: 298.32
C30: GAGO&M | D30: BRL million | E30: 12.61059591 | F30: 12.61059591 | G30: 12.6105959
C31: GAGImprovements | D31: BRL million | E31: 15.56656991 | F31: 15.5665699 | G31: 15.5665699
C32: CAIMI | D32: BRL million | E32: 1.71956016 | F32: 1.71956015 | G32: 1.71956016
C33: Adjustment by Unavailability | D33: BRL million | E33: 1.97318391 | F33: 1.97318391 | G33: 1.97318391
C34: R&D | D34: BRL million | E34: 0.52006287 | F34: 0.52006287 | G34: 0.52006287
C35: Other (Uses, Connections, Charges, TFSEE, Other Adjustments, etc.) | D35: BRL million | E35: 20.21334741 | F35: 20.21334741 | G35: 20.21334741
C36: CFURH | D36: BRL million | E36: 6.67706672 | F36: 5.70045526 | G36: 3.62644002
C37: PIS/COFINS | D37: BRL million | E37: 6.0423541 | F37: 5.88724227 | G37: 3.71227588
C38: TOTAL | D38: BRL million | E38: 65.32274099 | F38: 64.19101768 | G38: 59.94203605
C40: Porto Colômbia | D40: Unit | E40: 1Q24 | F40: 2Q24 | G40: 3Q24 | H40: 4Q24
C41: Physical Guarantee | D41: MWaverage | E41: 123.24 | F41: 123.24 | G41: 123.24
C42: GAGO&M | D42: BRL million | E42: 5.46653341 | F42: 5.46653341 | G42: 5.4665334
C43: GAGImprovements | D43: BRL million | E43: 5.91071698 | F43: 5.91071697 | G43: 5.91071699
C44: CAIMI | D44: BRL million | E44: 0.52405643 | F44: 0.52405644 | G44: 0.52405643
C45: Adjustment by Unavailability | D45: BRL million | E45: 0.1630479 | F45: 0.1630479 | G45: 0.1630479
C46: R&D | D46: BRL million | E46: 0.15130731 | F46: 0.15130731 | G46: 0.15130731
C47: Other (Uses, Connections, Charges, TFSEE, Other Adjustments, etc.) | D47: BRL million | E47: 3.09702159 | F47: 3.09702159 | G47: 3.09702159
C48: CFURH | D48: BRL million | E48: 2.82443011 | F48: 2.66654042 | G48: 1.48890509
C49: PIS/COFINS | D49: BRL million | E49: 1.84868728 | F49: 1.80744992 | G49: 1.17485866
C50: TOTAL | D50: BRL million | E50: 19.98580101 | F50: 19.78667396 | G50: 17.97644737
C52: Marimbondo | D52: Unit | E52: 1Q24 | F52: 2Q24 | G52: 3Q24 | H52: 4Q24
C53: Physical Guarantee | D53: MWaverage | E53: 413.22 | F53: 413.22 | G53: 413.22
C54: GAGO&M | D54: BRL million | E54: 16.90161972 | F54: 16.90161973 | G54: 16.90161974
C55: GAGImprovements | D55: BRL million | E55: 21.40314505 | F55: 21.40314504 | G55: 21.40314505
C56: CAIMI | D56: BRL million | E56: 2.35825393 | F56: 2.35825393 | G56: 2.35825393
C57: Adjustment by Unavailability | D57: BRL million | E57: 2.92367106 | F57: 2.92367106 | G57: 2.92367106
C58: R&D | D58: BRL million | E58: 0.71543259 | F58: 0.71543259 | G58: 0.71543259
C59: Other (Uses, Connections, Charges, TFSEE, Other Adjustments, etc.) | D59: BRL million | E59: 28.05992319 | F59: 28.05992319 | G59: 28.05992319
C60: CFURH | D60: BRL million | E60: 9.63863853 | F60: 7.82265922 | G60: 3.67270854
C61: PIS/COFINS | D61: BRL million | E61: 8.35819689 | F61: 8.08543744 | G61: 5.14481893
C62: TOTAL | D62: BRL million | E62: 90.35888096 | F62: 88.2701422 | G62: 81.17957303
C64: Funil | D64: Unit | E64: 1Q24 | F64: 2Q24 | G64: 3Q24 | H64: 4Q24
C65: Physical Guarantee | D65: MWaverage | E65: 61.44 | F65: 61.44 | G65: 61.44
C66: GAGO&M | D66: BRL million | E66: 3.92440609 | F66: 3.92440609 | G66: 3.92440608
C67: GAGImprovements | D67: BRL million | E67: 3.75606172 | F67: 3.75606173 | G67: 3.75606172
C68: CAIMI | D68: BRL million | E68: 0.35373808 | F68: 0.35373808 | G68: 0.3537381
C69: Adjustment by Unavailability | D69: BRL million | E69: 0.12131652 | F69: 0.12131652 | G69: 0.12131652
C70: R&D | D70: BRL million | E70: 0.09955212 | F70: 0.09955212 | G70: 0.09955212
C71: Other (Uses, Connections, Charges, TFSEE, Other Adjustments, etc.) | D71: BRL million | E71: 1.82295402 | F71: 1.82295402 | G71: 1.82295402
C72: CFURH | D72: BRL million | E72: 1.64839157 | F72: 1.81563659 | G72: 1.11009466
C73: PIS/COFINS | D73: BRL million | E73: 1.19525594 | F73: 1.18942419 | G73: 0.77745197
C74: TOTAL | D74: BRL million | E74: 12.92167606 | F74: 13.08308934 | G74: 11.96557519
C76: Corumbá I | D76: Unit | E76: 1Q24 | F76: 2Q24 | G76: 3Q24 | H76: 4Q24
C77: Physical Guarantee | D77: MWaverage | E77: 131.58 | F77: 131.58 | G77: 131.58
C78: GAGO&M | D78: BRL million | E78: 5.58772476 | F78: 5.58772475 | G78: 5.58772476
C79: GAGImprovements | D79: BRL million | E79: 5.7122576 | F79: 5.71225759 | G79: 5.71225759
C80: CAIMI | D80: BRL million | E80: 0.61412862 | F80: 0.61412863 | G80: 0.61412864
C81: Adjustment by Unavailability | D81: BRL million | E81: 0.45869328 | F81: 0.45869328 | G81: 0.45869328
C82: R&D | D82: BRL million | E82: 0.1921653 | F82: 0.1921653 | G82: 0.1921653
C83: Other (Uses, Connections, Charges, TFSEE, Other Adjustments, etc.) | D83: BRL million | E83: 6.86478555 | F83: 6.86478555 | G83: 6.86478555
C84: CFURH | D84: BRL million | E84: 2.47275825 | F84: 3.08526483 | G84: 1.46828768
C85: PIS/COFINS | D85: BRL million | E85: 2.23248786 | F85: 2.26109424 | G85: 1.39261854
C86: TOTAL | D86: BRL million | E86: 24.13500122 | F86: 24.77611417 | G86: 22.29066134
C88: Jaguari | D88: Unit | E88: 1Q24 | F88: 2Q24 | G88: 3Q24 | H88: 4Q24
C89: Physical Guarantee | D89: MWaverage | E89: 13.3 | F89: 13.3 | G89: 13.3
C90: GAGO&M | D90: BRL million | E90: 1.57260235 | F90: 1.57260236 | G90: 1.59423954
C91: GAGImprovements | D91: BRL million | E91: 1.20362354 | F91: 1.20362354 | G91: 1.22018401
C92: CAIMI | D92: BRL million | E92: 0.09194854 | F92: 0.09194853 | G92: 0.09321363
C93: Adjustment by Unavailability | D93: BRL million | E93: 0 | F93: 0 | G93: 0
C94: R&D | D94: BRL million | E94: 0.03185721 | F94: 0.03185721 | G94: 0.03185721
C95: Other (Uses, Connections, Charges, TFSEE, Other Adjustments, etc.) | D95: BRL million | E95: 0.28146642 | F95: 0.28146642 | G95: 0.28146642
C96: CFURH | D96: BRL million | E96: 0.1356782 | F96: 0.15330734 | G96: 0.09443136
C97: PIS/COFINS | D97: BRL million | E97: 0.3381151 | F97: 0.339912 | G97: 0.21353327
C98: TOTAL | D98: BRL million | E98: 3.65529136 | F98: 3.6747174 | G98: 3.52892544
B101: Eletronorte | C101: Total Eletronorte | D101: Unit | E101: 1Q24 | F101: 2Q24 | G101: 3Q24 | H101: 4Q24
C102: Physical Guarantee | D102: MWaverage | E102: 37.32 | F102: 37.32 | G102: 37.32
C103: GAGO&M | D103: BRL million | E103: 2.05160383 | F103: 2.05160383 | G103: 2.12389945
C104: GAGImprovements | D104: BRL million | E104: 1.82570602 | F104: 1.825706027 | G104: 1.855726825
C105: CAIMI | D105: BRL million | E105: 0.12773876 | F105: 0.12773876 | G105: 0.13313911
C106: Adjustment by Unavailability | D106: BRL million | E106: 0.23349435 | F106: 0.23349435 | G106: 0.2628057
C107: R&D | D107: BRL million | E107: 0.05195628 | F107: 0.05195628 | G107: 0.05334039
C108: Other (Uses, Connections, Charges, TFSEE, Other Adjustments, etc.) | D108: BRL million | E108: 0.94947807 | F108: 0.94947807 | G108: 0.95338446
C109: CFURH | D109: BRL million | E109: 0.85766646 | F109: 0.88999859 | G109: 0.610266354
C110: PIS/COFINS | D110: BRL million | E110: 0.6215222 | F110: 0.62481774 | G110: 0.57417509
C111: TOTAL | D111: BRL million | E111: 6.71916597 | F111: 6.754793647 | G111: 6.566737379
C113: Coaracy Nunes | D113: Unit | E113: 1Q24 | F113: 2Q24 | G113: 3Q24 | H113: 4Q24
C114: Physical Guarantee | D114: MWaverage | E114: 37.32 | F114: 37.32 | G114: 37.32
C115: GAGO&M | D115: BRL million | E115: 2.05160383 | F115: 2.05160383 | G115: 2.12389945
C116: GAGImprovements | D116: BRL million | E116: 1.82570602 | F116: 1.825706027 | G116: 1.855726825
C117: CAIMI | D117: BRL million | E117: 0.12773876 | F117: 0.12773876 | G117: 0.13313911
C118: Adjustment by Unavailability | D118: BRL million | E118: 0.23349435 | F118: 0.23349435 | G118: 0.2628057
C119: R&D | D119: BRL million | E119: 0.05195628 | F119: 0.05195628 | G119: 0.05334039
C120: Other (Uses, Connections, Charges, TFSEE, Other Adjustments, etc.) | D120: BRL million | E120: 0.94947807 | F120: 0.94947807 | G120: 0.95338446
C121: CFURH | D121: BRL million | E121: 0.85766646 | F121: 0.88999859 | G121: 0.610266354
C122: PIS/COFINS | D122: BRL million | E122: 0.6215222 | F122: 0.62481774 | G122: 0.57417509
C123: TOTAL | D123: BRL million | E123: 6.71916597 | F123: 6.754793647 | G123: 6.566737379
B126: Chesf | C126: Total Chesf | D126: Unit | E126: 1Q24 | F126: 2Q24 | G126: 3Q24 | H126: 4Q24
C127: Physical Guarantee | D127: MWaverage | E127: 2498.55 | F127: 2498.55 | G127: 2498.55
C128: GAGO&M | D128: BRL million | E128: 93.19040396 | F128: 93.19040395 | G128: 96.47430274
C129: GAGImprovements | D129: BRL million | E129: 125.1570199 | F129: 125.1570199 | G129: 123.6505972
C130: CAIMI | D130: BRL million | E130: 14.74742527 | F130: 14.74742529 | G130: 15.37089619
C131: Adjustment by Unavailability | D131: BRL million | E131: 22.40946693 | F131: 22.40946693 | G131: 21.06706653
C132: R&D | D132: BRL million | E132: 4.19423298 | F132: 4.19423298 | G132: 4.263178093
C133: Other (Uses, Connections, Charges, TFSEE, Other Adjustments, etc.) | D133: BRL million | E133: 164.960728 | F133: 164.960728 | G133: 171.1889251
C134: CFURH | D134: BRL million | E134: 45.11799522 | F134: 49.82318385 | G134: 45.49725294
C135: PIS/COFINS | D135: BRL million | E135: 47.88363369 | F135: 47.72729419 | G135: 46.65810871
C136: TOTAL | D136: BRL million | E136: 517.660906 | F136: 522.2097551 | G136: 524.1703275
C138: Funil | D138: Unit | E138: 1Q24 | F138: 2Q24 | G138: 3Q24 | H138: 4Q24
C139: Physical Guarantee | D139: MWaverage | E139: 2.82 | F139: 2.82 | G139: 2.82
C140: GAGO&M | D140: BRL million | E140: 0.74250176 | F140: 0.74250176 | G140: 0.768666485
C141: GAGImprovements | D141: BRL million | E141: 0.81271522 | F141: 0.81271521 | G141: 0.7789777874
C142: CAIMI | D142: BRL million | E142: 0.048045 | F142: 0.048045 | G142: 0.050076178
C143: Adjustment by Unavailability | D143: BRL million | E143: -0.16032621 | F143: -0.16032621 | G143: -0.159772045
C144: R&D | D144: BRL million | E144: 0.02488989 | F144: 0.02488989 | G144: 0.02437434435
C145: Other (Uses, Connections, Charges, TFSEE, Other Adjustments, etc.) | D145: BRL million | E145: 1.03822254 | F145: 1.03822254 | G145: 0.9936722056
C146: CFURH | D146: BRL million | E146: 0.03690324 | F146: 0 | G146: 0.02087069
C147: PIS/COFINS | D147: BRL million | E147: 0.25919796 | F147: 0.25543656 | G147: 0.21795128
C148: TOTAL | D148: BRL million | E148: 2.8021494 | F148: 2.76148475 | G148: 2.694816925
C150: Complexo Paulo Afonso | D150: Unit | E150: 1Q24 | F150: 2Q24 | G150: 3Q24 | H150: 4Q24
C151: Physical Guarantee | D151: MWaverage | E151: 973.29 | F151: 973.29 | G151: 973.29
C152: GAGO&M | D152: BRL million | E152: 46.93360821 | F152: 46.93360821 | G152: 48.58748256
C153: GAGImprovements | D153: BRL million | E153: 67.06861804 | F153: 67.06861804 | G153: 64.75224293
C154: CAIMI | D154: BRL million | E154: 6.85378087 | F154: 6.85378087 | G154: 7.143535381
C155: Adjustment by Unavailability | D155: BRL million | E155: 9.88602138 | F155: 9.88602138 | G155: 8.000088521
C156: R&D | D156: BRL million | E156: 2.07238149 | F156: 2.07238149 | G156: 2.071283311
C157: Other (Uses, Connections, Charges, TFSEE, Other Adjustments, etc.) | D157: BRL million | E157: 76.85712825 | F157: 76.85712825 | G157: 79.22141906
C158: CFURH | D158: BRL million | E158: 16.67503715 | F158: 18.36807221 | G158: 16.76742644
C159: PIS/COFINS | D159: BRL million | E159: 23.07113865 | F159: 23.00826335 | G159: 22.32108155
C160: TOTAL | D160: BRL million | E160: 249.417714 | F160: 251.0478738 | G160: 248.8645597
C162: Pedra | D162: Unit | E162: 1Q24 | F162: 2Q24 | G162: 3Q24 | H162: 4Q24
C163: Physical Guarantee | D163: MWaverage | E163: 1.02 | F163: 1.02 | G163: 1.02
C164: GAGO&M | D164: BRL million | E164: 0.4564088 | F164: 0.4564088 | G164: 0.4724920158
C165: GAGImprovements | D165: BRL million | E165: 0.42683444 | F165: 0.42683444 | G165: 0.4412392149
C166: CAIMI | D166: BRL million | E166: 0.03204121 | F166: 0.03204122 | G166: 0.03339580311
C167: Adjustment by Unavailability | D167: BRL million | E167: -0.09152844 | F167: -0.09152844 | G167: -0.09471270339
C168: R&D | D168: BRL million | E168: 0.01177764 | F168: 0.01177764 | G168: 0.01192912985
C169: Other (Uses, Connections, Charges, TFSEE, Other Adjustments, etc.) | D169: BRL million | E169: 0.35360676 | F169: 0.35360676 | G169: 0.3409475351
C170: CFURH | D170: BRL million | E170: 0.07299032 | F170: 0.06919887 | G170: 0.03708873
C171: PIS/COFINS | D171: BRL million | E171: 0.12864776 | F171: 0.12774959 | G171: 0.12507098
C172: TOTAL | D172: BRL million | E172: 1.39077849 | F172: 1.38608888 | G172: 1.367450705
C174: Luiz Gonzaga | D174: Unit | E174: 1Q24 | F174: 2Q24 | G174: 3Q24 | H174: 4Q24
C175: Physical Guarantee | D175: MWaverage | E175: 426.56 | F175: 426.56 | G175: 426.56
C176: GAGO&M | D176: BRL million | E176: 15.79095917 | F176: 15.79095916 | G176: 16.34741035
C177: GAGImprovements | D177: BRL million | E177: 19.32418799 | F177: 19.32418798 | G177: 19.67434243
C178: CAIMI | D178: BRL million | E178: 2.36957935 | F178: 2.36957936 | G178: 2.469757099
C179: Adjustment by Unavailability | D179: BRL million | E179: 4.65560304 | F179: 4.65560304 | G179: 4.688265904
C180: R&D | D180: BRL million | E180: 0.68776869 | F180: 0.68776869 | G180: 0.7108758698
C181: Other (Uses, Connections, Charges, TFSEE, Other Adjustments, etc.) | D181: BRL million | E181: 26.7900753 | F181: 26.7900753 | G181: 28.11234017
C182: CFURH | D182: BRL million | E182: 7.45956179 | F182: 8.38772302 | G182: 7.90322612
C183: PIS/COFINS | D183: BRL million | E183: 7.85640913 | F183: 7.84206851 | G183: 7.81180417
C184: TOTAL | D184: BRL million | E184: 84.93414446 | F184: 85.84796506 | G184: 87.71802212
C186: Boa Esperança | D186: Unit | E186: 1Q24 | F186: 2Q24 | G186: 3Q24 | H186: 4Q24
C187: Physical Guarantee | D187: MWaverage | E187: 79.91 | F187: 79.91 | G187: 79.91
C188: GAGO&M | D188: BRL million | E188: 4.47043224 | F188: 4.47043224 | G188: 4.627963973
C189: GAGImprovements | D189: BRL million | E189: 3.76216092 | F189: 3.76216092 | G189: 3.886475626
C190: CAIMI | D190: BRL million | E190: 0.38003594 | F190: 0.38003593 | G190: 0.396102568
C191: Adjustment by Unavailability | D191: BRL million | E191: 0.71398695 | F191: 0.71398695 | G191: 0.7342286746
C192: R&D | D192: BRL million | E192: 0.1342821 | F192: 0.1342821 | G192: 0.14070674
C193: Other (Uses, Connections, Charges, TFSEE, Other Adjustments, etc.) | D193: BRL million | E193: 4.10224098 | F193: 4.10224098 | G193: 4.432010128
C194: CFURH | D194: BRL million | E194: 1.89960601 | F194: 2.19619697 | G194: 1.77458062
C195: PIS/COFINS | D195: BRL million | E195: 1.57609216 | F195: 1.58233471 | G195: 1.55529466
C196: TOTAL | D196: BRL million | E196: 17.0388373 | F196: 17.3416708 | G196: 17.54736299
C198: Xingó | D198: Unit | E198: 1Q24 | F198: 2Q24 | G198: 3Q24 | H198: 4Q24
C199: Physical Guarantee | D199: MWaverage | E199: 1014.95 | F199: 1014.95 | G199: 1014.95
C200: GAGO&M | D200: BRL million | E200: 24.79649378 | F200: 24.79649378 | G200: 25.67028736
C201: GAGImprovements | D201: BRL million | E201: 33.76250332 | F201: 33.76250332 | G201: 34.11731921
C202: CAIMI | D202: BRL million | E202: 5.0639429 | F202: 5.06394291 | G202: 5.278029161
C203: Adjustment by Unavailability | D203: BRL million | E203: 7.40571021 | F203: 7.40571021 | G203: 7.898968177
C204: R&D | D204: BRL million | E204: 1.26313317 | F204: 1.26313317 | G204: 1.304008698
C205: Other (Uses, Connections, Charges, TFSEE, Other Adjustments, etc.) | D205: BRL million | E205: 55.81945416 | F205: 55.81945416 | G205: 58.08853602
C206: CFURH | D206: BRL million | E206: 18.97389671 | F206: 20.80199278 | G206: 18.99406034
C207: PIS/COFINS | D207: BRL million | E207: 14.99214803 | F207: 14.91144147 | G207: 14.62690607
C208: TOTAL | D208: BRL million | E208: 162.0772823 | F208: 163.8246718 | G208: 165.978115

Sheet Energy Sold
B4: II.1.3.Sold Energy
B6: II.1.3.1 Energy Sold by projects not renewed by Law 12.783/13 and Law 13.182/15
B7: Eletrobras Company | C7: Buyer | D7: 1Q24 | F7: 2Q24 | H7: 3Q24 | J7: 4Q24
D8: BRL Million | E8: MWh | F8: BRL Million | G8: MWh | H8: BRL Million | I8: MWh | J8: BRL Million | K8: MWh
B9: Eletronorte (1) | C9: Eletrobras System | D9: 48.14828364 | E9: 328159.7282 | F9: 50.16528906 | G9: 347815.7282 | H9: 104.5587147 | I9: 752125.879
C10: Other | D10: 2228.605066 | E10: 8716808.397 | F10: 2193.766964 | G10: 8267863.633 | H10: 3504.517497 | I10: 12209051.12
B11: Chesf | C11: Eletrobras System | D11: 3.3148752 | E11: 43680 | F11: 3.3148752 | G11: 43680 | H11: 7.8801024 | I11: 62160
C12: Other | D12: 156.9931643 | E12: 1386770.732 | F12: 161.3033981 | G12: 1395934.295 | H12: 181.909798 | I12: 1454947.457
B13: Eletrobras Holding (2) | C13: Eletrobras System | D13: 45.55706827 | E13: 260377.135 | F13: 44.30630299 | G13: 240721.135 | H13: 62.92868618 | I13: 363029.866
C14: Other | D14: 1993.244405 | E14: 10812377.07 | F14: 2127.542897 | G14: 13022917.54 | H14: 2403.63639 | I14: 13451556.77
B15: CGT Eletrosul | C15: Eletrobras System | D15: 3.3148752 | E15: 44949.77 | F15: 3.3148752 | G15: 44476.227 | H15: 11.9466744 | I15: 144217.118
C16: Other | D16: 194.2697307 | E16: 1071766.561 | F16: 192.1037467 | G16: 1065458.607 | H16: 197.1881444 | I16: 1071372.643
B18: Notes:
B19: (1) Includes the SPE consolidated by Eletronorte: HPPs Teles Pires (from 4Q24)
B20: (2) Includes SPEs previously consolidated by Furnas: HPP Santo Antônio (from 3Q22), HPPs Baguari and Retiro Baixo (from 4Q24)
B23: II.1.3.2 Energy Sold by the renewed projects under Law 12.783/13 – O&M Regime
B24: Eletrobras Company | C24: Buyer | D24: 1Q24 | F24: 2Q24 | H24: 3Q24 | J24: 4Q24
D25: BRL Million | E25: MWh | F25: BRL Million | G25: MWh | H25: BRL Million | I25: MWh | J25: BRL Million | K25: MWh
B26: Eletronorte | C26: Eletrobras System
C27: Other | D27: 6.719165941 | E27: 81506.88 | F27: 6.892385871 | G27: 81506.88 | H27: 6.566737379 | I27: 82402.56
B28: Chesf | C28: Eletrobras System
C29: Other | D29: 517.6609058 | E29: 5456804.808 | F29: 522.2097551 | G29: 5456804.808 | H29: 524.1703275 | I29: 5516769.696
B30: Eletrobras Holding | C30: Eletrobras System
C31: Other | D31: 288.6000843 | E31: 3091714.08 | F31: 284.1157179 | G31: 3091714.08 | H31: 260.2691811 | I31: 3125688.96
B32: CGT Eletrosul | C32: Eletrobras System | D32: 0 | E32: 0
C33: Other | D33: 0 | E33: 0
B37: II.1.3.2 Energy Sold by renewed projects under Law 13,182
B38: Eletrobras Company | C38: Buyer | D38: 1Q24 | F38: 2Q24 | H38: 3Q24 | J38: 4Q24
D39: BRL Million | E39: MWh | F39: BRL Million | G39: MWh | H39: BRL Million | I39: MWh | J39: BRL Million | K39: MWh
B40: Eletronorte | C40: Eletrobras System | D40: 0 | E40: 0 | F40: 0 | G40: 0
C41: Other | D41: 0 | E41: 0 | F41: 0 | G41: 0
B42: Chesf | C42: Eletrobras System
C43: Other | D43: 40.22616603 | E43: 211174.709 | F43: 38.13953874 | G43: 192719.871 | H43: 38.5014324 | I43: 195901.37
B44: Eletrobras Holding | C44: Eletrobras System
C45: Other | D45: 129.4773745 | E45: 649593.198 | F45: 114.237194 | G45: 577593.198 | H45: 64.8622949 | I45: 328290.048
B46: CGT Eletrosul | C46: Eletrobras System | D46: 0 | E46: 0 | F46: 0 | G46: 0
C47: Other | D47: 0 | E47: 0 | F47: 0 | G47: 0

Sheet Energy Balance
B4: Energy Balance
B6: Balance of Energy (MWavg) 2Q24 | E6: 2024 | F6: 2025 | H6: 2026 | J6: 2027
B7: Features with no impact on balance sheet | E7: 1192 | F7: 0 | H7: 0 | J7: 0
B9: Resources (A) | E9: 14518 | F9: 15390.6556 | H9: 16580.98485 | J9: 17677.93898
B10: Own Resources | E10: 12899 | F10: 14184.8631 | H10: 15449.47865 | J10: 16627.81291
B11: Hydraulic | E11: 12708 | F11: 13934.71552 | H11: 15199.47365 | J11: 16377.95048
B12: Wind | E12: 191 | F12: 250.1475847 | H12: 250.0050059 | J12: 249.8624272
B13: Purchase of Energy | E13: 1620 | F13: 1205.792499 | H13: 1131.506198 | J13: 1050.126066
B14: Limit => | F14: Lower | G14: Upper | H14: Lower | I14: Upper | J14: Lower | K14: Upper
B15: Sales (B) | E15: 12847.76401 | F15: 9598.658775 | G15: 12098.65877 | H15: 7599 | I15: 9099 | J15: 5989.765 | K15: 7239.765
B16: ACR – Except quotes | E16: 3637.864424 | F16: 3098.658775 | H16: 3099 | J16: 2989.765
B17: ACL – Bilateral Contracts + MCP performed (range) | E17: 9209.899581 | F17: 6500 | G17: 9000 | H17: 4500 | I17: 6000 | J17: 3000 | K17: 4250
B18: Average Prices Contracts performed
B19: Limit => | F19: Lower | G19: Upper | H19: Lower | I19: Upper | J19: Lower | K19: Upper
B20: Average Price of Sale Contracts (ACR and ACL - BRL/MWh) | E20: 178.7739906 | F20: 170 | G20: 180 | H20: 180 | I20: 200 | J20: 185 | K20: 215
B21: Balance (A - B) | E21: 1670.504984 | F21: 5791.996824 | G21: 3291.996824 | H21: 8981.984849 | I21: 7481.984849 | J21: 11688.17398 | K21: 10438.17398
B22: Balance considering hedge estimate (8) | E22: 145.5770561 | F22: 3255.878601 | G22: 755.8786005 | H22: 6215.680646 | I22: 4715.680646 | J22: 8707.386989 | K22: 7457.386989
B23: Non-contracted Energy considering | E23: 0.009266363054 | F23: 0.2115490519 | G23: 0.04911282665 | H23: 0.374868001 | I23: 0.2844029283 | J23: 0.4925566832 | K23: 0.4218470829
B24: hedge estimate
B26: Contracts entered into as of 09/30/2024.
B27: It should be noted that the balance sheet takes into account the SPEs consolidated by Furnas: HPP Santo Antônio (as of 3Q22), HPPs Baguari and Retiro Baixo (as of 4Q23), whether in resources, sales or average prices. Likewise, the SPE consolidated by Eletronorte is being considered: HPP Teles Pires (as of 4Q23).
A28: (1) | B28: The balance sheet does not include, whether in resources, requirements(sales) or average prices, the PIEs contracts arising from the process of unbundling of Amazonas Distribuidora, the contracts of thermal plants by availability and the Physical Guarantee Quotas. These resources are presented in order to compose the total resources considered.
A29: (2) | B29: The Own Resources include the Decoupling plants (new PIEs) and the New Grants (Sobradinho, Itumbiara, Tucuruí, Curuá-Una and Mascarenhas de Moraes). For hydroelectric projects, an estimate of GFIS2 was considered, that is, the Physical Guarantee considering the Adjustment Factors due to Internal Losses, Losses in the Basic Network and Availability and adjustments due to the particularities of the portfolio.
A30: (3) | B30: The revised Physical Guarantee values are considered as defined in Ordinance No. 709/GM/MME, of November 30, 2022
A31: (4) | B31: With the decoupling, the plants currently under quota regime now have a new concession under the Independent Energy Producer - PIE regime, gradually occurring in a period of 5 years from 2023. The Physical Guarantee values were defined in Ordinance GM/MME No. 544/21.
A32: (5) | B32: Considering the new concession grants from 2023 for the Sobradinho, Itumbiara, Tucuruí, Curuá-Una and Mascarenhas de Moraes plants, whose Physical Guarantee values were defined in GM/MME Ordinance No. 544/21.
B35: Physical Guarantee Quotas of Hydroelectric Plants (MWavg) | D35: 2024 | E35: 2025 | F35: 2026 | G35: 2027 | H35: 2028
B36: Physical Guarantee Quotas (6) (7) | D36: 3938.82 | E36: 2625.88 | F36: 1312.94 | G36: 0 | H36: 0
A37: (6) | B37: The Physical Guarantee of the HPP Jaguari, of 12.7 MWavg, whose concession is under the provisional administration of Furnas, is not included here.
A38: (7) | B38: Decoupling occurs gradually over a period of 5 years from 2023. The Physical Guarantee values considered from 2023 were those defined in Ordinance GM/MME No. 544/21.
A39: (8) | B39: The values present an estimate of the non-contracted energy. For the year 2024, the estimated value of 88.2% was considered. For the other years, a historical average value of GSF, from 2018 to 2023, of 81.8% was considered. Source: CCEE, obtained on the CCEE website, at the following link: https://www.ccee.org.br/dados-e-analises/dados-geracao, in the MRE option on the panel. It is important to note that this amount is merely an estimate based on events that have occurred in the past. The graph with the historical GSF values is shown below.
B49: Source: CCEE

Sheet Energy purchased for resale
B4: II.1.4 Energy Purchased for Resale
B5: Eletrobras Company | C5: Buyer | D5: 1Q24 | F5: 2Q24 | H5: 3Q24 | J5: 4Q24
D6: BRL Million | E6: MWh | F6: BRL Million | G6: MWh | H6: BRL Million | I6: MWh | J6: BRL Million | K6: MWh
B7: Eletronorte (1) | C7: Eletrobras System | D7: 12.0609216 | E7: 65520 | F7: 12.0609216 | G7: 65520 | H7: 12.1934592 | I7: 66240
C8: Other | D8: 301.7167243 | E8: 717040.292 | F8: 301.9424897 | G8: 719939.723 | H8: 302.2280273 | I8: 726532.29
B9: Chesf | C9: Eletrobras System | D9: 4.645368 | E9: 43680 | F9: 4.645368 | G9: 43680 | H9: 5.996556 | I9: 55320
C10: Other | D10: 68.44592769 | E10: 245969.333 | F10: 59.6424013 | G10: 214723.454 | H10: 73.66895943 | I10: 264468.331
B11: Eletrobras Holding (2) | C11: Eletrobras System | D11: 53.65853765 | E11: 339280.9992 | F11: 54.3428027 | G11: 342135.7992 | H11: 118.6722971 | I11: 816072.8046
C12: Other | D12: 495.0747659 | E12: 2221459.191 | F12: 477.7207391 | G12: 2168421.194 | H12: 600.6410419 | I12: 2886863.209
B13: CGT Eletrosul | C13: Eletrobras System | D13: 29.97027496 | E13: 227415.863 | F13: 30.36182009 | G13: 227415.863 | H13: 49.80235314 | I13: 375882.938
C14: Other | D14: 93.66311048 | E14: 354178.2098 | F14: 91.22441864 | G14: 346878.734 | H14: 98.43239046 | I14: 367665.861
B16: Note: Gross values. The accounting publishes net amounts of recoverable PIS/COFINS.
B17: Note: It includes only purchase contracts, not considering the negative values of the CCEE accounting.
B18: (1) Includes the SPE consolidated by Eletronorte: HPP Teles Pires (as of 4Q23).
B19: (2) Includes SPEs previously consolidated by Furnas: HPP Santo Antônio (from 3Q22), HPPs Baguari and Retiro Baixo (from 4Q23)

Sheet Average Fee
B3: II.1.5 Average fee – BRL/MWh
B5: II.1.5.1 Projects not renewed under Law No. 12.783/13
B6: Eletrobras Company | C6: 1Q24 | D6: 2Q24 | E6: 3Q24 | F6: 4Q24 | G6: 2024
B7: Eletronorte (3) | C7: 251.7149114 | D7: 260.4475119 | E7: 278.4528142
B8: Chesf (1) | C8: 122.1558831 | D8: 124.2134216 | E8: 133.2692098
B9: Eletrobras Holding (1) (2) | C9: 184.9696799 | D9: 165.1649517 | E9: 178.9895668
B10: CGT Eletrosul | C10: 176.9335689 | D10: 176.0631489 | E10: 172.0439128
B12: (1) Includes projects affected by Law 13,182.
B13: - Selling prices calculated from the total revenue divided by the energy sold.
B14: - Purchase prices calculated from the total expenditure divided by the energy purchased.
B15: - Does not include projects not renewed by Law 12,783/13.
B16: (2) Includes SPEs previously consolidated by Furnas: HPP Santo Antônio (from 3Q22), HPPs Baguari and Retiro Baixo (from 4Q23).
B17: (3) Includes the SPE consolidated by Eletronorte: HPP Teles Pires (as of 4Q23).
B20: II.1.5.2 Projects renewed under the terms of Law No. 12,783 – O&M Regime
B21: Eletrobras Company | C21: 1Q24 | D21: 2Q24 | E21: 3Q24 | F21: 4Q24 | G21: 2024
B22: Eletronorte | C22: 82.4367948 | D22: 84.56201331 | E22: 79.69093896
B23: Chesf | C23: 94.86520483 | D23: 95.69881523 | E23: 95.01399486
B24: Eletrobras Holding | C24: 93.3463046 | D24: 91.89585794 | E24: 83.26778015
B25: CGT Eletrosul | C25: -
B27: Note: Estimated rates considering the ratio between the Total Revenue in the period and the Physical Guarantee in the period (MWh).

Sheet Summary of Transmission Lines
B2: III.1.1 Extension of Transmission Lines - Projects not renewed under Law 12,783/13 –km
B3: Eletrobras Company | C3: 765 KV | D3: 750 KV | E3: 600 KV | F3: 525 KV | G3: 500 KV | H3: 440 KV | I3: 345 KV | J3: 230 KV | K3: 138 KV | L3: <138 KV | M3: Total
B4: Eletronorte | C4: 0 | D4: 0 | E4: 0 | F4: 0 | G4: 0 | H4: 0 | I4: 0 | J4: 1735.2 | K4: 0 | L4: 111 | M4: 1846.2
B5: Chesf | C5: 0 | D5: 0 | E5: 0 | F5: 0 | G5: 255.97 | H5: 0 | I5: 0 | J5: 2359.82 | K5: 0 | L5: 0 | M5: 2615.79
B6: Eletrobras Holding * | C6: 0 | D6: 0 | E6: 0 | F6: 0 | G6: 1263.074 | H6: 0 | I6: 173.5 | J6: 345.695 | K6: 0 | L6: 0 | M6: 1782.269
B7: CGT Eletrosul | C7: 0 | D7: 0 | E7: 0 | F7: 1971.2 | G7: 0 | H7: 0 | I7: 0 | J7: 1070.7 | K7: 0 | L7: 0 | M7: 3041.9
B8: Total | C8: 0 | D8: 0 | E8: 0 | F8: =SUM(F4:F7) -> 1971.2 | G8: =SUM(G4:G7) -> 1519.044 | H8: =SUM(H4:H7) -> 0 | I8: 173.5 | J8: 5511.415 | K8: 0 | L8: 111 | M8: 9286.159
B10: III.1.2 Extension of Transmission Lines – Projects renewed pursuant to Law 12.783/13 - km
B11: Eletrobras Company | C11: 765 KV | D11: 750 KV | E11: 600 KV | F11: 525 KV | G11: 500 KV | H11: 440 KV | I11: 345 KV | J11: 230 KV | K11: 138 KV | L11: <138 KV | M11: Total
B12: Eletronorte | C12: 0 | D12: 0 | E12: 0 | F12: 0 | G12: 3236.46 | H12: 0 | I12: 0 | J12: 5436.47 | K12: 222.17 | L12: 2.3 | M12: 8897.4
B13: Chesf | C13: 0 | D13: 0 | E13: 0 | F13: 0 | G13: 5436.137 | H13: 0 | I13: 0 | J13: 13270.292 | K13: 368.6 | L13: 173.583 | M13: 19248.612
B14: Eletrobras Holding * | C14: 2711.2 | D14: 0 | E14: 3227.8 | F14: 0 | G14: 4056.2 | H14: 0 | I14: 6285 | J14: 2047.5 | K14: 1338.4 | L14: 162.8 | M14: 19828.9
B15: CGT Eletrosul | C15: 0 | D15: 0 | E15: 0 | F15: 2760.9 | G15: 0 | H15: 0 | I15: 0 | J15: 4950.68 | K15: 1020.1 | L15: 0 | M15: 8731.68
B16: Total | C16: =SUM(C12:C15) -> 2711.2 | D16: =SUM(D12:D15) -> 0 | E16: 3227.8 | F16: 2760.9 | G16: 12728.797 | H16: 0 | I16: 6285 | J16: 25704.942 | K16: 2949.27 | L16: 338.683 | M16: 56706.592
B18: III.1.3 Other - lines without RAP defined in REH - km
B19: Eletrobras Company | C19: 765 KV | D19: 750 KV | E19: 600 KV | F19: 525 KV | G19: 500 KV | H19: 440 KV | I19: 345 KV | J19: 230 KV | K19: 138 KV | L19: <138 KV | M19: Total
B20: Eletronorte | C20: 0 | D20: 0 | E20: 0 | F20: 0 | G20: 10.71 | H20: 0 | I20: 0 | J20: 2.85 | K20: 218.086 | L20: 2.8 | M20: =SUM(C20:L20) -> 234.446
B21: Chesf | C21: 0 | D21: 0 | E21: 0 | F21: 0 | G21: 0 | H21: 0 | I21: 0 | J21: 75.7 | K21: 93.8 | L21: 21.3 | M21: =SUM(C21:L21) -> 190.8
B22: Eletrobras Holding * | C22: 0 | D22: 0 | E22: 0 | F22: 0 | G22: 0 | H22: 0 | I22: 0 | J22: 67.3 | K22: 415.7 | L22: 0 | M22: =SUM(C22:L22) -> 483
B23: CGT Eletrosul | C23: 0 | D23: 0 | E23: 0 | F23: 59.3 | G23: 0 | H23: 0 | I23: 0 | J23: 45.91 | K23: 53.4 | L23: 89 | M23: =SUM(C23:L23) -> 247.61
B24: Total | C24: 0 | D24: 0 | E24: 0 | F24: 59.3 | G24: 10.71 | H24: 0 | I24: 0 | J24: =SUM(J20:J23) -> 191.76 | K24: =SUM(K20:K23) -> 780.986 | L24: =SUM(L20:L23) -> 113.1 | M24: =SUM(M20:M23) -> 1155.856
B26: I.2 Transmission Lines - Km
B27: Company | C27: Bidding Agreements (a) | D27: Renewed Contracts (b) | E27: Other Contracts (c) | F27: SPEs (d) | G27: Total
B28: Chesf | C28: 2615.79 | D28: 19248.612 | E28: 190.8 | F28: 1830.50971 | G28: =SUM(C28:F28) -> 23885.71171
B29: Eletronorte | C29: 1846.2 | D29: 8897.4 | E29: 234.446 | F29: 1072.64286 | G29: =SUM(C29:F29) -> 12050.68886
B30: CGT Eletrosul | C30: 3041.9 | D30: 8731.68 | E30: 247.61 | F30: 4.59792 | G30: =SUM(C30:F30) -> 12025.78792
B31: Eletrobras Holding * | C31: =M6 -> 1782.269 | D31: 19828.9 | E31: 483 | F31: 3901.839654 | G31: =SUM(C31:F31) -> 25996.00865
B32: Total | C32: =SUM(C28:C31) -> 9286.159 | D32: =SUM(D28:D31) -> 56706.592 | E32: =SUM(E28:E31) -> 1155.856 | F32: =SUM(F28:F31) -> 6809.590144 | G32: =SUM(G28:G31) -> 73958.19714
B36: Company | C36: Corporate voltage ≥ 230 KV | D36: Corporate voltage ≤ 230 KV | E36: Total Corporate | F36: SPE voltage ≥ 230 KV | G36: SPE voltage ≤ 230 KV | H36: TOTAL SPE | I36: Corporate + SPE
B37: Chesf | C37: 21397.919 | D37: =E37-C37 -> 657.283 | E37: 22055.202 | F37: 1830.50971 | G37: =H37-F37 -> 0 | H37: 1830.50971 | I37: 23885.71171
B38: Eletronorte | C38: 10421.69 | D38: =E38-C38 -> 556.356 | E38: 10978.046 | F38: 1072.64286 | G38: =H38-F38 -> 0 | H38: 1072.64286 | I38: 12050.68886
B39: CGT Eletrosul | C39: 10858.69 | D39: =E39-C39 -> 1162.5 | E39: 12021.19 | F39: 4.59792 | G39: =H39-F39 -> 0 | H39: 4.59792 | I39: 12025.78792
B40: Eletrobras Holding * | C40: =SUM(C6:J6,C14:J14,C22:J22) -> 20177.269 | D40: =SUM(K6:L6,K14:L14,K22:L22) -> 1916.9 | E40: =C40+D40 -> 22094.169 | F40: 3663.758226 | G40: 238.081428 | H40: 3901.839654 | I40: =E40+H40 -> 25996.00865
B41: Total | C41: =SUM(C37:C40) -> 62855.568 | D41: 4293.039 | E41: 67148.607 | F41: 6571.508716 | G41: 238.081428 | H41: 6809.590144 | I41: 73958.19714
B43: *Furnas projects are being accounted for as Eletrobras due to the incorporation of Furnas by Eletrobras, including Vale do São Bartolomeu and Triângulo Mineiro Transmissora

Sheet Corporate Transmission 3Q24
B3: Corporate Transmission 3Q24
B5: This tab contains the total RAP associated with active modules at the time of publication of ReH 3348/2024, in addition to the RAP associated with modules planned at that time and that have entered into commercial operation since then, throughout 3Q24.
B6: The RAP total of the "RAP Data ReH 3348_2024" tab that is not present in this tab concerns modules expected to come into operation after 3Q24.
B8: Projects renewed pursuant to Law 12.783/13
B9: Company | C9: Contract | D9: Readjustment index | E9: No. of associated substations | F9: Total Km | G9: RAP PRT MME 579/12 (O&M) | H9: RAP Financial Component - PRT MME 120/16 | I9: RAP Economic Component - PRT MME 120/16 | J9: RAP Reinforcements and Improvements | K9: RAP Total approved cycle 2024/2025 (Ref. Jun/24) | L9: RAP add-on - works that entered into commercial operation (Ref. Jun/24) | M9: RAP Total (Ref. Jun/24) | N9: Duration of the contract | P9: Reduction Date of RAP 50% after 15 years | Q9: Next readjustment date
G11: (I) | H11: (II) | I11: (III) | J11: (IV) | K11: (V = I+II+III+IV) | L11: (VI) | M11: (VII = V + VI) | N11: Start Date | O11: End Date
B12: FURNAS | C12: 062/2001 | D12: IPCA | E12: 69 | F12: 19828.9 | G12: 1392127864 | H12: 3180173229 | I12: 1299908195 | J12: 646792454.9 | K12: =SUM(G12:J12) -> 6519001743 | L12: 18963737.45 | M12: =K12+L12 -> 6537965480 | N12: jan/13 | O12: jan/43 | P12: N/A | Q12: 2025-07-01
B13: CHESF | C13: 061/2001 | D13: IPCA | E13: 121 | F13: 19248.6 | G13: 968420376.5 | H13: 1988347515 | I13: 954462847.8 | J13: 684786611.3 | K13: =SUM(G13:J13) -> 4596017351 | L13: 1861763.26 | M13: =K13+L13 -> 4597879114 | N13: jan/13 | O13: jan/43 | P13: N/A
B14: ELETRONORTE | C14: 058/2001 | D14: IPCA | E14: 51 | F14: 8897.4 | G14: 595195393.1 | H14: 927563049.8 | I14: 335166629.2 | J14: 449902503.2 | K14: =SUM(G14:J14) -> 2307827575 | L14: 10980403.47 | M14: =K14+L14 -> 2318807979 | N14: jan/13 | O14: jan/43 | P14: N/A
B15: CGT ELETROSUL | C15: 057/2001 | D15: IPCA | E15: 54 | F15: 8731.68 | G15: 365817489.2 | H15: 434724641.3 | I15: 98177667.77 | J15: 234156639.7 | K15: =SUM(G15:J15) -> 1132876438 | L15: 0 | M15: =K15+L15 -> 1132876438 | N15: jan/13 | O15: jan/43 | P15: N/A
B16: TOTAL | F16: =SUM(F12:F15) -> 56706.58 | G16: 3321561123 | H16: 6530808436 | I16: 2687715340 | J16: 2015638209 | K16: 1.455572311e+10 | L16: 31805904.18 | M16: 1.458752901e+10
B18: Notes
B19: 1. The values of the RAP cycle 2024/2025 established through Approval Resolution 3,348/2024 are at prices of June/2024.
B20: 2. PRT MME 579/12 - Defined the initial RAP, referred to in art. 13 of Provisional Measure No. 579, of 2012 (converted into Law 12,783/2013), of the facilities that are part of the electric power transmission concessions under art. 6 of said Provisional Measure, subject to the decision provided for in art. 12.
B21: (I) The opening of the total amount of RAP PRT MM 579/12 (O&M) is presented in the "RAP cycle 2024/2025" column of the "RAP Data ReH 3,348/2024" tab of the spreadsheet, when filtering "PRT 579/2012" in the "RAP Act" column.
B22: 3. PRT MME 120/16 - determined that the amounts approved by ANEEL related to the assets provided for in art. 15, § 2 of Law 12,783/2013 become part of the Regulatory Remuneration Base (BRR) of the transmitters and that the cost of capital is added to the respective Permitted Annual Revenues (RAP). The payment of said RBSE indemnity considers two components: (ii) Financial component: refers to the capital cost of RBSE assets, which was not paid to the transmitters between 01.01.2013 and 06.30.2017, which will be paid until the 2027-2028 tariff cycle, according to the reprofiling defined by ANEEL in the 2018 Periodic Tariff Review; and (ii) Economic component: refers to the capital cost of assets classified as RBSE and not yet depreciated on the base date of the tariff review. This portion of revenue is due to the extended transmitters as long as such assets are not fully depreciated.
B23: (II) The opening of the total amount of RAP Financial Component - PRT MM 120/16 is presented in the column "RAP of cycle 2024/2025" of the tab "RAP Data ReH 3,348/2024" of the spreadsheet, when filtering "PRT 120/2016" in the column "RAP Act" and "Financial Component calculated for the period from January/2013 to June/2017, with a payment term of 8 years, as stated in § 3 and § 4, of Art. 1, of PRT 120/2016. * Revised revenue in the 2020-2021 cycle. * Revenue revised 07-05-2024" in column "Revenue Description".
B24: (III) The opening of the total value of RAP Economic Component - PRT MM 120/16 is presented in the column "RAP of cycle 2024/2025" of the tab "RAP Data ReH 3,348/2024" of the spreadsheet, when filtering "PRT 120/2016" in the column "RAP Act" and "Installment of RAP calculated according to PRT 120/2016 and included from the 2017-2018 cycle. * Revenue revised 07-05-2024" in column "Revenue Description".
B25: 4. RAP Reinforcements and Improvements - Revenues currently received due to reinforcements and improvements that entered into commercial operation until the last annual adjustment of RAP in July 2024.
B26: (IV) The opening of the total value of RAP Reinforcements and Improvements is presented in the "RAP of cycle 2024/2025" column of the "RAP Data ReH 3,348/2024" tab of the spreadsheet, when filtering "RBNI, RCDM and RMEL" in the "revenue type" in the "RAP Act" column.
B27: 5. (V) Total RAP approved for the 2024/2025 cycle through ReH 3,348/2024 associated with renewed contracts associated with projects in commercial operation in the Annual Adjustment of RAP cycle 2024/2025.
B28: 6. (VI) Additional RAP associated with the authorized reinforcement and improvement works that entered into commercial operation from the last adjustment until 3Q24. The list of these works is presented when filtering the "Quarter" column of the "RAP Data ReH 3,348/2024" tab of the spreadsheet.
B29: 7. (VII) Total RAP associated with the renewed contracts considers the incorporation of large-scale authorized reinforcement and improvement works, with revenue previously defined by ANEEL, which entered into commercial operation until 3Q24.
B31: Bidding Projects | Q31: Approved RAP (*) + Additional RAP in 3Q24 (**)
B32: Company | C32: Contract | D32: Readjustment index | E32: No. of associated substations | F32: Total Km | G32: RAP Auction | H32: RAP Reinforcements and Improvements | I32: RAP Total approved cycle 2024/2025 (Ref. Jun/24) | J32: RAP add-on - works that entered into commercial operation (Ref. Jun/24) | K32: RAP Total (Ref. Jun/24) | L32: Duration of the contract | N32: Reduction Date of RAP 50% after 15 years | O32: Next readjustment date | Q32: Company | R32: RAP Renewed | S32: RAP Bidders | T32: Regulatory RAP
G33: (I) | H33: (II) | I33: (III = I + II) | J33: (IV) | K33: (V = III +IV) | L33: Start Date | M33: End Date | Q33: CHESF | R33: =M13 -> 4597879114 | S33: =SUM(K34:K57) -> 612659822 | T33: =R33+S33 -> 5210538936
B34: CHESF | C34: 007/2005 | D34: IGPM | E34: 2 | F34: 208.1 | G34: 11959394.39 | H34: 18921919.12 | I34: =G34+H34 -> 30881313.51 | J34: 0 | K34: =I34+J34 -> 30881313.51 | L34: 2005-03-04 | M34: 2035-03-04 | N34: Dec/22 | O34: 2025-07-01 | Q34: RAP approved | R34: =K13 -> 4596017351 | S34: =SUM(I34:I57) -> 612659822 | T34: 5208677173
C35: 008/2005 | D35: IGPM | E35: 2 | F35: 119.8 | G35: 8266197.46 | H35: 0 | I35: =G35+H35 -> 8266197.46 | J35: 0 | K35: =I35+J35 -> 8266197.46 | L35: 2005-03-04 | M35: 2035-03-04 | N35: Sep/24 | Q35: RAP add-on | R35: =R33-R34 -> 1861763.26 | S35: =S33-S34 -> 0 | T35: 1861763.26
C36: 010/2007 | D36: IPCA | E36: 2 | F36: 94.5 | G36: 12773162.08 | H36: 9603400.21 | I36: 22376562.29 | J36: 0 | K36: 22376562.29 | L36: 2007-06-14 | M36: 2037-06-14 | N36: Aug/27 | Q36: FURNAS | R36: =M12 -> 6537965480 | S36: =SUM(K58:K65) -> 385771147 | T36: 6923736627
C37: 012/2007 | D37: IPCA | E37: 4 | F37: 316 | G37: 17414770.86 | H37: 0 | I37: 17414770.86 | J37: 0 | K37: 17414770.86 | L37: 2007-06-14 | M37: 2037-06-14 | N37: Sep/25 and Apr/29 | Q37: RAP approved | R37: =K12 -> 6519001743 | S37: =SUM(I58:I65) -> 385771147 | T37: 6904772890
C38: 005/2008 | D38: IPCA | E38: 3 | F38: 110.2 | G38: 6597175.8 | H38: 358296.65 | I38: 6955472.45 | J38: 0 | K38: 6955472.45 | L38: 2008-03-17 | M38: 2038-03-17 | N38: N/A | Q38: RAP add-on | R38: =R36-R37 -> 18963737.45 | S38: =S36-S37 -> 0 | T38: 18963737.45
C39: 014/2008 | D39: IPCA | E39: 2 | F39: 145.01 | G39: 6767141.74 | H39: 5111100.09 | I39: 11878241.83 | J39: 0 | K39: 11878241.83 | L39: 2008-10-16 | M39: 2038-10-16 | N39: N/A | Q39: ELETRONORTE | R39: =M14 -> 2318807979 | S39: =SUM(K66:K77) -> 692259459.2 | T39: 3011067438
C40: 006/2009 | D40: IPCA | E40: 3 | F40: 49 | G40: 18901797.44 | H40: 14112473.36 | I40: 33014270.8 | J40: 0 | K40: 33014270.8 | L40: 2009-01-28 | M40: 2039-01-28 | N40: N/A | Q40: RAP approved | R40: =K14 -> 2307827575 | S40: =SUM(I66:I77) -> 692259459.2 | T40: 3000087034
C41: 017/2009 | D41: IPCA | E41: 5 | F41: 95.84 | G41: 36139619.58 | H41: 8366499.76 | I41: 44506119.34 | J41: 0 | K41: 44506119.34 | L41: 2009-08-03 | M41: 2039-08-03 | N41: N/A | Q41: RAP add-on | R41: =R39-R40 -> 10980403.47 | S41: =+S39-S40 -> 0 | T41: 10980403.47
C42: 018/2009 | D42: IPCA | E42: 2 | F42: 144.8 | G42: 11082065.75 | H42: 0 | I42: 11082065.75 | J42: 0 | K42: 11082065.75 | L42: 2009-08-03 | M42: 2039-08-03 | N42: N/A | Q42: CGT ELETROSUL | R42: =M15 -> 1132876438 | S42: =SUM(K78:K89) -> 631411916.6 | T42: 1764288355
C43: 004/2010 | D43: IPCA | E43: 4 | F43: 34.28 | G43: 47224568.66 | H43: 4322865.57 | I43: 51547434.23 | J43: 0 | K43: 51547434.23 | L43: 2010-07-12 | M43: 2040-07-12 | N43: N/A | Q43: RAP approved | R43: =K15 -> 1132876438 | S43: =SUM(I78:I89) -> 631411916.6 | T43: 1764288355
C44: 007/2010 | D44: IPCA | E44: 1 | F44: 0 | G44: 16088745.84 | H44: 0 | I44: 16088745.84 | J44: 0 | K44: 16088745.84 | L44: 2010-07-12 | M44: 2040-07-12 | N44: N/A | Q44: RAP add-on | R44: =R42-R43 -> 0 | S44: =S42-S43 -> 0 | T44: 0
C45: 013/2010 | D45: IPCA | E45: 1 | F45: 0 | G45: 11911200.58 | H45: 3914221.73 | I45: 15825422.31 | J45: 0 | K45: 15825422.31 | L45: 2010-10-06 | M45: 2040-10-06 | N45: N/A | Q45: VSB | R45: 0 | S45: =K91 -> 50534762.93 | T45: 50534762.93
C46: 014/2010 | D46: IPCA | E46: 1 | F46: 0 | G46: 2166724.87 | H46: 6988270.66 | I46: 9154995.53 | J46: 0 | K46: 9154995.53 | L46: 2010-10-06 | M46: 2040-10-06 | N46: N/A | Q46: RAP approved | R46: 0 | S46: =I91 -> 50534762.93 | T46: 50534762.93
C47: 019/2010 | D47: IPCA | E47: 7 | F47: 321.0025 | G47: 23126288.19 | H47: 8799576.24 | I47: 31925864.43 | J47: 0 | K47: 31925864.43 | L47: 2010-11-23 | M47: 2040-11-23 | N47: N/A | Q47: RAP add-on | R47: 0 | S47: =S45-S46 -> 0 | T47: 0
C48: 020/2010 | D48: IPCA | E48: 2 | F48: 115 | G48: 9404490.58 | H48: 4580002.03 | I48: 13984492.61 | J48: 0 | K48: 13984492.61 | L48: 2010-11-23 | M48: 2040-11-23 | N48: N/A | Q48: TMT | R48: 0 | S48: =K90 -> 54635373.7 | T48: 54635373.7
C49: 021/2010 | D49: IPCA | E49: 2 | F49: 91.3 | G49: 10592626.37 | H49: 799855.18 | I49: 11392481.55 | J49: 0 | K49: 11392481.55 | L49: 2010-11-23 | M49: 2040-11-23 | N49: N/A | Q49: RAP approved | R49: 0 | S49: =I90 -> 54635373.7 | T49: 54635373.7
C50: 008/2011 | D50: IPCA | E50: 5 | F50: 285.77 | G50: 64201697.89 | H50: 29397172.75 | I50: 93598870.64 | J50: 0 | K50: 93598870.64 | L50: 2011-10-13 | M50: 2041-10-13 | N50: N/A | Q50: RAP add-on | R50: 0 | S50: =S48-S49 -> 0 | T50: 0
C51: 009/2011 | D51: IPCA | E51: 2 | F51: 64.1 | G51: 8160812.32 | H51: 4445119.89 | I51: 12605932.21 | J51: 0 | K51: 12605932.21 | L51: 2011-10-13 | M51: 2041-10-13 | N51: N/A | Q51: Total | R51: =+R33+R36+R39+R42+R45+R48 -> 1.458752901e+10 | S51: 2427272481 | T51: 1.701480149e+10
C52: 010/2011 | D52: IPCA | E52: 3 | F52: 65.4 | G52: 15773334.42 | H52: 4373439.19 | I52: 20146773.61 | J52: 0 | K52: 20146773.61 | L52: 2011-10-13 | M52: 2041-10-13 | N52: N/A | Q52: RAP approved | R52: 1.455572311e+10 | S52: 2427272481 | T52: 1.698299559e+10
C53: 017/2011 | D53: IPCA | E53: 2 | F53: 45.6 | G53: 13971549.89 | H53: 4553765.28 | I53: 18525315.17 | J53: 0 | K53: 18525315.17 | L53: 2011-12-09 | M53: 2041-12-09 | N53: N/A | Q53: RAP add-on | R53: 31805904.18 | S53: 0 | T53: 31805904.18
C54: 005/2012 | D54: IPCA | E54: 4 | F54: 42 | G54: 28527985.61 | H54: 584235.33 | I54: 29112220.94 | J54: 0 | K54: 29112220.94 | L54: 2012-05-10 | M54: 2042-05-10 | N54: N/A | Q54: (*) Approved RAP associated with active modules of ReH 3348/2024.
C55: 017/2012 | D55: IPCA | E55: 2 | F55: 0 | G55: 16750598.97 | H55: 0 | I55: 16750598.97 | J55: 0 | K55: 16750598.97 | L55: 2012-06-01 | M55: 2042-06-01 | N55: N/A | Q55: (**) RAP associated with planned modules that came into operation during 3Q24.
C56: 018/2012 | D56: IPCA | E56: 6 | F56: 207.8 | G56: 21780646.08 | H56: 0 | I56: 21780646.08 | J56: 0 | K56: 21780646.08 | L56: 2012-06-01 | M56: 2042-06-01 | N56: N/A
C57: 019/2012 | D57: IPCA | E57: 3 | F57: 60.3 | G57: 36713049.34 | H57: 27131964.24 | I57: 63845013.58 | J57: 0 | K57: 63845013.58 | L57: 2012-06-01 | M57: 2042-06-01 | N57: N/A | Q57: Check | R57: =+R52-K16 -> 0 | S57: =S52-I92 -> 0 | T57: =SUMIFS('Dados RAP ReH 3348_2024'!$M:$M,'Dados RAP ReH 3348_2024'!$O:$O,"Ativa")-T52 -> -1.698299559e+10
B58: FURNAS | C58: 034/2001 | D58: IGPM | E58: 2 | F58: 664.6 | G58: 240946442.5 | H58: 11335375.23 | I58: 252281817.8 | J58: 0 | K58: 252281817.8 | L58: 2001-05-09 | M58: 2031-05-09 | N58: 2018-03-18 | O58: 2025-07-01 | Q58: Check | R58: =R51-M16 -> 0 | S58: =S51-K92 -> 0 | T58: -
C59: 006/2005 | D59: IGPM | E59: 2 | F59: 89.8 | G59: 31292918.62 | H59: 95793.97 | I59: 31388712.59 | J59: 0 | K59: 31388712.59 | L59: 2005-03-04 | M59: 2035-03-04 | N59: 2025-06-25
C60: 007/2006 | D60: IPCA | E60: 3 | F60: 71.1 | G60: 27417208.38 | H60: 199922.4 | I60: 27617130.78 | J60: 0 | K60: 27617130.78 | L60: 2006-04-27 | M60: 2036-04-27 | N60: jan/28 and jan/30
C61: 003/2009 | D61: IPCA | E61: 2 | F61: 179.7 | G61: 15165129.75 | H61: 0 | I61: 15165129.75 | J61: 0 | K61: 15165129.75 | L61: 2009-01-28 | M61: 2039-01-28 | N61: N/A | Q61: Company | R61: km Renewed | S61: km Not Renewed (*) | T61: km Total
C62: 028/2009 | D62: IPCA | E62: 3 | F62: 187.1 | G62: 17248809.27 | H62: 0 | I62: 17248809.27 | J62: 0 | K62: 17248809.27 | L62: 2009-11-19 | M62: 2039-11-19 | N62: N/A | Q62: CHESF | R62: =F13 -> 19248.6 | S62: =SUM(F34:F57)+C108 -> 2806.6025 | T62: =R62+S62 -> 22055.2025
C63: 006/2010 | D63: IPCA | E63: 2 | F63: 95 | G63: 12149263.63 | H63: 0 | I63: 12149263.63 | J63: 0 | K63: 12149263.63 | L63: 2010-07-12 | M63: 2040-07-12 | N63: N/A | Q63: ELETROBRAS | R63: =F12 -> 19828.9 | S63: =SUM(F58:F65)+C109 -> 1821.7 | T63: =R63+S63 -> 21650.6
C64: 014/2011 | D64: IPCA | E64: 2 | F64: 51.4 | G64: 6019753.13 | H64: 0 | I64: 6019753.13 | J64: 0 | K64: 6019753.13 | L64: 2011-12-09 | M64: 2041-12-09 | N64: N/A | Q64: ELETRONORTE | R64: =F14 -> 8897.4 | S64: =SUM(F66:F77)+C110 -> 2080.646 | T64: =R64+S64 -> 10978.046
C65: 016/2012 | D65: IPCA | E65: 1 | F65: 0 | G65: 13539357.84 | H65: 10361172.23 | I65: 23900530.07 | J65: 0 | K65: 23900530.07 | L65: 2012-05-10 | M65: 2042-05-10 | N65: N/A | Q65: CGT ELETROSUL | R65: =F15 -> 8731.68 | S65: =SUM(F78:F89)+C111 -> 3289.51 | T65: =R65+S65 -> 12021.19
B66: ELETRONORTE | C66: 007/2008 | D66: IPCA | E66: 2 | F66: 35.94 | G66: 4956268.03 | H66: 9975264.48 | I66: 14931532.51 | J66: 0 | K66: 14931532.51 | L66: 2008-03-17 | M66: 2038-03-17 | N66: N/A | O66: 2025-07-01 | Q66: Total | R66: =SUM(R62:R65) -> 56706.58 | S66: =SUM(S62:S65) -> 9998.4585 | T66: =SUM(T62:T65) -> 66705.0385
C67: 001/2009 | D67: IPCA | E67: 2 | F67: 95 | G67: 13368525.92 | H67: 18283184.58 | I67: 31651710.5 | J67: 0 | K67: 31651710.5 | L67: 2009-01-28 | M67: 2039-01-28 | N67: N/A | Q67: (*) Includes TLs of contracts without approved RAP
C68: 002/2009 | D68: IPCA | E68: 1 | F68: 0 | G68: 13881358.17 | H68: 8792925.54 | I68: 22674283.71 | J68: 0 | K68: 22674283.71 | L68: 2009-01-28 | M68: 2039-01-28 | N68: N/A
C69: 010/2009 | D69: IPCA | E69: 2 | F69: 44 | G69: 98709108.52 | H69: 2164599.79 | I69: 100873708.3 | J69: 0 | K69: 100873708.3 | L69: 2009-02-26 | M69: 2039-02-26 | N69: N/A
C70: 012/2009 | D70: IPCA | E70: 2 | F70: 111 | G70: 319447466.8 | H70: 0 | I70: 319447466.8 | J70: 0 | K70: 319447466.8 | L70: 2009-02-26 | M70: 2039-02-26 | N70: N/A
C71: 021/2009 | D71: IPCA | E71: 7 | F71: 985.64 | G71: 97090991.04 | H71: 5955664.6 | I71: 103046655.6 | J71: 0 | K71: 103046655.6 | L71: 2009-11-19 | M71: 2039-11-19 | N71: N/A
C72: 022/2009 | D72: IPCA | E72: 3 | F72: 486 | G72: 55456669.3 | H72: 77759.51 | I72: 55534428.81 | J72: 0 | K72: 55534428.81 | L72: 2009-11-19 | M72: 2039-11-19 | N72: N/A
C73: 009/2010 | D73: IPCA | E73: 2 | F73: 59.08 | G73: 7964164.2 | H73: 0 | I73: 7964164.2 | J73: 0 | K73: 7964164.2 | L73: 2010-07-12 | M73: 2040-07-12 | N73: N/A
C74: 004/2011 | D74: IPCA | E74: 1 | F74: 0 | G74: 4198168.94 | H74: 5288661.7 | I74: 9486830.64 | J74: 0 | K74: 9486830.64 | L74: 2011-06-28 | M74: 2041-06-28 | N74: N/A
C75: 012/2011 | D75: IPCA | E75: 2 | F75: 0 | G75: 9120811.15 | H75: 0 | I75: 9120811.15 | J75: 0 | K75: 9120811.15 | L75: 2011-12-09 | M75: 2041-12-09 | N75: N/A
C76: 013/2011 | D76: IPCA | E76: 1 | F76: 0 | G76: 2916408.41 | H76: 0 | I76: 2916408.41 | J76: 0 | K76: 2916408.41 | L76: 2011-12-09 | M76: 2041-12-09 | N76: N/A
C77: 014/2012 | D77: IPCA | E77: 2 | F77: 29.54 | G77: 14611458.46 | H77: 0 | I77: 14611458.46 | J77: 0 | K77: 14611458.46 | L77: 2012-05-07 | M77: 2042-05-07 | N77: N/A
B78: CGT ELETROSUL | C78: 004/2004 | D78: IGPM | E78: 3 | F78: 371.9 | G78: 83347456.54 | H78: 12829.27 | I78: 83360285.81 | J78: 0 | K78: 83360285.81 | L78: 2004-02-18 | M78: 2034-02-18 | N78: 2020-11-20 | O78: 2025-07-01
C79: 010/2005 | D79: IGPM | E79: 4 | F79: 375.8 | G79: 73661522.58 | H79: 78496916 | I79: 152158438.6 | J79: 0 | K79: 152158438.6 | L79: 2005-03-04 | M79: 2035-03-04 | N79: Apr/23
C80: 005/2006 | D80: IPCA | E80: 2 | F80: 257.4 | G80: 30081048.57 | H80: 9932.09 | I80: 30090980.66 | J80: 0 | K80: 30090980.66 | L80: 2006-04-27 | M80: 2036-04-27 | N80: May/24
C81: 004/2008 | D81: IPCA | E81: 2 | F81: 238 | G81: 9012543.41 | H81: 11626.62 | I81: 9024170.03 | J81: 0 | K81: 9024170.03 | L81: 2008-03-17 | M81: 2038-03-17 | N81: N/A
C82: 005/2009 | D82: IPCA | E82: 1 | F82: 0 | G82: 7166476.53 | H82: 602381.57 | I82: 7768858.1 | J82: 0 | K82: 7768858.1 | L82: 2009-01-28 | M82: 2039-01-28 | N82: N/A
C83: 011/2010 | D83: IPCA | E83: 4 | F83: 0 | G83: 18641754.95 | H83: 11486310.19 | I83: 30128065.14 | J83: 0 | K83: 30128065.14 | L83: 2010-10-06 | M83: 2040-10-06 | N83: N/A
C84: 012/2010 | D84: IPCA | E84: 3 | F84: 36.6 | G84: 5026177.01 | H84: 566045.3 | I84: 5592222.31 | J84: 0 | K84: 5592222.31 | L84: 2010-10-06 | M84: 2040-10-06 | N84: N/A
C85: 002/2011 | D85: IPCA | E85: 3 | F85: 231.3 | G85: 4067533.05 | H85: 10424008.64 | I85: 14491541.69 | J85: 0 | K85: 14491541.69 | L85: 2011-06-16 | M85: 2041-06-16 | N85: N/A
C86: 004/2012 | D86: IPCA | E86: 6 | F86: 783.1 | G86: 96905436.58 | H86: 738262.8 | I86: 97643699.38 | J86: 0 | K86: 97643699.38 | L86: 2012-05-10 | M86: 2042-05-10 | N86: N/A
C87: 020/2012 | D87: IPCA | E87: 5 | F87: 473.2 | G87: 149312326.2 | H87: 16626580.36 | I87: 165938906.6 | J87: 0 | K87: 165938906.6 | L87: 2012-08-27 | M87: 2042-10-08 | N87: N/A
C88: 007/2014 | D88: IPCA | E88: 6 | F88: 274.6 | G88: 30010368.77 | H88: 534245.16 | I88: 30544613.93 | J88: 0 | K88: 30544613.93 | L88: 2014-01-29 | M88: 2044-01-29 | N88: N/A
C89: 008/2014 | D89: IPCA | E89: 1 | F89: 0 | G89: 4670134.35 | H89: 0 | I89: 4670134.35 | J89: 0 | K89: 4670134.35 | L89: 2014-01-29 | M89: 2044-01-29 | N89: N/A
B90: TMT (SPE 100% ELETROBRAS) | C90: 004/2013 | D90: IPCA | E90: 2 | F90: 296.5 | G90: 54635373.7 | H90: 0 | I90: =G90+H90 -> 54635373.7 | J90: 0 | K90: 54635373.7 | L90: 2013-08-14 | M90: 2043-08-14 | N90: N/A | O90: 2025-07-01
B91: VSB (SPE 100% ELETROBRAS) | C91: 014/2013 | D91: IPCA | E91: 1 | F91: 147.06 | G91: 50534762.93 | H91: 0 | I91: =G91+H91 -> 50534762.93 | J91: 0 | K91: =I91+J91 -> 50534762.93 | L91: 2013-10-09 | M91: 2043-10-09 | N91: N/A | O91: 2025-07-01
B92: Total | E92: =SUM(E34:E91) -> 157 | F92: 9286.1625 | G92: 2078868842 | H92: 348403639.3 | I92: 2427272481 | J92: 0 | K92: 2427272481
B94: Notes
B95: 1. The values of the RAP cycle 2024/2025 established through Approval Resolution 3,348/2024 are at prices of June/2024.
B96: 2. RAP Auction - amounts associated with the projects subject to auction.
B97: (I) The opening of the total value of the RAP Auction is presented in the "RAP of cycle 2024/2025" column of the "RAP Data ReH 3,348/2024" tab of the spreadsheet, by filtering "RBL, RICG and RPEC" in the "RAP Act" column and filtering "active status" in the "RAP Status" column.
B98: 3. RAP Reinforcements and Improvements - Revenues currently received due to reinforcements and improvements that entered into commercial operation until the last annual adjustment of RAP in July 2024.
B99: (II) The opening of the total value of RAP Reinforcements and Improvements is presented in the "RAP cycle 2024/2025" column of the "RAP Data ReH 3,348/2024" tab of the spreadsheet, when filtering the bidding concession contracts and filtering "RBNI, RCDM and RMEL" in the "revenue type" in the "RAP Act" column and the RAP status column as "Active".
B100: 4. (III) Total RAP approved for the 2024/2025 cycle through ReH 3,348/2024 associated with the bidding contracts associated with the projects in commercial operation in the Annual Adjustment of RAP cycle 2024/2025.
B101: 5. (IV) Additional RAP associated with the authorized reinforcement and improvement works that entered into commercial operation from the last adjustment until 3Q24. The list of these works is presented when filtering the "Quarter" column of the "RAP Data ReH 3,348/2024" tab of the spreadsheet.
B102: 7. (V) Total RAP associated with the bidding contracts considers the incorporation of large-scale authorized reinforcement and improvement works, with revenue previously defined by ANEEL, which entered into commercial operation until 3Q24.
B103: 8. The information associated with the 100% Eletrobras SPE concession contracts whose projects are in commercial operation are considered.
B104: Other contracts (**)
B106: Company | C106: Total Km
B108: CHESF | C108: 190.8
B109: ELETROBRAS | C109: 483
B110: ELETRONORTE | C110: 234.446
B111: CGT ELETROSUL | C111: 247.61
B113: Notes
B114: (**) Transmission lines associated with the connection of power plants, free consumers, sectioning, etc., without a revenue contract approved by REH 3216/2023

Sheet Dados RAP ReH 3348_2024
B2: Total of RAP ReH 3348_2024 | C2: =SUM(M11:M19397) -> 1.819624568e+10
B3: Active Modules at ReH 3348 | C3: ='Corporate Transmission 3Q24'!K16+'Corporate Transmission 3Q24'!I92 -> 1.698299559e+10
B4: Additional RAP in 3T24 | C4: ='Corporate Transmission 3Q24'!L16+'Corporate Transmission 3Q24'!J92 -> 31805904.18
B5: Expected Modules | C5: =C2-C3-C4 -> 1181444184
B6: Present in SIGET | C6: =('TOTAL CAPEX TRANSMISSION'!E26+'TOTAL CAPEX TRANSMISSION'!E29)*1000000000 -> 1097831170
B7: Others | C7: =C5-C6 -> 83613013.48
B10: Revenue Concessionaire | C10: Construction | D10: Module | E10: Classification | F10: Transmission Function | G10: Revenue Contract | H10: Index | I10: Revenue Type | J10: RAP | K10: Effective date | L10: Expiration date | M10: RAP Cycle | N10: RAP's Reference Date | O10: RAP's Situation | P10: Project | Q10: Revenue Description (According to the ANEEL 3348/2024 Regulatorty Resolution) | R10: Quarter
B11: CHESF | C11: ABAIARA | D11: MG 230 kV ABAIARA MG1 CE | E11: RB | F11: FT MG 230 kV ABAIARA MG1 CE | G11: 061/2001 | H11: IPCA | I11: RBNI | J11: DSP 872/2024 | K11: 2023-12-07 | L11: 2051-12-06 | M11: 66393.62 | N11: 2024-06-01 | O11: Active | Q11: Parcela adicional de RAP para operação e manutenção de 1 Módulo de Infraestrutura Geral de Acessante -MIG-A 230 kV na SE Abaiara, em função do seccionamento da LT 230 kV Bom Nome - Milagres C2. | R11: 0
B12: CHESF | C12: ABAIARA | D12: MG 230 kV ABAIARA MG1 CE | E12: RB | F12: FT MG 230 kV ABAIARA MG1 CE | G12: 061/2001 | H12: IPCA | I12: RBNI | J12: DSP 872/2024 | K12: 2023-12-07 | L12: 2054-12-06 | M12: 21188.19 | N12: 2024-06-01 | O12: Active | Q12: Parcela adicional de RAP para operação e manutenção de 1 Módulo de Infraestrutura de Manobra 230 kV na SE Abaiara, associada à Entrada da Linha de Transmissão 230 kV Bom Nome – Abaiara C1. | R12: 0
B13: CHESF | C13: ABAIARA | D13: MG 230 kV ABAIARA MG1 CE | E13: RB | F13: FT MG 230 kV ABAIARA MG1 CE | G13: 061/2001 | H13: IPCA | I13: RBNI | J13: DSP 872/2024 | K13: 2023-12-07 | L13: 2054-12-06 | M13: 21188.19 | N13: 2024-06-01 | O13: Active | Q13: Parcela adicional de RAP para operação e manutenção de 1 Módulo de Infraestrutura de Manobra 230 kV na SE Abaiara, associada à Entrada da Linha de Transmissão 230 kV Abaiara – Milagres C1. | R13: 0
B14: CHESF | C14: ABAIARA | D14: EL 230 kV ABAIARA LT 230 kV BOM NOME /ABAIARA C-1 PE/CE | E14: RB | F14: FT LT 230 kV BOM NOME /ABAIARA C-1 PE/CE | G14: 061/2001 | H14: IPCA | I14: RBNI | J14: DSP 872/2024 | K14: 2023-12-07 | L14: 2051-12-06 | M14: 194442.43 | N14: 2024-06-01 | O14: Active | Q14: Parcela adicional de RAP para operação e manutenção de Entrada de Linha em 230 kV, arranjo Barra Dupla a Quatro Chaves, na subestação Abaiara, associada à Linha de Transmissão 230 kV Bom Nome – Abaiara C1. | R14: 0
B15: CHESF | C15: ABAIARA | D15: EL 230 kV ABAIARA LT 230 kV ABAIARA /MILAGRES C-1 CE | E15: RB | F15: FT LT 230 kV ABAIARA /MILAGRES C-1 CE | G15: 061/2001 | H15: IPCA | I15: RBNI | J15: DSP 872/2024 | K15: 2023-12-07 | L15: 2051-12-06 | M15: 194442.43 | N15: 2024-06-01 | O15: Active | Q15: Parcela adicional de RAP para operação e manutenção de Entrada de Linha em 230 kV, arranjo Barra Dupla a Quatro Chaves, na subestação Abaiara, associada à Linha de Transmissão 230 kV Abaiara – Milagres C1. | R15: 0
B16: CHESF | C16: ABAIXADORA | D16: TT 69/13,8 kV ABAIXADORA TA1 BA | E16: DIT | G16: 061/2001 | H16: IPCA | I16: RPC | J16: PRT 579/2012 | K16: 2013-01-01 | L16: 2043-01-01 | M16: 89311.48 | N16: 2024-06-01 | O16: Active | Q16: *(RAP Portaria 579/2012 - Concessão prorrogada em 01/01/2013 – LEI 12783/2013 ) * Receita revisada no ciclo 2020-2021. * Receita revisada em 05-07-2024 | R16: 0
B17: CHESF | C17: ABAIXADORA | D17: TT 69/13,8 kV ABAIXADORA TA1 BA | E17: DIT | G17: 061/2001 | H17: IPCA | I17: RPC | J17: PRT 120/2016 | K17: 2017-07-01 | L17: 2028-06-30 | M17: 293959.47 | N17: 2024-06-01 | O17: Active | Q17: Componente Financeiro apurado referente ao período de Janeiro/2013 a Junho/2017, com prazo de pagamento de 8 anos, conforme consta no § 3º e § 4º, do Art. 1º, da PRT 120/2016. * Receita revisada no ciclo 2020-2021. * Receita revisada em 05-07-2024 | R17: 0
B18: CHESF | C18: ABAIXADORA | D18: TR 69/69 kV ABAIXADORA TREG1 BA | E18: RBF | F18: FT TR 230/69 kV ABAIXADORA TR2 BA | G18: 061/2001 | H18: IPCA | I18: RBSE | J18: PRT 579/2012 | K18: 2013-01-01 | L18: 2043-01-01 | M18: 167679.81 | N18: 2024-06-01 | O18: Active | Q18: *(RAP Portaria 579/2012 - Concessão prorrogada em 01/01/2013 – LEI 12783/2013 ) * Receita revisada no ciclo 2020-2021. * Receita revisada em 05-07-2024 | R18: 0
B19: CHESF | C19: ABAIXADORA | D19: TR 69/13,8 kV ABAIXADORA TR6 BA | E19: DIT | G19: 061/2001 | H19: IPCA | I19: RPC | J19: PRT 579/2012 | K19: 2013-01-01 | L19: 2043-01-01 | M19: 27512.86 | N19: 2024-06-01 | O19: Active | Q19: *(RAP Portaria 579/2012 - Concessão prorrogada em 01/01/2013 – LEI 12783/2013 ) * Receita revisada no ciclo 2020-2021. * Receita revisada em 05-07-2024 | R19: 0
B20: CHESF | C20: ABAIXADORA | D20: TR 69/13,8 kV ABAIXADORA TR3 BA | E20: DIT | G20: 061/2001 | H20: IPCA | I20: RPC | J20: PRT 579/2012 | K20: 2013-01-01 | L20: 2043-01-01 | M20: 27512.86 | N20: 2024-06-01 | O20: Active | Q20: *(RAP Portaria 579/2012 - Concessão prorrogada em 01/01/2013 – LEI 12783/2013 ) * Receita revisada no ciclo 2020-2021. * Receita revisada em 05-07-2024 | R20: 0
B21: CHESF | C21: ABAIXADORA | D21: TR 230/69 kV ABAIXADORA TRR1 BA | E21: RBF | F21: FT TR 230/69 kV ABAIXADORA TRR1 BA | G21: 061/2001 | H21: IPCA | I21: RBSE | J21: PRT 579/2012 | K21: 2013-01-01 | L21: 2043-01-01 | M21: 185369.36 | N21: 2024-06-01 | O21: Active | Q21: *(RAP Portaria 579/2012 - Concessão prorrogada em 01/01/2013 – LEI 12783/2013 ) * Receita revisada no ciclo 2020-2021. * Receita revisada em 05-07-2024 | R21: 0
B22: CHESF | C22: ABAIXADORA | D22: TR 230/69 kV ABAIXADORA TR2 BA | E22: RBF | F22: FT TR 230/69 kV ABAIXADORA TR2 BA | G22: 061/2001 | H22: IPCA | I22: RBSE | J22: PRT 579/2012 | K22: 2013-01-01 | L22: 2043-01-01 | M22: 356728.36 | N22: 2024-06-01 | O22: Active | Q22: *(RAP Portaria 579/2012 - Concessão prorrogada em 01/01/2013 – LEI 12783/2013 ) * Receita revisada no ciclo 2020-2021. * Receita revisada em 05-07-2024 | R22: 0
B23: CHESF | C23: ABAIXADORA | D23: TR 230/69 kV ABAIXADORA TR2 BA | E23: RBF | F23: FT TR 230/69 kV ABAIXADORA TR2 BA | G23: 061/2001 | H23: IPCA | I23: RBSE | J23: PRT 120/2016 | K23: 2017-07-01 | L23: 2028-06-30 | M23: 1174134.46 | N23: 2024-06-01 | O23: Active | Q23: Componente Financeiro apurado referente ao período de Janeiro/2013 a Junho/2017, com prazo de pagamento de 8 anos, conforme consta no § 3º e § 4º, do Art. 1º, da PRT 120/2016. * Receita revisada no ciclo 2020-2021. * Receita revisada em 05-07-2024 | R23: 0
B24: CHESF | C24: ABAIXADORA | D24: TR 230/69 kV ABAIXADORA TR2 BA | E24: RBF | F24: FT TR 230/69 kV ABAIXADORA TR2 BA | G24: 061/2001 | H24: IPCA | I24: RBSE | J24: PRT 120/2016 | K24: 2017-07-01 | L24: 2042-12-31 | M24: 1108828.46 | N24: 2024-06-01 | O24: Active | Q24: Parcela de RAP calculada de acordo com a PRT 120/2016 e incluída a partir do ciclo 2017-2018. * Receita revisada em 05-07-2024 | R24: 0
B25: CHESF | C25: ABAIXADORA | D25: TR 230/69 kV ABAIXADORA TR1 BA | E25: RBF | F25: FT TR 230/69 kV ABAIXADORA TR1 BA | G25: 061/2001 | H25: IPCA | I25: RBSE | J25: PRT 579/2012 | K25: 2013-01-01 | L25: 2043-01-01 | M25: 185369.36 | N25: 2024-06-01 | O25: Active | Q25: *(RAP Portaria 579/2012 - Concessão prorrogada em 01/01/2013 – LEI 12783/2013 ) * Receita revisada no ciclo 2020-2021. * Receita revisada em 05-07-2024 | R25: 0
B26: CHESF | C26: ABAIXADORA | D26: MG 230 kV ABAIXADORA MG1 BA | E26: RB | F26: FT MG 230 kV ABAIXADORA MG1 BA | G26: 061/2001 | H26: IPCA | I26: RBSE | J26: PRT 579/2012 | K26: 2013-01-01 | L26: 2043-01-01 | M26: 441074.52 | N26: 2024-06-01 | O26: Active | Q26: *(RAP Portaria 579/2012 - Concessão prorrogada em 01/01/2013 – LEI 12783/2013 ) * Receita revisada no ciclo 2020-2021. * Receita revisada em 05-07-2024 | R26: 0
B27: CHESF | C27: ABAIXADORA | D27: MG 230 kV ABAIXADORA MG1 BA | E27: RB | F27: FT MG 230 kV ABAIXADORA MG1 BA | G27: 061/2001 | H27: IPCA | I27: RMEL | J27: REN 643/2014 | K27: 2015-11-09 | L27: 2032-11-08 | M27: 16537.52 | N27: 2024-06-01 | O27: Active | Q27: Revitalização Necessária: SUBSTITUIÇÃO DAS BATERIAS SATURNIA 6OPZS400 125VCC, 800A1 E 800A2.Melhoria incluída no ciclo 2016-2017. *(Receita revisada em 06/07/2020) *(Receita revisada em 03/07/2024) | R27: 0
B28: CHESF | C28: ABAIXADORA | D28: MG 230 kV ABAIXADORA MG1 BA | E28: RB | F28: FT MG 230 kV ABAIXADORA MG1 BA | G28: 061/2001 | H28: IPCA | I28: RBSE | J28: PRT 120/2016 | K28: 2017-07-01 | L28: 2028-06-30 | M28: 1451751.1 | N28: 2024-06-01 | O28: Active | Q28: Componente Financeiro apurado referente ao período de Janeiro/2013 a Junho/2017, com prazo de pagamento de 8 anos, conforme consta no § 3º e § 4º, do Art. 1º, da PRT 120/2016. * Receita revisada no ciclo 2020-2021. * Receita revisada em 05-07-2024 | R28: 0
B29: CHESF | C29: ABAIXADORA | D29: MG 230 kV ABAIXADORA MG1 BA | E29: RB | F29: FT MG 230 kV ABAIXADORA MG1 BA | G29: 061/2001 | H29: IPCA | I29: RBSE | J29: PRT 120/2016 | K29: 2017-07-01 | L29: 2042-12-31 | M29: 1371003.9 | N29: 2024-06-01 | O29: Active | Q29: Parcela de RAP calculada de acordo com a PRT 120/2016 e incluída a partir do ciclo 2017-2018. * Receita revisada em 05-07-2024 | R29: 0
B30: CHESF | C30: ABAIXADORA | D30: MG 230 kV ABAIXADORA MG1 BA | E30: RB | F30: FT MG 230 kV ABAIXADORA MG1 BA | G30: 061/2001 | H30: IPCA | I30: RBNI | J30: DSP 386/2021 | K30: 2021-12-02 | L30: 2049-12-01 | M30: 282115.75 | N30: 2024-06-01 | O30: Active | Q30: Instalação de UTR (composto por uma Unidade Remota de Comandos, GPS e cabos de controle) em substituição à existente. Reconfiguração em bases da UTR, SAGE e relés auxiliares e adequações na fiação e cabeação dos painéis de proteção e controle. * Reforço autorizado sem RAP Prévia incluído no reajuste do Ciclo 2022 - 2023 *(Receita revisada em 03/07/2024) | R30: 0
B31: CHESF | C31: ABAIXADORA | D31: MG 230 kV ABAIXADORA MG1 BA | E31: RB | F31: FT MG 230 kV ABAIXADORA MG1 BA | G31: 061/2001 | H31: IPCA | I31: RBNI | J31: REA 2376/2010 | K31: 2023-02-09 | L31: 2054-02-08 | M31: 48803.08 | N31: 2024-06-01 | O31: Active | Q31: MIM ASSOCIADO: Instalação de EL 69 kV para a conexão da LT Paulo Afonso II - Zebú, atualmente operando em 138 kV. * Reforço autorizado sem RAP Prévia incluído no reajuste do Ciclo 2023 - 2024 | R31: 0
B32: CHESF | C32: ABAIXADORA | D32: MG 230 kV ABAIXADORA MG1 BA | E32: RB | F32: FT MG 230 kV ABAIXADORA MG1 BA | G32: 061/2001 | H32: IPCA | I32: RMEL | J32: REN 905/2020 | K32: 2022-03-08 | L32: 2049-10-09 | M32: 26031.1 | N32: 2024-06-01 | O32: Active | Q32: Obras de Pequeno Porte sem RAP Prévia incluídas no processo de revisão da RAP das transmissoras prorrogadas de 2023, nos termos do Módulo 3 das Regras dos Serviços de Transmissão de Energia Elétrica. * Melhoria autorizada sem RAP Prévia incluído no reajuste do Ciclo 2024 - 2025 *(Receita revisada em 04/07/2024) | R32: 0
B33: CHESF | C33: ABAIXADORA | D33: MC 69 kV TT 69/13,8 kV ABAIXADORA TA1 BA | E33: DIT | G33: 061/2001 | H33: IPCA | I33: RPC | J33: PRT 579/2012 | K33: 2013-01-01 | L33: 2043-01-01 | M33: 26473.73 | N33: 2024-06-01 | O33: Active | Q33: *(RAP Portaria 579/2012 - Concessão prorrogada em 01/01/2013 – LEI 12783/2013 ) * Receita revisada no ciclo 2020-2021. * Receita revisada em 05-07-2024 | R33: 0
B34: CHESF | C34: ABAIXADORA | D34: MC 69 kV TR 69/13,8 kV ABAIXADORA TR6 BA | E34: DIT | G34: 061/2001 | H34: IPCA | I34: RPC | J34: PRT 579/2012 | K34: 2013-01-01 | L34: 2043-01-01 | M34: 63300.11 | N34: 2024-06-01 | O34: Active | Q34: *(RAP Portaria 579/2012 - Concessão prorrogada em 01/01/2013 – LEI 12783/2013 ) * Receita revisada no ciclo 2020-2021. * Receita revisada em 05-07-2024 | R34: 0
B35: CHESF | C35: ABAIXADORA | D35: MC 69 kV TR 69/13,8 kV ABAIXADORA TR6 BA | E35: DIT | G35: 061/2001 | H35: IPCA | I35: RMEL | J35: REN 443/2011 | K35: 2016-07-26 | L35: 2046-07-29 | M35: 6295.68 | N35: 2024-06-01 | O35: Active | Q35: Instalação de contatos auxiliares de chaves seccionadoras. RAP incluída na análise do recurso da REH 2.258/2017. * Melhoria autorizada sem RAP Prévia incluído no reajuste do Ciclo 2017 - 2018 *(Receita revisada em 06/07/2020) *(Receita revisada em 03/07/2024) | R35: 0
B36: CHESF | C36: ABAIXADORA | D36: MC 69 kV TR 69/13,8 kV ABAIXADORA TR6 BA | E36: DIT | G36: 061/2001 | H36: IPCA | I36: RMEL | J36: REN 905/2020 | K36: 2021-02-01 | L36: 2049-01-31 | M36: 8701.74 | N36: 2024-06-01 | O36: Active | Q36: Obras de Pequeno Porte sem RAP Prévia incluídas no processo de revisão da RAP das transmissoras prorrogadas de 2023, nos termos do Módulo 3 das Regras dos Serviços de Transmissão de Energia Elétrica. * Melhoria autorizada sem RAP Prévia incluído no reajuste do Ciclo 2024 - 2025 *(Receita revisada em 04/07/2024) | R36: 0
B37: CHESF | C37: ABAIXADORA | D37: MC 69 kV TR 69/13,8 kV ABAIXADORA TR3 BA | E37: DIT | G37: 061/2001 | H37: IPCA | I37: RPC | J37: PRT 579/2012 | K37: 2013-01-01 | L37: 2043-01-01 | M37: 63300.11 | N37: 2024-06-01 | O37: Active | Q37: *(RAP Portaria 579/2012 - Concessão prorrogada em 01/01/2013 – LEI 12783/2013 ) * Receita revisada no ciclo 2020-2021. * Receita revisada em 05-07-2024 | R37: 0
B38: CHESF | C38: ABAIXADORA | D38: MC 69 kV TR 69/13,8 kV ABAIXADORA TR3 BA | E38: DIT | G38: 061/2001 | H38: IPCA | I38: RMEL | J38: REN 443/2011 | K38: 2016-07-26 | L38: 2046-07-29 | M38: 6295.68 | N38: 2024-06-01 | O38: Active | Q38: Instalação de contatos auxiliares de chaves seccionadoras. RAP incluída na análise do recurso da REH 2.258/2017. * Melhoria autorizada sem RAP Prévia incluído no reajuste do Ciclo 2017 - 2018 *(Receita revisada em 06/07/2020) *(Receita revisada em 03/07/2024) | R38: 0
B39: CHESF | C39: ABAIXADORA | D39: MC 69 kV TR 230/69 kV ABAIXADORA TR2 BA | E39: RBF | F39: FT TR 230/69 kV ABAIXADORA TR2 BA | G39: 061/2001 | H39: IPCA | I39: RBSE | J39: PRT 579/2012 | K39: 2013-01-01 | L39: 2043-01-01 | M39: 63300.11 | N39: 2024-06-01 | O39: Active | Q39: *(RAP Portaria 579/2012 - Concessão prorrogada em 01/01/2013 – LEI 12783/2013 ) * Receita revisada no ciclo 2020-2021. * Receita revisada em 05-07-2024 | R39: 0
B40: CHESF | C40: ABAIXADORA | D40: MC 69 kV TR 230/69 kV ABAIXADORA TR2 BA | E40: RBF | F40: FT TR 230/69 kV ABAIXADORA TR2 BA | G40: 061/2001 | H40: IPCA | I40: RBNI | J40: REA 2040/2009 | K40: 2013-03-24 | L40: 2046-03-23 | M40: 55600.08 | N40: 2024-06-01 | O40: Active | Q40: Substituição de Chaves seccionadoras 69 kV associadas a conexão do transformador (CT) 12T2. Incluído no reajuste ciclo 2014-2015. RAP ativada no ciclo 2016-2017 após Recurso em face da REH nº 2.098/2016. *(Receita revisada em 06/07/2020) *(Receita revisada em 03/07/2024) | R40: 0
B41: CHESF | C41: ABAIXADORA | D41: MC 69 kV TR 230/69 kV ABAIXADORA TR2 BA | E41: RBF | F41: FT TR 230/69 kV ABAIXADORA TR2 BA | G41: 061/2001 | H41: IPCA | I41: RBSE | J41: PRT 120/2016 | K41: 2017-07-01 | L41: 2028-06-30 | M41: 208345.74 | N41: 2024-06-01 | O41: Active | Q41: Componente Financeiro apurado referente ao período de Janeiro/2013 a Junho/2017, com prazo de pagamento de 8 anos, conforme consta no § 3º e § 4º, do Art. 1º, da PRT 120/2016. * Receita revisada no ciclo 2020-2021. * Receita revisada em 05-07-2024 | R41: 0
B42: CHESF | C42: ABAIXADORA | D42: MC 69 kV TR 230/69 kV ABAIXADORA TR2 BA | E42: RBF | F42: FT TR 230/69 kV ABAIXADORA TR2 BA | G42: 061/2001 | H42: IPCA | I42: RMEL | J42: REN 905/2020 | K42: 2021-05-15 | L42: 2045-05-14 | M42: 14883.5 | N42: 2024-06-01 | O42: Active | Q42: Obras de Pequeno Porte sem RAP Prévia incluídas no processo de revisão da RAP das transmissoras prorrogadas de 2023, nos termos do Módulo 3 das Regras dos Serviços de Transmissão de Energia Elétrica. * Melhoria autorizada sem RAP Prévia incluído no reajuste do Ciclo 2024 - 2025 *(Receita revisada em 04/07/2024) | R42: 0
B43: CHESF | C43: ABAIXADORA | D43: MC 230 kV TR 230/69 kV ABAIXADORA TR2 BA | E43: RBF | F43: FT TR 230/69 kV ABAIXADORA TR2 BA | G43: 061/2001 | H43: IPCA | I43: RBSE | J43: PRT 579/2012 | K43: 2013-01-01 | L43: 2043-01-01 | M43: 105175.28 | N43: 2024-06-01 | O43: Active | Q43: *(RAP Portaria 579/2012 - Concessão prorrogada em 01/01/2013 – LEI 12783/2013 ) * Receita revisada no ciclo 2020-2021. * Receita revisada em 05-07-2024 | R43: 0
B44: CHESF | C44: ABAIXADORA | D44: MC 230 kV TR 230/69 kV ABAIXADORA TR2 BA | E44: RBF | F44: FT TR 230/69 kV ABAIXADORA TR2 BA | G44: 061/2001 | H44: IPCA | I44: RBSE | J44: PRT 120/2016 | K44: 2017-07-01 | L44: 2028-06-30 | M44: 346173.52 | N44: 2024-06-01 | O44: Active | Q44: Componente Financeiro apurado referente ao período de Janeiro/2013 a Junho/2017, com prazo de pagamento de 8 anos, conforme consta no § 3º e § 4º, do Art. 1º, da PRT 120/2016. * Receita revisada no ciclo 2020-2021. * Receita revisada em 05-07-2024 | R44: 0
B45: CHESF | C45: ABAIXADORA | D45: MC 230 kV TR 230/69 kV ABAIXADORA TR2 BA | E45: RBF | F45: FT TR 230/69 kV ABAIXADORA TR2 BA | G45: 061/2001 | H45: IPCA | I45: RMEL | J45: REN 905/2020 | K45: 2021-07-01 | L45: 2045-12-19 | M45: 27981.46 | N45: 2024-06-01 | O45: Active | Q45: Obras de Pequeno Porte sem RAP Prévia incluídas no processo de revisão da RAP das transmissoras prorrogadas de 2023, nos termos do Módulo 3 das Regras dos Serviços de Transmissão de Energia Elétrica. * Melhoria autorizada sem RAP Prévia incluído no reajuste do Ciclo 2024 - 2025 *(Receita revisada em 04/07/2024) | R45: 0
B46: CHESF | C46: ABAIXADORA | D46: MC 13,8 kV TR 69/13,8 kV ABAIXADORA TR6 BA | E46: DIT | G46: 061/2001 | H46: IPCA | I46: RPC | J46: PRT 579/2012 | K46: 2013-01-01 | L46: 2043-01-01 | M46: 45098.23 | N46: 2024-06-01 | O46: Active | Q46: *(RAP Portaria 579/2012 - Concessão prorrogada em 01/01/2013 – LEI 12783/2013 ) * Receita revisada no ciclo 2020-2021. * Receita revisada em 05-07-2024 | R46: 0
B47: CHESF | C47: ABAIXADORA | D47: MC 13,8 kV TR 69/13,8 kV ABAIXADORA TR3 BA | E47: DIT | G47: 061/2001 | H47: IPCA | I47: RPC | J47: PRT 579/2012 | K47: 2013-01-01 | L47: 2043-01-01 | M47: 45098.23 | N47: 2024-06-01 | O47: Active | Q47: *(RAP Portaria 579/2012 - Concessão prorrogada em 01/01/2013 – LEI 12783/2013 ) * Receita revisada no ciclo 2020-2021. * Receita revisada em 05-07-2024 | R47: 0
B48: CHESF | C48: ABAIXADORA | D48: IB 69 kV MG 230 kV ABAIXADORA MG1 BA IB2 | E48: DIT | G48: 061/2001 | H48: IPCA | I48: RPC | J48: PRT 579/2012 | K48: 2013-01-01 | L48: 2043-01-01 | M48: 42544.88 | N48: 2024-06-01 | O48: Active | Q48: *(RAP Portaria 579/2012 - Concessão prorrogada em 01/01/2013 – LEI 12783/2013 ) * Receita revisada no ciclo 2020-2021. * Receita revisada em 05-07-2024 | R48: 0
B49: CHESF | C49: ABAIXADORA | D49: IB 230 kV MG 230 kV ABAIXADORA MG1 BA IB1 | E49: RB | F49: FT MG 230 kV ABAIXADORA MG1 BA | G49: 061/2001 | H49: IPCA | I49: RBSE | J49: PRT 579/2012 | K49: 2013-01-01 | L49: 2043-01-01 | M49: 116957.62 | N49: 2024-06-01 | O49: Active | Q49: *(RAP Portaria 579/2012 - Concessão prorrogada em 01/01/2013 – LEI 12783/2013 ) * Receita revisada no ciclo 2020-2021. * Receita revisada em 05-07-2024 | R49: 0
B50: CHESF | C50: ABAIXADORA | D50: IB 230 kV MG 230 kV ABAIXADORA MG1 BA IB1 | E50: RB | F50: FT MG 230 kV ABAIXADORA MG1 BA | G50: 061/2001 | H50: IPCA | I50: RMEL | J50: REN 905/2020 | K50: 2021-05-14 | L50: 2051-05-17 | M50: 61517.12 | N50: 2024-06-01 | O50: Active | Q50: Obras de Pequeno Porte sem RAP Prévia incluídas no processo de revisão da RAP das transmissoras prorrogadas de 2023, nos termos do Módulo 3 das Regras dos Serviços de Transmissão de Energia Elétrica. * Melhoria autorizada sem RAP Prévia incluído no reajuste do Ciclo 2024 - 2025 *(Receita revisada em 04/07/2024) | R50: 0
B51: CHESF | C51: ABAIXADORA | D51: EL 69 kV ABAIXADORA LT 69 kV ABAIXADORA /ZEBU II C-1 BA/AL | E51: DIT | G51: 061/2001 | H51: IPCA | I51: RPC | J51: PRT 579/2012 | K51: 2013-01-01 | L51: 2043-01-01 | M51: 74002.44 | N51: 2024-06-01 | O51: Active | Q51: *(RAP Portaria 579/2012 - Concessão prorrogada em 01/01/2013 – LEI 12783/2013 ) * Receita revisada no ciclo 2020-2021. * Receita revisada em 05-07-2024 | R51: 0
B52: CHESF | C52: ABAIXADORA | D52: EL 69 kV ABAIXADORA LT 69 kV ABAIXADORA /ZEBU II C-1 BA/AL | E52: DIT | G52: 061/2001 | H52: IPCA | I52: RMEL | J52: REN 443/2011 | K52: 2016-07-26 | L52: 2046-07-29 | M52: 4197.12 | N52: 2024-06-01 | O52: Active | Q52: Instalação de contatos auxiliares de chaves seccionadoras. RAP incluída na análise do recurso da REH 2.258/2017. * Melhoria autorizada sem RAP Prévia incluído no reajuste do Ciclo 2017 - 2018 *(Receita revisada em 06/07/2020) *(Receita revisada em 03/07/2024) | R52: 0
B53: CHESF | C53: ABAIXADORA | D53: EL 69 kV ABAIXADORA LT 69 kV ABAIXADORA /ZEBU II C-1 BA/AL | E53: DIT | G53: 061/2001 | H53: IPCA | I53: RMEL | J53: REN 905/2020 | K53: 2022-04-16 | L53: 2046-04-15 | M53: 7674.51 | N53: 2024-06-01 | O53: Active | Q53: Obras de Pequeno Porte sem RAP Prévia incluídas no processo de revisão da RAP das transmissoras prorrogadas de 2023, nos termos do Módulo 3 das Regras dos Serviços de Transmissão de Energia Elétrica. * Melhoria autorizada sem RAP Prévia incluído no reajuste do Ciclo 2024 - 2025 *(Receita revisada em 04/07/2024) | R53: 0
B54: CHESF | C54: ABAIXADORA | D54: EL 69 kV ABAIXADORA LT 69 kV ABAIXADORA /MULUNGU C-1 BA | E54: DIT | G54: 061/2001 | H54: IPCA | I54: RPC | J54: PRT 579/2012 | K54: 2013-01-01 | L54: 2043-01-01 | M54: 74002.44 | N54: 2024-06-01 | O54: Active | Q54: *(RAP Portaria 579/2012 - Concessão prorrogada em 01/01/2013 – LEI 12783/2013 ) * Receita revisada no ciclo 2020-2021. * Receita revisada em 05-07-2024 | R54: 0
B55: CHESF | C55: ABAIXADORA | D55: EL 69 kV ABAIXADORA LT 69 kV ABAIXADORA /MULUNGU C-1 BA | E55: DIT | G55: 061/2001 | H55: IPCA | I55: RMEL | J55: REN 443/2011 | K55: 2016-07-26 | L55: 2046-07-29 | M55: 8394.24 | N55: 2024-06-01 | O55: Active | Q55: Instalação de contatos auxiliares de chaves seccionadoras. RAP incluída na análise do recurso da REH 2.258/2017. * Melhoria autorizada sem RAP Prévia incluído no reajuste do Ciclo 2017 - 2018 *(Receita revisada em 06/07/2020) *(Receita revisada em 03/07/2024) | R55: 0
B56: CHESF | C56: ABAIXADORA | D56: EL 69 kV ABAIXADORA LT 69 kV ABAIXADORA /MULUNGU C-1 BA | E56: DIT | G56: 061/2001 | H56: IPCA | I56: RMEL | J56: REN 905/2020 | K56: 2020-03-03 | L56: 2044-03-02 | M56: 7138.92 | N56: 2024-06-01 | O56: Active | Q56: Obras de Pequeno Porte sem RAP Prévia incluídas no processo de revisão da RAP das transmissoras prorrogadas de 2023, nos termos do Módulo 3 das Regras dos Serviços de Transmissão de Energia Elétrica. * Melhoria autorizada sem RAP Prévia incluído no reajuste do Ciclo 2024 - 2025 *(Receita revisada em 04/07/2024) | R56: 0
B57: CHESF | C57: ABAIXADORA | D57: EL 69 kV ABAIXADORA LT 69 kV ABAIXADORA /MOXOTO C-1 BA | E57: DIT | G57: 061/2001 | H57: IPCA | I57: RPC | J57: PRT 579/2012 | K57: 2013-01-01 | L57: 2043-01-01 | M57: 74002.44 | N57: 2024-06-01 | O57: Active | Q57: *(RAP Portaria 579/2012 - Concessão prorrogada em 01/01/2013 – LEI 12783/2013 ) * Receita revisada no ciclo 2020-2021. * Receita revisada em 05-07-2024 | R57: 0
B58: CHESF | C58: ABAIXADORA | D58: EL 69 kV ABAIXADORA LT 69 kV ABAIXADORA /MOXOTO C-1 BA | E58: DIT | G58: 061/2001 | H58: IPCA | I58: RMEL | J58: REN 443/2011 | K58: 2016-07-26 | L58: 2046-07-29 | M58: 8394.24 | N58: 2024-06-01 | O58: Active | Q58: Instalação de contatos auxiliares de chaves seccionadoras. RAP incluída na análise do recurso da REH 2.258/2017. * Melhoria autorizada sem RAP Prévia incluído no reajuste do Ciclo 2017 - 2018 *(Receita revisada em 06/07/2020) *(Receita revisada em 03/07/2024) | R58: 0
B59: CHESF | C59: ABAIXADORA | D59: EL 69 kV ABAIXADORA LT 69 kV ABAIXADORA /MOXOTO C-1 BA | E59: DIT | G59: 061/2001 | H59: IPCA | I59: RMEL | J59: REN 905/2020 | K59: 2022-03-25 | L59: 2046-03-24 | M59: 7659.26 | N59: 2024-06-01 | O59: Active | Q59: Obras de Pequeno Porte sem RAP Prévia incluídas no processo de revisão da RAP das transmissoras prorrogadas de 2023, nos termos do Módulo 3 das Regras dos Serviços de Transmissão de Energia Elétrica. * Melhoria autorizada sem RAP Prévia incluído no reajuste do Ciclo 2024 - 2025 *(Receita revisada em 04/07/2024) | R59: 0
B60: CHESF | C60: ABAIXADORA | D60: EL 69 kV ABAIXADORA DELMIRO GOUVEIA | E60: DIT | G60: 061/2001 | H60: IPCA | I60: RPC | J60: PRT 579/2012 | K60: 2013-01-01 | L60: 2043-01-01 | M60: 74002.44 | N60: 2024-06-01 | O60: Active | Q60: *(RAP Portaria 579/2012 - Concessão prorrogada em 01/01/2013 – LEI 12783/2013 ) * Receita revisada no ciclo 2020-2021. * Receita revisada em 05-07-2024 | R60: 0
B61: CHESF | C61: ABAIXADORA | D61: EL 69 kV ABAIXADORA DELMIRO GOUVEIA | E61: DIT | G61: 061/2001 | H61: IPCA | I61: RMEL | J61: REN 443/2011 | K61: 2016-07-26 | L61: 2046-07-29 | M61: 4197.11 | N61: 2024-06-01 | O61: Active | Q61: Instalação de contatos auxiliares de chaves seccionadoras. RAP incluída na análise do recurso da REH 2.258/2017. * Melhoria autorizada sem RAP Prévia incluído no reajuste do Ciclo 2017 - 2018 *(Receita revisada em 06/07/2020) *(Receita revisada em 03/07/2024) | R61: 0
B62: CHESF | C62: ABAIXADORA | D62: EL 69 kV ABAIXADORA DELMIRO GOUVEIA | E62: DIT | G62: 061/2001 | H62: IPCA | I62: RMEL | J62: REN 905/2020 | K62: 2022-04-16 | L62: 2046-04-15 | M62: 7674.51 | N62: 2024-06-01 | O62: Active | Q62: Obras de Pequeno Porte sem RAP Prévia incluídas no processo de revisão da RAP das transmissoras prorrogadas de 2023, nos termos do Módulo 3 das Regras dos Serviços de Transmissão de Energia Elétrica. * Melhoria autorizada sem RAP Prévia incluído no reajuste do Ciclo 2024 - 2025 *(Receita revisada em 04/07/2024) | R62: 0
B63: CGT ELETROSUL | C63: ABDON BATISTA | D63: EL 500 kV ABDON BATISTA LT 500 kV BIGUACU /ABDON BATISTA C-1 SC | E63: RB | F63: FT LT 500 kV BIGUACU /ABDON BATISTA C-1 SC | G63: 010/2005 | H63: IGPM | I63: RBNI | J63: REA 5904/2016 | K63: 2016-01-22 | L63: 2035-03-03 | M63: 426292.93 | N63: 2024-06-01 | O63: Active | Q63: Parcela adicional de RAP para operação e manutenção de entrada de linha em 525 kV, arranjo disjuntor e meio, na subestação Abdon Batista, associada à linha de transmissão 525 kV Campos Novos - Abdon Batista. *(Receita revisada em 06/07/2020) *(Receita revisada em 22/06/2022) | R63: 0
B64: CGT ELETROSUL | C64: ABDON BATISTA | D64: EL 500 kV ABDON BATISTA LT 500 kV ABDON BATISTA /C.NOVOS C-1 SC | E64: RB | F64: FT LT 500 kV ABDON BATISTA /C.NOVOS C-1 SC | G64: 010/2005 | H64: IGPM | I64: RBNI | J64: REA 5904/2016 | K64: 2016-01-22 | L64: 2035-03-03 | M64: 426292.93 | N64: 2024-06-01 | O64: Active | Q64: Parcela adicional de RAP para operação e manutenção de entrada de linha em 525 kV, arranjo disjuntor e meio, na subestação Abdon Batista, associada à linha de transmissão 525 kV Campos Novos - Abdon Batista. *(Receita revisada em 06/07/2020) *(Receita revisada em 22/06/2022) | R64: 0
B65: ELETRONORTE | C65: ABUNA | D65: TR 230/138 kV ABUNA TR2 RO | E65: RBF | F65: FT TR 230/138 kV ABUNA TR2 RO | G65: 058/2001 | H65: IPCA | I65: RBSE | J65: PRT 579/2012 | K65: 2013-01-01 | L65: 2043-01-01 | M65: 318806.69 | N65: 2024-06-01 | O65: Active | Q65: *(RAP Portaria 579/2012 - Concessão prorrogada em 01/01/2013 – LEI 12783/2013 ) * Receita revisada no ciclo 2020-2021. * Receita revisada em 05-07-2024 | R65: 0
B66: ELETRONORTE | C66: ABUNA | D66: TR 230/138 kV ABUNA TR1 RO | E66: RBF | F66: FT TR 230/138 kV ABUNA TR1 RO | G66: 058/2001 | H66: IPCA | I66: RBSE | J66: PRT 579/2012 | K66: 2013-01-01 | L66: 2043-01-01 | M66: 318806.69 | N66: 2024-06-01 | O66: Active | Q66: *(RAP Portaria 579/2012 - Concessão prorrogada em 01/01/2013 – LEI 12783/2013 ) * Receita revisada no ciclo 2020-2021. * Receita revisada em 05-07-2024 | R66: 0
B67: ELETRONORTE | C67: ABUNA | D67: TR 230/138 kV ABUNA TR1 RO | E67: RBF | F67: FT TR 230/138 kV ABUNA TR1 RO | G67: 058/2001 | H67: IPCA | I67: RMEL | J67: REN 905/2020 | K67: 2016-06-30 | L67: 2031-06-29 | M67: 34811.38 | N67: 2024-06-01 | O67: Active | Q67: Obras de Pequeno Porte sem RAP Prévia incluídas no processo de revisão da RAP das transmissoras prorrogadas de 2023, nos termos do Módulo 3 das Regras dos Serviços de Transmissão de Energia Elétrica. * Melhoria autorizada sem RAP Prévia incluído no reajuste do Ciclo 2024 - 2025 *(Receita revisada em 04/07/2024) | R67: 0
B68: ELETRONORTE | C68: ABUNA | D68: RTN 69 kV 0 Mvar ABUNA RN2 RO | E68: RB | F68: FT LT 230 kV ABUNA /RIO BRANCO 1 C-1 RO/AC | G68: 058/2001 | H68: IPCA | I68: RBSE | J68: PRT 579/2012 | K68: 2013-01-01 | L68: 2043-01-01 | M68: 16026.76 | N68: 2024-06-01 | O68: Active | Q68: *(RAP Portaria 579/2012 - Concessão prorrogada em 01/01/2013 – LEI 12783/2013 ) * Receita revisada no ciclo 2020-2021. * Receita revisada em 05-07-2024 | R68: 0
B69: ELETRONORTE | C69: ABUNA | D69: RTL 230 kV 30 Mvar ABUNA RT5 RO | E69: RB | F69: FT LT 230 kV ABUNA /RIO BRANCO 1 C-2 RO/AC | G69: 022/2009 | H69: IPCA | I69: RBL | J69: CC 022/2009 | K69: 2011-10-27 | L69: 2039-11-19 | M69: 740305.64 | N69: 2024-06-01 | O69: Active | Q69: Contrato de Concessão nº 022/2009 *(Considera adicional de RGR relativo à prorrogação do encargo) * Receita Revisada no Ciclo 2015-2016. * Receita revisada no Ciclo 2020-2021. | R69: 0
B70: ELETRONORTE | C70: ABUNA | D70: RTL 230 kV 30 Mvar ABUNA RT3 RO | E70: RB | F70: FT LT 230 kV ABUNA /PORTO VELHO C-2 RO | G70: 022/2009 | H70: IPCA | I70: RBL | J70: CC 022/2009 | K70: 2011-10-27 | L70: 2039-11-19 | M70: 740305.64 | N70: 2024-06-01 | O70: Active | Q70: Contrato de Concessão nº 022/2009 *(Considera adicional de RGR relativo à prorrogação do encargo) * Receita Revisada no Ciclo 2015-2016. * Receita revisada no Ciclo 2020-2021. | R70: 0
B71: ELETRONORTE | C71: ABUNA | D71: RTL 230 kV 30 Mvar ABUNA RT2 RO | E71: RB | F71: FT LT 230 kV ABUNA /RIO BRANCO 1 C-1 RO/AC | G71: 058/2001 | H71: IPCA | I71: RBSE | J71: PRT 579/2012 | K71: 2013-01-01 | L71: 2043-01-01 | M71: 267848.41 | N71: 2024-06-01 | O71: Active | Q71: *(RAP Portaria 579/2012 - Concessão prorrogada em 01/01/2013 – LEI 12783/2013 ) * Receita revisada no ciclo 2020-2021. * Receita revisada em 05-07-2024 | R71: 0
B72: ELETRONORTE | C72: ABUNA | D72: RTL 230 kV 30 Mvar ABUNA RT2 RO | E72: RB | F72: FT LT 230 kV ABUNA /RIO BRANCO 1 C-1 RO/AC | G72: 058/2001 | H72: IPCA | I72: RMEL | J72: REN 905/2020 | K72: 2016-06-30 | L72: 2031-06-29 | M72: 22152.69 | N72: 2024-06-01 | O72: Active | Q72: Obras de Pequeno Porte sem RAP Prévia incluídas no processo de revisão da RAP das transmissoras prorrogadas de 2023, nos termos do Módulo 3 das Regras dos Serviços de Transmissão de Energia Elétrica. * Melhoria autorizada sem RAP Prévia incluído no reajuste do Ciclo 2024 - 2025 *(Receita revisada em 04/07/2024) | R72: 0
B73: ELETRONORTE | C73: ABUNA | D73: RTL 230 kV 30 Mvar ABUNA RT1 RO | E73: RB | F73: FT LT 230 kV ABUNA /PORTO VELHO C-1 RO | G73: 058/2001 | H73: IPCA | I73: RBSE | J73: PRT 579/2012 | K73: 2013-01-01 | L73: 2043-01-01 | M73: 267848.41 | N73: 2024-06-01 | O73: Active | Q73: *(RAP Portaria 579/2012 - Concessão prorrogada em 01/01/2013 – LEI 12783/2013 ) * Receita revisada no ciclo 2020-2021. * Receita revisada em 05-07-2024 | R73: 0
B74: ELETRONORTE | C74: ABUNA | D74: RTL 230 kV 30 Mvar ABUNA RT1 RO | E74: RB | F74: FT LT 230 kV ABUNA /PORTO VELHO C-1 RO | G74: 058/2001 | H74: IPCA | I74: RMEL | J74: REN 905/2020 | K74: 2016-06-30 | L74: 2031-06-29 | M74: 22152.69 | N74: 2024-06-01 | O74: Active | Q74: Obras de Pequeno Porte sem RAP Prévia incluídas no processo de revisão da RAP das transmissoras prorrogadas de 2023, nos termos do Módulo 3 das Regras dos Serviços de Transmissão de Energia Elétrica. * Melhoria autorizada sem RAP Prévia incluído no reajuste do Ciclo 2024 - 2025 *(Receita revisada em 04/07/2024) | R74: 0
B75: ELETRONORTE | C75: ABUNA | D75: RTL 230 kV 30 Mvar ABUNA RLR RO | E75: RB | F75: FT RTL 230 kV 30 Mvar ABUNA RLR RO | G75: 058/2001 | H75: IPCA | I75: RBNI | J75: REA 5679/2016 | K75: 2017-12-18 | L75: 2053-03-04 | M75: 765979.38 | N75: 2024-06-01 | O75: Active | P75: T2015-058 | Q75: Instalação de reator trifásico em 230 kV e 30 Mvar como reserva fria do reator de linha. *(Receita revisada em 06/07/2020) *(Receita revisada em 03/07/2024) | R75: 0
B76: ELETRONORTE | C76: ABUNA | D76: RTB 230 kV 30 Mvar ABUNA RT4 RO | E76: RB | F76: FT RTB 230 kV 30 Mvar ABUNA RT4 RO | G76: 058/2001 | H76: IPCA | I76: RBSE | J76: PRT 579/2012 | K76: 2013-01-01 | L76: 2043-01-01 | M76: 267848.41 | N76: 2024-06-01 | O76: Active | Q76: *(RAP Portaria 579/2012 - Concessão prorrogada em 01/01/2013 – LEI 12783/2013 ) * Receita revisada no ciclo 2020-2021. * Receita revisada em 05-07-2024 | R76: 0
B77: ELETRONORTE | C77: ABUNA | D77: MG 230 kV ABUNA MG1 RO | E77: RB | F77: FT MG 230 kV ABUNA MG1 RO | G77: 058/2001 | H77: IPCA | I77: RBNI | J77: REA 3216/2011 | K77: 2014-01-12 | L77: 2042-08-18 | M77: 129998.53 | N77: 2024-06-01 | O77: Active | P77: T2011-137 | Q77: Instalação, na SE Abunã, de um barramento de transferência 230 kV. *(Inclui alterações estabelecidas pela Lei 12.783/2013) *(Receita revisada em 06/07/2020) *(Receita revisada em 03/07/2024) | R77: 0
B78: ELETRONORTE | C78: ABUNA | D78: MG 230 kV ABUNA MG1 RO | E78: RB | F78: FT MG 230 kV ABUNA MG1 RO | G78: 058/2001 | H78: IPCA | I78: RBNI | J78: REA 3216/2011 | K78: 2014-01-12 | L78: 2042-08-18 | M78: 61857.1 | N78: 2024-06-01 | O78: Active | P78: T2011-137 | Q78: Instalação, na SE Abunã, um barramento de transferência 138 kV. *(Inclui alterações estabelecidas pela Lei 12.783/2013) *(Receita revisada em 06/07/2020) *(Receita revisada em 03/07/2024) | R78: 0
B79: ELETRONORTE | C79: ABUNA | D79: MG 230 kV ABUNA MG1 RO | E79: RB | F79: FT MG 230 kV ABUNA MG1 RO | G79: 058/2001 | H79: IPCA | I79: RBSE | J79: PRT 579/2012 | K79: 2013-01-01 | L79: 2043-01-01 | M79: 501467.57 | N79: 2024-06-01 | O79: Active | Q79: *(RAP Portaria 579/2012 - Concessão prorrogada em 01/01/2013 – LEI 12783/2013 ) * Receita revisada no ciclo 2020-2021. * Receita revisada em 05-07-2024 | R79: 0
B80: ELETRONORTE | C80: ABUNA | D80: MG 230 kV ABUNA MG1 RO | E80: RB | F80: FT MG 230 kV ABUNA MG1 RO | G80: 058/2001 | H80: IPCA | I80: RBNI | J80: REA 5679/2016 | K80: 2017-12-18 | L80: 2048-11-26 | M80: 77038.53 | N80: 2024-06-01 | O80: Active | P80: T2015-058 | Q80: Complemento de módulo de infraestrutura de manobra - MIM em 230 kV associado à instalação de Reator Trifásico 30 Mvar em 230 kV - reserva fria de reator de linha. *(Receita revisada em 06/07/2020) *(Receita revisada em 03/07/2024) | R80: 0
B81: ELETRONORTE | C81: ABUNA | D81: MG 230 kV ABUNA MG1 RO | E81: RB | F81: FT MG 230 kV ABUNA MG1 RO | G81: 058/2001 | H81: IPCA | I81: RMEL | J81: REN 443/2011 | K81: 2016-09-01 | L81: 2033-08-31 | M81: 21197.88 | N81: 2024-06-01 | O81: Active | Q81: MODERNIZAÇÃO DOS SERVIÇOS AUXILIARES CA E CC DAS SUBESTAÇÕES DO SISTEMA RONDONIA: CONTEMPLA SUBSTITUIÇÃO DE QUADROS, RETIFICADORES E BANCO DE BATERIAS. * Melhoria autorizada sem RAP Prévia incluído no reajuste do Ciclo 2018 - 2019 *(Receita revisada em 06/07/2020) *(Receita revisada em 03/07/2024) | R81: 0
B82: ELETRONORTE | C82: ABUNA | D82: MG 230 kV ABUNA MG1 RO | E82: RB | F82: FT MG 230 kV ABUNA MG1 RO | G82: 058/2001 | H82: IPCA | I82: RMEL | J82: REN 905/2020 | K82: 2017-07-20 | L82: 2049-07-19 | M82: 45041.7 | N82: 2024-06-01 | O82: Active | Q82: Obras de Pequeno Porte sem RAP Prévia incluídas no processo de revisão da RAP das transmissoras prorrogadas de 2023, nos termos do Módulo 3 das Regras dos Serviços de Transmissão de Energia Elétrica. * Melhoria autorizada sem RAP Prévia incluído no reajuste do Ciclo 2024 - 2025 *(Receita revisada em 04/07/2024) | R82: 0
B83: ELETRONORTE | C83: ABUNA | D83: MC 230 kV TR 230/138 kV ABUNA TR2 RO | E83: RBF | F83: FT TR 230/138 kV ABUNA TR2 RO | G83: 058/2001 | H83: IPCA | I83: RBSE | J83: PRT 579/2012 | K83: 2013-01-01 | L83: 2043-01-01 | M83: 169995.86 | N83: 2024-06-01 | O83: Active | Q83: *(RAP Portaria 579/2012 - Concessão prorrogada em 01/01/2013 – LEI 12783/2013 ) * Receita revisada no ciclo 2020-2021. * Receita revisada em 05-07-2024 | R83: 0
B84: ELETRONORTE | C84: ABUNA | D84: MC 230 kV TR 230/138 kV ABUNA TR1 RO | E84: RBF | F84: FT TR 230/138 kV ABUNA TR1 RO | G84: 058/2001 | H84: IPCA | I84: RBSE | J84: PRT 579/2012 | K84: 2013-01-01 | L84: 2043-01-01 | M84: 169995.86 | N84: 2024-06-01 | O84: Active | Q84: *(RAP Portaria 579/2012 - Concessão prorrogada em 01/01/2013 – LEI 12783/2013 ) * Receita revisada no ciclo 2020-2021. * Receita revisada em 05-07-2024 | R84: 0
B85: ELETRONORTE | C85: ABUNA | D85: MC 230 kV RTL 230 kV 30 Mvar ABUNA RT5 RO | E85: RB | F85: FT LT 230 kV ABUNA /RIO BRANCO 1 C-2 RO/AC | G85: 022/2009 | H85: IPCA | I85: RBL | J85: CC 022/2009 | K85: 2011-10-27 | L85: 2039-11-19 | M85: 243560.01 | N85: 2024-06-01 | O85: Active | Q85: Contrato de Concessão nº 022/2009 *(Considera adicional de RGR relativo à prorrogação do encargo) * Receita Revisada no Ciclo 2015-2016. * Receita revisada no Ciclo 2020-2021. | R85: 0
B86: ELETRONORTE | C86: ABUNA | D86: MC 230 kV RTL 230 kV 30 Mvar ABUNA RT3 RO | E86: RB | F86: FT LT 230 kV ABUNA /PORTO VELHO C-2 RO | G86: 022/2009 | H86: IPCA | I86: RBL | J86: CC 022/2009 | K86: 2011-10-27 | L86: 2039-11-19 | M86: 243560.01 | N86: 2024-06-01 | O86: Active | Q86: Contrato de Concessão nº 022/2009 *(Considera adicional de RGR relativo à prorrogação do encargo) * Receita Revisada no Ciclo 2015-2016. * Receita revisada no Ciclo 2020-2021. | R86: 0
B87: ELETRONORTE | C87: ABUNA | D87: MC 230 kV RTL 230 kV 30 Mvar ABUNA RT2 RO | E87: RB | F87: FT LT 230 kV ABUNA /RIO BRANCO 1 C-1 RO/AC | G87: 058/2001 | H87: IPCA | I87: RBSE | J87: PRT 579/2012 | K87: 2013-01-01 | L87: 2043-01-01 | M87: 106693.9 | N87: 2024-06-01 | O87: Active | Q87: *(RAP Portaria 579/2012 - Concessão prorrogada em 01/01/2013 – LEI 12783/2013 ) * Receita revisada no ciclo 2020-2021. * Receita revisada em 05-07-2024 | R87: 0
B88: ELETRONORTE | C88: ABUNA | D88: MC 230 kV RTL 230 kV 30 Mvar ABUNA RT1 RO | E88: RB | F88: FT LT 230 kV ABUNA /PORTO VELHO C-1 RO | G88: 058/2001 | H88: IPCA | I88: RBSE | J88: PRT 579/2012 | K88: 2013-01-01 | L88: 2043-01-01 | M88: 106693.9 | N88: 2024-06-01 | O88: Active | Q88: *(RAP Portaria 579/2012 - Concessão prorrogada em 01/01/2013 – LEI 12783/2013 ) * Receita revisada no ciclo 2020-2021. * Receita revisada em 05-07-2024 | R88: 0
B89: ELETRONORTE | C89: ABUNA | D89: MC 230 kV RTB 230 kV 30 Mvar ABUNA RT4 RO | E89: RB | F89: FT RTB 230 kV 30 Mvar ABUNA RT4 RO | G89: 058/2001 | H89: IPCA | I89: RBSE | J89: PRT 579/2012 | K89: 2013-01-01 | L89: 2043-01-01 | M89: 145654.06 | N89: 2024-06-01 | O89: Active | Q89: *(RAP Portaria 579/2012 - Concessão prorrogada em 01/01/2013 – LEI 12783/2013 ) * Receita revisada no ciclo 2020-2021. * Receita revisada em 05-07-2024 | R89: 0
B90: ELETRONORTE | C90: ABUNA | D90: MC 138 kV TR 230/138 kV ABUNA TR2 RO | E90: RBF | F90: FT TR 230/138 kV ABUNA TR2 RO | G90: 058/2001 | H90: IPCA | I90: RBNI | J90: REA 3216/2011 | K90: 2014-01-12 | L90: 2045-04-06 | M90: 513855.13 | N90: 2024-06-01 | O90: Active | P90: T2011-137 | Q90: Adequação do módulo de conexão 138 kV do transformador ATR2 230/138 kV - 55 MVA ao arranjo barra principal e transferência. *(Inclui alterações estabelecidas pela Lei 12.783/2013) *(Receita revisada em 06/07/2020) *(Receita revisada em 03/07/2024) | R90: 0
B91: ELETRONORTE | C91: ABUNA | D91: MC 138 kV TR 230/138 kV ABUNA TR2 RO | E91: RBF | F91: FT TR 230/138 kV ABUNA TR2 RO | G91: 058/2001 | H91: IPCA | I91: RBSE | J91: PRT 579/2012 | K91: 2013-01-01 | L91: 2043-01-01 | M91: 130527.5 | N91: 2024-06-01 | O91: Active | Q91: *(RAP Portaria 579/2012 - Concessão prorrogada em 01/01/2013 – LEI 12783/2013 ) * Receita revisada no ciclo 2020-2021. * Receita revisada em 05-07-2024 | R91: 0
B92: ELETRONORTE | C92: ABUNA | D92: MC 138 kV TR 230/138 kV ABUNA TR1 RO | E92: RBF | F92: FT TR 230/138 kV ABUNA TR1 RO | G92: 058/2001 | H92: IPCA | I92: RBNI | J92: REA 3216/2011 | K92: 2014-01-12 | L92: 2045-04-27 | M92: 513925.25 | N92: 2024-06-01 | O92: Active | P92: T2011-137 | Q92: Adequação do módulo de conexão 138 kV do transformador ATR1 200/138 kV - 55 MVA ao arranjo barra principal e transferência. *(Inclui alterações estabelecidas pela Lei 12.783/2013) *(Receita revisada em 06/07/2020) *(Receita revisada em 03/07/2024) | R92: 0
B93: ELETRONORTE | C93: ABUNA | D93: MC 138 kV TR 230/138 kV ABUNA TR1 RO | E93: RBF | F93: FT TR 230/138 kV ABUNA TR1 RO | G93: 058/2001 | H93: IPCA | I93: RBSE | J93: PRT 579/2012 | K93: 2013-01-01 | L93: 2043-01-01 | M93: 119538.48 | N93: 2024-06-01 | O93: Active | Q93: *(RAP Portaria 579/2012 - Concessão prorrogada em 01/01/2013 – LEI 12783/2013 ) * Receita revisada no ciclo 2020-2021. * Receita revisada em 05-07-2024 | R93: 0
B94: ELETRONORTE | C94: ABUNA | D94: IB 230 kV MG 230 kV ABUNA MG1 RO IB1 | E94: RB | F94: FT MG 230 kV ABUNA MG1 RO | G94: 058/2001 | H94: IPCA | I94: RBNI | J94: REA 3216/2011 | K94: 2014-01-12 | L94: 2043-10-17 | M94: 668063.8 | N94: 2024-06-01 | O94: Active | P94: T2011-137 | Q94: Instalar, na SE Abunã, um módulo de interligação de barras 230 kV, arranjo barra principal e transferência, *(Inclui alterações estabelecidas pela Lei 12.783/2013) *(Receita revisada em 06/07/2020) *(Receita revisada em 03/07/2024) | R94: 0
B95: ELETRONORTE | C95: ABUNA | D95: IB 138 kV MG 230 kV ABUNA MG1 RO IB1 | E95: DIT | G95: 058/2001 | H95: IPCA | I95: RCDM | J95: REA 3216/2011 | K95: 2014-01-12 | L95: 2045-06-25 | M95: 518581.73 | N95: 2024-06-01 | O95: Active | P95: T2011-137 | Q95: Instalar, na SE Abunã, um módulo de interligação de barras 138 kV, arranjo barra principal e transferência, *(Inclui alterações estabelecidas pela Lei 12.783/2013) *(Receita revisada em 06/07/2020) *(Receita revisada em 03/07/2024) | R95: 0
B96: ELETRONORTE | C96: ABUNA | D96: EL 230 kV ABUNA LT 230 kV ABUNA /RIO BRANCO 1 C-2 RO/AC | E96: RB | F96: FT LT 230 kV ABUNA /RIO BRANCO 1 C-2 RO/AC | G96: 022/2009 | H96: IPCA | I96: RBL | J96: CC 022/2009 | K96: 2011-10-27 | L96: 2039-11-19 | M96: 743280.07 | N96: 2024-06-01 | O96: Active | Q96: Contrato de Concessão nº 022/2009 *(Considera adicional de RGR relativo à prorrogação do encargo) * Receita Revisada no Ciclo 2015-2016. * Receita revisada no Ciclo 2020-2021. | R96: 0
B97: ELETRONORTE | C97: ABUNA | D97: EL 230 kV ABUNA LT 230 kV ABUNA /RIO BRANCO 1 C-1 RO/AC | E97: RB | F97: FT LT 230 kV ABUNA /RIO BRANCO 1 C-1 RO/AC | G97: 058/2001 | H97: IPCA | I97: RBSE | J97: PRT 579/2012 | K97: 2013-01-01 | L97: 2043-01-01 | M97: 238311.59 | N97: 2024-06-01 | O97: Active | Q97: *(RAP Portaria 579/2012 - Concessão prorrogada em 01/01/2013 – LEI 12783/2013 ) * Receita revisada no ciclo 2020-2021. * Receita revisada em 05-07-2024 | R97: 0
B98: ELETRONORTE | C98: ABUNA | D98: EL 230 kV ABUNA LT 230 kV ABUNA /PORTO VELHO C-2 RO | E98: RB | F98: FT LT 230 kV ABUNA /PORTO VELHO C-2 RO | G98: 022/2009 | H98: IPCA | I98: RBL | J98: CC 022/2009 | K98: 2011-10-27 | L98: 2039-11-19 | M98: 743280.07 | N98: 2024-06-01 | O98: Active | Q98: Contrato de Concessão nº 022/2009 *(Considera adicional de RGR relativo à prorrogação do encargo) * Receita Revisada no Ciclo 2015-2016. * Receita revisada no Ciclo 2020-2021. | R98: 0
B99: ELETRONORTE | C99: ABUNA | D99: EL 230 kV ABUNA LT 230 kV ABUNA /PORTO VELHO C-1 RO | E99: RB | F99: FT LT 230 kV ABUNA /PORTO VELHO C-1 RO | G99: 058/2001 | H99: IPCA | I99: RBSE | J99: PRT 579/2012 | K99: 2013-01-01 | L99: 2043-01-01 | M99: 238311.59 | N99: 2024-06-01 | O99: Active | Q99: *(RAP Portaria 579/2012 - Concessão prorrogada em 01/01/2013 – LEI 12783/2013 ) * Receita revisada no ciclo 2020-2021. * Receita revisada em 05-07-2024 | R99: 0
B100: CHESF | C100: ACARAU II | D100: TT 69/0 kV ACARAU II TT1 CE | E100: ICG | G100: 021/2010 | H100: IPCA | I100: RICG | J100: CC 021/2010 | K100: 2010-11-23 | L100: 2040-11-23 | M100: 97219.52 | N100: 2024-06-01 | O100: Active | P100: T2010-092 | Q100: Contrato de Concessão nº 021/2010 RPEC - ICG *(Considera adicional de RGR relativo à prorrogação do encargo) * Receita Revisada no reajuste do ciclo 2016-2017. * Receita revisada no ciclo 2021-2022. | R100: 0
B101: CHESF | C101: ACARAU II | D101: TR 230/69 kV ACARAU II TR2 CE | E101: ICG | G101: 021/2010 | H101: IPCA | I101: RICG | J101: CC 021/2010 | K101: 2010-11-23 | L101: 2040-11-23 | M101: 1113662.61 | N101: 2024-06-01 | O101: Active | P101: T2010-092 | Q101: Contrato de Concessão nº 021/2010 RPEC - ICG *(Considera adicional de RGR relativo à prorrogação do encargo) * Receita Revisada no reajuste do ciclo 2016-2017. * Receita revisada no ciclo 2021-2022. | R101: 0
B102: CHESF | C102: ACARAU II | D102: TR 230/69 kV ACARAU II TR1 CE | E102: ICG | G102: 021/2010 | H102: IPCA | I102: RICG | J102: CC 021/2010 | K102: 2010-11-23 | L102: 2040-11-23 | M102: 1113662.61 | N102: 2024-06-01 | O102: Active | P102: T2010-092 | Q102: Contrato de Concessão nº 021/2010 RPEC - ICG *(Considera adicional de RGR relativo à prorrogação do encargo) * Receita Revisada no reajuste do ciclo 2016-2017. * Receita revisada no ciclo 2021-2022. | R102: 0
B103: CHESF | C103: ACARAU II | D103: RTB 230 kV 20 Mvar ACARAU II RT1 CE | E103: RB | F103: FT RTB 230 kV 20 Mvar ACARAU II RT1 CE | G103: 021/2010 | H103: IPCA | I103: RBL | J103: CC 021/2010 | K103: 2014-04-08 | L103: 2040-11-23 | M103: 517029.72 | N103: 2024-06-01 | O103: Active | P103: T2010-092 | Q103: Contrato de Concessão nº 021/2010 RBL *(Considera adicional de RGR relativo à prorrogação do encargo) * Receita Revisada no reajuste do ciclo 2016-2017. * Receita revisada no ciclo 2021-2022. | R103: 0
B104: CHESF | C104: ACARAU II | D104: MG 69 kV ACARAU II MG1 CE | E104: ICG | G104: 021/2010 | H104: IPCA | I104: RICG | J104: CC 021/2010 | K104: 2010-11-23 | L104: 2040-11-23 | M104: 75722.16 | N104: 2024-06-01 | O104: Active | P104: T2010-092 | Q104: Contrato de Concessão nº 021/2010 RPEC - ICG *(Considera adicional de RGR relativo à prorrogação do encargo) * Receita Revisada no reajuste do ciclo 2016-2017. * Receita revisada no ciclo 2021-2022. | R104: 0
B105: CHESF | C105: ACARAU II | D105: MG 230 kV ACARAU II MG1 CE | E105: RB | F105: FT MG 230 kV ACARAU II MG1 CE | G105: 021/2010 | H105: IPCA | I105: RBL | J105: CC 021/2010 | K105: 2014-04-08 | L105: 2040-11-23 | M105: 769818.66 | N105: 2024-06-01 | O105: Active | P105: T2010-092 | Q105: Contrato de Concessão nº 021/2010 RBL *(Considera adicional de RGR relativo à prorrogação do encargo) * Receita Revisada no reajuste do ciclo 2016-2017. * Receita revisada no ciclo 2021-2022. | R105: 0
B106: CHESF | C106: ACARAU II | D106: MG 230 kV ACARAU II MG1 CE | E106: RB | F106: FT MG 230 kV ACARAU II MG1 CE | G106: 021/2010 | H106: IPCA | I106: RBNI | J106: REN 905/2020 | K106: 2020-10-16 | L106: 2051-10-15 | M106: 35184.31 | N106: 2024-06-01 | O106: Active | Q106: MIM associado a um módulo de Entrada de Linha em 69 kV com destino à Acaraú I. 01 EL 69 kV Acaraú I C1 (LT-02C1-AUD/ACA -Acarau I C1) * Reforço autorizado sem RAP Prévia incluído no reajuste do Ciclo 2021 - 2022 | R106: 0
B107: CHESF | C107: ACARAU II | D107: MG 230 kV ACARAU II MG1 CE | E107: RB | F107: FT MG 230 kV ACARAU II MG1 CE | G107: 021/2010 | H107: IPCA | I107: RBNI | J107: REN 905/2020 | K107: 2020-10-16 | L107: 2051-10-15 | M107: 35184.31 | N107: 2024-06-01 | O107: Active | Q107: MIM associado a um módulo de Entrada de Linha em 69 kV com destino à Marco. 01 EL 69 kV Marco C1 (LT-02S4-AUD/Marco -Marco C1) * Reforço autorizado sem RAP Prévia incluído no reajuste do Ciclo 2021 - 2022 | R107: 0
B108: CHESF | C108: ACARAU II | D108: MC 69 kV TT 69/0 kV ACARAU II TT1 CE | E108: ICG | G108: 021/2010 | H108: IPCA | I108: RICG | J108: CC 021/2010 | K108: 2010-11-23 | L108: 2040-11-23 | M108: 75193.84 | N108: 2024-06-01 | O108: Active | P108: T2010-092 | Q108: Contrato de Concessão nº 021/2010 RPEC - ICG *(Considera adicional de RGR relativo à prorrogação do encargo) * Receita Revisada no reajuste do ciclo 2016-2017. * Receita revisada no ciclo 2021-2022. | R108: 0
B109: CHESF | C109: ACARAU II | D109: MC 69 kV TR 230/69 kV ACARAU II TR2 CE | E109: ICG | G109: 021/2010 | H109: IPCA | I109: RICG | J109: CC 021/2010 | K109: 2010-11-23 | L109: 2040-11-23 | M109: 176301.53 | N109: 2024-06-01 | O109: Active | P109: T2010-092 | Q109: Contrato de Concessão nº 021/2010 RPEC - ICG *(Considera adicional de RGR relativo à prorrogação do encargo) * Receita Revisada no reajuste do ciclo 2016-2017. * Receita revisada no ciclo 2021-2022. | R109: 0
B110: CHESF | C110: ACARAU II | D110: MC 69 kV TR 230/69 kV ACARAU II TR1 CE | E110: ICG | G110: 021/2010 | H110: IPCA | I110: RICG | J110: CC 021/2010 | K110: 2010-11-23 | L110: 2040-11-23 | M110: 176301.53 | N110: 2024-06-01 | O110: Active | P110: T2010-092 | Q110: Contrato de Concessão nº 021/2010 RPEC - ICG *(Considera adicional de RGR relativo à prorrogação do encargo) * Receita Revisada no reajuste do ciclo 2016-2017. * Receita revisada no ciclo 2021-2022. | R110: 0
B111: CHESF | C111: ACARAU II | D111: MC 230 kV TR 230/69 kV ACARAU II TR2 CE | E111: ICG | G111: 021/2010 | H111: IPCA | I111: RICG | J111: CC 021/2010 | K111: 2010-11-23 | L111: 2040-11-23 | M111: 433318.06 | N111: 2024-06-01 | O111: Active | P111: T2010-092 | Q111: Contrato de Concessão nº 021/2010 RPEC - ICG *(Considera adicional de RGR relativo à prorrogação do encargo) * Receita Revisada no reajuste do ciclo 2016-2017. * Receita revisada no ciclo 2021-2022. | R111: 0
B112: CHESF | C112: ACARAU II | D112: MC 230 kV TR 230/69 kV ACARAU II TR1 CE | E112: ICG | G112: 021/2010 | H112: IPCA | I112: RICG | J112: CC 021/2010 | K112: 2010-11-23 | L112: 2040-11-23 | M112: 433318.06 | N112: 2024-06-01 | O112: Active | P112: T2010-092 | Q112: Contrato de Concessão nº 021/2010 RPEC - ICG *(Considera adicional de RGR relativo à prorrogação do encargo) * Receita Revisada no reajuste do ciclo 2016-2017. * Receita revisada no ciclo 2021-2022. | R112: 0
B113: CHESF | C113: ACARAU II | D113: MC 230 kV RTB 230 kV 20 Mvar ACARAU II RT1 CE | E113: RB | F113: FT RTB 230 kV 20 Mvar ACARAU II RT1 CE | G113: 021/2010 | H113: IPCA | I113: RBL | J113: CC 021/2010 | K113: 2014-04-08 | L113: 2040-11-23 | M113: 348272.54 | N113: 2024-06-01 | O113: Active | P113: T2010-092 | Q113: Contrato de Concessão nº 021/2010 RBL *(Considera adicional de RGR relativo à prorrogação do encargo) * Receita Revisada no reajuste do ciclo 2016-2017. * Receita revisada no ciclo 2021-2022. | R113: 0
B114: CHESF | C114: ACARAU II | D114: IB 69 kV MG 69 kV ACARAU II MG1 CE IB1 | E114: ICG | G114: 021/2010 | H114: IPCA | I114: RICG | J114: CC 021/2010 | K114: 2010-11-23 | L114: 2040-11-23 | M114: 120216.7 | N114: 2024-06-01 | O114: Active | P114: T2010-092 | Q114: Contrato de Concessão nº 021/2010 RPEC - ICG *(Considera adicional de RGR relativo à prorrogação do encargo) * Receita Revisada no reajuste do ciclo 2016-2017. * Receita revisada no ciclo 2021-2022. | R114: 0
B115: CHESF | C115: ACARAU II | D115: EL 69 kV ACARAU II DIST02 | E115: DIT | G115: 021/2010 | H115: IPCA | I115: RCDM | J115: REN 905/2020 | K115: 2020-10-16 | L115: 2047-10-15 | M115: 364743.28 | N115: 2024-06-01 | O115: Active | Q115: Um módulo de Entrada de Linha em 69 kV com destino à Marco. 01 EL 69 kV Marco C1 (LT-02S4-AUD/Marco -Marco C1) * Reforço autorizado sem RAP Prévia incluído no reajuste do Ciclo 2021 - 2022 | R115: 0
B116: CHESF | C116: ACARAU II | D116: EL 69 kV ACARAU II DIST01 | E116: DIT | G116: 021/2010 | H116: IPCA | I116: RCDM | J116: REN 905/2020 | K116: 2020-10-16 | L116: 2047-10-15 | M116: 364743.28 | N116: 2024-06-01 | O116: Active | Q116: Um módulo de Entrada de Linha em 69 kV com destino à Acaraú I. 01 EL 69 kV Acaraú I C1 (LT-02C1-AUD/ACA -Acarau I C1) * Reforço autorizado sem RAP Prévia incluído no reajuste do Ciclo 2021 - 2022 | R116: 0
B117: CHESF | C117: ACARAU II | D117: EL 230 kV ACARAU II LT 230 kV SOBRAL III /ACARAU II C-1 CE | E117: RB | F117: FT LT 230 kV SOBRAL III /ACARAU II C-1 CE | G117: 021/2010 | H117: IPCA | I117: RBL | J117: CC 021/2010 | K117: 2014-04-08 | L117: 2040-11-23 | M117: 508316.12 | N117: 2024-06-01 | O117: Active | P117: T2010-092 | Q117: Contrato de Concessão nº 021/2010 RBL *(Considera adicional de RGR relativo à prorrogação do encargo) * Receita Revisada no reajuste do ciclo 2016-2017. * Receita revisada no ciclo 2021-2022. | R117: 0
B118: CHESF | C118: ACU II | D118: TT 69/13,8 kV ACU II TA1 RN | E118: DIT | G118: 061/2001 | H118: IPCA | I118: RCDM | J118: REA 3578/2012 | K118: 2015-10-11 | L118: 2046-06-08 | M118: 172109.52 | N118: 2024-06-01 | O118: Active | Q118: Obra de Substituição Completa - Substituição de 1 transformador de aterramento: 02A1. (Potência: 7,5 MVA) * Reforço autorizado sem RAP Prévia incluído no reajuste do Ciclo 2018 - 2019 *(Receita revisada em 06/07/2020) *(Receita revisada em 03/07/2024) | R118: 0
B119: CHESF | C119: ACU II | D119: TR 230/69 kV ACU II TR7 RN | E119: RBF | F119: FT TR 230/69 kV ACU II TR7 RN | G119: 061/2001 | H119: IPCA | I119: RBSE | J119: PRT 579/2012 | K119: 2013-01-01 | L119: 2043-01-01 | M119: 249592.96 | N119: 2024-06-01 | O119: Active | Q119: *(RAP Portaria 579/2012 - Concessão prorrogada em 01/01/2013 – LEI 12783/2013 ) * Receita revisada no ciclo 2020-2021. * Receita revisada em 05-07-2024 | R119: 0
B120: CHESF | C120: ACU II | D120: TR 230/69 kV ACU II TR6 RN | E120: RBF | F120: FT TR 230/69 kV ACU II TR6 RN | G120: 061/2001 | H120: IPCA | I120: RBSE | J120: PRT 579/2012 | K120: 2013-01-01 | L120: 2043-01-01 | M120: 249592.96 | N120: 2024-06-01 | O120: Active | Q120: *(RAP Portaria 579/2012 - Concessão prorrogada em 01/01/2013 – LEI 12783/2013 ) * Receita revisada no ciclo 2020-2021. * Receita revisada em 05-07-2024 | R120: 0
B121: CHESF | C121: ACU II | D121: TR 230/69 kV ACU II TR6 RN | E121: RBF | F121: FT TR 230/69 kV ACU II TR6 RN | G121: 061/2001 | H121: IPCA | I121: RBSE | J121: PRT 120/2016 | K121: 2017-07-01 | L121: 2028-06-30 | M121: 821509.39 | N121: 2024-06-01 | O121: Active | Q121: Componente Financeiro apurado referente ao período de Janeiro/2013 a Junho/2017, com prazo de pagamento de 8 anos, conforme consta no § 3º e § 4º, do Art. 1º, da PRT 120/2016. * Receita revisada no ciclo 2020-2021. * Receita revisada em 05-07-2024 | R121: 0
B122: CHESF | C122: ACU II | D122: TR 230/69 kV ACU II TR6 RN | E122: RBF | F122: FT TR 230/69 kV ACU II TR6 RN | G122: 061/2001 | H122: IPCA | I122: RBSE | J122: PRT 120/2016 | K122: 2017-07-01 | L122: 2042-12-31 | M122: 775816.59 | N122: 2024-06-01 | O122: Active | Q122: Parcela de RAP calculada de acordo com a PRT 120/2016 e incluída a partir do ciclo 2017-2018. * Receita revisada em 05-07-2024 | R122: 0
B123: CHESF | C123: ACU II | D123: TR 230/69 kV ACU II TR5 RN | E123: RBF | F123: FT TR 230/69 kV ACU II TR5 RN | G123: 061/2001 | H123: IPCA | I123: RBSE | J123: PRT 579/2012 | K123: 2013-01-01 | L123: 2043-01-01 | M123: 211189.86 | N123: 2024-06-01 | O123: Active | Q123: *(RAP Portaria 579/2012 - Concessão prorrogada em 01/01/2013 – LEI 12783/2013 ) * Receita revisada no ciclo 2020-2021. * Receita revisada em 05-07-2024 | R123: 0
B124: CHESF | C124: ACU II | D124: TR 230/69 kV ACU II TR4 RN | E124: RBF | F124: FT TR 230/69 kV ACU II TR4 RN | G124: 061/2001 | H124: IPCA | I124: RBSE | J124: PRT 579/2012 | K124: 2013-01-01 | L124: 2043-01-01 | M124: 211189.86 | N124: 2024-06-01 | O124: Active | Q124: *(RAP Portaria 579/2012 - Concessão prorrogada em 01/01/2013 – LEI 12783/2013 ) * Receita revisada no ciclo 2020-2021. * Receita revisada em 05-07-2024 | R124: 0
B125: CHESF | C125: ACU II | D125: TR 230/69 kV ACU II TR4 RN | E125: RBF | F125: FT TR 230/69 kV ACU II TR4 RN | G125: 061/2001 | H125: IPCA | I125: RBNIA | J125: DSP 4277/2023 | M125: 2048321.37 | N125: 2024-06-01 | O125: Expected | P125: T2023-160 | Q125: Obra de Substituição Completa - Substituição do transformador 230/69/13,8 kV de 39 MVA (04T4), que está em final de vida útil, por um transformador de 100 MVA. (Ref. SGPMR 0001307/2022) (Rotina-Substituição - IdeMdl 10553). | R125: 0
B126: CHESF | C126: ACU II | D126: TR 230/138 kV ACU II TR3 RN | E126: RBF | F126: FT TR 230/138 kV ACU II TR3 RN | G126: 061/2001 | H126: IPCA | I126: RBSE | J126: PRT 579/2012 | K126: 2013-01-01 | L126: 2043-01-01 | M126: 374408 | N126: 2024-06-01 | O126: Active | Q126: *(RAP Portaria 579/2012 - Concessão prorrogada em 01/01/2013 – LEI 12783/2013 ) * Receita revisada no ciclo 2020-2021. * Receita revisada em 05-07-2024 | R126: 0
B127: CHESF | C127: ACU II | D127: TR 230/138 kV ACU II TR2 RN | E127: RBF | F127: FT TR 230/138 kV ACU II TR2 RN | G127: 061/2001 | H127: IPCA | I127: RBSE | J127: PRT 579/2012 | K127: 2013-01-01 | L127: 2043-01-01 | M127: 374408 | N127: 2024-06-01 | O127: Active | Q127: *(RAP Portaria 579/2012 - Concessão prorrogada em 01/01/2013 – LEI 12783/2013 ) * Receita revisada no ciclo 2020-2021. * Receita revisada em 05-07-2024 | R127: 0
B128: CHESF | C128: ACU II | D128: RTB 13,8 kV 5 MVAr ACU II RT1 RN | E128: RBF | F128: FT RTB 13,8 kV 5 MVAr ACU II RT1 RN | G128: 061/2001 | H128: IPCA | I128: RBSE | J128: PRT 579/2012 | K128: 2013-01-01 | L128: 2043-01-01 | M128: 126594.01 | N128: 2024-06-01 | O128: Active | Q128: *(RAP Portaria 579/2012 - Concessão prorrogada em 01/01/2013 – LEI 12783/2013 ) * Receita revisada no ciclo 2020-2021. * Receita revisada em 05-07-2024 | R128: 0
B129: CHESF | C129: ACU II | D129: MG 230 kV ACU II MG1 RN | E129: RB | F129: FT MG 230 kV ACU II MG1 RN | G129: 061/2001 | H129: IPCA | I129: RBSE | J129: PRT 579/2012 | K129: 2013-01-01 | L129: 2043-01-01 | M129: 696078.57 | N129: 2024-06-01 | O129: Active | Q129: *(RAP Portaria 579/2012 - Concessão prorrogada em 01/01/2013 – LEI 12783/2013 ) * Receita revisada no ciclo 2020-2021. * Receita revisada em 05-07-2024 | R129: 0
B130: CHESF | C130: ACU II | D130: MG 230 kV ACU II MG1 RN | E130: RB | F130: FT MG 230 kV ACU II MG1 RN | G130: 061/2001 | H130: IPCA | I130: RMEL | J130: REN 643/2014 | K130: 2013-12-03 | L130: 2030-12-02 | M130: 14919.3 | N130: 2024-06-01 | O130: Active | Q130: SUBSTITUIÇÃO DE BANCOS DE BATERIAS 800A1 E 800A2 DE 125 Vcc. Incluído no reajuste ciclo 2015-2016. *(Receita revisada em 06/07/2020) *(Receita revisada em 03/07/2024) | R130: 0
B131: CHESF | C131: ACU II | D131: MG 230 kV ACU II MG1 RN | E131: RB | F131: FT MG 230 kV ACU II MG1 RN | G131: 061/2001 | H131: IPCA | I131: RMEL | J131: REN 643/2014 | K131: 2015-05-23 | L131: 2043-05-22 | M131: 59116.19 | N131: 2024-06-01 | O131: Active | Q131: IMPLANTAÇÃO DE SISTEMAS AUTOMÁTICOS DE REGULAÇÃO ASSOCIADOS A TRANSFORMADORES.Melhoria incluída no ciclo 2016-2017. *(Receita revisada em 06/07/2020) *(Receita revisada em 03/07/2024) | R131: 0
B132: CHESF | C132: ACU II | D132: MG 230 kV ACU II MG1 RN | E132: RB | F132: FT MG 230 kV ACU II MG1 RN | G132: 061/2001 | H132: IPCA | I132: RMEL | J132: REN 643/2014 | K132: 2015-12-17 | L132: 2030-12-16 | M132: 32333.43 | N132: 2024-06-01 | O132: Active | Q132: IMPLANTAÇÃO DE SWITCH.Melhoria incluída no ciclo 2016-2017. *(Receita revisada em 06/07/2020) *(Receita revisada em 03/07/2024) | R132: 0
B133: CHESF | C133: ACU II | D133: MG 230 kV ACU II MG1 RN | E133: RB | F133: FT MG 230 kV ACU II MG1 RN | G133: 061/2001 | H133: IPCA | I133: RBSE | J133: PRT 120/2016 | K133: 2017-07-01 | L133: 2028-06-30 | M133: 2291070.52 | N133: 2024-06-01 | O133: Active | Q133: Componente Financeiro apurado referente ao período de Janeiro/2013 a Junho/2017, com prazo de pagamento de 8 anos, conforme consta no § 3º e § 4º, do Art. 1º, da PRT 120/2016. * Receita revisada no ciclo 2020-2021. * Receita revisada em 05-07-2024 | R133: 0
B134: CHESF | C134: ACU II | D134: MG 230 kV ACU II MG1 RN | E134: RB | F134: FT MG 230 kV ACU II MG1 RN | G134: 061/2001 | H134: IPCA | I134: RBSE | J134: PRT 120/2016 | K134: 2017-07-01 | L134: 2042-12-31 | M134: 2163639.92 | N134: 2024-06-01 | O134: Active | Q134: Parcela de RAP calculada de acordo com a PRT 120/2016 e incluída a partir do ciclo 2017-2018. * Receita revisada em 05-07-2024 | R134: 0
B135: CHESF | C135: ACU II | D135: MG 230 kV ACU II MG1 RN | E135: RB | F135: FT MG 230 kV ACU II MG1 RN | G135: 061/2001 | H135: IPCA | I135: RMEL | J135: REN 443/2011 | K135: 2016-10-04 | L135: 2033-10-03 | M135: 7718.04 | N135: 2024-06-01 | O135: Active | Q135: Implantação de Banco de Baterias * Melhoria autorizada sem RAP Prévia incluído no reajuste do Ciclo 2017 - 2018 *(Receita revisada em 06/07/2020) *(Receita revisada em 03/07/2024) | R135: 0
B136: CHESF | C136: ACU II | D136: MG 230 kV ACU II MG1 RN | E136: RB | F136: FT MG 230 kV ACU II MG1 RN | G136: 061/2001 | H136: IPCA | I136: RMEL | J136: REN 905/2020 | K136: 2021-09-17 | L136: 2038-04-16 | M136: 483349.01 | N136: 2024-06-01 | O136: Active | Q136: Obras de Pequeno Porte sem RAP Prévia incluídas no processo de revisão da RAP das transmissoras prorrogadas de 2023, nos termos do Módulo 3 das Regras dos Serviços de Transmissão de Energia Elétrica. * Melhoria autorizada sem RAP Prévia incluído no reajuste do Ciclo 2024 - 2025 *(Receita revisada em 04/07/2024) | R136: 0
B137: CHESF | C137: ACU II | D137: MC 69 kV TT 69/13,8 kV ACU II TA1 RN | E137: DIT | G137: 061/2001 | H137: IPCA | I137: RPC | J137: PRT 579/2012 | K137: 2013-01-01 | L137: 2043-01-01 | M137: 26473.73 | N137: 2024-06-01 | O137: Active | Q137: *(RAP Portaria 579/2012 - Concessão prorrogada em 01/01/2013 – LEI 12783/2013 ) * Receita revisada no ciclo 2020-2021. * Receita revisada em 05-07-2024 | R137: 0
B138: CHESF | C138: ACU II | D138: MC 69 kV TR 230/69 kV ACU II TR7 RN | E138: RBF | F138: FT TR 230/69 kV ACU II TR7 RN | G138: 061/2001 | H138: IPCA | I138: RBSE | J138: PRT 579/2012 | K138: 2013-01-01 | L138: 2043-01-01 | M138: 63300.11 | N138: 2024-06-01 | O138: Active | Q138: *(RAP Portaria 579/2012 - Concessão prorrogada em 01/01/2013 – LEI 12783/2013 ) * Receita revisada no ciclo 2020-2021. * Receita revisada em 05-07-2024 | R138: 0
B139: CHESF | C139: ACU II | D139: MC 69 kV TR 230/69 kV ACU II TR6 RN | E139: RBF | F139: FT TR 230/69 kV ACU II TR6 RN | G139: 061/2001 | H139: IPCA | I139: RBSE | J139: PRT 579/2012 | K139: 2013-01-01 | L139: 2043-01-01 | M139: 63300.11 | N139: 2024-06-01 | O139: Active | Q139: *(RAP Portaria 579/2012 - Concessão prorrogada em 01/01/2013 – LEI 12783/2013 ) * Receita revisada no ciclo 2020-2021. * Receita revisada em 05-07-2024 | R139: 0
B140: CHESF | C140: ACU II | D140: MC 69 kV TR 230/69 kV ACU II TR6 RN | E140: RBF | F140: FT TR 230/69 kV ACU II TR6 RN | G140: 061/2001 | H140: IPCA | I140: RBSE | J140: PRT 120/2016 | K140: 2017-07-01 | L140: 2028-06-30 | M140: 208345.74 | N140: 2024-06-01 | O140: Active | Q140: Componente Financeiro apurado referente ao período de Janeiro/2013 a Junho/2017, com prazo de pagamento de 8 anos, conforme consta no § 3º e § 4º, do Art. 1º, da PRT 120/2016. * Receita revisada no ciclo 2020-2021. * Receita revisada em 05-07-2024 | R140: 0
B141: CHESF | C141: ACU II | D141: MC 69 kV TR 230/69 kV ACU II TR6 RN | E141: RBF | F141: FT TR 230/69 kV ACU II TR6 RN | G141: 061/2001 | H141: IPCA | I141: RBSE | J141: PRT 120/2016 | K141: 2017-07-01 | L141: 2042-12-31 | M141: 196757.44 | N141: 2024-06-01 | O141: Active | Q141: Parcela de RAP calculada de acordo com a PRT 120/2016 e incluída a partir do ciclo 2017-2018. * Receita revisada em 05-07-2024 | R141: 0
B142: CHESF | C142: ACU II | D142: MC 69 kV TR 230/69 kV ACU II TR5 RN | E142: RBF | F142: FT TR 230/69 kV ACU II TR5 RN | G142: 061/2001 | H142: IPCA | I142: RBSE | J142: PRT 579/2012 | K142: 2013-01-01 | L142: 2043-01-01 | M142: 63300.11 | N142: 2024-06-01 | O142: Active | Q142: *(RAP Portaria 579/2012 - Concessão prorrogada em 01/01/2013 – LEI 12783/2013 ) * Receita revisada no ciclo 2020-2021. * Receita revisada em 05-07-2024 | R142: 0
B143: CHESF | C143: ACU II | D143: MC 69 kV TR 230/69 kV ACU II TR5 RN | E143: RBF | F143: FT TR 230/69 kV ACU II TR5 RN | G143: 061/2001 | H143: IPCA | I143: RMEL | J143: REN 905/2020 | K143: 2021-06-24 | L143: 2045-06-23 | M143: 7469.46 | N143: 2024-06-01 | O143: Active | Q143: Obras de Pequeno Porte sem RAP Prévia incluídas no processo de revisão da RAP das transmissoras prorrogadas de 2023, nos termos do Módulo 3 das Regras dos Serviços de Transmissão de Energia Elétrica. * Melhoria autorizada sem RAP Prévia incluído no reajuste do Ciclo 2024 - 2025 *(Receita revisada em 04/07/2024) | R143: 0
B144: CHESF | C144: ACU II | D144: MC 69 kV TR 230/69 kV ACU II TR4 RN | E144: RBF | F144: FT TR 230/69 kV ACU II TR4 RN | G144: 061/2001 | H144: IPCA | I144: RBSE | J144: PRT 579/2012 | K144: 2013-01-01 | L144: 2043-01-01 | M144: 63300.11 | N144: 2024-06-01 | O144: Active | Q144: *(RAP Portaria 579/2012 - Concessão prorrogada em 01/01/2013 – LEI 12783/2013 ) * Receita revisada no ciclo 2020-2021. * Receita revisada em 05-07-2024 | R144: 0
B145: CHESF | C145: ACU II | D145: MC 69 kV TR 230/69 kV ACU II TR4 RN | E145: RBF | F145: FT TR 230/69 kV ACU II TR4 RN | G145: 061/2001 | H145: IPCA | I145: RMEL | J145: REN 905/2020 | K145: 2021-06-12 | L145: 2050-02-14 | M145: 39414.39 | N145: 2024-06-01 | O145: Active | Q145: Obras de Pequeno Porte sem RAP Prévia incluídas no processo de revisão da RAP das transmissoras prorrogadas de 2023, nos termos do Módulo 3 das Regras dos Serviços de Transmissão de Energia Elétrica. * Melhoria autorizada sem RAP Prévia incluído no reajuste do Ciclo 2024 - 2025 *(Receita revisada em 04/07/2024) | R145: 0
B146: CHESF | C146: ACU II | D146: MC 230 kV TR 230/69 kV ACU II TR7 RN | E146: RBF | F146: FT TR 230/69 kV ACU II TR7 RN | G146: 061/2001 | H146: IPCA | I146: RBSE | J146: PRT 579/2012 | K146: 2013-01-01 | L146: 2043-01-01 | M146: 163534.93 | N146: 2024-06-01 | O146: Active | Q146: *(RAP Portaria 579/2012 - Concessão prorrogada em 01/01/2013 – LEI 12783/2013 ) * Receita revisada no ciclo 2020-2021. * Receita revisada em 05-07-2024 | R146: 0
B147: CHESF | C147: ACU II | D147: MC 230 kV TR 230/69 kV ACU II TR7 RN | E147: RBF | F147: FT TR 230/69 kV ACU II TR7 RN | G147: 061/2001 | H147: IPCA | I147: RMEL | J147: REN 905/2020 | K147: 2022-11-24 | L147: 2037-11-23 | M147: 1865.25 | N147: 2024-06-01 | O147: Active | Q147: Obras de Pequeno Porte sem RAP Prévia incluídas no processo de revisão da RAP das transmissoras prorrogadas de 2023, nos termos do Módulo 3 das Regras dos Serviços de Transmissão de Energia Elétrica. * Melhoria autorizada sem RAP Prévia incluído no reajuste do Ciclo 2024 - 2025 *(Receita revisada em 04/07/2024) | R147: 0
B148: CHESF | C148: ACU II | D148: MC 230 kV TR 230/69 kV ACU II TR6 RN | E148: RBF | F148: FT TR 230/69 kV ACU II TR6 RN | G148: 061/2001 | H148: IPCA | I148: RBSE | J148: PRT 579/2012 | K148: 2013-01-01 | L148: 2043-01-01 | M148: 163534.93 | N148: 2024-06-01 | O148: Active | Q148: *(RAP Portaria 579/2012 - Concessão prorrogada em 01/01/2013 – LEI 12783/2013 ) * Receita revisada no ciclo 2020-2021. * Receita revisada em 05-07-2024 | R148: 0
B149: CHESF | C149: ACU II | D149: MC 230 kV TR 230/69 kV ACU II TR6 RN | E149: RBF | F149: FT TR 230/69 kV ACU II TR6 RN | G149: 061/2001 | H149: IPCA | I149: RBSE | J149: PRT 120/2016 | K149: 2017-07-01 | L149: 2028-06-30 | M149: 538258.28 | N149: 2024-06-01 | O149: Active | Q149: Componente Financeiro apurado referente ao período de Janeiro/2013 a Junho/2017, com prazo de pagamento de 8 anos, conforme consta no § 3º e § 4º, do Art. 1º, da PRT 120/2016. * Receita revisada no ciclo 2020-2021. * Receita revisada em 05-07-2024 | R149: 0
B150: CHESF | C150: ACU II | D150: MC 230 kV TR 230/69 kV ACU II TR6 RN | E150: RBF | F150: FT TR 230/69 kV ACU II TR6 RN | G150: 061/2001 | H150: IPCA | I150: RBSE | J150: PRT 120/2016 | K150: 2017-07-01 | L150: 2042-12-31 | M150: 508320.06 | N150: 2024-06-01 | O150: Active | Q150: Parcela de RAP calculada de acordo com a PRT 120/2016 e incluída a partir do ciclo 2017-2018. * Receita revisada em 05-07-2024 | R150: 0
B151: CHESF | C151: ACU II | D151: MC 230 kV TR 230/69 kV ACU II TR6 RN | E151: RBF | F151: FT TR 230/69 kV ACU II TR6 RN | G151: 061/2001 | H151: IPCA | I151: RMEL | J151: REN 905/2020 | K151: 2019-03-15 | L151: 2047-01-21 | M151: 43062.96 | N151: 2024-06-01 | O151: Active | Q151: Obras de Pequeno Porte sem RAP Prévia incluídas no processo de revisão da RAP das transmissoras prorrogadas de 2023, nos termos do Módulo 3 das Regras dos Serviços de Transmissão de Energia Elétrica. * Melhoria autorizada sem RAP Prévia incluído no reajuste do Ciclo 2024 - 2025 *(Receita revisada em 04/07/2024) | R151: 0
B152: CHESF | C152: ACU II | D152: MC 230 kV TR 230/69 kV ACU II TR5 RN | E152: RBF | F152: FT TR 230/69 kV ACU II TR5 RN | G152: 061/2001 | H152: IPCA | I152: RBSE | J152: PRT 579/2012 | K152: 2013-01-01 | L152: 2043-01-01 | M152: 163534.93 | N152: 2024-06-01 | O152: Active | Q152: *(RAP Portaria 579/2012 - Concessão prorrogada em 01/01/2013 – LEI 12783/2013 ) * Receita revisada no ciclo 2020-2021. * Receita revisada em 05-07-2024 | R152: 0
B153: CHESF | C153: ACU II | D153: MC 230 kV TR 230/69 kV ACU II TR5 RN | E153: RBF | F153: FT TR 230/69 kV ACU II TR5 RN | G153: 061/2001 | H153: IPCA | I153: RMEL | J153: REN 905/2020 | K153: 2019-06-22 | L153: 2046-12-24 | M153: 82748.58 | N153: 2024-06-01 | O153: Active | Q153: Obras de Pequeno Porte sem RAP Prévia incluídas no processo de revisão da RAP das transmissoras prorrogadas de 2023, nos termos do Módulo 3 das Regras dos Serviços de Transmissão de Energia Elétrica. * Melhoria autorizada sem RAP Prévia incluído no reajuste do Ciclo 2024 - 2025 *(Receita revisada em 04/07/2024) | R153: 0
B154: CHESF | C154: ACU II | D154: MC 230 kV TR 230/69 kV ACU II TR4 RN | E154: RBF | F154: FT TR 230/69 kV ACU II TR4 RN | G154: 061/2001 | H154: IPCA | I154: RBSE | J154: PRT 579/2012 | K154: 2013-01-01 | L154: 2043-01-01 | M154: 163534.93 | N154: 2024-06-01 | O154: Active | Q154: *(RAP Portaria 579/2012 - Concessão prorrogada em 01/01/2013 – LEI 12783/2013 ) * Receita revisada no ciclo 2020-2021. * Receita revisada em 05-07-2024 | R154: 0
B155: CHESF | C155: ACU II | D155: MC 230 kV TR 230/69 kV ACU II TR4 RN | E155: RBF | F155: FT TR 230/69 kV ACU II TR4 RN | G155: 061/2001 | H155: IPCA | I155: RMEL | J155: REN 905/2020 | K155: 2019-10-28 | L155: 2047-05-02 | M155: 83669.24 | N155: 2024-06-01 | O155: Active | Q155: Obras de Pequeno Porte sem RAP Prévia incluídas no processo de revisão da RAP das transmissoras prorrogadas de 2023, nos termos do Módulo 3 das Regras dos Serviços de Transmissão de Energia Elétrica. * Melhoria autorizada sem RAP Prévia incluído no reajuste do Ciclo 2024 - 2025 *(Receita revisada em 04/07/2024) | R155: 0
B156: CHESF | C156: ACU II | D156: MC 230 kV TR 230/138 kV ACU II TR3 RN | E156: RBF | F156: FT TR 230/138 kV ACU II TR3 RN | G156: 061/2001 | H156: IPCA | I156: RBSE | J156: PRT 579/2012 | K156: 2013-01-01 | L156: 2043-01-01 | M156: 163534.93 | N156: 2024-06-01 | O156: Active | Q156: *(RAP Portaria 579/2012 - Concessão prorrogada em 01/01/2013 – LEI 12783/2013 ) * Receita revisada no ciclo 2020-2021. * Receita revisada em 05-07-2024 | R156: 0
B157: CHESF | C157: ACU II | D157: MC 230 kV TR 230/138 kV ACU II TR3 RN | E157: RBF | F157: FT TR 230/138 kV ACU II TR3 RN | G157: 061/2001 | H157: IPCA | I157: RMEL | J157: REN 905/2020 | K157: 2022-12-20 | L157: 2049-03-19 | M157: 19889.59 | N157: 2024-06-01 | O157: Active | Q157: Obras de Pequeno Porte sem RAP Prévia incluídas no processo de revisão da RAP das transmissoras prorrogadas de 2023, nos termos do Módulo 3 das Regras dos Serviços de Transmissão de Energia Elétrica. * Melhoria autorizada sem RAP Prévia incluído no reajuste do Ciclo 2024 - 2025 *(Receita revisada em 04/07/2024) | R157: 0
B158: CHESF | C158: ACU II | D158: MC 230 kV TR 230/138 kV ACU II TR2 RN | E158: RBF | F158: FT TR 230/138 kV ACU II TR2 RN | G158: 061/2001 | H158: IPCA | I158: RBSE | J158: PRT 579/2012 | K158: 2013-01-01 | L158: 2043-01-01 | M158: 163534.93 | N158: 2024-06-01 | O158: Active | Q158: *(RAP Portaria 579/2012 - Concessão prorrogada em 01/01/2013 – LEI 12783/2013 ) * Receita revisada no ciclo 2020-2021. * Receita revisada em 05-07-2024 | R158: 0
B159: CHESF | C159: ACU II | D159: MC 230 kV TR 230/138 kV ACU II TR2 RN | E159: RBF | F159: FT TR 230/138 kV ACU II TR2 RN | G159: 061/2001 | H159: IPCA | I159: RBSE | J159: PRT 120/2016 | K159: 2017-07-01 | L159: 2028-06-30 | M159: 538258.28 | N159: 2024-06-01 | O159: Active | Q159: Componente Financeiro apurado referente ao período de Janeiro/2013 a Junho/2017, com prazo de pagamento de 8 anos, conforme consta no § 3º e § 4º, do Art. 1º, da PRT 120/2016. * Receita revisada no ciclo 2020-2021. * Receita revisada em 05-07-2024 | R159: 0
B160: CHESF | C160: ACU II | D160: MC 230 kV TR 230/138 kV ACU II TR2 RN | E160: RBF | F160: FT TR 230/138 kV ACU II TR2 RN | G160: 061/2001 | H160: IPCA | I160: RMEL | J160: REN 905/2020 | K160: 2019-10-29 | L160: 2043-08-05 | M160: 104940 | N160: 2024-06-01 | O160: Active | Q160: Obras de Pequeno Porte sem RAP Prévia incluídas no processo de revisão da RAP das transmissoras prorrogadas de 2023, nos termos do Módulo 3 das Regras dos Serviços de Transmissão de Energia Elétrica. * Melhoria autorizada sem RAP Prévia incluído no reajuste do Ciclo 2024 - 2025 *(Receita revisada em 04/07/2024) | R160: 0
B161: CHESF | C161: ACU II | D161: MC 138 kV TR 230/138 kV ACU II TR3 RN | E161: RBF | F161: FT TR 230/138 kV ACU II TR3 RN | G161: 061/2001 | H161: IPCA | I161: RBSE | J161: PRT 579/2012 | K161: 2013-01-01 | L161: 2043-01-01 | M161: 113468.4 | N161: 2024-06-01 | O161: Active | Q161: *(RAP Portaria 579/2012 - Concessão prorrogada em 01/01/2013 – LEI 12783/2013 ) * Receita revisada no ciclo 2020-2021. * Receita revisada em 05-07-2024 | R161: 0
B162: CHESF | C162: ACU II | D162: MC 138 kV TR 230/138 kV ACU II TR2 RN | E162: RBF | F162: FT TR 230/138 kV ACU II TR2 RN | G162: 061/2001 | H162: IPCA | I162: RBSE | J162: PRT 579/2012 | K162: 2013-01-01 | L162: 2043-01-01 | M162: 113468.4 | N162: 2024-06-01 | O162: Active | Q162: *(RAP Portaria 579/2012 - Concessão prorrogada em 01/01/2013 – LEI 12783/2013 ) * Receita revisada no ciclo 2020-2021. * Receita revisada em 05-07-2024 | R162: 0
B163: CHESF | C163: ACU II | D163: MC 138 kV TR 230/138 kV ACU II TR2 RN | E163: RBF | F163: FT TR 230/138 kV ACU II TR2 RN | G163: 061/2001 | H163: IPCA | I163: RMEL | J163: REN 443/2011 | K163: 2016-04-10 | L163: 2046-04-13 | M163: 10395.03 | N163: 2024-06-01 | O163: Active | Q163: Substituído TC QDR 145 com vazamento de óleo. Posição Operacional: 93T2-A/ACD. * Melhoria autorizada sem RAP Prévia incluído no reajuste do Ciclo 2017 - 2018 *(Receita revisada em 06/07/2020) *(Receita revisada em 03/07/2024) | R163: 0
B164: CHESF | C164: ACU II | D164: MC 138 kV TR 230/138 kV ACU II TR2 RN | E164: RBF | F164: FT TR 230/138 kV ACU II TR2 RN | G164: 061/2001 | H164: IPCA | I164: RMEL | J164: REN 905/2020 | K164: 2021-06-17 | L164: 2051-06-20 | M164: 31108.61 | N164: 2024-06-01 | O164: Active | Q164: Obras de Pequeno Porte sem RAP Prévia incluídas no processo de revisão da RAP das transmissoras prorrogadas de 2023, nos termos do Módulo 3 das Regras dos Serviços de Transmissão de Energia Elétrica. * Melhoria autorizada sem RAP Prévia incluído no reajuste do Ciclo 2024 - 2025 *(Receita revisada em 04/07/2024) | R164: 0
B165: CHESF | C165: ACU II | D165: MC 13,8 kV TR 230/69 kV ACU II TR5 RN | E165: RBF | F165: FT TR 230/69 kV ACU II TR5 RN | G165: 061/2001 | H165: IPCA | I165: RBSE | J165: PRT 579/2012 | K165: 2013-01-01 | L165: 2043-01-01 | M165: 45098.23 | N165: 2024-06-01 | O165: Active | Q165: *(RAP Portaria 579/2012 - Concessão prorrogada em 01/01/2013 – LEI 12783/2013 ) * Receita revisada no ciclo 2020-2021. * Receita revisada em 05-07-2024 | R165: 0
B166: CHESF | C166: ACU II | D166: MC 13,8 kV TR 230/69 kV ACU II TR4 RN | E166: RBF | F166: FT TR 230/69 kV ACU II TR4 RN | G166: 061/2001 | H166: IPCA | I166: RBSE | J166: PRT 579/2012 | K166: 2013-01-01 | L166: 2043-01-01 | M166: 45098.23 | N166: 2024-06-01 | O166: Active | Q166: *(RAP Portaria 579/2012 - Concessão prorrogada em 01/01/2013 – LEI 12783/2013 ) * Receita revisada no ciclo 2020-2021. * Receita revisada em 05-07-2024 | R166: 0
B167: CHESF | C167: ACU II | D167: MC 13,8 kV RTB 13,8 kV 5 MVAr ACU II RT1 RN | E167: RBF | F167: FT RTB 13,8 kV 5 MVAr ACU II RT1 RN | G167: 061/2001 | H167: IPCA | I167: RBSE | J167: PRT 579/2012 | K167: 2013-01-01 | L167: 2043-01-01 | M167: 63204 | N167: 2024-06-01 | O167: Active | Q167: *(RAP Portaria 579/2012 - Concessão prorrogada em 01/01/2013 – LEI 12783/2013 ) * Receita revisada no ciclo 2020-2021. * Receita revisada em 05-07-2024 | R167: 0
B168: CHESF | C168: ACU II | D168: MC 13,8 kV BC 13,8 kV 3,6 MVAr ACU II BC4 RN | E168: RBF | F168: FT BC 13,8 kV 3,6 MVAr ACU II BC4 RN | G168: 061/2001 | H168: IPCA | I168: RBSE | J168: PRT 579/2012 | K168: 2013-01-01 | L168: 2043-01-01 | M168: 72935.71 | N168: 2024-06-01 | O168: Active | Q168: *(RAP Portaria 579/2012 - Concessão prorrogada em 01/01/2013 – LEI 12783/2013 ) * Receita revisada no ciclo 2020-2021. * Receita revisada em 05-07-2024 | R168: 0
B169: CHESF | C169: ACU II | D169: MC 13,8 kV BC 13,8 kV 3,6 MVAr ACU II BC4 RN | E169: RBF | F169: FT BC 13,8 kV 3,6 MVAr ACU II BC4 RN | G169: 061/2001 | H169: IPCA | I169: RBSE | J169: PRT 120/2016 | K169: 2017-07-01 | L169: 2028-06-30 | M169: 240060.32 | N169: 2024-06-01 | O169: Active | Q169: Componente Financeiro apurado referente ao período de Janeiro/2013 a Junho/2017, com prazo de pagamento de 8 anos, conforme consta no § 3º e § 4º, do Art. 1º, da PRT 120/2016. * Receita revisada no ciclo 2020-2021. * Receita revisada em 05-07-2024 | R169: 0
B170: CHESF | C170: ACU II | D170: MC 13,8 kV BC 13,8 kV 3,6 MVAr ACU II BC3 RN | E170: RBF | F170: FT BC 13,8 kV 3,6 MVAr ACU II BC3 RN | G170: 061/2001 | H170: IPCA | I170: RBSE | J170: PRT 579/2012 | K170: 2013-01-01 | L170: 2043-01-01 | M170: 72935.71 | N170: 2024-06-01 | O170: Active | Q170: *(RAP Portaria 579/2012 - Concessão prorrogada em 01/01/2013 – LEI 12783/2013 ) * Receita revisada no ciclo 2020-2021. * Receita revisada em 05-07-2024 | R170: 0
B171: CHESF | C171: ACU II | D171: MC 13,8 kV BC 13,8 kV 3,6 MVAr ACU II BC3 RN | E171: RBF | F171: FT BC 13,8 kV 3,6 MVAr ACU II BC3 RN | G171: 061/2001 | H171: IPCA | I171: RBSE | J171: PRT 120/2016 | K171: 2017-07-01 | L171: 2028-06-30 | M171: 240060.32 | N171: 2024-06-01 | O171: Active | Q171: Componente Financeiro apurado referente ao período de Janeiro/2013 a Junho/2017, com prazo de pagamento de 8 anos, conforme consta no § 3º e § 4º, do Art. 1º, da PRT 120/2016. * Receita revisada no ciclo 2020-2021. * Receita revisada em 05-07-2024 | R171: 0
B172: CHESF | C172: ACU II | D172: MC 13,8 kV BC 13,8 kV 3,1 MVAr ACU II BC2 RN | E172: RBF | F172: FT BC 13,8 kV 3,1 MVAr ACU II BC2 RN | G172: 061/2001 | H172: IPCA | I172: RBSE | J172: PRT 579/2012 | K172: 2013-01-01 | L172: 2043-01-01 | M172: 72935.71 | N172: 2024-06-01 | O172: Active | Q172: *(RAP Portaria 579/2012 - Concessão prorrogada em 01/01/2013 – LEI 12783/2013 ) * Receita revisada no ciclo 2020-2021. * Receita revisada em 05-07-2024 | R172: 0
B173: CHESF | C173: ACU II | D173: MC 13,8 kV BC 13,8 kV 3,1 MVAr ACU II BC2 RN | E173: RBF | F173: FT BC 13,8 kV 3,1 MVAr ACU II BC2 RN | G173: 061/2001 | H173: IPCA | I173: RMEL | J173: REN 905/2020 | K173: 2022-05-12 | L173: 2037-05-11 | M173: 6812.38 | N173: 2024-06-01 | O173: Active | Q173: Obras de Pequeno Porte sem RAP Prévia incluídas no processo de revisão da RAP das transmissoras prorrogadas de 2023, nos termos do Módulo 3 das Regras dos Serviços de Transmissão de Energia Elétrica. * Melhoria autorizada sem RAP Prévia incluído no reajuste do Ciclo 2024 - 2025 *(Receita revisada em 04/07/2024) | R173: 0
B174: CHESF | C174: ACU II | D174: MC 13,8 kV BC 13,8 kV 3,1 MVAr ACU II BC1 RN | E174: RBF | F174: FT BC 13,8 kV 3,1 MVAr ACU II BC1 RN | G174: 061/2001 | H174: IPCA | I174: RBSE | J174: PRT 579/2012 | K174: 2013-01-01 | L174: 2043-01-01 | M174: 72935.71 | N174: 2024-06-01 | O174: Active | Q174: *(RAP Portaria 579/2012 - Concessão prorrogada em 01/01/2013 – LEI 12783/2013 ) * Receita revisada no ciclo 2020-2021. * Receita revisada em 05-07-2024 | R174: 0
B175: CHESF | C175: ACU II | D175: IB 69 kV MG 230 kV ACU II MG1 RN IB2 | E175: DIT | G175: 061/2001 | H175: IPCA | I175: RPC | J175: PRT 579/2012 | K175: 2013-01-01 | L175: 2043-01-01 | M175: 42544.88 | N175: 2024-06-01 | O175: Active | Q175: *(RAP Portaria 579/2012 - Concessão prorrogada em 01/01/2013 – LEI 12783/2013 ) * Receita revisada no ciclo 2020-2021. * Receita revisada em 05-07-2024 | R175: 0
B176: CHESF | C176: ACU II | D176: IB 69 kV MG 230 kV ACU II MG1 RN IB2 | E176: DIT | G176: 061/2001 | H176: IPCA | I176: RPC | J176: PRT 120/2016 | K176: 2017-07-01 | L176: 2028-06-30 | M176: 140032.07 | N176: 2024-06-01 | O176: Active | Q176: Componente Financeiro apurado referente ao período de Janeiro/2013 a Junho/2017, com prazo de pagamento de 8 anos, conforme consta no § 3º e § 4º, do Art. 1º, da PRT 120/2016. * Receita revisada no ciclo 2020-2021. * Receita revisada em 05-07-2024 | R176: 0
B177: CHESF | C177: ACU II | D177: IB 230 kV MG 230 kV ACU II MG1 RN IB1 | E177: RB | F177: FT MG 230 kV ACU II MG1 RN | G177: 061/2001 | H177: IPCA | I177: RBSE | J177: PRT 579/2012 | K177: 2013-01-01 | L177: 2043-01-01 | M177: 134372.21 | N177: 2024-06-01 | O177: Active | Q177: *(RAP Portaria 579/2012 - Concessão prorrogada em 01/01/2013 – LEI 12783/2013 ) * Receita revisada no ciclo 2020-2021. * Receita revisada em 05-07-2024 | R177: 0
B178: CHESF | C178: ACU II | D178: IB 230 kV MG 230 kV ACU II MG1 RN IB1 | E178: RB | F178: FT MG 230 kV ACU II MG1 RN | G178: 061/2001 | H178: IPCA | I178: RBSE | J178: PRT 120/2016 | K178: 2017-07-01 | L178: 2028-06-30 | M178: 442272.21 | N178: 2024-06-01 | O178: Active | Q178: Componente Financeiro apurado referente ao período de Janeiro/2013 a Junho/2017, com prazo de pagamento de 8 anos, conforme consta no § 3º e § 4º, do Art. 1º, da PRT 120/2016. * Receita revisada no ciclo 2020-2021. * Receita revisada em 05-07-2024 | R178: 0
B179: CHESF | C179: ACU II | D179: IB 138 kV MG 230 kV ACU II MG1 RN IB3 | E179: DIT | G179: 061/2001 | H179: IPCA | I179: RPC | J179: PRT 579/2012 | K179: 2013-01-01 | L179: 2043-01-01 | M179: 87665.14 | N179: 2024-06-01 | O179: Active | Q179: *(RAP Portaria 579/2012 - Concessão prorrogada em 01/01/2013 – LEI 12783/2013 ) * Receita revisada no ciclo 2020-2021. * Receita revisada em 05-07-2024 | R179: 0
B180: CHESF | C180: ACU II | D180: IB 13,8 kV MG 230 kV ACU II MG1 RN IB4 | E180: RBF | F180: FT TR 230/69 kV ACU II TR5 RN | G180: 061/2001 | H180: IPCA | I180: RBSE | J180: PRT 579/2012 | K180: 2013-01-01 | L180: 2043-01-01 | M180: 28109.58 | N180: 2024-06-01 | O180: Active | Q180: *(RAP Portaria 579/2012 - Concessão prorrogada em 01/01/2013 – LEI 12783/2013 ) * Receita revisada no ciclo 2020-2021. * Receita revisada em 05-07-2024 | R180: 0
B181: CHESF | C181: ACU II | D181: IB 13,8 kV MG 230 kV ACU II MG1 RN IB4 | E181: RBF | F181: FT TR 230/69 kV ACU II TR5 RN | G181: 061/2001 | H181: IPCA | I181: RBSE | J181: PRT 120/2016 | K181: 2017-07-01 | L181: 2028-06-30 | M181: 92519.77 | N181: 2024-06-01 | O181: Active | Q181: Componente Financeiro apurado referente ao período de Janeiro/2013 a Junho/2017, com prazo de pagamento de 8 anos, conforme consta no § 3º e § 4º, do Art. 1º, da PRT 120/2016. * Receita revisada no ciclo 2020-2021. * Receita revisada em 05-07-2024 | R181: 0
B182: CHESF | C182: ACU II | D182: EL 69 kV ACU II DIST5 | E182: DIT | G182: 061/2001 | H182: IPCA | I182: RPC | J182: PRT 579/2012 | K182: 2013-01-01 | L182: 2043-01-01 | M182: 74002.44 | N182: 2024-06-01 | O182: Active | Q182: *(RAP Portaria 579/2012 - Concessão prorrogada em 01/01/2013 – LEI 12783/2013 ) * Receita revisada no ciclo 2020-2021. * Receita revisada em 05-07-2024 | R182: 0
B183: CHESF | C183: ACU II | D183: EL 69 kV ACU II DIST5 | E183: DIT | G183: 061/2001 | H183: IPCA | I183: RPC | J183: PRT 120/2016 | K183: 2017-07-01 | L183: 2028-06-30 | M183: 243571.37 | N183: 2024-06-01 | O183: Active | Q183: Componente Financeiro apurado referente ao período de Janeiro/2013 a Junho/2017, com prazo de pagamento de 8 anos, conforme consta no § 3º e § 4º, do Art. 1º, da PRT 120/2016. * Receita revisada no ciclo 2020-2021. * Receita revisada em 05-07-2024 | R183: 0
B184: CHESF | C184: ACU II | D184: EL 69 kV ACU II DIST5 | E184: DIT | G184: 061/2001 | H184: IPCA | I184: RMEL | J184: REN 905/2020 | K184: 2022-04-20 | L184: 2046-04-19 | M184: 7677.74 | N184: 2024-06-01 | O184: Active | Q184: Obras de Pequeno Porte sem RAP Prévia incluídas no processo de revisão da RAP das transmissoras prorrogadas de 2023, nos termos do Módulo 3 das Regras dos Serviços de Transmissão de Energia Elétrica. * Melhoria autorizada sem RAP Prévia incluído no reajuste do Ciclo 2024 - 2025 *(Receita revisada em 04/07/2024) | R184: 0
B185: CHESF | C185: ACU II | D185: EL 69 kV ACU II DIST4 | E185: DIT | G185: 061/2001 | H185: IPCA | I185: RPC | J185: PRT 579/2012 | K185: 2013-01-01 | L185: 2043-01-01 | M185: 74002.44 | N185: 2024-06-01 | O185: Active | Q185: *(RAP Portaria 579/2012 - Concessão prorrogada em 01/01/2013 – LEI 12783/2013 ) * Receita revisada no ciclo 2020-2021. * Receita revisada em 05-07-2024 | R185: 0
B186: CHESF | C186: ACU II | D186: EL 69 kV ACU II DIST4 | E186: DIT | G186: 061/2001 | H186: IPCA | I186: RPC | J186: PRT 120/2016 | K186: 2017-07-01 | L186: 2028-06-30 | M186: 243571.37 | N186: 2024-06-01 | O186: Active | Q186: Componente Financeiro apurado referente ao período de Janeiro/2013 a Junho/2017, com prazo de pagamento de 8 anos, conforme consta no § 3º e § 4º, do Art. 1º, da PRT 120/2016. * Receita revisada no ciclo 2020-2021. * Receita revisada em 05-07-2024 | R186: 0
B187: CHESF | C187: ACU II | D187: EL 69 kV ACU II DIST3 | E187: DIT | G187: 061/2001 | H187: IPCA | I187: RPC | J187: PRT 579/2012 | K187: 2013-01-01 | L187: 2043-01-01 | M187: 74002.44 | N187: 2024-06-01 | O187: Active | Q187: *(RAP Portaria 579/2012 - Concessão prorrogada em 01/01/2013 – LEI 12783/2013 ) * Receita revisada no ciclo 2020-2021. * Receita revisada em 05-07-2024 | R187: 0
B188: CHESF | C188: ACU II | D188: EL 69 kV ACU II DIST3 | E188: DIT | G188: 061/2001 | H188: IPCA | I188: RPC | J188: PRT 120/2016 | K188: 2017-07-01 | L188: 2028-06-30 | M188: 243571.37 | N188: 2024-06-01 | O188: Active | Q188: Componente Financeiro apurado referente ao período de Janeiro/2013 a Junho/2017, com prazo de pagamento de 8 anos, conforme consta no § 3º e § 4º, do Art. 1º, da PRT 120/2016. * Receita revisada no ciclo 2020-2021. * Receita revisada em 05-07-2024 | R188: 0
B189: CHESF | C189: ACU II | D189: EL 69 kV ACU II DIST2 | E189: DIT | G189: 061/2001 | H189: IPCA | I189: RPC | J189: PRT 579/2012 | K189: 2013-01-01 | L189: 2043-01-01 | M189: 74002.44 | N189: 2024-06-01 | O189: Active | Q189: *(RAP Portaria 579/2012 - Concessão prorrogada em 01/01/2013 – LEI 12783/2013 ) * Receita revisada no ciclo 2020-2021. * Receita revisada em 05-07-2024 | R189: 0
B190: CHESF | C190: ACU II | D190: EL 69 kV ACU II DIST2 | E190: DIT | G190: 061/2001 | H190: IPCA | I190: RPC | J190: PRT 120/2016 | K190: 2017-07-01 | L190: 2028-06-30 | M190: 243571.37 | N190: 2024-06-01 | O190: Active | Q190: Componente Financeiro apurado referente ao período de Janeiro/2013 a Junho/2017, com prazo de pagamento de 8 anos, conforme consta no § 3º e § 4º, do Art. 1º, da PRT 120/2016. * Receita revisada no ciclo 2020-2021. * Receita revisada em 05-07-2024 | R190: 0
B191: CHESF | C191: ACU II | D191: EL 69 kV ACU II DIST2 | E191: DIT | G191: 061/2001 | H191: IPCA | I191: RMEL | J191: REN 905/2020 | K191: 2022-05-02 | L191: 2055-05-01 | M191: 58097.54 | N191: 2024-06-01 | O191: Active | Q191: Obras de Pequeno Porte sem RAP Prévia incluídas no processo de revisão da RAP das transmissoras prorrogadas de 2023, nos termos do Módulo 3 das Regras dos Serviços de Transmissão de Energia Elétrica. * Melhoria autorizada sem RAP Prévia incluído no reajuste do Ciclo 2024 - 2025 *(Receita revisada em 04/07/2024) | R191: 0
B192: CHESF | C192: ACU II | D192: EL 69 kV ACU II DIST1 | E192: DIT | G192: 061/2001 | H192: IPCA | I192: RPC | J192: PRT 579/2012 | K192: 2013-01-01 | L192: 2043-01-01 | M192: 74002.44 | N192: 2024-06-01 | O192: Active | Q192: *(RAP Portaria 579/2012 - Concessão prorrogada em 01/01/2013 – LEI 12783/2013 ) * Receita revisada no ciclo 2020-2021. * Receita revisada em 05-07-2024 | R192: 0
B193: CHESF | C193: ACU II | D193: EL 69 kV ACU II DIST1 | E193: DIT | G193: 061/2001 | H193: IPCA | I193: RPC | J193: PRT 120/2016 | K193: 2017-07-01 | L193: 2028-06-30 | M193: 243571.37 | N193: 2024-06-01 | O193: Active | Q193: Componente Financeiro apurado referente ao período de Janeiro/2013 a Junho/2017, com prazo de pagamento de 8 anos, conforme consta no § 3º e § 4º, do Art. 1º, da PRT 120/2016. * Receita revisada no ciclo 2020-2021. * Receita revisada em 05-07-2024 | R193: 0
B194: CHESF | C194: ACU II | D194: EL 230 kV ACU II LT 230 kV PARAISO /ACU II C-3 RN | E194: RB | F194: FT LT 230 kV PARAISO /ACU II C-3 RN | G194: 019/2010 | H194: IPCA | I194: RBL | J194: CC 019/2010 | K194: 2010-11-23 | L194: 2040-11-23 | M194: 384103.72 | N194: 2024-06-01 | O194: Active | P194: T2010-090-B | Q194: Rede Básica e ICG LT, C3, 230 kV Paraíso - Açu II; LT, C2, 230 kV Açu II - Mossoró II; (Rede Básica). *(Considera adicional de RGR relativo à prorrogação do encargo) * Receita Revisada no reajuste do ciclo 2016-2017. *Receita revisada no Ciclo 2021-2022. | R194: 0
B195: CHESF | C195: ACU II | D195: EL 230 kV ACU II LT 230 kV PARAISO /ACU II C-2 RN | E195: RB | F195: FT LT 230 kV PARAISO /ACU II C-2 RN | G195: 012/2007 | H195: IPCA | I195: RBL | J195: CC 012/2007 | K195: 2007-06-14 | L195: 2037-06-14 | M195: 540938.6 | N195: 2024-06-01 | O195: Active | P195: T2000-117-A | Q195: Contrato de Concessão nº 012/2007 *(Considera adicional de RGR relativo à prorrogação do encargo). Receita revisada em 19/06/2012 no reajuste para o Ciclo 2012-2013. *Receita revisada no reajuste do ciclo 2017-2018. * Receita revisada em 23-06-2022 | R195: 0
B196: CHESF | C196: ACU II | D196: EL 230 kV ACU II LT 230 kV ACU III /ACU II C-3 RN | E196: RB | F196: FT LT 230 kV ACU III /ACU II C-3 RN | G196: 019/2010 | H196: IPCA | I196: RBL | J196: CC 019/2010 | K196: 2010-11-23 | L196: 2040-11-23 | M196: 384103.72 | N196: 2024-06-01 | O196: Active | P196: T2010-090-B | Q196: Rede Básica e ICG LT, C3, 230 kV Paraíso - Açu II; LT, C2, 230 kV Açu II - Mossoró II; (Rede Básica). *(Considera adicional de RGR relativo à prorrogação do encargo) * Receita Revisada no reajuste do ciclo 2016-2017. *Receita revisada no Ciclo 2021-2022. | R196: 0
B197: CHESF | C197: ACU II | D197: EL 230 kV ACU II LT 230 kV ACU III /ACU II C-1 RN | E197: RB | F197: FT LT 230 kV ACU III /ACU II C-1 RN | G197: 061/2001 | H197: IPCA | I197: RBSE | J197: PRT 579/2012 | K197: 2013-01-01 | L197: 2043-01-01 | M197: 228078.42 | N197: 2024-06-01 | O197: Active | Q197: *(RAP Portaria 579/2012 - Concessão prorrogada em 01/01/2013 – LEI 12783/2013 ) * Receita revisada no ciclo 2020-2021. * Receita revisada em 05-07-2024 | R197: 0
B198: CHESF | C198: ACU II | D198: EL 230 kV ACU II LT 230 kV ACU III /ACU II C-1 RN | E198: RB | F198: FT LT 230 kV ACU III /ACU II C-1 RN | G198: 061/2001 | H198: IPCA | I198: RBSE | J198: PRT 120/2016 | K198: 2017-07-01 | L198: 2028-06-30 | M198: 750696.49 | N198: 2024-06-01 | O198: Active | Q198: Componente Financeiro apurado referente ao período de Janeiro/2013 a Junho/2017, com prazo de pagamento de 8 anos, conforme consta no § 3º e § 4º, do Art. 1º, da PRT 120/2016. * Receita revisada no ciclo 2020-2021. * Receita revisada em 05-07-2024 | R198: 0
B199: CHESF | C199: ACU II | D199: EL 230 kV ACU II LT 230 kV ACU III /ACU II C-1 RN | E199: RB | F199: FT LT 230 kV ACU III /ACU II C-1 RN | G199: 061/2001 | H199: IPCA | I199: RBNI | J199: REA 5861/2016 | K199: 2016-06-10 | L199: 2044-06-09 | M199: 20747.37 | N199: 2024-06-01 | O199: Active | Q199: EL 230 kV ACU II LT 230 kV MOSSORO II /ACU II C-1 RN * Reforço autorizado sem RAP Prévia incluído no reajuste do Ciclo 2017 - 2018 *(Receita revisada em 06/07/2020) *(Receita revisada em 03/07/2024) | R199: 0
B200: CHESF | C200: ACU II | D200: EL 230 kV ACU II LT 230 kV ACU III /ACU II C-1 RN | E200: RB | F200: FT LT 230 kV ACU III /ACU II C-1 RN | G200: 061/2001 | H200: IPCA | I200: RMEL | J200: REN 905/2020 | K200: 2019-06-11 | L200: 2048-02-21 | M200: 61210.93 | N200: 2024-06-01 | O200: Active | Q200: Obras de Pequeno Porte sem RAP Prévia incluídas no processo de revisão da RAP das transmissoras prorrogadas de 2023, nos termos do Módulo 3 das Regras dos Serviços de Transmissão de Energia Elétrica. * Melhoria autorizada sem RAP Prévia incluído no reajuste do Ciclo 2024 - 2025 *(Receita revisada em 04/07/2024) | R200: 0
B201: CHESF | C201: ACU II | D201: EL 138 kV ACU II LT 138 kV ACU II /SAN.MATOS II C-1 RN | E201: DIT | G201: 061/2001 | H201: IPCA | I201: RPC | J201: PRT 579/2012 | K201: 2013-01-01 | L201: 2043-01-01 | M201: 169192.1 | N201: 2024-06-01 | O201: Active | Q201: *(RAP Portaria 579/2012 - Concessão prorrogada em 01/01/2013 – LEI 12783/2013 ) * Receita revisada no ciclo 2020-2021. * Receita revisada em 05-07-2024 | R201: 0
B202: CHESF | C202: ACU II | D202: EL 138 kV ACU II LT 138 kV ACU II /SAN.MATOS II C-1 RN | E202: DIT | G202: 061/2001 | H202: IPCA | I202: RMEL | J202: REN 905/2020 | K202: 2022-04-21 | L202: 2052-04-23 | M202: 47767.65 | N202: 2024-06-01 | O202: Active | Q202: Obras de Pequeno Porte sem RAP Prévia incluídas no processo de revisão da RAP das transmissoras prorrogadas de 2023, nos termos do Módulo 3 das Regras dos Serviços de Transmissão de Energia Elétrica. * Melhoria autorizada sem RAP Prévia incluído no reajuste do Ciclo 2024 - 2025 *(Receita revisada em 04/07/2024) | R202: 0
B203: CHESF | C203: ACU II | D203: EL 138 kV ACU II DIST4 | E203: DIT | G203: 061/2001 | H203: IPCA | I203: RPC | J203: PRT 579/2012 | K203: 2013-01-01 | L203: 2043-01-01 | M203: 169192.1 | N203: 2024-06-01 | O203: Active | Q203: *(RAP Portaria 579/2012 - Concessão prorrogada em 01/01/2013 – LEI 12783/2013 ) * Receita revisada no ciclo 2020-2021. * Receita revisada em 05-07-2024 | R203: 0
... 4297 more rows

Sheet TOTAL CAPEX TRANSMISSION
B2: Growth in Transmission
B4: This tab contains projects that have not yet entered commercial operation. Part of these projects are listed in the “RAP Data ReH 3348_2024” tab.
B6: The data presented here refers to the sample of projects included in ANEEL's Transmission Management System (SIGET).
B8: Projects enter this sample when they become part of SIGET, and leave it when they are canceled or enter commercial operation.
B10: Investment | C10: Capex (BRL bn) | D10: RAP (BRL bn)
D11: Total | E11: Present in Modules List of tab "RAP Data ReH 3348_2024" | F11: Not present in Modules List of tab "RAP Data ReH 3348_2024"
B12: Auction 01/2022 | C12: =I160/1000 -> 0.1243038375 | D12: =T160/1000 -> 0.01396893274 | E12: =IF(Q160="Yes",T160,0)/1000 -> 0.01396893274 | F12: =D12-E12 -> 0
B13: Auction 01/2023 | C13: =I49/1000 -> 0.674206 | D13: =T49/1000 -> 0.07396135599 | E13: =IF(Q49="Yes",T49,0)/1000 -> 0.07396135599 | F13: =D13-E13 -> 0
B14: Auction 01/2024 | C14: =(I277+I278+I279+I280)/1000 -> 5.562754371 | D14: =(T277+T278+T279+T280)/1000 -> 0.590512539 | E14: =(IF(Q277="Yes",T277,0)+IF(Q278="Yes",T278,0)+IF(Q279="Yes",T279,0)+IF(Q280="Yes",T280,0))/1000 -> 0 | F14: =D14-E14 -> 0.590512539
B15: Reinforcement | C15: =SUMIFS($I$35:$I$281,$W$35:$W$281,"Reinforcement")/1000 -> 3.109018728 | D15: =SUMIFS($T$35:$T$281,$W$35:$W$281,"Reinforcement")/1000 -> 0.4720039661 | E15: =SUMIFS($T$35:$T$281,$W$35:$W$281,"Reinforcement",$Q$35:$Q$281,"Yes")/1000 -> 0.4720039661 | F15: =D15-E15 -> 0
B16: Improvement (ex HVDC) | C16: =SUMIFS($I$35:$I$281,$W$35:$W$281,"Improvement")/1000-I227/1000 -> 3.714953311 | D16: =SUMIFS($T$35:$T$281,$W$35:$W$281,"Improvement")/1000-T227/1000 -> 0.6397472042 | E16: =SUMIFS($T$35:$T$281,$W$35:$W$281,"Improvement",$Q$35:$Q$281,"Yes")/1000-IF(Q227="Yes",T227,0)/1000 -> 0.6258272042 | F16: =D16-E16 -> 0.01392
B17: Eletrobras Consolidated | C17: =SUM(C12:C16) -> 13.18523625 | D17: =SUM(D12:D16) -> 1.790193998 | E17: =SUM(E12:E16) -> 1.185761459 | F17: =SUM(F12:F16) -> 0.604432539
B18: TNE | C18: 2.987033 | D18: =SUM('Inv. SPE Transmission Lines'!L8:L9,'Inv. SPE Substations'!L5:L7)/1000 -> 0.378335 | E18: 0 | F18: =D18-E18 -> 0.378335
B19: Total | C19: =C17+C18 -> 16.17226925 | D19: =D17+D18 -> 2.168528998 | E19: =E17+E18 -> 1.185761459 | F19: =F17+F18 -> 0.982767539
B21: Check | C21: =(SUM(I36:I280))/1000-I227/1000-C17 -> 0 | D21: =(SUM(T36:T280))/1000-T227/1000-D17 -> 0 | E21: =(SUMIFS($T$36:$T$280,$Q$36:$Q$280,"Yes"))/1000-T227/1000-E17 -> 0 | F21: =(SUMIFS($T$36:$T$280,$Q$36:$Q$280,"No"))/1000-F17 -> 0
B23: Investment | C23: Capex (BRL bn) | D23: RAP (BRL bn)
D24: Total | E24: Present in Modules List of tab "RAP Data ReH 3348_2024" | F24: Not present in Modules List of tab "RAP Data ReH 3348_2024"
B25: Reinforcement & Improvement (ex HVDC) | C25: =C26+C29 -> 6.823972039 | D25: =D26+D29 -> 1.11175117 | E25: =E26+E29 -> 1.09783117 | F25: =F26+F29 -> 0.01392
B26: Reinforcement | C26: =C15 -> 3.109018728 | D26: =D15 -> 0.4720039661 | E26: =E15 -> 0.4720039661 | F26: =F15 -> 0
B27: renewed | C27: =SUMIFS($I$35:$I$281,$W$35:$W$281,"Reinforcement",$AC$35:$AC$281,"Renewed")/1000 -> 2.915635858 | D27: =SUMIFS($T$35:$T$281,$W$35:$W$281,"Reinforcement",$AC$35:$AC$281,"Renewed")/1000 -> 0.4434750444 | E27: =SUMIFS($T$35:$T$281,$W$35:$W$281,"Reinforcement",$Q$35:$Q$281,"Yes",$AC$35:$AC$281,"Renewed")/1000 -> 0.4434750444 | F27: =D27-E27 -> 0
B28: bidders | C28: =C26-C27 -> 0.1933828697 | D28: =D26-D27 -> 0.02852892166 | E28: =E26-E27 -> 0.02852892166 | F28: =F26-F27 -> 0
B29: Improvement (ex HVDC) | C29: =C16 -> 3.714953311 | D29: =D16 -> 0.6397472042 | E29: =E16 -> 0.6258272042 | F29: =F16 -> 0.01392
B30: renewed | C30: =SUMIFS($I$35:$I$281,$W$35:$W$281,"Improvement",$AC$35:$AC$281,"Renewed")/1000-I227/1000 -> 3.714953311 | D30: =SUMIFS($T$35:$T$281,$W$35:$W$281,"Improvement",$AC$35:$AC$281,"Renewed")/1000-T227/1000 -> 0.6397472042 | E30: =SUMIFS($T$35:$T$281,$W$35:$W$281,"Improvement",$Q$35:$Q$281,"Yes",$AC$35:$AC$281,"Renewed")/1000-IF(AND(Q227="Yes",AC226="Renewed"),T227,0)/1000 -> 0.6258272042 | F30: =D30-E30 -> 0.01392
B31: bidders | C31: =C29-C30 -> 0 | D31: =D29-D30 -> 0 | E31: =E29-E30 -> 0 | F31: =F29-F30 -> 0
B34: Data of authorized projects planned to enter into commercial operation
B35: Index | C35: Investment Type | D35: Eletrobras Company | E35: Consolidation | F35: % of Interest | G35: Project | H35: Investment Base Date | I35: Investment (BRL Million) | J35: Realized Investment (BRL Million) | K35: Physical progress of the project (%) | L35: Line Extension (km) | M35: Voltage (kV) | N35: Transformation Capacity (MVA) | O35: Reactive Compensation (MVAR) | P35: Location (State) | Q35: Is it or is it not on the module list? | R35: Forecast of Start of Operation | S35: Termination of the Concession | T35: RAP (BRL Million) | U35: RAP base date | V35: Readjustment Index | W35: Reinforcement / Improvement / Expansion | X35: Investment Year 2024 (BRL Million) | Y35: Realized Investment 1Q24 (BRL Million) | Z35: Investment Realized 2Q24 (BRL Million) | AA35: Investment Realized 3Q24 (BRL Million) | AB35: Concession Agreement | AC35: CA Renewed or Bid? | AD35: Project (I) | AE35: Notes
B36: 1 | C36: Transmission Line | D36: Chesf | E36: Chesf | F36: 1 | G36: Sectioning of the TL 500 kV Luiz Gonzaga - Milagres C1 at SS Milagres II | H36: 2024-01-01 | I36: 44.99710676 | J36: 0.34581112 | K36: 33 | L36: 1.5 | M36: 500 | N36: 0 | O36: 0 | P36: CE, PE | Q36: Yes | R36: 2025-06-28 | S36: 2043-01-01 | T36: 8.97197362 | U36: 2024-06-01 | V36: IPCA | W36: Reinforcement | X36: 0.07862558 | Y36: 0.00362558 | Z36: 0.10772085 | AA36: 0.05070515 | AB36: 061/2001 | AC36: Renewed | AD36: T2019-090
B37: =B36+1 -> 2 | C37: Transmission Line | D37: Chesf | E37: Chesf | F37: 1 | G37: Sectioning of the TL 500 kV Sobradinho - Luiz Gonzaga C2 at SS Juazeiro III | H37: 2024-01-01 | I37: 64.90208031 | J37: 31.25938026 | K37: 50 | L37: 0.64 | M37: 500 | N37: 0 | O37: 0 | P37: BA, PE | Q37: Yes | R37: 2025-01-30 | S37: 2043-01-01 | T37: 7.53144659 | U37: 2024-06-01 | V37: IPCA | W37: Reinforcement | X37: 22.86158516 | Y37: 2.20627256 | Z37: 8.97365487 | AA37: 11.03895768 | AB37: 061/2001 | AC37: Renewed | AD37: T2019-074
B38: =B37+1 -> 3 | C38: Transmission Line | D38: Chesf | E38: Chesf | F38: 1 | G38: Reheading of TL 230 kV Recife II - Pirapama II C2 at SS Jaboatão II | H38: 2024-01-01 | I38: 3.73089095 | J38: 3.73089095 | K38: 84 | L38: 0 | M38: 230 | N38: 0 | O38: 0 | P38: PE | Q38: Yes | R38: 2025-04-30 | S38: 2043-01-01 | T38: 1.34139128 | U38: 2024-06-01 | V38: IPCA | W38: Improvement | X38: 0 | Y38: 0 | Z38: 0 | AA38: 0 | AB38: 061/2001 | AC38: Renewed | AD38: T2019-075
B39: 4 | C39: Transmission Line | D39: Chesf | E39: Chesf | F39: 1 | G39: Secc. TL 500 kV Angelim II - Recife II at SS Suape II. | H39: 2024-01-01 | I39: 247.7524024 | J39: 194.7655429 | K39: 65 | L39: 49.74 | M39: 500 | N39: 0 | O39: 0 | P39: PE | Q39: Yes | R39: 2025-01-31 | S39: 2043-01-01 | T39: 22.95256944 | U39: 2024-06-01 | V39: IPCA | W39: Reinforcement | X39: 81.61594316 | Y39: 17.02739072 | Z39: 15.71207481 | AA39: 16.88961821 | AB39: 061/2001 | AC39: Renewed | AD39: T2019-073
B40: 5 | C40: Transmission Line | D40: Chesf | E40: Chesf | F40: 1 | G40: Secc. TL 230 Olindina/Catu at SS Alagoinhas II | H40: 2024-01-01 | I40: 27.20174851 | J40: 0.32331531 | K40: 10 | L40: 0.94 | M40: 230 | N40: 0 | O40: 0 | P40: BA | Q40: Yes | R40: 2025-11-11 | S40: 2043-01-01 | T40: 5.14990632 | U40: 2024-06-01 | V40: IPCA | W40: Reinforcement | X40: 0 | Y40: 0 | Z40: 0 | AA40: 0.08821078 | AB40: 061/2001 | AC40: Renewed | AD40: T2022-113
B41: 6 | C41: Transmission Line | D41: Chesf | E41: Chesf | F41: 1 | G41: Reinforcement - Sectioning of TL Banabuiú-Milagres C2 at SS Icó. | H41: 2024-01-01 | I41: 39.32672487 | J41: 0.33088965 | K41: 6 | L41: 3.4 | M41: 230 | N41: 0 | O41: 0 | P41: CE | Q41: Yes | R41: 2026-07-28 | S41: 2043-01-01 | T41: 3.94410192 | U41: 2024-06-01 | V41: IPCA | W41: Reinforcement | X41: 1.55027065 | Y41: 0.06761524 | Z41: 0.038773 | AA41: 0.12245204 | AB41: 061/2001 | AC41: Renewed | AD41: T2023-128
B42: 7 | C42: Transmission Line | D42: Chesf | E42: Chesf | F42: 1 | G42: Reinforcement - Sectioning of TL P.Afonso III-Bom Nome C3 at SS Floresta II. | H42: 2024-01-01 | I42: 35.06559343 | J42: 0.13360164 | K42: 5 | L42: 2 | M42: 230 | N42: 0 | O42: 0 | P42: PE | Q42: Yes | R42: 2026-07-28 | S42: 2043-01-01 | T42: 3.94155718 | U42: 2024-06-01 | V42: IPCA | W42: Reinforcement | X42: 1.38988457 | Y42: 0.00467712 | Z42: 0.079373 | AA42: 0.0153952 | AB42: 061/2001 | AC42: Renewed | AD42: T2023-129
B43: 8 | C43: Transmission Line | D43: Chesf | E43: Chesf | F43: 1 | G43: Reinforcement - Sectioning of TL P.Afonso III-Bom Nome C2 at SS Tacaratu. | H43: 2024-01-01 | I43: 33.17443257 | J43: 0.38084864 | K43: 10 | L43: 14 | M43: 230 | N43: 0 | O43: 0 | P43: PE | Q43: Yes | R43: 2026-08-18 | S43: 2043-01-01 | T43: 5.73763508 | U43: 2024-06-01 | V43: IPCA | W43: Reinforcement | X43: 0.79165028 | Y43: 0.002436 | Z43: 0.36134 | AA43: 0.00688337 | AB43: 061/2001 | AC43: Renewed | AD43: T2023-130
B44: 9 | C44: Transmission Line | D44: Chesf | E44: Chesf | F44: 1 | G44: Reinforcement - Sectioning of TL P.Afonso III-Floresta II C1 at SS Tacaratu. | H44: 2024-01-01 | I44: 41.18002242 | J44: 0.34583961 | K44: 10 | L44: 7 | M44: 230 | N44: 0 | O44: 0 | P44: PE | Q44: Yes | R44: 2026-07-27 | S44: 2043-01-01 | T44: 1.75394692 | U44: 2024-06-01 | V44: IPCA | W44: Reinforcement | X44: 0.6751775 | Y44: 0.02546426 | Z44: 0.26912596 | AA44: 0.00092917 | AB44: 061/2001 | AC44: Renewed | AD44: T2023-131
B45: 10 | C45: Transmission Line | D45: Eletronorte | E45: Eletronorte | F45: 1 | G45: Sectioning of TL 138kV Rondonópolis-Couto Magalhães at SS Petrovina | H45: 2024-01-01 | I45: 40.42387109 | J45: 21.94028208 | K45: 83 | L45: 0.56 | M45: 138 | N45: 0 | O45: 0 | P45: MT | Q45: Yes | R45: 2025-06-17 | S45: 2043-01-01 | T45: 4.09944373 | U45: 2024-06-01 | V45: IPCA | W45: Reinforcement | X45: 32.69402712 | Y45: 12.11781933 | Z45: 0.87480608 | AA45: 1.2178127 | AB45: 058/2001 | AC45: Renewed | AD45: T2021-072
B46: 11 | C46: Transmission Line | D46: Furnas | E46: Furnas | F46: 1 | G46: TL 138kV Angra/Angra (ENEL) | H46: 2024-01-01 | I46: 78.75033717 | J46: 74.99455023 | K46: 99 | L46: 0 | M46: 138 | N46: 0 | O46: 0 | P46: RJ | Q46: Yes | R46: 2024-12-30T03:00:00 | S46: 2043-01-01 | T46: 4.31157053 | U46: 2024-06-01 | V46: IPCA | W46: Reinforcement | X46: 2.07189641 | Y46: 2.01627202 | Z46: 1.90086199 | AA46: 0.48497546 | AB46: 062/2001 | AC46: Renewed | AD46: T2015-048
B47: 12 | C47: Transmission Line | D47: Furnas | E47: Furnas | F47: 1 | G47: SS Iriri 2R - Sectioning TL 138kV Rocha Leão / Campos C1 | H47: 2024-01-01 | I47: 12.42010642 | J47: 8.07485581 | K47: 82 | L47: 0.5 | M47: 138 | N47: 0 | O47: 0 | P47: RJ | Q47: Yes | R47: 2025-01-30 | S47: 2043-01-01 | T47: 2.01180574 | U47: 2024-06-01 | V47: IPCA | W47: Reinforcement | X47: 9.15628826 | Y47: 1.15268586 | Z47: 4.24548779 | AA47: 1.412864 | AB47: 062/2001 | AC47: Renewed | AD47: T2019-066
B48: 13 | C48: Transmission Line | D48: Furnas | E48: Furnas | F48: 1 | G48: Secc. TL 345kV Venda das Pedras - Macaé C1 at SS Lagos | H48: 2024-01-01 | I48: 64.80551122 | J48: 0.6922378 | K48: 9 | L48: 2 | M48: 345 | N48: 0 | O48: 0 | P48: RJ | Q48: Yes | R48: 2025-12-16 | S48: 2043-01-01 | T48: 10.52153361 | U48: 2024-06-01 | V48: IPCA | W48: Reinforcement | X48: 6.26818279 | Y48: 0 | Z48: 0.12017904 | AA48: 0.11473033 | AB48: 062/2001 | AC48: Renewed | AD48: T2022-112
B49: 14 | C49: Transmission Line | D49: Nova Era Janapu | E49: Furnas | F49: 1 | G49: TL 500 kV Janaúba 6 – Presidente Juscelino C1 | H49: 2024-01-01 | I49: 674.206 | J49: 0.0229126 | K49: 18 | L49: 302.85 | M49: 500 | N49: 0 | O49: 470 | P49: MG | Q49: Yes | R49: 2026-10-30 | S49: 2053-09-29 | T49: 73.96135599 | U49: 2024-06-01 | V49: IPCA | W49: Expansion | X49: 137.47 | Y49: 0 | Z49: 0.0184702 | AA49: 0.0044424 | AB49: 009/2023 | AC49: Bidder | AD49: T2023-182
B50: 15 | C50: Substation | D50: CGT Eletrosul | E50: CGT Eletrosul | F50: 1 | G50: Improvement at SS Farroupilha - three-phase transformer replacement - TF2 - 230/69 kV - 88 MVA | H50: 2024-01-01 | I50: 13.28462492 | J50: 13.54380609 | K50: 88 | L50: 0 | M50: 230 | N50: 0 | O50: 0 | P50: RS | Q50: Yes | R50: 2024-10-31 | S50: 2043-01-01 | T50: 2.21768353 | U50: 2024-06-01 | V50: IPCA | W50: Improvement | X50: 3.19422343 | Y50: 1.19667605 | Z50: 1.77979969 | AA50: 0.47692886 | AB50: 057/2001 | AC50: Renewed | AD50: T2021-100
B51: 16 | C51: Substation | D51: CGT Eletrosul | E51: CGT Eletrosul | F51: 1 | G51: Improvement at SS Assis - replacement of single-phase transformer TF1 - 440/230 kV, 336 MA | H51: 2024-01-01 | I51: 27.69045516 | J51: 22.0556859 | K51: 90 | L51: 0 | M51: 440 | N51: 0 | O51: 0 | P51: SP | Q51: Yes | R51: 2024-11-25 | S51: 2043-01-01 | T51: 6.67252697 | U51: 2024-06-01 | V51: IPCA | W51: Improvement | X51: 5.982534997 | Y51: 0.07338630003 | Z51: 0.2691346426 | AA51: 0.9418956379 | AB51: 057/2001 | AC51: Renewed | AD51: T2021-101
B52: 17 | C52: Substation | D52: CGT Eletrosul | E52: CGT Eletrosul | F52: 1 | G52: Improvement at SS Assis - replacement of reserve single-phase transformer - TFR1, 440/230 kV, 112 MVA | H52: 2024-01-01 | I52: 9.230151719 | J52: 7.351895288 | K52: 90 | L52: 0 | M52: 440 | N52: 0 | O52: 0 | P52: SP | Q52: Yes | R52: 2024-11-25 | S52: 2043-01-01 | T52: 2.22417565 | U52: 2024-06-01 | V52: IPCA | W52: Improvement | X52: 1.994178343 | Y52: 0.02446209997 | Z52: 0.08971154738 | AA52: 0.3139652121 | AB52: 057/2001 | AC52: Renewed | AD52: T2021-102
B53: 18 | C53: Substation | D53: CGT Eletrosul | E53: CGT Eletrosul | F53: 1 | G53: SS Areia Improvement - Single Phase Autotransformer Replacement, TF2, 525/230 kV, 672 MVA | H53: 2024-01-01 | I53: 33.62560188 | J53: 27.33988897 | K53: 75 | L53: 0 | M53: 525 | N53: 0 | O53: 0 | P53: PR | Q53: Yes | R53: 2024-11-25 | S53: 2043-01-01 | T53: 9.54909926 | U53: 2024-06-01 | V53: IPCA | W53: Improvement | X53: 13.2290421 | Y53: 5.78072779 | Z53: 0.5393684 | AA53: 1.84860542 | AB53: 057/2001 | AC53: Renewed | AD53: T2021-103
B54: 19 | C54: Substation | D54: CGT Eletrosul | E54: CGT Eletrosul | F54: 1 | G54: Improvement at SS Blumenau - replacement of capacitor bank BC2, 230 kV, 125 MVAr | H54: 2024-01-01 | I54: 8.25552709 | J54: 1.787456768 | K54: 75 | L54: 0 | M54: 230 | N54: 0 | O54: 0 | P54: SC | Q54: Yes | R54: 2024-10-30 | S54: 2043-01-01 | T54: 0.62097801 | U54: 2024-06-01 | V54: IPCA | W54: Improvement | X54: 7.27997471 | Y54: 0.4800183493 | Z54: 0.2297643124 | AA54: 0.1021217261 | AB54: 057/2001 | AC54: Renewed | AD54: T2021-107
B55: 20 | C55: Substation | D55: CGT Eletrosul | E55: CGT Eletrosul | F55: 1 | G55: Improvement at SS Blumenau - replacement of single-phase autotransformer TF5, Phases A, B and C, 672 MVA | H55: 2024-01-01 | I55: 30.63630356 | J55: 27.48664519 | K55: 78 | L55: 0 | M55: 525 | N55: 0 | O55: 0 | P55: SC | Q55: Yes | R55: 2024-11-25 | S55: 2043-01-01 | T55: 9.54909926 | U55: 2024-06-01 | V55: IPCA | W55: Improvement | X55: 15.63473115 | Y55: 7.381489884 | Z55: 3.533204408 | AA55: 1.570378484 | AB55: 057/2001 | AC55: Renewed | AD55: T2021-108
B56: 21 | C56: Substation | D56: CGT Eletrosul | E56: CGT Eletrosul | F56: 1 | G56: Improvement at SS Curitiba - replacement of the single-phase reactor RE2, 525 kV, 150 MVAr, Phases A, B and C | H56: 2024-01-01 | I56: 6.483623677 | J56: 7.842845302 | K56: 75 | L56: 0 | M56: 525 | N56: 0 | O56: 0 | P56: PR | Q56: Yes | R56: 2024-11-25 | S56: 2043-01-01 | T56: 2.60171983 | U56: 2024-06-01 | V56: IPCA | W56: Improvement | X56: 0 | Y56: 1.093755063 | Z56: 0.1105679634 | AA56: 0.1548985993 | AB56: 057/2001 | AC56: Renewed | AD56: T2021-109
B57: 22 | C57: Substation | D57: CGT Eletrosul | E57: CGT Eletrosul | F57: 1 | G57: Improvement at SS Curitiba - replacement of the single-phase reserve reactor RER1, 525 kV, 50 MVAr | H57: 2024-01-01 | I57: 2.161207902 | J57: 2.61428178 | K57: 73 | L57: 0 | M57: 525 | N57: 0 | O57: 0 | P57: PR | Q57: Yes | R57: 2024-11-25 | S57: 2043-01-01 | T57: 0.86723995 | U57: 2024-06-01 | V57: IPCA | W57: Improvement | X57: 0 | Y57: 0.3645850226 | Z57: 0.03685598796 | AA57: 0.05163286668 | AB57: 057/2001 | AC57: Renewed | AD57: T2021-110
B58: 23 | C58: Substation | D58: CGT Eletrosul | E58: CGT Eletrosul | F58: 1 | G58: Improvement at SS Curitiba - replacement of the single-phase autotransformer reserve 525/230 kV, 224 MVA | H58: 2024-01-01 | I58: 8.786256745 | J58: 9.595205409 | K58: 68 | L58: 0 | M58: 525 | N58: 0 | O58: 0 | P58: PR | Q58: Yes | R58: 2024-11-25 | S58: 2043-01-01 | T58: 3.18303309 | U58: 2024-06-01 | V58: IPCA | W58: Improvement | X58: 0.4666876872 | Y58: 1.338137384 | Z58: 0.1352726312 | AA58: 0.1895082487 | AB58: 057/2001 | AC58: Renewed | AD58: T2021-111
B59: 24 | C59: Substation | D59: CGT Eletrosul | E59: CGT Eletrosul | F59: 1 | G59: Improvement at SS Curitiba - replacement of the single-phase autotransformer TF2, 525/230 kV, 672 MVA | H59: 2024-01-01 | I59: 25.89208252 | J59: 28.78561619 | K59: 52 | L59: 0 | M59: 525 | N59: 0 | O59: 0 | P59: PR | Q59: Yes | R59: 2024-11-25 | S59: 2043-01-01 | T59: 9.54909926 | U59: 2024-06-01 | V59: IPCA | W59: Improvement | X59: 0.9333753744 | Y59: 4.014412146 | Z59: 0.4058178931 | AA59: 0.5685247453 | AB59: 057/2001 | AC59: Renewed | AD59: T2021-112
B60: 25 | C60: Substation | D60: CGT Eletrosul | E60: CGT Eletrosul | F60: 1 | G60: Improvement at SS Gravataí - replacement of the reserve single-phase autotransformer, 525/230 kV, 224 MVA | H60: 2024-01-01 | I60: 2.817053354 | J60: 2.804653782 | K60: 52 | L60: 0 | M60: 525 | N60: 0 | O60: 0 | P60: RS | Q60: Yes | R60: 2024-11-25 | S60: 2043-01-01 | T60: 3.18303309 | U60: 2024-06-01 | V60: IPCA | W60: Improvement | X60: 0.696224349 | Y60: 0.5656667956 | Z60: 0.3885777086 | AA60: 0.9274127898 | AB60: 057/2001 | AC60: Renewed | AD60: T2021-113
B61: 26 | C61: Substation | D61: CGT Eletrosul | E61: CGT Eletrosul | F61: 1 | G61: Improvement at SS Curitiba - replacement of the single-phase autotransformer TF1, Phases B and C, 672 MVA | H61: 2024-01-01 | I61: 36.05394256 | J61: 16.66009732 | K61: 49 | L61: 0 | M61: 525 | N61: 0 | O61: 0 | P61: PR | Q61: Yes | R61: 2025-02-18 | S61: 2043-01-01 | T61: 5.52668117 | U61: 2024-06-01 | V61: IPCA | W61: Improvement | X61: 21.9343213 | Y61: 2.323399874 | Z61: 0.2348730543 | AA61: 0.32904203 | AB61: 057/2001 | AC61: Renewed | AD61: T2021-098
B62: 27 | C62: Substation | D62: CGT Eletrosul | E62: CGT Eletrosul | F62: 1 | G62: Improvement at SS Gravataí - replacement of phases A and C, TF1 525/230 kV, 224 MVA each | H62: 2024-01-01 | I62: 4.849878859 | J62: 4.869703457 | K62: 46 | L62: 0 | M62: 525 | N62: 0 | O62: 0 | P62: RS | Q62: Yes | R62: 2025-03-18 | S62: 2043-01-01 | T62: 5.52668117 | U62: 2024-06-01 | V62: IPCA | W62: Improvement | X62: 1.193649123 | Y62: 0.9821638478 | Z62: 0.6746851335 | AA62: 1.610261237 | AB62: 057/2001 | AC62: Renewed | AD62: T2021-099
B63: 28 | C63: Substation | D63: CGT Eletrosul | E63: CGT Eletrosul | F63: 1 | G63: Reinforcement at SS Gravataí - Installation of a bank of 525 kV, (3+1R)x50 Mvar bar reactors and connections | H63: 2024-01-01 | I63: 4.347401386 | J63: 7.400738635 | K63: 39 | L63: 0 | M63: 525 | N63: 0 | O63: 150 | P63: RS | Q63: Yes | R63: 2025-04-13 | S63: 2043-01-01 | T63: 8.37436668 | U63: 2024-06-01 | V63: IPCA | W63: Reinforcement | X63: 0.6973755899 | Y63: 1.488234975 | Z63: 1.022324345 | AA63: 2.43996671 | AB63: 057/2001 | AC63: Renewed | AD63: T2022-069
B64: 29 | C64: Substation | D64: CGT Eletrosul | E64: CGT Eletrosul | F64: 1 | G64: Improvement at SS Gravatai: single-phase reactor replacement, RE2, 525 kV, 3x50 Mvar, Phases A and C | H64: 2024-01-01 | I64: 3.387941749 | J64: 1.801380297 | K64: 32 | L64: 0 | M64: 525 | N64: 0 | O64: 0 | P64: RS | Q64: Yes | R64: 2025-06-25 | S64: 2043-01-01 | T64: 1.82975436 | U64: 2024-06-01 | V64: IPCA | W64: Improvement | X64: 1.027439392 | Y64: 0.363317935 | Z64: 0.2495766974 | AA64: 0.5956610894 | AB64: 057/2001 | AC64: Renewed | AD64: T2023-002
B65: 30 | C65: Substation | D65: CGT Eletrosul | E65: CGT Eletrosul | F65: 1 | G65: Improvement at SS Campos Novos: single-phase reactor replacement, RE1, 525 kV, 3x33,333 Mvar | H65: 2024-01-01 | I65: 13.47583054 | J65: 2.099724348 | K65: 10 | L65: 0 | M65: 525 | N65: 0 | O65: 0 | P65: SC | Q65: Yes | R65: 2026-03-15 | S65: 2043-01-01 | T65: 2.60189501 | U65: 2024-06-01 | V65: IPCA | W65: Improvement | X65: 0.8247626898 | Y65: 0 | Z65: 2.037660078 | AA65: 0.06206427004 | AB65: 057/2001 | AC65: Renewed | AD65: T2023-003
B66: 31 | C66: Substation | D66: CGT Eletrosul | E66: CGT Eletrosul | F66: 1 | G66: Improvement at SS Campos Novos: single-phase reactor replacement, 525 kV, 33.333 Mvar, Reserve Phase 1 | H66: 2024-01-01 | I66: 4.67738555 | J66: 0.6999081132 | K66: 18 | L66: 0 | M66: 525 | N66: 0 | O66: 0 | P66: SC | Q66: Yes | R66: 2026-03-15 | S66: 2043-01-01 | T66: 0.86729833 | U66: 2024-06-01 | V66: IPCA | W66: Improvement | X66: 0.2620992345 | Y66: 0 | Z66: 0.6792200233 | AA66: 0.02068808993 | AB66: 057/2001 | AC66: Renewed | AD66: T2023-004
B67: 32 | C67: Substation | D67: CGT Eletrosul | E67: CGT Eletrosul | F67: 1 | G67: Improvement at SS Campos Novos: single-phase reactor replacement, RE2, 525 kV, 3x33.333 Mvar | H67: 2024-01-01 | I67: 13.73260477 | J67: 2.099724348 | K67: 13 | L67: 0 | M67: 525 | N67: 0 | O67: 0 | P67: SC | Q67: Yes | R67: 2026-03-15 | S67: 2043-01-01 | T67: 2.60189501 | U67: 2024-06-01 | V67: IPCA | W67: Improvement | X67: 0.8097674657 | Y67: 0 | Z67: 2.037660078 | AA67: 0.06206427004 | AB67: 057/2001 | AC67: Renewed | AD67: T2023-005
B68: 33 | C68: Substation | D68: CGT Eletrosul | E68: CGT Eletrosul | F68: 1 | G68: Improvement at SS Itá: single-phase reactor replacement, RE1, 525 kV, 3x50 Mvar | H68: 2024-01-01 | I68: 14.72227823 | J68: 4.39889541 | K68: 10 | L68: 0 | M68: 525 | N68: 0 | O68: 0 | P68: SC | Q68: Yes | R68: 2026-03-15 | S68: 2043-01-01 | T68: 2.74463154 | U68: 2024-06-01 | V68: IPCA | W68: Improvement | X68: 1.62711248 | Y68: 0.004434495 | Z68: 2.20606602 | AA68: 2.188394895 | AB68: 057/2001 | AC68: Renewed | AD68: T2023-006
B69: 34 | C69: Substation | D69: CGT Eletrosul | E69: CGT Eletrosul | F69: 1 | G69: Improvement at SS Itá: replacement of single-phase reactor, RTR1, 525 kV, 50 Mvar, Reserve Phase 1 | H69: 2024-01-01 | I69: 4.90742607 | J69: 1.46629847 | K69: 10 | L69: 0 | M69: 525 | N69: 0 | O69: 0 | P69: SC | Q69: Yes | R69: 2026-03-15 | S69: 2043-01-01 | T69: 0.91487718 | U69: 2024-06-01 | V69: IPCA | W69: Improvement | X69: 0 | Y69: 0.001478165 | Z69: 0.73535534 | AA69: 0.729464965 | AB69: 057/2001 | AC69: Renewed | AD69: T2023-007
B70: 35 | C70: Substation | D70: CGT Eletrosul | E70: CGT Eletrosul | F70: 1 | G70: Improvement at SS Gravataí 2: replacement of the capacitor bank, BC4, 230 kV, 100 Mvar | H70: 2024-01-01 | I70: 2.311952009 | J70: 0 | K70: 5 | L70: 0 | M70: 230 | N70: 0 | O70: 0 | P70: RS | Q70: Yes | R70: 2026-03-15 | S70: 2043-01-01 | T70: 0.62804794 | U70: 2024-06-01 | V70: IPCA | W70: Improvement | X70: 0.15701652 | Y70: 0 | Z70: 0 | AA70: 0 | AB70: 057/2001 | AC70: Renewed | AD70: T2023-008
B71: 36 | C71: Substation | D71: CGT Eletrosul | E71: CGT Eletrosul | F71: 1 | G71: Improvement at SS Gravataí 2: replacement of the capacitor bank, BC5, 230 kV, 100 Mvar | H71: 2024-01-01 | I71: 2.311952009 | J71: 0 | K71: 5 | L71: 0 | M71: 230 | N71: 0 | O71: 0 | P71: RS | Q71: Yes | R71: 2026-03-15 | S71: 2043-01-01 | T71: 0.62804794 | U71: 2024-06-01 | V71: IPCA | W71: Improvement | X71: 0.15701652 | Y71: 0 | Z71: 0 | AA71: 0 | AB71: 057/2001 | AC71: Renewed | AD71: T2023-009
B72: 37 | C72: Substation | D72: CGT Eletrosul | E72: CGT Eletrosul | F72: 1 | G72: Improvement at SS Palhoça: replacement of the capacitor bank, BC1, 230 kV, 50 Mvar | H72: 2024-01-01 | I72: 1.948591129 | J72: 0 | K72: 5 | L72: 0 | M72: 230 | N72: 0 | O72: 0 | P72: SC | Q72: Yes | R72: 2026-03-15 | S72: 2043-01-01 | T72: 0.55222424 | U72: 2024-06-01 | V72: IPCA | W72: Improvement | X72: 0.15709531 | Y72: 0 | Z72: 0 | AA72: 0 | AB72: 057/2001 | AC72: Renewed | AD72: T2023-010
B73: 38 | C73: Substation | D73: CGT Eletrosul | E73: CGT Eletrosul | F73: 1 | G73: Improvement at SS Gravataí: replacement of single-phase autotransformer, TF2, 525/230 kV, 3x224 MVA | H73: 2024-01-01 | I73: 60.46890275 | J73: 7.736293201 | K73: 11 | L73: 0 | M73: 525 | N73: 0 | O73: 0 | P73: RS | Q73: Yes | R73: 2025-12-31 | S73: 2043-01-01 | T73: 7.88035911 | U73: 2024-06-01 | V73: IPCA | W73: Improvement | X73: 19.80433919 | Y73: 1.564732328 | Z73: 1.074873243 | AA73: 2.565384402 | AB73: 057/2001 | AC73: Renewed | AD73: T2023-011
B74: 39 | C74: Substation | D74: CGT Eletrosul | E74: CGT Eletrosul | F74: 1 | G74: Improvement at SS Gravataí: Replacement of TF3 single-phase autotransformer, 525/230 kV, 3x224 MVA | H74: 2024-01-01 | I74: 60.49076767 | J74: 7.758158118 | K74: 20 | L74: 0 | M74: 525 | N74: 0 | O74: 0 | P74: RS | Q74: Yes | R74: 2025-12-31 | S74: 2043-01-01 | T74: 7.88035911 | U74: 2024-06-01 | V74: IPCA | W74: Improvement | X74: 19.80433919 | Y74: 1.564732328 | Z74: 1.074873243 | AA74: 2.565384402 | AB74: 057/2001 | AC74: Renewed | AD74: T2023-012
B75: 40 | C75: Substation | D75: CGT Eletrosul | E75: CGT Eletrosul | F75: 1 | G75: Improvement at SS Passo Fundo: replacement of TF3 single-phase autotransformer, 230/138 kV, 3x28 MVA | H75: 2024-01-01 | I75: 16.94727496 | J75: 0.02019309 | K75: 5 | L75: 0 | M75: 230 | N75: 0 | O75: 0 | P75: RS | Q75: Yes | R75: 2026-03-15 | S75: 2043-01-01 | T75: 3.55980709 | U75: 2024-06-01 | V75: IPCA | W75: Improvement | X75: 1.103688332 | Y75: 0 | Z75: 0.00886899 | AA75: 0.0113241 | AB75: 057/2001 | AC75: Renewed | AD75: T2023-013
B76: 41 | C76: Substation | D76: CGT Eletrosul | E76: CGT Eletrosul | F76: 1 | G76: Improvement at SS Passo Fundo: replacement of the autotransformer, 230/138 kV, 28 MVA, Reserve Phase | H76: 2024-01-01 | I76: 6.247744095 | J76: 0.00673103 | K76: 8 | L76: 0 | M76: 230 | N76: 0 | O76: 0 | P76: RS | Q76: Yes | R76: 2026-03-15 | S76: 2043-01-01 | T76: 1.18660236 | U76: 2024-06-01 | V76: IPCA | W76: Improvement | X76: 0.3726594481 | Y76: 0 | Z76: 0.00295633 | AA76: 0.0037747 | AB76: 057/2001 | AC76: Renewed | AD76: T2023-014
B77: 42 | C77: Substation | D77: CGT Eletrosul | E77: CGT Eletrosul | F77: 1 | G77: Improvement of SS Campo Grande: replacement of Capacitor Bank, BC1, 138 kV, 30 Mvar | H77: 2024-01-01 | I77: 2.083357306 | J77: 0 | K77: 5 | L77: 0 | M77: 230 | N77: 0 | O77: 0 | P77: MS | Q77: Yes | R77: 2026-03-15 | S77: 2043-01-01 | T77: 0.43890958 | U77: 2024-06-01 | V77: IPCA | W77: Improvement | X77: 0.35904287 | Y77: 0 | Z77: 0 | AA77: 0 | AB77: 057/2001 | AC77: Renewed | AD77: T2023-028
B78: 43 | C78: Substation | D78: CGT Eletrosul | E78: CGT Eletrosul | F78: 1 | G78: Improvement at SS Londrina: replacement of autotransformer bank, TF3, 525/230 kV, 3x224 MVA | H78: 2024-01-01 | I78: 43.28953841 | J78: 0.10110289 | K78: 6 | L78: 0 | M78: 525 | N78: 0 | O78: 0 | P78: PR | Q78: Yes | R78: 2026-03-15 | S78: 2043-01-01 | T78: 7.88035911 | U78: 2024-06-01 | V78: IPCA | W78: Improvement | X78: 5.15627808 | Y78: 0 | Z78: 0.05034117 | AA78: 0.05076172 | AB78: 057/2001 | AC78: Renewed | AD78: T2023-029
B79: 44 | C79: Substation | D79: CGT Eletrosul | E79: CGT Eletrosul | F79: 1 | G79: Improvement at SS Blumenau: replacement of Phase C of TF6, 525/230 kV, 224 MVA | H79: 2024-01-01 | I79: 12.21043091 | J79: 0.06172403 | K79: 6 | L79: 0 | M79: 525 | N79: 0 | O79: 0 | P79: SC | Q79: Yes | R79: 2026-03-15 | S79: 2043-01-01 | T79: 2.62678638 | U79: 2024-06-01 | V79: IPCA | W79: Improvement | X79: 1.31521367 | Y79: 0 | Z79: 0.03070035 | AA79: 0.03102368 | AB79: 057/2001 | AC79: Renewed | AD79: T2023-030
B80: 45 | C80: Substation | D80: CGT Eletrosul | E80: CGT Eletrosul | F80: 1 | G80: Improvement at SS Curitiba: replacement of Phase A of RE1, 525 kV, 50 Mvar | H80: 2024-01-01 | I80: 5.302808303 | J80: 1.49677526 | K80: 13 | L80: 0 | M80: 525 | N80: 0 | O80: 0 | P80: PR | Q80: Yes | R80: 2026-03-15 | S80: 2043-01-01 | T80: 0.91487718 | U80: 2024-06-01 | V80: IPCA | W80: Improvement | X80: 0.8544454 | Y80: 0 | Z80: 0.75584886 | AA80: 0.7409264 | AB80: 057/2001 | AC80: Renewed | AD80: T2023-031
B81: 46 | C81: Substation | D81: CGT Eletrosul | E81: CGT Eletrosul | F81: 1 | G81: Improvement at SS Santo Ângelo: replacement of the bank of single-phase reactors, RE1, 525 kV, 3x50 Mvar | H81: 2024-01-01 | I81: 11.43638771 | J81: 4.46020168 | K81: 14 | L81: 0 | M81: 525 | N81: 0 | O81: 0 | P81: RS | Q81: Yes | R81: 2026-03-15 | S81: 2043-01-01 | T81: 2.74463154 | U81: 2024-06-01 | V81: IPCA | W81: Improvement | X81: 1.79826808 | Y81: 0 | Z81: 2.2212162 | AA81: 2.23898548 | AB81: 057/2001 | AC81: Renewed | AD81: T2023-032
B82: 47 | C82: Substation | D82: CGT Eletrosul | E82: CGT Eletrosul | F82: 1 | G82: Improvement at SS Dourados: replacement of three-phase autotransformer, TF1, 230/138 kV, 75 MVA | H82: 2024-01-01 | I82: 11.29156611 | J82: 0.00449644 | K82: 6 | L82: 0 | M82: 230 | N82: 0 | O82: 0 | P82: MS | Q82: Yes | R82: 2026-03-15 | S82: 2043-01-01 | T82: 2.02796182 | U82: 2024-06-01 | V82: IPCA | W82: Improvement | X82: 1.075344847 | Y82: 0 | Z82: 0.003941773333 | AA82: 0.0005546666667 | AB82: 057/2001 | AC82: Renewed | AD82: T2023-033
B83: 48 | C83: Substation | D83: CGT Eletrosul | E83: CGT Eletrosul | F83: 1 | G83: Improvement at SS Dourados: replacement of TF3 three-phase autotransformer, 230/138 kV, 75 MVA | H83: 2024-01-01 | I83: 11.49147922 | J83: 0.00449644 | K83: 7 | L83: 0 | M83: 230 | N83: 0 | O83: 0 | P83: MS | Q83: Yes | R83: 2026-03-15 | S83: 2043-01-01 | T83: 2.02796182 | U83: 2024-06-01 | V83: IPCA | W83: Improvement | X83: 1.055793723 | Y83: 0 | Z83: 0.003941773333 | AA83: 0.0005546666667 | AB83: 057/2001 | AC83: Renewed | AD83: T2023-034
B84: 49 | C84: Substation | D84: CGT Eletrosul | E84: CGT Eletrosul | F84: 1 | G84: Improvement at SS Dourados: replacement of the three-phase autotransformer, TF4, 230/138 kV, 75 MVA | H84: 2024-01-01 | I84: 11.72173114 | J84: 0.00449644 | K84: 6 | L84: 0 | M84: 230 | N84: 0 | O84: 0 | P84: MS | Q84: Yes | R84: 2026-03-15 | S84: 2043-01-01 | T84: 2.02796182 | U84: 2024-06-01 | V84: IPCA | W84: Improvement | X84: 1.0251933 | Y84: 0 | Z84: 0.003941773333 | AA84: 0.0005546666667 | AB84: 057/2001 | AC84: Renewed | AD84: T2023-035
B85: 50 | C85: Substation | D85: CGT Eletrosul | E85: CGT Eletrosul | F85: 1 | G85: Reinforcement at SS Joinville: replacement TF1 138/69 kV - 50 MVA by TF of 138/69 kV – 66 MVA | H85: 2024-01-01 | I85: 9.788424978 | J85: 0.15526537 | K85: 8 | L85: 0 | M85: 138 | N85: 16 | O85: 0 | P85: SC | Q85: Yes | R85: 2025-07-29 | S85: 2043-01-01 | T85: 1.4890955 | U85: 2024-06-01 | V85: IPCA | W85: Reinforcement | X85: 1.23409941 | Y85: 0.03832637 | Z85: 0.07588181 | AA85: 0.04105719 | AB85: 057/2001 | AC85: Renewed | AD85: T2023-142
B86: 51 | C86: Substation | D86: CGT Eletrosul | E86: CGT Eletrosul | F86: 1 | G86: Reinforcement at SS Jorge Lacerda A: replacement TF5 230/138 kV - 79 MVA by TF of 230/138 kV – 120 MVA | H86: 2024-01-01 | I86: 28.20902741 | J86: 0.1693027753 | K86: 8 | L86: 0 | M86: 230 | N86: 41 | O86: 0 | P86: SC | Q86: Yes | R86: 2025-09-14 | S86: 2043-01-01 | T86: 4.74424695 | U86: 2024-06-01 | V86: IPCA | W86: Reinforcement | X86: 2.070316722 | Y86: 0.01964212105 | Z86: 0.09250992827 | AA86: 0.03259158598 | AB86: 057/2001 | AC86: Renewed | AD86: T2023-138
B87: 52 | C87: Substation | D87: CGT Eletrosul | E87: CGT Eletrosul | F87: 1 | G87: Reinforcement at SS Jorge Lacerda A: replacement of TF7 230/138 kV - 79 MVA, by TR of 120 MVA | H87: 2024-01-01 | I87: 28.20902741 | J87: 0.1693027753 | K87: 8 | L87: 0 | M87: 230 | N87: 41 | O87: 0 | P87: SC | Q87: Yes | R87: 2025-09-14 | S87: 2043-01-01 | T87: 4.74424695 | U87: 2024-06-01 | V87: IPCA | W87: Reinforcement | X87: 2.070316722 | Y87: 0.01964212105 | Z87: 0.09250992827 | AA87: 0.03259158598 | AB87: 057/2001 | AC87: Renewed | AD87: T2023-145
B88: 53 | C88: Substation | D88: CGT Eletrosul | E88: CGT Eletrosul | F88: 1 | G88: Reinforcement at SS Jorge Lacerda A: replacement of the existing TF8 138/69 kV - 25 MVA, by TF of 60 MVA | H88: 2024-01-01 | I88: 18.00994803 | J88: 0.1168381947 | K88: 8 | L88: 0 | M88: 138 | N88: 35 | O88: 0 | P88: SC | Q88: Yes | R88: 2025-09-14 | S88: 2043-01-01 | T88: 3.03478604 | U88: 2024-06-01 | V88: IPCA | W88: Reinforcement | X88: 1.321133718 | Y88: 0.01252252895 | Z88: 0.05897826673 | AA88: 0.02077825902 | AB88: 057/2001 | AC88: Renewed | AD88: T2023-148
B89: 54 | C89: Substation | D89: CGT Eletrosul | E89: CGT Eletrosul | F89: 1 | G89: Reinforcement at SS Jorge Lacerda A: replacement of the existing TF9 - 138/69 kV - 50 MVA, by TF of 60 MVA | H89: 2024-01-01 | I89: 18.00994803 | J89: 0.1168381947 | K89: 6 | L89: 0 | M89: 138 | N89: 10 | O89: 0 | P89: SC | Q89: Yes | R89: 2026-04-15 | S89: 2043-01-01 | T89: 3.06442304 | U89: 2024-06-01 | V89: IPCA | W89: Reinforcement | X89: 1.321133718 | Y89: 0.01252252895 | Z89: 0.05897826673 | AA89: 0.02077825902 | AB89: 057/2001 | AC89: Renewed | AD89: T2023-149
B90: 55 | C90: Substation | D90: CGT Eletrosul | E90: CGT Eletrosul | F90: 1 | G90: Reinforcement at SS Anastácio: Installation of the 2nd 27 Mvar bar reactor at 230 kV | H90: 2024-01-01 | I90: 16.91230728 | J90: 0.00379782 | K90: 3 | L90: 0 | M90: 230 | N90: 0 | O90: 27 | P90: MS | Q90: Yes | R90: 2025-12-21 | S90: 2043-01-01 | T90: 2.69810575 | U90: 2024-06-01 | V90: IPCA | W90: Reinforcement | X90: 1.52730728 | Y90: 0 | Z90: 0 | AA90: 0.00379782 | AB90: 057/2001 | AC90: Renewed | AD90: T2023-201
B91: 56 | C91: Substation | D91: CGT Eletrosul | E91: CGT Eletrosul | F91: 1 | G91: Reinforcement at SS Dourados: Replacement of 27 Mvar Bar Reactor 1 with 1x50Mvar, 230 kV | H91: 2024-01-01 | I91: 8.127032623 | J91: 0.00269652 | K91: 3 | L91: 0 | M91: 230 | N91: 0 | O91: 23 | P91: MS | Q91: Yes | R91: 2025-12-21 | S91: 2043-01-01 | T91: 1.24509909 | U91: 2024-06-01 | V91: IPCA | W91: Reinforcement | X91: 0.75542038 | Y91: 0 | Z91: 0 | AA91: 0.00269652 | AB91: 057/2001 | AC91: Renewed | AD91: T2023-202
B92: 57 | C92: Substation | D92: CGT Eletrosul | E92: CGT Eletrosul | F92: 1 | G92: Improvement at SS Caxias do Sul 5: BC1 Capacitor Bank Replacement, 13.8 kV, 3.6 Mvar | H92: 2024-01-01 | I92: 0.6165007091 | J92: 0 | K92: 1 | L92: 0 | M92: 13.8 | N92: 0 | O92: 0 | P92: RS | Q92: Yes | R92: 2027-03-19 | S92: 2043-01-01 | T92: 0.31622013 | U92: 2024-06-01 | V92: IPCA | W92: Improvement | X92: 0.0128058075 | Y92: 0 | Z92: 0 | AA92: 0 | AB92: 057/2001 | AC92: Renewed | AD92: T2024-012
B93: 58 | C93: Substation | D93: CGT Eletrosul | E93: CGT Eletrosul | F93: 1 | G93: Improvement at SS Caxias do Sul 5: BC2 Capacitor Bank Replacement, 13.8 kV, 3.6 Mvar | H93: 2024-01-01 | I93: 0.6165007091 | J93: 0 | K93: 1 | L93: 0 | M93: 13.8 | N93: 0 | O93: 0 | P93: RS | Q93: Yes | R93: 2027-03-19 | S93: 2043-01-01 | T93: 0.31622013 | U93: 2024-06-01 | V93: IPCA | W93: Improvement | X93: 0.0128058075 | Y93: 0 | Z93: 0 | AA93: 0 | AB93: 057/2001 | AC93: Renewed | AD93: T2024-013
B94: 59 | C94: Substation | D94: CGT Eletrosul | E94: CGT Eletrosul | F94: 1 | G94: Improvement at SS Caxias do Sul 5: BC3 Capacitor Bank Replacement, 13.8 kV, 3.6 Mvar | H94: 2024-01-01 | I94: 0.6165007091 | J94: 0 | K94: 1 | L94: 0 | M94: 13.8 | N94: 0 | O94: 0 | P94: RS | Q94: Yes | R94: 2027-03-19 | S94: 2043-01-01 | T94: 0.31622013 | U94: 2024-06-01 | V94: IPCA | W94: Improvement | X94: 0.0128058075 | Y94: 0 | Z94: 0 | AA94: 0 | AB94: 057/2001 | AC94: Renewed | AD94: T2024-014
B95: 60 | C95: Substation | D95: CGT Eletrosul | E95: CGT Eletrosul | F95: 1 | G95: Improvement at SS Caxias do Sul 5: BC4 Capacitor Bank Replacement, 13.8 kV, 3.6 Mvar | H95: 2024-01-01 | I95: 0.6165007091 | J95: 0 | K95: 1 | L95: 0 | M95: 13.8 | N95: 0 | O95: 0 | P95: RS | Q95: Yes | R95: 2027-03-19 | S95: 2043-01-01 | T95: 0.31622013 | U95: 2024-06-01 | V95: IPCA | W95: Improvement | X95: 0.0128058075 | Y95: 0 | Z95: 0 | AA95: 0 | AB95: 057/2001 | AC95: Renewed | AD95: T2024-015
B96: 61 | C96: Substation | D96: CGT Eletrosul | E96: CGT Eletrosul | F96: 1 | G96: SS GRAVATAÍ 3: Installation of the 2nd Transformer 230/69 kV, 3x 55 MVA, at SS Gravataí 3. | H96: 2023-06-01 | I96: 35.3624135 | J96: 0.00935856 | K96: 1 | L96: 0 | M96: 230 | N96: 165 | O96: 0 | P96: RS | Q96: Yes | R96: 2026-10-15 | S96: 2043-01-01 | T96: 5.9307164 | U96: 2024-06-01 | V96: IPCA | W96: Reinforcement | X96: NA | Y96: 0 | Z96: 0 | AA96: 0.00935856 | AB96: 057/2001 | AC96: Renewed | AD96: T2024-005
B97: 62 | C97: Substation | D97: Chesf | E97: Chesf | F97: 1 | G97: SS Milagres - Installation of the fourth 230/69 kV, 100 MVA transformer and connections | H97: 2024-01-01 | I97: 46.08587522 | J97: 22.32948518 | K97: 50 | L97: 0 | M97: 230 | N97: 100 | O97: 0 | P97: CE | Q97: Yes | R97: 2024-12-29 | S97: 2043-01-01 | T97: 3.50533491 | U97: 2024-06-01 | V97: IPCA | W97: Reinforcement | X97: 8.26763915 | Y97: 3.86874915 | Z97: 3.94361991 | AA97: 6.43188005 | AB97: 061/2001 | AC97: Renewed | AD97: T2019-032
B98: 63 | C98: Substation | D98: Chesf | E98: Chesf | F98: 1 | G98: Installation of the 1st Bar Reactor Bank 500 kV - 3X50 MVA in Sobral III Substation | H98: 2024-01-01 | I98: 32.16350439 | J98: 30.72549621 | K98: 35 | L98: 0 | M98: 500 | N98: 0 | O98: 150 | P98: CE | Q98: Yes | R98: 2025-01-30 | S98: 2043-01-01 | T98: 5.31392214 | U98: 2024-06-01 | V98: IPCA | W98: Reinforcement | X98: 6.11434917 | Y98: 0.83716405 | Z98: 2.78429667 | AA98: 7.55488027 | AB98: 061/2001 | AC98: Renewed | AD98: T2019-072
B99: 64 | C99: Substation | D99: Chesf | E99: Chesf | F99: 1 | G99: SS São João do Piauí - Installation of the second autotransformer 500/230 kV, 300 MVA and connections. | H99: 2024-01-01 | I99: 60.23862432 | J99: 56.77307463 | K99: 46 | L99: 0 | M99: 500 | N99: 300 | O99: 0 | P99: PI | Q99: Yes | R99: 2025-03-31 | S99: 2043-01-01 | T99: 6.87410838 | U99: 2024-06-01 | V99: IPCA | W99: Reinforcement | X99: 6.50483781 | Y99: 3.91245606 | Z99: 2.97770508 | AA99: 3.14912698 | AB99: 061/2001 | AC99: Renewed | AD99: T2019-029
B100: 65 | C100: Substation | D100: Chesf | E100: Chesf | F100: 1 | G100: SS Jacaracanga TR1 (Improvements) | H100: 2024-01-01 | I100: 16.62600776 | J100: 1.90049212 | K100: 15 | L100: 0 | M100: 230 | N100: 0 | O100: 0 | P100: BA | Q100: Yes | R100: 2025-02-19 | S100: 2043-01-01 | T100: 1.77150058 | U100: 2024-06-01 | V100: IPCA | W100: Improvement | X100: 10.25918492 | Y100: 0.13567409 | Z100: 0.18529205 | AA100: 0.21270314 | AB100: 061/2001 | AC100: Renewed | AD100: T2020-010
B101: 66 | C101: Substation | D101: Chesf | E101: Chesf | F101: 1 | G101: SS Jacaracanga TR2 (Improvements) | H101: 2024-01-01 | I101: 20.1136576 | J101: 1.7601854 | K101: 20 | L101: 0 | M101: 230 | N101: 0 | O101: 0 | P101: BA | Q101: Yes | R101: 2025-05-04 | S101: 2043-01-01 | T101: 1.77150058 | U101: 2024-06-01 | V101: IPCA | W101: Improvement | X101: 8.81229865 | Y101: 0.12880975 | Z101: 0.16200706 | AA101: 0.16800964 | AB101: 061/2001 | AC101: Renewed | AD101: T2020-012
B102: =B101+1 -> 67 | C102: Substation | D102: Chesf | E102: Chesf | F102: 1 | G102: SS Jardim (Improvements) | H102: 2024-01-01 | I102: 14.60415746 | J102: 10.19356314 | K102: 60 | L102: 0 | M102: 230 | N102: 0 | O102: 0 | P102: SS | Q102: Yes | R102: 2024-12-20 | S102: 2043-01-01 | T102: 1.77150058 | U102: 2024-06-01 | V102: IPCA | W102: Improvement | X102: 10.71137276 | Y102: 2.55948112 | Z102: 2.0538851 | AA102: 1.68741222 | AB102: 061/2001 | AC102: Renewed | AD102: T2020-014
B103: 68 | C103: Substation | D103: Chesf | E103: Chesf | F103: 1 | G103: SS Matatu (Improvements) | H103: 2024-01-01 | I103: 16.96389704 | J103: 11.51212463 | K103: 28 | L103: 0 | M103: 230 | N103: 0 | O103: 0 | P103: BA | Q103: Yes | R103: 2025-02-27 | S103: 2043-01-01 | T103: 1.77150058 | U103: 2024-06-01 | V103: IPCA | W103: Improvement | X103: 10.67332183 | Y103: 0.023796 | Z103: 2.07620433 | AA103: 8.12154909 | AB103: 061/2001 | AC103: Renewed | AD103: T2020-016
B104: 69 | C104: Substation | D104: Chesf | E104: Chesf | F104: 1 | G104: SS Banabuiú (Improvements) | H104: 2024-01-01 | I104: 0.036414 | J104: 0.036414 | K104: 0 | L104: 0 | M104: 230 | N104: 0 | O104: 0 | P104: CE | Q104: Yes | R104: 2025-04-30 | S104: 2043-01-01 | T104: 1.12103655 | U104: 2024-06-01 | V104: IPCA | W104: Improvement | X104: 0 | Y104: 0 | Z104: 0 | AA104: 0 | AB104: 061/2001 | AC104: Renewed | AD104: T2021-012
B105: 70 | C105: Substation | D105: Chesf | E105: Chesf | F105: 1 | G105: SS Angelim II | H105: 2024-01-01 | I105: 29.78417647 | J105: 5.32325007 | K105: 7 | L105: 0 | M105: 500 | N105: 0 | O105: 150 | P105: PE | Q105: Yes | R105: 2025-03-30 | S105: 2043-01-01 | T105: 3.27657471 | U105: 2024-06-01 | V105: IPCA | W105: Reinforcement | X105: 11.68272969 | Y105: 0.004872 | Z105: 1.81872406 | AA105: 1.14015693 | AB105: 061/2001 | AC105: Renewed | AD105: T2021-026
B106: 71 | C106: Substation | D106: Chesf | E106: Chesf | F106: 1 | G106: SS Olindina | H106: 2024-01-01 | I106: 29.55226134 | J106: 3.36191946 | K106: 25 | L106: 0 | M106: 500 | N106: 0 | O106: 150 | P106: BA | Q106: Yes | R106: 2025-05-30 | S106: 2043-01-01 | T106: 3.27657471 | U106: 2024-06-01 | V106: IPCA | W106: Reinforcement | X106: 11.93513372 | Y106: 0.24469021 | Z106: 0.91358316 | AA106: 0.37601779 | AB106: 061/2001 | AC106: Renewed | AD106: T2021-028
B107: 72 | C107: Substation | D107: Chesf | E107: Chesf | F107: 1 | G107: SS Poções II - 3rd Trafo | H107: 2024-01-01 | I107: 22.44382902 | J107: 26.86834981 | K107: 95 | L107: 0 | M107: 230 | N107: 100 | O107: 0 | P107: BA | Q107: Yes | R107: 2024-10-30 | S107: 2042-05-10 | T107: 4.58536358 | U107: 2024-06-01 | V107: IPCA | W107: Reinforcement | X107: 6.65604233 | Y107: 3.61262885 | Z107: 3.73353228 | AA107: 13.73440199 | AB107: 005/2012 | AC107: Bidder | AD107: T2021-065
B108: 73 | C108: Substation | D108: Chesf | E108: Chesf | F108: 1 | G108: SS Campina Grande III - 500 kV Reactor Bank | H108: 2024-01-01 | I108: 34.01619045 | J108: 3.53528633 | K108: 19 | L108: 0 | M108: 500 | N108: 0 | O108: 150 | P108: PB | Q108: Yes | R108: 2025-04-20 | S108: 2041-10-13 | T108: 3.6872059 | U108: 2024-06-01 | V108: IPCA | W108: Reinforcement | X108: 15.48110303 | Y108: 0.084245 | Z108: 0.19828852 | AA108: 0.98497032 | AB108: 008/2011 | AC108: Bidder | AD108: T2022-028
B109: 74 | C109: Substation | D109: Chesf | E109: Chesf | F109: 1 | G109: Improvement at SS Camacari II - replacement of RT1 reactor, 500 kV, 100 Mvar | H109: 2024-01-01 | I109: 9.85219174 | J109: 2.83226042 | K109: 45 | L109: 0 | M109: 500 | N109: 0 | O109: 0 | P109: BA | Q109: Yes | R109: 2025-01-31 | S109: 2043-01-01 | T109: 2.38437571 | U109: 2024-06-01 | V109: IPCA | W109: Improvement | X109: 7.28800086 | Y109: 0.021112 | Z109: 0.0991178 | AA109: 0.14783974 | AB109: 061/2001 | AC109: Renewed | AD109: T2022-080
B110: 75 | C110: Substation | D110: Chesf | E110: Chesf | F110: 1 | G110: Improvement at SS Camacari II - replacement of RTR1 reserve reactor, 500 kV, 33.3 Mvar | H110: 2024-01-01 | I110: 12.75997773 | J110: 1.38711763 | K110: 42 | L110: 0 | M110: 500 | N110: 0 | O110: 0 | P110: BA | Q110: Yes | R110: 2025-01-31 | S110: 2043-01-01 | T110: 0.7947919 | U110: 2024-06-01 | V110: IPCA | W110: Improvement | X110: 11.41243492 | Y110: 0.01218 | Z110: 0.014616 | AA110: 0.01277882 | AB110: 061/2001 | AC110: Renewed | AD110: T2022-081
B111: 76 | C111: Substation | D111: Chesf | E111: Chesf | F111: 1 | G111: Reinforcement at SS Recife II - RT2 reactor replacement, 500 kV, 100 Mvar | H111: 2024-01-01 | I111: 10.18146622 | J111: 3.83548073 | K111: 45 | L111: 0 | M111: 500 | N111: 0 | O111: 0 | P111: PE | Q111: Yes | R111: 2025-04-30 | S111: 2043-01-01 | T111: 2.38437571 | U111: 2024-06-01 | V111: IPCA | W111: Improvement | X111: 6.40767527 | Y111: 0 | Z111: 0.02142427 | AA111: 0.04026551 | AB111: 061/2001 | AC111: Renewed | AD111: T2022-083
B112: 77 | C112: Substation | D112: Chesf | E112: Chesf | F112: 1 | G112: Improvement at SS Recife II - replacement of RTR1 reserve reactor, 500 kV, 33.3 Mvar | H112: 2024-01-01 | I112: 5.63325046 | J112: 1.41500126 | K112: 45 | L112: 0 | M112: 500 | N112: 0 | O112: 0 | P112: PE | Q112: Yes | R112: 2025-04-30 | S112: 2043-01-01 | T112: 0.7947919 | U112: 2024-06-01 | V112: IPCA | W112: Improvement | X112: 4.2566139 | Y112: 0.01421 | Z112: 0.012586 | AA112: 0.0115687 | AB112: 061/2001 | AC112: Renewed | AD112: T2022-084
B113: 78 | C113: Substation | D113: Chesf | E113: Chesf | F113: 1 | G113: Improvement at U.Sobradinho 500 kV - replacement of the RTR1 reserve shunt reactor, 500 kV, 33.3 Mvar | H113: 2024-01-01 | I113: 5.78722596 | J113: 1.4958355 | K113: 45 | L113: 0 | M113: 500 | N113: 0 | O113: 0 | P113: BA | Q113: Yes | R113: 2025-01-31 | S113: 2043-01-01 | T113: 0.7947919 | U113: 2024-06-01 | V113: IPCA | W113: Improvement | X113: 4.3501507 | Y113: 0.014233 | Z113: 0.016443 | AA113: 0.02808424 | AB113: 061/2001 | AC113: Renewed | AD113: T2022-086
B114: 79 | C114: Substation | D114: Chesf | E114: Chesf | F114: 1 | G114: SS Bongi - Installation of the 5th transformer and replacement of three transformers | H114: 2024-01-01 | I114: 104.167542 | J114: 42.44770539 | K114: 50 | L114: 0 | M114: 230 | N114: 500 | O114: 0 | P114: PE | Q114: Yes | R114: 2025-10-15 | S114: 2043-01-01 | T114: 19.68074264 | U114: 2024-06-01 | V114: IPCA | W114: Reinforcement | X114: 20.27248519 | Y114: 0.33422639 | Z114: 10.16541703 | AA114: 22.997051 | AB114: 061/2001 | AC114: Renewed | AD114: T2022-032
B115: 80 | C115: Substation | D115: Chesf | E115: Chesf | F115: 1 | G115: SS Teresina II - 2nd reactor bank 500 kV | H115: 2024-01-01 | I115: 59.79880304 | J115: 3.92566742 | K115: 26 | L115: 0 | M115: 500 | N115: 0 | O115: 200 | P115: PI | Q115: Yes | R115: 2025-05-26 | S115: 2043-01-01 | T115: 8.13982776 | U115: 2024-06-01 | V115: IPCA | W115: Reinforcement | X115: 13.9755282 | Y115: 1.46190931 | Z115: 0.33535145 | AA115: 0.25690356 | AB115: 061/2001 | AC115: Renewed | AD115: T2022-065
B116: 81 | C116: Substation | D116: Chesf | E116: Chesf | F116: 1 | G116: SS Camaçari II | H116: 2024-01-01 | I116: 13.49021881 | J116: 14.64511081 | K116: 96 | L116: 0 | M116: 230 | N116: 0 | O116: 100 | P116: BA | Q116: Yes | R116: 2024-11-03 | S116: 2043-01-01 | T116: 2.31783923 | U116: 2024-06-01 | V116: IPCA | W116: Reinforcement | X116: 7.84593815 | Y116: 1.19566296 | Z116: 2.99267966 | AA116: 4.81248753 | AB116: 061/2001 | AC116: Renewed | AD116: T2022-099
B117: 82 | C117: Substation | D117: Chesf | E117: Chesf | F117: 1 | G117: SS São João do Piauí 3rd Trafo 500/230 3x100 MVA | H117: 2024-01-01 | I117: 55.39353937 | J117: 3.69042118 | K117: 34 | L117: 0 | M117: 500 | N117: 300 | O117: 0 | P117: PI | Q117: Yes | R117: 2025-03-29 | S117: 2043-01-01 | T117: 13.83896774 | U117: 2024-06-01 | V117: IPCA | W117: Improvement | X117: 10.53994815 | Y117: 0.59468598 | Z117: 0.38917154 | AA117: 0.39662278 | AB117: 061/2001 | AC117: Renewed | AD117: T2022-101
B118: 83 | C118: Substation | D118: Chesf | E118: Chesf | F118: 1 | G118: Improvement at SS Fortaleza: Replacement of transformer 04T2 of SS FTZ. | H118: 2024-01-01 | I118: 11.77577236 | J118: 0.207565 | K118: 5 | L118: 0 | M118: 230 | N118: 0 | O118: 0 | P118: CE | Q118: Yes | R118: 2026-03-30 | S118: 2043-01-01 | T118: 2.31979257 | U118: 2024-06-01 | V118: IPCA | W118: Improvement | X118: 1.93525199 | Y118: 0.011774 | Z118: 0.032886 | AA118: 0.0668622 | AB118: 061/2001 | AC118: Renewed | AD118: T2023-051
B119: 84 | C119: Substation | D119: Chesf | E119: Chesf | F119: 1 | G119: Improvement at SS Fortaleza: Replacement of transformer 04T4 of SS FTZ. | H119: 2024-01-01 | I119: 11.76711384 | J119: 0.17547813 | K119: 5 | L119: 0 | M119: 230 | N119: 0 | O119: 0 | P119: CE | Q119: Yes | R119: 2026-03-30 | S119: 2043-01-01 | T119: 2.31979257 | U119: 2024-06-01 | V119: IPCA | W119: Improvement | X119: 1.93525199 | Y119: 0.011774 | Z119: 0.01624 | AA119: 0.06007985 | AB119: 061/2001 | AC119: Renewed | AD119: T2023-052
B120: 85 | C120: Substation | D120: Chesf | E120: Chesf | F120: 1 | G120: Improvement at SS Maceió: Replacement of transformer 04T3 of SS MCO. | H120: 2024-01-01 | I120: 10.37138442 | J120: 0.14679207 | K120: 5 | L120: 0 | M120: 230 | N120: 0 | O120: 0 | P120: AL | Q120: Yes | R120: 2026-03-30 | S120: 2043-01-01 | T120: 2.32085555 | U120: 2024-06-01 | V120: IPCA | W120: Improvement | X120: 1.74357338 | Y120: 0.01261323 | Z120: 0.013804 | AA120: 0.04356484 | AB120: 061/2001 | AC120: Renewed | AD120: T2023-054
B121: 86 | C121: Substation | D121: Chesf | E121: Chesf | F121: 1 | G121: Improvement at SS Angelim II: Replacement of Single-phase Reactor, 50 MVAr, operational position 05ER | H121: 2024-01-01 | I121: 5.11689002 | J121: 0.06845354 | K121: 2 | L121: 0 | M121: 500 | N121: 0 | O121: 0 | P121: PE | Q121: Yes | R121: 2025-12-15 | S121: 2043-01-01 | T121: 0.87830341 | U121: 2024-06-01 | V121: IPCA | W121: Improvement | X121: 0.06136852 | Y121: 0 | Z121: 0 | AA121: 0.01153705 | AB121: 061/2001 | AC121: Renewed | AD121: T2023-055
B122: 87 | C122: Substation | D122: Chesf | E122: Chesf | F122: 1 | G122: Improvement at SS Angelim II: Replacement of 3 Single Phase Reactors, 3x50 MVAr, position 05E3 | H122: 2024-01-01 | I122: 15.23683708 | J122: 0.16031944 | K122: 2 | L122: 0 | M122: 500 | N122: 0 | O122: 0 | P122: PE | Q122: Yes | R122: 2025-12-15 | S122: 2043-01-01 | T122: 2.63491023 | U122: 2024-06-01 | V122: IPCA | W122: Improvement | X122: 0.18410557 | Y122: 0 | Z122: 0.00203 | AA122: 0.10137295 | AB122: 061/2001 | AC122: Renewed | AD122: T2023-056
B123: 88 | C123: Substation | D123: Chesf | E123: Chesf | F123: 1 | G123: Improvement at SS Angelim II: Replacement of 3 Single Phase Reactors, 3x50 MVAr, position 05E2 | H123: 2024-01-01 | I123: 15.23683708 | J123: 0.08412326 | K123: 2 | L123: 0 | M123: 500 | N123: 0 | O123: 0 | P123: PE | Q123: Yes | R123: 2025-12-15 | S123: 2043-01-01 | T123: 2.63491023 | U123: 2024-06-01 | V123: IPCA | W123: Improvement | X123: 0.18410557 | Y123: 0 | Z123: 0.002233 | AA123: 0.02497377 | AB123: 061/2001 | AC123: Renewed | AD123: T2023-057
B124: 89 | C124: Substation | D124: Chesf | E124: Chesf | F124: 1 | G124: Improvement at SS Olindin II: Replacement of a Single Phase Reactor, 50 MVAr, operational position 05ER | H124: 2024-01-01 | I124: 5.16060309 | J124: 0.12517776 | K124: 3 | L124: 0 | M124: 500 | N124: 0 | O124: 0 | P124: BA | Q124: Yes | R124: 2026-02-20 | S124: 2043-01-01 | T124: 0.87830341 | U124: 2024-06-01 | V124: IPCA | W124: Improvement | X124: 0.0615 | Y124: 0 | Z124: 0.014413 | AA124: 0.01026668 | AB124: 061/2001 | AC124: Renewed | AD124: T2023-058
B125: 90 | C125: Substation | D125: Chesf | E125: Chesf | F125: 1 | G125: Improvement at SS Olindin II: Replacement of 3 Single Phase Reactors, 3x50 MVAr, position 05E1 | H125: 2024-01-01 | I125: 15.31818362 | J125: 0.12253124 | K125: 5 | L125: 0 | M125: 500 | N125: 0 | O125: 0 | P125: BA | Q125: Yes | R125: 2026-04-13 | S125: 2043-01-01 | T125: 2.63491023 | U125: 2024-06-01 | V125: IPCA | W125: Improvement | X125: 0.246 | Y125: 0.002436 | Z125: 0.018879 | AA125: 0.02484764 | AB125: 061/2001 | AC125: Renewed | AD125: T2023-059
B126: 91 | C126: Substation | D126: Chesf | E126: Chesf | F126: 1 | G126: Reinforcement at SS Barreiras: installation of TR3, 230/138 kV, 100 MVA. | H126: 2024-01-01 | I126: 32.36567493 | J126: 0.18105455 | K126: 5 | L126: 0 | M126: 230 | N126: 100 | O126: 0 | P126: BA | Q126: Yes | R126: 2025-05-25 | S126: 2043-01-01 | T126: 5.49019689 | U126: 2024-06-01 | V126: IPCA | W126: Reinforcement | X126: 2.625 | Y126: 0.002436 | Z126: 0.01015 | AA126: 0.0908822 | AB126: 061/2001 | AC126: Renewed | AD126: T2023-080
B127: 92 | C127: Substation | D127: Chesf | E127: Chesf | F127: 1 | G127: Reinforcement at SS Bom Nome: Installation of the 4th TF 230/138 kV - 100 MVA | H127: 2024-01-01 | I127: 27.78470838 | J127: 0.23991091 | K127: 25 | L127: 0 | M127: 230 | N127: 100 | O127: 0 | P127: PE | Q127: Yes | R127: 2026-01-11 | S127: 2043-01-01 | T127: 4.68774477 | U127: 2024-06-01 | V127: IPCA | W127: Reinforcement | X127: 0 | Y127: 0 | Z127: 0.009338 | AA127: 0.04963167 | AB127: 061/2001 | AC127: Renewed | AD127: T2023-109
B128: 93 | C128: Substation | D128: Chesf | E128: Chesf | F128: 1 | G128: Reinforcement at SS Bom Jesus da Lapa: replacement of TR3 230/69 kV | H128: 2024-01-01 | I128: 12.83134599 | J128: 0.23573951 | K128: 20 | L128: 0 | M128: 230 | N128: 61 | O128: 0 | P128: BA | Q128: Yes | R128: 2025-07-11 | S128: 2043-01-01 | T128: 2.2436433 | U128: 2024-06-01 | V128: IPCA | W128: Reinforcement | X128: 0.29925 | Y128: 0 | Z128: 0.07511 | AA128: 0.05753352 | AB128: 061/2001 | AC128: Renewed | AD128: T2023-110
B129: 94 | C129: Substation | D129: Chesf | E129: Chesf | F129: 1 | G129: Reinforcement at SS S. João do Piauí: replacement of TR3 230/69 kV 33 MVA with 100 MVA | H129: 2024-01-01 | I129: 12.75777817 | J129: 0.28634983 | K129: 19 | L129: 0 | M129: 230 | N129: 67 | O129: 0 | P129: PI | Q129: Yes | R129: 2025-07-14 | S129: 2043-01-01 | T129: 2.04989333 | U129: 2024-06-01 | V129: IPCA | W129: Reinforcement | X129: 0.19061957 | Y129: 0.00555632 | Z129: 0.01190794 | AA129: 0.13072697 | AB129: 061/2001 | AC129: Renewed | AD129: T2023-112
B130: 95 | C130: Substation | D130: Chesf | E130: Chesf | F130: 1 | G130: Reinforcement at SS S. João do Piauí: replacement of TR4 230/69 kV 33 MVA with 100 MVA | H130: 2024-01-01 | I130: 12.46128551 | J130: 0.04339834 | K130: 19 | L130: 0 | M130: 230 | N130: 67 | O130: 0 | P130: PI | Q130: Yes | R130: 2025-07-14 | S130: 2043-01-01 | T130: 2.04989333 | U130: 2024-06-01 | V130: IPCA | W130: Reinforcement | X130: 7.5e-07 | Y130: 0 | Z130: 0.000812 | AA130: 0.01030158 | AB130: 061/2001 | AC130: Renewed | AD130: T2023-113
B131: 96 | C131: Substation | D131: Chesf | E131: Chesf | F131: 1 | G131: Reinforcement at SS Boa Esperança: replacement of the ATR1 500/230 kV bank | H131: 2024-01-01 | I131: 48.49033439 | J131: 0.29133879 | K131: 14 | L131: 0 | M131: 500 | N131: 150 | O131: 0 | P131: MA | Q131: Yes | R131: 2025-08-21 | S131: 2043-01-01 | T131: 6.41132042 | U131: 2024-06-01 | V131: IPCA | W131: Reinforcement | X131: 0.29252565 | Y131: 0.02339265 | Z131: 0.153992415 | AA131: 0.0998949825 | AB131: 061/2001 | AC131: Renewed | AD131: T2023-107
B132: 97 | C132: Substation | D132: Chesf | E132: Chesf | F132: 1 | G132: Reinforcement at SS Boa Esperança: replacement of the reserve phase of ATR1 500/230 kV | H132: 2024-01-01 | I132: 16.1634448 | J132: 0.09711293 | K132: 14 | L132: 0 | M132: 500 | N132: 50 | O132: 0 | P132: MA | Q132: Yes | R132: 2025-08-21 | S132: 2043-01-01 | T132: 2.1371068 | U132: 2024-06-01 | V132: IPCA | W132: Reinforcement | X132: 0.09750855 | Y132: 0.00779755 | Z132: 0.051330805 | AA132: 0.0332983275 | AB132: 061/2001 | AC132: Renewed | AD132: T2023-108
B133: 98 | C133: Substation | D133: Chesf | E133: Chesf | F133: 1 | G133: Reinforcement at SS Bom Jesus da Lapa: Replacement of TR2 230/69 kV - 33 MVA to 100 MVA | H133: 2024-01-01 | I133: 17.429 | J133: 0.11186809 | K133: 3 | L133: 0 | M133: 230 | N133: 67 | O133: 0 | P133: BA | Q133: Yes | R133: 2025-11-10 | S133: 2043-01-01 | T133: 2.04832137 | U133: 2024-06-01 | V133: IPCA | W133: Reinforcement | X133: 0 | Y133: 0.00899189 | Z133: 0.032074 | AA133: 0.0708022 | AB133: 061/2001 | AC133: Renewed | AD133: T2023-159
B134: 99 | C134: Substation | D134: Chesf | E134: Chesf | F134: 1 | G134: Reinforcement at SS Açu II: Replacement of TR4 230/69 kV - 39 MVA to 100 MVA | H134: 2024-01-01 | I134: 17.60964815 | J134: 0.1814178 | K134: 7 | L134: 0 | M134: 230 | N134: 61 | O134: 0 | P134: RN | Q134: Yes | R134: 2025-11-10 | S134: 2043-01-01 | T134: 2.04832137 | U134: 2024-06-01 | V134: IPCA | W134: Reinforcement | X134: 0.08885339 | Y134: 0.01588339 | Z134: 0.008115 | AA134: 0.06562465 | AB134: 061/2001 | AC134: Renewed | AD134: T2023-160
B135: 100 | C135: Substation | D135: Chesf | E135: Chesf | F135: 1 | G135: Reinforcement at SS Irecê: Replacement of TR2 and TR3 230/69 kV - 33 MVA by two 100 MVA TRs | H135: 2024-01-01 | I135: 35.06849969 | J135: 0.10703069 | K135: 7 | L135: 0 | M135: 230 | N135: 134 | O135: 0 | P135: BA | Q135: Yes | R135: 2025-12-05 | S135: 2043-01-01 | T135: 7.93722952 | U135: 2024-06-01 | V135: IPCA | W135: Reinforcement | X135: 0.19593769 | Y135: 0.01918569 | Z135: 0.073283 | AA135: 0 | AB135: 061/2001 | AC135: Renewed | AD135: T2023-161
B136: 101 | C136: Substation | D136: Chesf | E136: Chesf | F136: 1 | G136: Reinforcement at SS Itabaiana: Replacement of 1st and 2nd TR 230/69 kV - 100 MVA to 150 MVA | H136: 2024-01-01 | I136: 25.6251452 | J136: 0.13890355 | K136: 5 | L136: 0 | M136: 230 | N136: 100 | O136: 0 | P136: SS | Q136: Yes | R136: 2027-01-05 | S136: 2043-01-01 | T136: 8.55559188 | U136: 2024-06-01 | V136: IPCA | W136: Reinforcement | X136: 0 | Y136: 0 | Z136: 0.010962 | AA136: 0.11879635 | AB136: 061/2001 | AC136: Renewed | AD136: T2023-162
B137: 102 | C137: Substation | D137: Chesf | E137: Chesf | F137: 1 | G137: Reinforcement at SS Olindina: Installation of the 3rd bank of 3 x 50 Mvar bar reactors at 500 kV | H137: 2024-01-01 | I137: 15.17419414 | J137: 0.2387845097 | K137: 2 | L137: 0 | M137: 500 | N137: 0 | O137: 150 | P137: BA | Q137: Yes | R137: 2025-12-05 | S137: 2043-01-01 | T137: 6.75504886 | U137: 2024-06-01 | V137: IPCA | W137: Reinforcement | X137: 0.15683179 | Y137: 0.03919105967 | Z137: 0.06956619786 | AA137: 0.1084799198 | AB137: 061/2001 | AC137: Renewed | AD137: T2023-181
B138: 103 | C138: Substation | D138: Chesf | E138: Chesf | F138: 1 | G138: SS MOSSORÓ IV: Installation of the 2nd 230/69 kV Transformer | H138: 2024-01-01 | I138: 17.450843 | J138: 0.021843 | K138: 4 | L138: 0 | M138: 230 | N138: 230 | O138: 0 | P138: RN | Q138: Yes | R138: 2026-08-26 | S138: 2042-06-01 | T138: 3.34559599 | U138: 2024-06-01 | V138: IPCA | W138: Reinforcement | X138: 0 | Y138: 0 | Z138: 0 | AA138: 0 | AB138: 018/2012 | AC138: Bidder | AD138: T2024-006
B139: 104 | C139: Substation | D139: Chesf | E139: Chesf | F139: 1 | G139: Reinforcement at SS Camaçari IV: Installation of the 1st Bar Reactor Bank at 500 kV | H139: 2023-06-01 | I139: 40.34791999 | J139: 0.0115136 | K139: 1 | L139: 0 | M139: 500 | N139: 0 | O139: 150 | P139: BA | Q139: Yes | R139: 2026-03-19 | S139: 2040-07-12 | T139: 5.55473342 | U139: 2024-06-01 | V139: IPCA | W139: Reinforcement | X139: NA | Y139: 0 | Z139: 0.00203 | AA139: 0.0022026 | AB139: 007/2010 | AC139: Bidder | AD139: T2024-011
B140: 105 | C140: Substation | D140: Chesf | E140: Chesf | F140: 1 | G140: Improvement at SS São João do Piauí: Replacement of 1 Autotransformer 500/230 kV, 100 MVA | H140: 2023-06-01 | I140: 9.88938585 | J140: 0 | K140: 56 | L140: 0 | M140: 500 | N140: 0 | O140: 0 | P140: PI | Q140: Yes | R140: 2027-03-21 | S140: 2043-01-01 | T140: 1.64872743 | U140: 2024-06-01 | V140: IPCA | W140: Improvement | X140: NA | Y140: 0 | Z140: 0 | AA140: 0 | AB140: 061/2001 | AC140: Renewed | AD140: T2024-028
B141: 106 | C141: Substation | D141: Chesf | E141: Chesf | F141: 1 | G141: Improvement at SS São João do Piauí: Replacement of Autotransformer Bank 500/230 kV, 3x100 MVA | H141: 2023-06-01 | I141: 29.67121969 | J141: 0 | K141: 9 | L141: 0 | M141: 500 | N141: 0 | O141: 0 | P141: PI | Q141: Yes | R141: 2027-03-21 | S141: 2043-01-01 | T141: 4.94669278 | U141: 2024-06-01 | V141: IPCA | W141: Improvement | X141: NA | Y141: 0 | Z141: 0 | AA141: 0 | AB141: 061/2001 | AC141: Renewed | AD141: T2024-029
B142: 107 | C142: Substation | D142: Chesf | E142: Chesf | F142: 1 | G142: Improvement at SS Pirapama II: Replacement of Three-Phase Transformer TR1, 230/69/13.8 kV, 100 MVA | H142: 2023-06-01 | I142: 12.4374208 | J142: 0 | K142: 0 | L142: 0 | M142: 230 | N142: 0 | O142: 0 | P142: PE | Q142: Yes | R142: 2026-08-30 | S142: 2043-01-01 | T142: 2.06358953 | U142: 2024-06-01 | V142: IPCA | W142: Improvement | X142: NA | Y142: 0 | Z142: 0 | AA142: 0 | AB142: 061/2001 | AC142: Renewed | AD142: T2024-030
B143: 108 | C143: Substation | D143: Chesf | E143: Chesf | F143: 1 | G143: Improvement at SS Campina Grande II: Replacement of Three-Phase Transformer TR3 230/69 kV, 100 MVA | H143: 2023-06-01 | I143: 12.4374208 | J143: 0 | K143: 0 | L143: 0 | M143: 230 | N143: 0 | O143: 0 | P143: PB | Q143: Yes | R143: 2027-02-21 | S143: 2043-01-01 | T143: 2.07352783 | U143: 2024-06-01 | V143: IPCA | W143: Improvement | X143: NA | Y143: 0 | Z143: 0 | AA143: 0 | AB143: 061/2001 | AC143: Renewed | AD143: T2024-031
B144: 109 | C144: Substation | D144: Chesf | E144: Chesf | F144: 1 | G144: Improvement at SS Campina Grande II: Replacement of Three-Phase Transformer TR4 230/69 kV, 100 MVA | H144: 2023-06-01 | I144: 12.4374208 | J144: 0 | K144: 0 | L144: 0 | M144: 230 | N144: 0 | O144: 0 | P144: PB | Q144: Yes | R144: 2027-02-21 | S144: 2043-01-01 | T144: 2.07352783 | U144: 2024-06-01 | V144: IPCA | W144: Improvement | X144: NA | Y144: 0 | Z144: 0 | AA144: 0 | AB144: 061/2001 | AC144: Renewed | AD144: T2024-032
